Workbook

Sheet ACCUEILPRO
A1: Accueil
F7: =ACCUEIL!F7 -> 2022-07-17

Sheet ACCUEILPREM
A1: Accueil
F7: =ACCUEIL!F7 -> 2022-07-17

Sheet ACCUEILGP
A1: Accueil
F7: =ACCUEIL!F7 -> 2022-07-17

Sheet ACCUEIL
F7: 2022-07-17

Sheet Accueilagence
A1: Accueil
E7: =ACCUEIL!F7 -> 2022-07-17

Sheet Accueilsecteur
A1: Accueil
E7: =ACCUEIL!F7 -> 2022-07-17

Sheet AccueilDircom
A1: Accueil
E7: =ACCUEIL!F7 -> 2022-07-17

Sheet DC_FICHE
A1: Accueil
A2: BAROMETRE BDD
A4: UNITE: | B4: DIRECTION REGIONALE | E4: ETP perf : | F4: =VLOOKUP(A5,'RECAP DIRCOM'!$G$6:$I$12,3,FALSE) -> 219.69
A5: =VLOOKUP(B5,LISTES!$M$6:$N$12,2,FALSE) -> 262 | B5: BAS-RHIN
C6: Coefficient du critére | E6: Résultats | I6: Ecart au 1ier | M6: Evolution | O6: Rang
E7: du 1ier | G7: DIRECTION | I7: Du mois | K7: Au 31/12/2019
A9: RANG au CLASSEMENT GENERAL | K9: =VLOOKUP($A$5,#REF!,168,FALSE) ->  | M9: =+K9-O9 ->  | O9: =VLOOKUP($A$5,'RECAP DIRCOM'!$G$6:$CY$312,168,FALSE) -> 
A11: CRITERE CLIENTS | C11: 15% | O11: =VLOOKUP($A$5,'RECAP DIRCOM'!$G$6:$CY$312,23,FALSE) -> 33.71113842
B12: PNB Evolution nette Clients BP | C12: 4% | E12: ='RECAP DIRCOM'!#REF! ->  | G12: =VLOOKUP($A$5,'RECAP DIRCOM'!$G$6:$CY$312,6,FALSE) -> 0.8 | I12: =VLOOKUP($A$5,'RECAP DIRCOM'!$G$6:$CY$312,7,FALSE) -> 500% | K12: =VLOOKUP($A$5,#REF!,7,FALSE) ->  | M12: =+K12-I12 ->  | O12: =VLOOKUP($A$5,'RECAP DIRCOM'!$G$6:$CY$312,8,FALSE) -> 0.6132250889
B13: PNB Evolution nette Clients PREMIUM | C13: 5% | E13: ='RECAP DIRCOM'!#REF! ->  | G13: =VLOOKUP($A$5,'RECAP DIRCOM'!$G$6:$CY$312,10,FALSE) -> 4.0 | I13: =VLOOKUP($A$5,'RECAP DIRCOM'!$G$6:$CY$312,11,FALSE) -> 46% | K13: =VLOOKUP($A$5,#REF!,11,FALSE) ->  | M13: =+K13-I13 ->  | O13: =VLOOKUP($A$5,'RECAP DIRCOM'!$G$6:$CY$312,12,FALSE) -> 0.4622566644
B14: PNB Evolution nette Clients Jeunes Equipés | C14: 3% | E14: ='RECAP DIRCOM'!#REF! ->  | G14: =VLOOKUP($A$5,'RECAP DIRCOM'!$G$6:$CY$312,14,FALSE) -> 0.0 | I14: =VLOOKUP($A$5,'RECAP DIRCOM'!$G$6:$CY$312,15,FALSE) -> 0% | K14: =VLOOKUP($A$5,#REF!,15,FALSE) ->  | M14: =+K14-I14 ->  | O14: =VLOOKUP($A$5,'RECAP DIRCOM'!$G$6:$CY$312,16,FALSE) -> 0
B15: PNB Evolution nette Clients Pro Actifs Equipés | C15: 3% | E15: ='RECAP DIRCOM'!W4 -> 0.0 | G15: =VLOOKUP($A$5,'RECAP DIRCOM'!$G$6:$CY$312,18,FALSE) -> 3050.9 | I15: =VLOOKUP($A$5,'RECAP DIRCOM'!$G$6:$CY$312,19,FALSE) -> 1389% | K15: =VLOOKUP($A$5,#REF!,19,FALSE) ->  | M15: =+K15-I15 ->  | O15: =VLOOKUP($A$5,'RECAP DIRCOM'!$G$6:$CY$312,20,FALSE) -> 0.2638008942
A17: CRITERE BANCARISATION | C17: 15% | O17: =VLOOKUP($A$5,'RECAP DIRCOM'!$G$6:$CY$312,48,FALSE) -> 27539.0663
B18: PNB Ventes nettes forfaits | C18: 4% | E18: ='RECAP DIRCOM'!X4 -> 18.9 | G18: =VLOOKUP($A$5,'RECAP DIRCOM'!$G$6:$CY$312,31,FALSE) -> 0.0 | I18: =VLOOKUP($A$5,'RECAP DIRCOM'!$G$6:$CY$312,32,FALSE) -> 0% | K18: =VLOOKUP($A$5,#REF!,32,FALSE) ->  | M18: =+K18-I18 ->  | O18: =VLOOKUP($A$5,'RECAP DIRCOM'!$G$6:$CY$312,33,FALSE) -> 26163.10911
B19: PNB Ventes nettes IZICARTES Débit Différé | C19: 4% | E19: ='RECAP DIRCOM'!AB4 -> 42.8 | G19: =VLOOKUP($A$5,'RECAP DIRCOM'!$G$6:$CY$312,35,FALSE) -> 0.3 | I19: =VLOOKUP($A$5,'RECAP DIRCOM'!$G$6:$CY$312,36,FALSE) -> 400% | K19: =VLOOKUP($A$5,#REF!,36,FALSE) ->  | M19: =+K19-I19 ->  | O19: =VLOOKUP($A$5,'RECAP DIRCOM'!$G$6:$CY$312,37,FALSE) -> 7392
B20: PNB Ventes nettes cartes HDG Débit Différé | C20: 4% | E20: ='RECAP DIRCOM'!#REF! ->  | G20: =VLOOKUP($A$5,'RECAP DIRCOM'!$G$6:$CY$312,39,FALSE) -> 0.2 | I20: =VLOOKUP($A$5,'RECAP DIRCOM'!$G$6:$CY$312,40,FALSE) -> 300% | K20: =VLOOKUP($A$5,#REF!,40,FALSE) ->  | M20: =+K20-I20 ->  | O20: =VLOOKUP($A$5,'RECAP DIRCOM'!$G$6:$CY$312,41,FALSE) -> 0.3047368258
B21: PNB Ventes nettes Forfaits Pro, Carte pro | C21: 3% | E21: ='RECAP DIRCOM'!#REF! ->  | G21: =VLOOKUP($A$5,'RECAP DIRCOM'!$G$6:$CY$312,43,FALSE) -> 5.0 | I21: =VLOOKUP($A$5,'RECAP DIRCOM'!$G$6:$CY$312,44,FALSE) -> 0% | K21: =VLOOKUP($A$5,#REF!,44,FALSE) ->  | M21: =+K21-I21 ->  | O21: =VLOOKUP($A$5,'RECAP DIRCOM'!$G$6:$CY$312,45,FALSE) -> 0
A23: CRITERE EPARGNE | C23: 10% | O23: =VLOOKUP($A$5,'RECAP DIRCOM'!$G$6:$CY$312,69,FALSE) -> 0.3206638421
B24: PNB Epargne Liquide | C24: 3% | E24: ='RECAP DIRCOM'!AM4 -> 181.4 | G24: =VLOOKUP($A$5,'RECAP DIRCOM'!$G$6:$CY$312,56,FALSE) -> 2752.0 | I24: =VLOOKUP($A$5,'RECAP DIRCOM'!$G$6:$CY$312,57,FALSE) -> 1253% | K24: =VLOOKUP($A$5,#REF!,57,FALSE) ->  | M24: =+K24-I24 ->  | O24: =VLOOKUP($A$5,'RECAP DIRCOM'!$G$6:$CY$312,58,FALSE) -> 0.3925176378
B25: PNB CA UC + arbitrage | C25: 4% | E25: ='RECAP DIRCOM'!AQ4 -> 44.7 | G25: =VLOOKUP($A$5,'RECAP DIRCOM'!$G$6:$CY$312,60,FALSE) -> 0.4 | I25: =VLOOKUP($A$5,'RECAP DIRCOM'!$G$6:$CY$312,61,FALSE) -> 32% | K25: =VLOOKUP($A$5,#REF!,61,FALSE) ->  | M25: =+K25-I25 ->  | O25: =VLOOKUP($A$5,'RECAP DIRCOM'!$G$6:$CY$312,62,FALSE) -> 6
B26: PNB Excédent assurance vie | C26: 3% | E26: ='RECAP DIRCOM'!#REF! ->  | G26: =VLOOKUP($A$5,'RECAP DIRCOM'!$G$6:$CY$312,64,FALSE) -> 0.0 | I26: =VLOOKUP($A$5,'RECAP DIRCOM'!$G$6:$CY$312,65,FALSE) -> 0% | K26: =VLOOKUP($A$5,#REF!,65,FALSE) ->  | M26: =+K26-I26 ->  | O26: =VLOOKUP($A$5,'RECAP DIRCOM'!$G$6:$CY$312,66,FALSE) -> 0
A28: CRITERE CREDITS | C28: 15% | O28: =VLOOKUP($A$5,'RECAP DIRCOM'!$G$6:$CY$312,102,FALSE) -> 
B29: PNB crédit conso | C29: 4% | E29: ='RECAP DIRCOM'!BB4 -> 239.3 | G29: =VLOOKUP($A$5,'RECAP DIRCOM'!$G$6:$CY$312,77,FALSE) -> 4.0 | I29: =VLOOKUP($A$5,'RECAP DIRCOM'!$G$6:$CY$312,78,FALSE) -> 0% | K29: =VLOOKUP($A$5,#REF!,78,FALSE) ->  | M29: =+K29-I29 ->  | O29: =VLOOKUP($A$5,'RECAP DIRCOM'!$G$6:$CY$312,79,FALSE) -> 0
B30: PNB ADE crédit conso | C30: 1% | E30: ='RECAP DIRCOM'!#REF! ->  | G30: =VLOOKUP($A$5,'RECAP DIRCOM'!$G$6:$CY$312,81,FALSE) -> 0.0 | I30: =VLOOKUP($A$5,'RECAP DIRCOM'!$G$6:$CY$312,82,FALSE) -> 0% | K30: =VLOOKUP($A$5,#REF!,82,FALSE) ->  | O30: =VLOOKUP($A$5,'RECAP DIRCOM'!$G$6:$CY$312,83,FALSE) -> 0
B31: PNB crédit immo | C31: 4% | E31: ='RECAP DIRCOM'!BF4 -> 41.5 | G31: =VLOOKUP($A$5,'RECAP DIRCOM'!$G$6:$CY$312,85,FALSE) -> 0.0 | I31: =VLOOKUP($A$5,'RECAP DIRCOM'!$G$6:$CY$312,86,FALSE) -> 0% | K31: =VLOOKUP($A$5,#REF!,86,FALSE) ->  | O31: =VLOOKUP($A$5,'RECAP DIRCOM'!$G$6:$CY$312,87,FALSE) -> 0
B32: PNB ADE crédit immo | C32: 2% | E32: ='RECAP DIRCOM'!#REF! ->  | G32: =VLOOKUP($A$5,'RECAP DIRCOM'!$G$6:$CY$312,89,FALSE) -> 0.0 | I32: =VLOOKUP($A$5,'RECAP DIRCOM'!$G$6:$CY$312,90,FALSE) -> 0% | K32: =VLOOKUP($A$5,#REF!,90,FALSE) ->  | O32: =VLOOKUP($A$5,'RECAP DIRCOM'!$G$6:$CY$312,91,FALSE) -> 0
B33: PNB SACCEF | C33: 2% | E33: ='RECAP DIRCOM'!#REF! ->  | G33: =VLOOKUP($A$5,'RECAP DIRCOM'!$G$6:$CY$312,93,FALSE) -> 0.0 | I33: =VLOOKUP($A$5,'RECAP DIRCOM'!$G$6:$CY$312,94,FALSE) -> 31% | K33: =VLOOKUP($A$5,#REF!,94,FALSE) ->  | O33: =VLOOKUP($A$5,'RECAP DIRCOM'!$G$6:$CY$312,95,FALSE) -> 0.2617496528
B34: PNB Crédit MLT + Crédit Bail | C34: 2% | E34: ='RECAP DIRCOM'!BJ4 -> 20.6 | G34: =VLOOKUP($A$5,'RECAP DIRCOM'!$G$6:$CY$312,97,FALSE) -> 0.0 | I34: =VLOOKUP($A$5,'RECAP DIRCOM'!$G$6:$CY$312,98,FALSE) ->  | K34: =VLOOKUP($A$5,#REF!,98,FALSE) ->  | O34: =VLOOKUP($A$5,'RECAP DIRCOM'!$G$6:$CY$312,99,FALSE) -> 
A36: CRITERE IARD PREVOYANCE | C36: 15% | O36: =VLOOKUP($A$5,'RECAP DIRCOM'!$G$6:$CY$312,119,FALSE) -> 
B37: PNB Ventes nettes IARD | C37: 9% | E37: ='RECAP DIRCOM'!BU4 -> 112.0 | G37: =VLOOKUP($A$5,'RECAP DIRCOM'!$G$6:$CY$312,110,FALSE) ->  | I37: =VLOOKUP($A$5,'RECAP DIRCOM'!$G$6:$CY$312,111,FALSE) ->  | K37: =VLOOKUP($A$5,#REF!,111,FALSE) ->  | M37: =+K37-I37 ->  | O37: =VLOOKUP($A$5,'RECAP DIRCOM'!$G$6:$CY$312,112,FALSE) -> 
B38: PNB Ventes nettes Prévoyance | C38: 6% | E38: ='RECAP DIRCOM'!BY4 -> 31.3 | G38: =VLOOKUP($A$5,'RECAP DIRCOM'!$G$6:$CY$312,114,FALSE) ->  | I38: =VLOOKUP($A$5,'RECAP DIRCOM'!$G$6:$CY$312,115,FALSE) ->  | K38: =VLOOKUP($A$5,#REF!,115,FALSE) ->  | M38: =+K38-I38 ->  | O38: =VLOOKUP($A$5,'RECAP DIRCOM'!$G$6:$CY$312,116,FALSE) -> 
A40: CRITERE ACCELERATEURS PNB | C40: 15% | O40: =VLOOKUP($A$5,'RECAP DIRCOM'!$G$6:$CY$312,144,FALSE) -> 
B41: PNB Ventes brutes SED Finalisées | C41: 6% | E41: ='RECAP DIRCOM'!#REF! ->  | G41: =VLOOKUP($A$5,'RECAP DIRCOM'!$G$6:$CY$312,127,FALSE) ->  | I41: =VLOOKUP($A$5,'RECAP DIRCOM'!$G$6:$CY$312,128,FALSE) ->  | K41: =VLOOKUP($A$5,#REF!,128,FALSE) ->  | M41: =+K41-I41 ->  | O41: =VLOOKUP($A$5,'RECAP DIRCOM'!$G$6:$CY$312,129,FALSE) -> 
B42: PNB clients équipés E documents | C42: 3% | E42: ='RECAP DIRCOM'!#REF! ->  | G42: =VLOOKUP($A$5,'RECAP DIRCOM'!$G$6:$CY$312,131,FALSE) ->  | I42: =VLOOKUP($A$5,'RECAP DIRCOM'!$G$6:$CY$312,132,FALSE) ->  | K42: =VLOOKUP($A$5,#REF!,132,FALSE) ->  | M42: =+K42-I42 ->  | O42: =VLOOKUP($A$5,'RECAP DIRCOM'!$G$6:$CY$312,133,FALSE) -> 
B43: Economie opt'in | C43: 3% | E43: ='RECAP DIRCOM'!#REF! ->  | G43: =VLOOKUP($A$5,'RECAP DIRCOM'!$G$6:$CY$312,135,FALSE) ->  | I43: =VLOOKUP($A$5,'RECAP DIRCOM'!$G$6:$CY$312,136,FALSE) ->  | K43: =VLOOKUP($A$5,#REF!,136,FALSE) ->  | M43: =+K43-I43 ->  | O43: =VLOOKUP($A$5,'RECAP DIRCOM'!$G$6:$CY$312,137,FALSE) -> 
B44: Remises commerciales | C44: 3% | E44: ='RECAP DIRCOM'!#REF! ->  | G44: =VLOOKUP($A$5,'RECAP DIRCOM'!$G$6:$CY$312,139,FALSE) ->  | I44: =VLOOKUP($A$5,'RECAP DIRCOM'!$G$6:$CY$312,140,FALSE) ->  | K44: =VLOOKUP($A$5,#REF!,140,FALSE) ->  | M44: =+K44-I44 ->  | O44: =VLOOKUP($A$5,'RECAP DIRCOM'!$G$6:$CY$312,141,FALSE) -> 
A46: CRITERE Qualité-Satisfaction Clients | C46: 15% | O46: =VLOOKUP($A$5,'RECAP DIRCOM'!$G$6:$CY$312,159,FALSE) -> 
B47: Objectifs NPS* | C47: 8% | E47: ='RECAP DIRCOM'!K4 -> 25 | G47: =VLOOKUP($A$5,'RECAP DIRCOM'!$G$6:$CY$312,151,FALSE) ->  | I47: =VLOOKUP($A$5,'RECAP DIRCOM'!$G$6:$CY$312,152,FALSE) ->  | K47: =VLOOKUP($A$5,#REF!,152,FALSE) ->  | M47: =+K47-I47 ->  | O47: =VLOOKUP($A$5,'RECAP DIRCOM'!$G$6:$CY$312,153,FALSE) -> 
B48: Enquête Qualité Haute Définition | C48: 7% | E48: ='RECAP DIRCOM'!N4 -> 69% | G48: =VLOOKUP($A$5,'RECAP DIRCOM'!$G$6:$CY$312,154,FALSE) ->  | I48: =VLOOKUP($A$5,'RECAP DIRCOM'!$G$6:$CY$312,155,FALSE) ->  | K48: =VLOOKUP($A$5,#REF!,155,FALSE) ->  | M48: =+K48-I48 ->  | O48: =VLOOKUP($A$5,'RECAP DIRCOM'!$G$6:$CY$312,156,FALSE) -> 

Sheet DC_TOTAL
B1: Accueil | D1: BAROMETRE BDD - DIRECTIONS REGIONALES
D2: TOTAL GENERAL
D3: =ACCUEIL!F7 -> 2022-07-17
D7: TOTAL GENERAL | G7: Total Satisfaction Clients | J7: Total Bancarisation | M7: Total Epargne | P7: Total IARD Prévoyance | S7: Total Crédits
E8: coef | F8: =+I8+L8+O8+R8+U8 -> 100% | H8: coef | I8: =DC_SATISFACTION!L8 -> 20% | K8: coef | L8: =DC_BANCA!N8 -> 20% | N8: coef | O8: =DC_EPARGNE!N8 -> 20% | Q8: coef | R8: =DC_IARD!N8 -> 20% | T8: coef | U8: =DC_CREDIT!R8 -> 20%
A9: eds | B9: Direction | C9: ="ETP perf "&DATEMAJ!$C$28 -> ETP perf 17-juil | D9: Moyenne ecart au 1er | E9: % Ecart au 1er | F9: Rang CEGEE | G9: Moyenne ecart au 1er | H9: % Ecart au 1er | I9: Rang CEGEE | J9: Moyenne ecart au 1er | K9: % Ecart au 1er | L9: Rang CEGEE | M9: Moyenne ecart au 1er | N9: % Ecart au 1er | O9: Rang CEGEE | P9: Moyenne ecart au 1er | Q9: % Ecart au 1er | R9: Rang CEGEE | S9: Moyenne ecart au 1er | T9: % Ecart au 1er | U9: Rang CEGEE
A10: 50 | B10: Moselle | C10: 225 | D10: 5% | E10: 0% | F10: 1 | G10: 23% | H10: 23% | I10: 3 | J10: 0% | K10: 0% | L10: 1 | M10: 4% | N10: 0% | O10: 1 | P10: 1% | Q10: 1% | R10: 2 | S10: 6% | T10: 0% | U10: 1
A11: 262 | B11: Marne-Ardennes | C11: 193 | D11: 10% | E11: 5% | F11: 2 | G11: 16% | H11: 16% | I11: 2 | J11: 6% | K11: 5% | L11: 2 | M11: 30% | N11: 26% | O11: 4 | P11: 0% | Q11: 0% | R11: 1 | S11: 7% | T11: 0% | U11: 2
A12: 264 | B12: Meurthe et Moselle Meuse | C12: 202 | D12: 18% | E12: 13% | F12: 3 | G12: 34% | H12: 34% | I12: 4 | J12: 20% | K12: 20% | L12: 3 | M12: 14% | N12: 10% | O12: 3 | P12: 18% | Q12: 18% | R12: 3 | S12: 12% | T12: 6% | U12: 3
A13: 30 | B13: Vosges | C13: 116 | D13: 24% | E13: 19% | F13: 4 | G13: 0% | H13: 0% | I13: 1 | J13: 39% | K13: 39% | L13: 5 | M13: 14% | N13: 10% | O13: 2 | P13: 41% | Q13: 41% | R13: 6 | S13: 36% | T13: 30% | U13: 5
A14: 110 | B14: Bas-Rhin | C14: 220 | D14: 31% | E14: 26% | F14: 5 | G14: 46% | H14: 46% | I14: 5 | J14: 24% | K14: 24% | L14: 4 | M14: 30% | N14: 26% | O14: 5 | P14: 26% | Q14: 26% | R14: 4 | S14: 38% | T14: 32% | U14: 6
A15: 160 | B15: Aube Haute Marne | C15: 112 | D15: 39% | E15: 34% | F15: 6 | G15: 52% | H15: 52% | I15: 6 | J15: 42% | K15: 42% | L15: 6 | M15: 49% | N15: 45% | O15: 6 | P15: 27% | Q15: 27% | R15: 5 | S15: 36% | T15: 30% | U15: 4
A16: 80 | B16: Haut-Rhin | C16: 121 | D16: 59% | E16: 54% | F16: 7 | G16: 57% | H16: 57% | I16: 7 | J16: 60% | K16: 59% | L16: 7 | M16: 84% | N16: 80% | O16: 7 | P16: 56% | Q16: 56% | R16: 7 | S16: 48% | T16: 42% | U16: 7
B17: Total CEGEE Directions Régionales | C17: =SUM(C10:C16) -> 1189

Sheet DC_BANCA
B1: Accueil | D1: BAROMETRE BDD - DIRECTIONS REGIONALES
D2: BANCARISATION
D3: =ACCUEIL!F7 -> 2022-07-17
D7: Ventes Nettes produits pondérés | H7: Ventes sur client non détenteur de l’univers | L7: Total Bancarisation
D8: =DATEMAJ!C8 -> au 17/07 | F8: coef | G8: ='RECAP DIRCOM'!AA4 -> 12% | H8: =DATEMAJ!C9 -> au 17/07 | J8: coef | K8: ='RECAP DIRCOM'!AE4 -> 8% | M8: coef | N8: ='RECAP DIRCOM'!AH4 -> 20%
B9: Direction | C9: ="ETP perf "&DATEMAJ!$C$28 -> ETP perf 17-juil | D9: VN | E9: VN / ETP | F9: % Ecart au 1er | G9: Rang | H9: VB | I9: VB / ETP | J9: % Ecart au 1er | K9: Rang | L9: Moyenne ecart au 1er | M9: % Ecart au 1er | N9: Rang CEGEE
A10: 50 | B10: Aube Haute Marne | C10: =VLOOKUP($A10,'RECAP DIRCOM'!$G$6:$CU$12,3,FALSE) -> 112 | D10: =VLOOKUP($A10,'RECAP DIRCOM'!$G$6:$CU$12,18,FALSE) -> 943 | E10: =VLOOKUP($A10,'RECAP DIRCOM'!$G$6:$CU$12,19,FALSE) -> 8.39 | F10: =VLOOKUP($A10,'RECAP DIRCOM'!$G$6:$CU$12,20,FALSE) -> 55% | G10: =VLOOKUP($A10,'RECAP DIRCOM'!$G$6:$CU$12,21,FALSE) -> 6 | H10: =VLOOKUP($A10,'RECAP DIRCOM'!$G$6:$CU$12,22,FALSE) -> 3,726 | I10: =VLOOKUP($A10,'RECAP DIRCOM'!$G$6:$CU$12,23,FALSE) -> 33.18 | J10: =VLOOKUP($A10,'RECAP DIRCOM'!$G$6:$CU$12,24,FALSE) -> 22% | K10: =VLOOKUP($A10,'RECAP DIRCOM'!$G$6:$CU$12,25,FALSE) -> 5 | L10: =VLOOKUP($A10,'RECAP DIRCOM'!$G$6:$CU$12,26,FALSE) -> 42% | M10: =VLOOKUP($A10,'RECAP DIRCOM'!$G$6:$CU$12,27,FALSE) -> 42% | N10: =VLOOKUP($A10,'RECAP DIRCOM'!$G$6:$CU$12,28,FALSE) -> 6
A11: 262 | B11: Bas-Rhin | C11: =VLOOKUP($A11,'RECAP DIRCOM'!$G$6:$CU$12,3,FALSE) -> 220 | D11: =VLOOKUP($A11,'RECAP DIRCOM'!$G$6:$CU$12,18,FALSE) -> 3,051 | E11: =VLOOKUP($A11,'RECAP DIRCOM'!$G$6:$CU$12,19,FALSE) -> 13.89 | F11: =VLOOKUP($A11,'RECAP DIRCOM'!$G$6:$CU$12,20,FALSE) -> 26% | G11: =VLOOKUP($A11,'RECAP DIRCOM'!$G$6:$CU$12,21,FALSE) -> 3 | H11: =VLOOKUP($A11,'RECAP DIRCOM'!$G$6:$CU$12,22,FALSE) -> 7,406 | I11: =VLOOKUP($A11,'RECAP DIRCOM'!$G$6:$CU$12,23,FALSE) -> 33.71 | J11: =VLOOKUP($A11,'RECAP DIRCOM'!$G$6:$CU$12,24,FALSE) -> 21% | K11: =VLOOKUP($A11,'RECAP DIRCOM'!$G$6:$CU$12,25,FALSE) -> 4 | L11: =VLOOKUP($A11,'RECAP DIRCOM'!$G$6:$CU$12,26,FALSE) -> 24% | M11: =VLOOKUP($A11,'RECAP DIRCOM'!$G$6:$CU$12,27,FALSE) -> 24% | N11: =VLOOKUP($A11,'RECAP DIRCOM'!$G$6:$CU$12,28,FALSE) -> 4
A12: 264 | B12: Haut-Rhin | C12: =VLOOKUP($A12,'RECAP DIRCOM'!$G$6:$CU$12,3,FALSE) -> 121 | D12: =VLOOKUP($A12,'RECAP DIRCOM'!$G$6:$CU$12,18,FALSE) -> 559 | E12: =VLOOKUP($A12,'RECAP DIRCOM'!$G$6:$CU$12,19,FALSE) -> 4.60 | F12: =VLOOKUP($A12,'RECAP DIRCOM'!$G$6:$CU$12,20,FALSE) -> 76% | G12: =VLOOKUP($A12,'RECAP DIRCOM'!$G$6:$CU$12,21,FALSE) -> 7 | H12: =VLOOKUP($A12,'RECAP DIRCOM'!$G$6:$CU$12,22,FALSE) -> 3,328 | I12: =VLOOKUP($A12,'RECAP DIRCOM'!$G$6:$CU$12,23,FALSE) -> 27.40 | J12: =VLOOKUP($A12,'RECAP DIRCOM'!$G$6:$CU$12,24,FALSE) -> 36% | K12: =VLOOKUP($A12,'RECAP DIRCOM'!$G$6:$CU$12,25,FALSE) -> 7 | L12: =VLOOKUP($A12,'RECAP DIRCOM'!$G$6:$CU$12,26,FALSE) -> 60% | M12: =VLOOKUP($A12,'RECAP DIRCOM'!$G$6:$CU$12,27,FALSE) -> 59% | N12: =VLOOKUP($A12,'RECAP DIRCOM'!$G$6:$CU$12,28,FALSE) -> 7
A13: 30 | B13: Marne-Ardennes | C13: =VLOOKUP($A13,'RECAP DIRCOM'!$G$6:$CU$12,3,FALSE) -> 193 | D13: =VLOOKUP($A13,'RECAP DIRCOM'!$G$6:$CU$12,18,FALSE) -> 3,292 | E13: =VLOOKUP($A13,'RECAP DIRCOM'!$G$6:$CU$12,19,FALSE) -> 17.09 | F13: =VLOOKUP($A13,'RECAP DIRCOM'!$G$6:$CU$12,20,FALSE) -> 9% | G13: =VLOOKUP($A13,'RECAP DIRCOM'!$G$6:$CU$12,21,FALSE) -> 2 | H13: =VLOOKUP($A13,'RECAP DIRCOM'!$G$6:$CU$12,22,FALSE) -> 8,247 | I13: =VLOOKUP($A13,'RECAP DIRCOM'!$G$6:$CU$12,23,FALSE) -> 42.80 | J13: =VLOOKUP($A13,'RECAP DIRCOM'!$G$6:$CU$12,24,FALSE) -> 0% | K13: =VLOOKUP($A13,'RECAP DIRCOM'!$G$6:$CU$12,25,FALSE) -> 1 | L13: =VLOOKUP($A13,'RECAP DIRCOM'!$G$6:$CU$12,26,FALSE) -> 6% | M13: =VLOOKUP($A13,'RECAP DIRCOM'!$G$6:$CU$12,27,FALSE) -> 5% | N13: =VLOOKUP($A13,'RECAP DIRCOM'!$G$6:$CU$12,28,FALSE) -> 2
A14: 110 | B14: Meurthe et Moselle Meuse | C14: =VLOOKUP($A14,'RECAP DIRCOM'!$G$6:$CU$12,3,FALSE) -> 202 | D14: =VLOOKUP($A14,'RECAP DIRCOM'!$G$6:$CU$12,18,FALSE) -> 2,721 | E14: =VLOOKUP($A14,'RECAP DIRCOM'!$G$6:$CU$12,19,FALSE) -> 13.49 | F14: =VLOOKUP($A14,'RECAP DIRCOM'!$G$6:$CU$12,20,FALSE) -> 28% | G14: =VLOOKUP($A14,'RECAP DIRCOM'!$G$6:$CU$12,21,FALSE) -> 4 | H14: =VLOOKUP($A14,'RECAP DIRCOM'!$G$6:$CU$12,22,FALSE) -> 7,979 | I14: =VLOOKUP($A14,'RECAP DIRCOM'!$G$6:$CU$12,23,FALSE) -> 39.56 | J14: =VLOOKUP($A14,'RECAP DIRCOM'!$G$6:$CU$12,24,FALSE) -> 8% | K14: =VLOOKUP($A14,'RECAP DIRCOM'!$G$6:$CU$12,25,FALSE) -> 3 | L14: =VLOOKUP($A14,'RECAP DIRCOM'!$G$6:$CU$12,26,FALSE) -> 20% | M14: =VLOOKUP($A14,'RECAP DIRCOM'!$G$6:$CU$12,27,FALSE) -> 20% | N14: =VLOOKUP($A14,'RECAP DIRCOM'!$G$6:$CU$12,28,FALSE) -> 3
A15: 160 | B15: Moselle | C15: =VLOOKUP($A15,'RECAP DIRCOM'!$G$6:$CU$12,3,FALSE) -> 225 | D15: =VLOOKUP($A15,'RECAP DIRCOM'!$G$6:$CU$12,18,FALSE) -> 4,252 | E15: =VLOOKUP($A15,'RECAP DIRCOM'!$G$6:$CU$12,19,FALSE) -> 18.86 | F15: =VLOOKUP($A15,'RECAP DIRCOM'!$G$6:$CU$12,20,FALSE) -> 0% | G15: =VLOOKUP($A15,'RECAP DIRCOM'!$G$6:$CU$12,21,FALSE) -> 1 | H15: =VLOOKUP($A15,'RECAP DIRCOM'!$G$6:$CU$12,22,FALSE) -> 9,585 | I15: =VLOOKUP($A15,'RECAP DIRCOM'!$G$6:$CU$12,23,FALSE) -> 42.52 | J15: =VLOOKUP($A15,'RECAP DIRCOM'!$G$6:$CU$12,24,FALSE) -> 1% | K15: =VLOOKUP($A15,'RECAP DIRCOM'!$G$6:$CU$12,25,FALSE) -> 2 | L15: =VLOOKUP($A15,'RECAP DIRCOM'!$G$6:$CU$12,26,FALSE) -> 0% | M15: =VLOOKUP($A15,'RECAP DIRCOM'!$G$6:$CU$12,27,FALSE) -> 0% | N15: =VLOOKUP($A15,'RECAP DIRCOM'!$G$6:$CU$12,28,FALSE) -> 1
A16: 80 | B16: Vosges | C16: =VLOOKUP($A16,'RECAP DIRCOM'!$G$6:$CU$12,3,FALSE) -> 116 | D16: =VLOOKUP($A16,'RECAP DIRCOM'!$G$6:$CU$12,18,FALSE) -> 1,190 | E16: =VLOOKUP($A16,'RECAP DIRCOM'!$G$6:$CU$12,19,FALSE) -> 10.28 | F16: =VLOOKUP($A16,'RECAP DIRCOM'!$G$6:$CU$12,20,FALSE) -> 46% | G16: =VLOOKUP($A16,'RECAP DIRCOM'!$G$6:$CU$12,21,FALSE) -> 5 | H16: =VLOOKUP($A16,'RECAP DIRCOM'!$G$6:$CU$12,22,FALSE) -> 3,513 | I16: =VLOOKUP($A16,'RECAP DIRCOM'!$G$6:$CU$12,23,FALSE) -> 30.33 | J16: =VLOOKUP($A16,'RECAP DIRCOM'!$G$6:$CU$12,24,FALSE) -> 29% | K16: =VLOOKUP($A16,'RECAP DIRCOM'!$G$6:$CU$12,25,FALSE) -> 6 | L16: =VLOOKUP($A16,'RECAP DIRCOM'!$G$6:$CU$12,26,FALSE) -> 39% | M16: =VLOOKUP($A16,'RECAP DIRCOM'!$G$6:$CU$12,27,FALSE) -> 39% | N16: =VLOOKUP($A16,'RECAP DIRCOM'!$G$6:$CU$12,28,FALSE) -> 5
B17: Total CEGEE Directions Régionales | C17: =SUM(C10:C16) -> 1189

Sheet DC_EPARGNE
B1: Accueil | D1: BAROMETRE BDD - DIRECTIONS REGIONALES
D2: EPARGNE
D3: =ACCUEIL!F7 -> 2022-07-17
D7: Excédent Epargne hors DAV pondéré | H7: Ventes sur client non détenteur de l’univers | L7: Total Epargne
D8: =DATEMAJ!C14 -> au 17/07 | F8: coef | G8: ='RECAP DIRCOM'!AP4 -> 12% | H8: =DATEMAJ!C15 -> au 17/07 | J8: coef | K8: ='RECAP DIRCOM'!AT4 -> 8% | M8: coef | N8: ='RECAP DIRCOM'!AW4 -> 20%
B9: Direction | C9: ="ETP perf "&DATEMAJ!$C$28 -> ETP perf 17-juil | D9: Excédent | E9: Excédent / ETP | F9: % Ecart au 1er | G9: Rang | H9: VB | I9: VB / ETP | J9: % Ecart au 1er | K9: Rang | L9: Moyenne ecart au 1er | M9: % Ecart au 1er | N9: Rang CEGEE
A10: 50 | B10: Aube Haute Marne | C10: =VLOOKUP($A10,'RECAP DIRCOM'!$G$6:$CU$12,3,FALSE) -> 112 | D10: =VLOOKUP($A10,'RECAP DIRCOM'!$G$6:$CU$12,33,FALSE) -> 8,007 | E10: =VLOOKUP($A10,'RECAP DIRCOM'!$G$6:$CU$12,34,FALSE) -> 71.29 | F10: =VLOOKUP($A10,'RECAP DIRCOM'!$G$6:$CU$12,35,FALSE) -> 61% | G10: =VLOOKUP($A10,'RECAP DIRCOM'!$G$6:$CU$12,36,FALSE) -> 6 | H10: =VLOOKUP($A10,'RECAP DIRCOM'!$G$6:$CU$12,37,FALSE) -> 3,474 | I10: =VLOOKUP($A10,'RECAP DIRCOM'!$G$6:$CU$12,38,FALSE) -> 30.93 | J10: =VLOOKUP($A10,'RECAP DIRCOM'!$G$6:$CU$12,39,FALSE) -> 31% | K10: =VLOOKUP($A10,'RECAP DIRCOM'!$G$6:$CU$12,40,FALSE) -> 5 | L10: =VLOOKUP($A10,'RECAP DIRCOM'!$G$6:$CU$12,41,FALSE) -> 49% | M10: =VLOOKUP($A10,'RECAP DIRCOM'!$G$6:$CU$12,42,FALSE) -> 45% | N10: =VLOOKUP($A10,'RECAP DIRCOM'!$G$6:$CU$12,43,FALSE) -> 6
A11: 262 | B11: Bas-Rhin | C11: =VLOOKUP($A11,'RECAP DIRCOM'!$G$6:$CU$12,3,FALSE) -> 220 | D11: =VLOOKUP($A11,'RECAP DIRCOM'!$G$6:$CU$12,33,FALSE) -> 26,163 | E11: =VLOOKUP($A11,'RECAP DIRCOM'!$G$6:$CU$12,34,FALSE) -> 119.09 | F11: =VLOOKUP($A11,'RECAP DIRCOM'!$G$6:$CU$12,35,FALSE) -> 34% | G11: =VLOOKUP($A11,'RECAP DIRCOM'!$G$6:$CU$12,36,FALSE) -> 4 | H11: =VLOOKUP($A11,'RECAP DIRCOM'!$G$6:$CU$12,37,FALSE) -> 7,392 | I11: =VLOOKUP($A11,'RECAP DIRCOM'!$G$6:$CU$12,38,FALSE) -> 33.65 | J11: =VLOOKUP($A11,'RECAP DIRCOM'!$G$6:$CU$12,39,FALSE) -> 25% | K11: =VLOOKUP($A11,'RECAP DIRCOM'!$G$6:$CU$12,40,FALSE) -> 3 | L11: =VLOOKUP($A11,'RECAP DIRCOM'!$G$6:$CU$12,41,FALSE) -> 30% | M11: =VLOOKUP($A11,'RECAP DIRCOM'!$G$6:$CU$12,42,FALSE) -> 26% | N11: =VLOOKUP($A11,'RECAP DIRCOM'!$G$6:$CU$12,43,FALSE) -> 5
A12: 264 | B12: Haut-Rhin | C12: =VLOOKUP($A12,'RECAP DIRCOM'!$G$6:$CU$12,3,FALSE) -> 121 | D12: =VLOOKUP($A12,'RECAP DIRCOM'!$G$6:$CU$12,33,FALSE) -> -2,008 | E12: =VLOOKUP($A12,'RECAP DIRCOM'!$G$6:$CU$12,34,FALSE) -> -16.53 | F12: =VLOOKUP($A12,'RECAP DIRCOM'!$G$6:$CU$12,35,FALSE) -> 109% | G12: =VLOOKUP($A12,'RECAP DIRCOM'!$G$6:$CU$12,36,FALSE) -> 7 | H12: =VLOOKUP($A12,'RECAP DIRCOM'!$G$6:$CU$12,37,FALSE) -> 2,973 | I12: =VLOOKUP($A12,'RECAP DIRCOM'!$G$6:$CU$12,38,FALSE) -> 24.48 | J12: =VLOOKUP($A12,'RECAP DIRCOM'!$G$6:$CU$12,39,FALSE) -> 45% | K12: =VLOOKUP($A12,'RECAP DIRCOM'!$G$6:$CU$12,40,FALSE) -> 7 | L12: =VLOOKUP($A12,'RECAP DIRCOM'!$G$6:$CU$12,41,FALSE) -> 84% | M12: =VLOOKUP($A12,'RECAP DIRCOM'!$G$6:$CU$12,42,FALSE) -> 80% | N12: =VLOOKUP($A12,'RECAP DIRCOM'!$G$6:$CU$12,43,FALSE) -> 7
A13: 30 | B13: Marne-Ardennes | C13: =VLOOKUP($A13,'RECAP DIRCOM'!$G$6:$CU$12,3,FALSE) -> 193 | D13: =VLOOKUP($A13,'RECAP DIRCOM'!$G$6:$CU$12,33,FALSE) -> 19,068 | E13: =VLOOKUP($A13,'RECAP DIRCOM'!$G$6:$CU$12,34,FALSE) -> 98.97 | F13: =VLOOKUP($A13,'RECAP DIRCOM'!$G$6:$CU$12,35,FALSE) -> 45% | G13: =VLOOKUP($A13,'RECAP DIRCOM'!$G$6:$CU$12,36,FALSE) -> 5 | H13: =VLOOKUP($A13,'RECAP DIRCOM'!$G$6:$CU$12,37,FALSE) -> 8,114 | I13: =VLOOKUP($A13,'RECAP DIRCOM'!$G$6:$CU$12,38,FALSE) -> 42.11 | J13: =VLOOKUP($A13,'RECAP DIRCOM'!$G$6:$CU$12,39,FALSE) -> 6% | K13: =VLOOKUP($A13,'RECAP DIRCOM'!$G$6:$CU$12,40,FALSE) -> 2 | L13: =VLOOKUP($A13,'RECAP DIRCOM'!$G$6:$CU$12,41,FALSE) -> 30% | M13: =VLOOKUP($A13,'RECAP DIRCOM'!$G$6:$CU$12,42,FALSE) -> 26% | N13: =VLOOKUP($A13,'RECAP DIRCOM'!$G$6:$CU$12,43,FALSE) -> 4
A14: 110 | B14: Meurthe et Moselle Meuse | C14: =VLOOKUP($A14,'RECAP DIRCOM'!$G$6:$CU$12,3,FALSE) -> 202 | D14: =VLOOKUP($A14,'RECAP DIRCOM'!$G$6:$CU$12,33,FALSE) -> 33,977 | E14: =VLOOKUP($A14,'RECAP DIRCOM'!$G$6:$CU$12,34,FALSE) -> 168.48 | F14: =VLOOKUP($A14,'RECAP DIRCOM'!$G$6:$CU$12,35,FALSE) -> 7% | G14: =VLOOKUP($A14,'RECAP DIRCOM'!$G$6:$CU$12,36,FALSE) -> 3 | H14: =VLOOKUP($A14,'RECAP DIRCOM'!$G$6:$CU$12,37,FALSE) -> 6,718 | I14: =VLOOKUP($A14,'RECAP DIRCOM'!$G$6:$CU$12,38,FALSE) -> 33.31 | J14: =VLOOKUP($A14,'RECAP DIRCOM'!$G$6:$CU$12,39,FALSE) -> 25% | K14: =VLOOKUP($A14,'RECAP DIRCOM'!$G$6:$CU$12,40,FALSE) -> 4 | L14: =VLOOKUP($A14,'RECAP DIRCOM'!$G$6:$CU$12,41,FALSE) -> 14% | M14: =VLOOKUP($A14,'RECAP DIRCOM'!$G$6:$CU$12,42,FALSE) -> 10% | N14: =VLOOKUP($A14,'RECAP DIRCOM'!$G$6:$CU$12,43,FALSE) -> 3
A15: 160 | B15: Moselle | C15: =VLOOKUP($A15,'RECAP DIRCOM'!$G$6:$CU$12,3,FALSE) -> 225 | D15: =VLOOKUP($A15,'RECAP DIRCOM'!$G$6:$CU$12,33,FALSE) -> 38,171 | E15: =VLOOKUP($A15,'RECAP DIRCOM'!$G$6:$CU$12,34,FALSE) -> 169.32 | F15: =VLOOKUP($A15,'RECAP DIRCOM'!$G$6:$CU$12,35,FALSE) -> 7% | G15: =VLOOKUP($A15,'RECAP DIRCOM'!$G$6:$CU$12,36,FALSE) -> 2 | H15: =VLOOKUP($A15,'RECAP DIRCOM'!$G$6:$CU$12,37,FALSE) -> 10,070 | I15: =VLOOKUP($A15,'RECAP DIRCOM'!$G$6:$CU$12,38,FALSE) -> 44.67 | J15: =VLOOKUP($A15,'RECAP DIRCOM'!$G$6:$CU$12,39,FALSE) -> 0% | K15: =VLOOKUP($A15,'RECAP DIRCOM'!$G$6:$CU$12,40,FALSE) -> 1 | L15: =VLOOKUP($A15,'RECAP DIRCOM'!$G$6:$CU$12,41,FALSE) -> 4% | M15: =VLOOKUP($A15,'RECAP DIRCOM'!$G$6:$CU$12,42,FALSE) -> 0% | N15: =VLOOKUP($A15,'RECAP DIRCOM'!$G$6:$CU$12,43,FALSE) -> 1
A16: 80 | B16: Vosges | C16: =VLOOKUP($A16,'RECAP DIRCOM'!$G$6:$CU$12,3,FALSE) -> 116 | D16: =VLOOKUP($A16,'RECAP DIRCOM'!$G$6:$CU$12,33,FALSE) -> 21,007 | E16: =VLOOKUP($A16,'RECAP DIRCOM'!$G$6:$CU$12,34,FALSE) -> 181.37 | F16: =VLOOKUP($A16,'RECAP DIRCOM'!$G$6:$CU$12,35,FALSE) -> 0% | G16: =VLOOKUP($A16,'RECAP DIRCOM'!$G$6:$CU$12,36,FALSE) -> 1 | H16: =VLOOKUP($A16,'RECAP DIRCOM'!$G$6:$CU$12,37,FALSE) -> 3,334 | I16: =VLOOKUP($A16,'RECAP DIRCOM'!$G$6:$CU$12,38,FALSE) -> 28.79 | J16: =VLOOKUP($A16,'RECAP DIRCOM'!$G$6:$CU$12,39,FALSE) -> 36% | K16: =VLOOKUP($A16,'RECAP DIRCOM'!$G$6:$CU$12,40,FALSE) -> 6 | L16: =VLOOKUP($A16,'RECAP DIRCOM'!$G$6:$CU$12,41,FALSE) -> 14% | M16: =VLOOKUP($A16,'RECAP DIRCOM'!$G$6:$CU$12,42,FALSE) -> 10% | N16: =VLOOKUP($A16,'RECAP DIRCOM'!$G$6:$CU$12,43,FALSE) -> 2
B17: Total CEGEE Directions Régionales | C17: =SUM(C10:C16) -> 1189

Sheet DC_CREDIT
B1: Accueil | D1: BAROMETRE BDD - DIRECTIONS REGIONALES
D2: CREDITS
D3: =ACCUEIL!F7 -> 2022-07-17
D7: Engagements et ventes accessoires pondérés Immo | H7: Engagements et ventes accessoires pondérés Conso | L7: Ventes sur client non détenteur de l’univers | P7: Total Crédits
D8: =DATEMAJ!C18 -> au 17/07 | F8: coef | G8: ='RECAP DIRCOM'!BE4 -> 6% | H8: =DATEMAJ!C19 -> au 17/07 | J8: coef | K8: ='RECAP DIRCOM'!BI4 -> 6% | L8: =DATEMAJ!C20 -> au 17/07 | N8: coef | O8: ='RECAP DIRCOM'!BM4 -> 8% | Q8: coef | R8: ='RECAP DIRCOM'!BP4 -> 20%
B9: Direction | C9: ="ETP perf "&DATEMAJ!$C$28 -> ETP perf 17-juil | D9: PNB | E9: PNB / ETP | F9: % Ecart au 1er | G9: Rang | H9: PNB | I9: PNB / ETP | J9: % Ecart au 1er | K9: Rang | L9: VB | M9: VB / ETP | N9: % Ecart au 1er | O9: Rang | P9: Moyenne ecart au 1er | Q9: % Ecart au 1er | R9: Rang CEGEE
A10: 50 | B10: Aube Haute Marne | C10: =VLOOKUP($A10,'RECAP DIRCOM'!$G$6:$CU$12,3,FALSE) -> 112 | D10: =VLOOKUP($A10,'RECAP DIRCOM'!$G$6:$CU$12,48,FALSE) -> 12,602 | E10: =VLOOKUP($A10,'RECAP DIRCOM'!$G$6:$CU$12,49,FALSE) -> 112.21 | F10: =VLOOKUP($A10,'RECAP DIRCOM'!$G$6:$CU$12,50,FALSE) -> 53% | G10: =VLOOKUP($A10,'RECAP DIRCOM'!$G$6:$CU$12,51,FALSE) -> 6 | H10: =VLOOKUP($A10,'RECAP DIRCOM'!$G$6:$CU$12,52,FALSE) -> 3,918 | I10: =VLOOKUP($A10,'RECAP DIRCOM'!$G$6:$CU$12,53,FALSE) -> 34.88 | J10: =VLOOKUP($A10,'RECAP DIRCOM'!$G$6:$CU$12,54,FALSE) -> 16% | K10: =VLOOKUP($A10,'RECAP DIRCOM'!$G$6:$CU$12,55,FALSE) -> 3 | L10: =VLOOKUP($A10,'RECAP DIRCOM'!$G$6:$CU$12,56,FALSE) -> 1,439 | M10: =VLOOKUP($A10,'RECAP DIRCOM'!$G$6:$CU$12,57,FALSE) -> 12.81 | N10: =VLOOKUP($A10,'RECAP DIRCOM'!$G$6:$CU$12,58,FALSE) -> 38% | O10: =VLOOKUP($A10,'RECAP DIRCOM'!$G$6:$CU$12,59,FALSE) -> 5 | P10: =VLOOKUP($A10,'RECAP DIRCOM'!$G$6:$CU$12,60,FALSE) -> 36% | Q10: =VLOOKUP($A10,'RECAP DIRCOM'!$G$6:$CU$12,61,FALSE) -> 30% | R10: =VLOOKUP($A10,'RECAP DIRCOM'!$G$6:$CU$12,62,FALSE) -> 4
A11: 262 | B11: Bas-Rhin | C11: =VLOOKUP($A11,'RECAP DIRCOM'!$G$6:$CU$12,3,FALSE) -> 220 | D11: =VLOOKUP($A11,'RECAP DIRCOM'!$G$6:$CU$12,48,FALSE) -> 27,539 | E11: =VLOOKUP($A11,'RECAP DIRCOM'!$G$6:$CU$12,49,FALSE) -> 125.35 | F11: =VLOOKUP($A11,'RECAP DIRCOM'!$G$6:$CU$12,50,FALSE) -> 48% | G11: =VLOOKUP($A11,'RECAP DIRCOM'!$G$6:$CU$12,51,FALSE) -> 4 | H11: =VLOOKUP($A11,'RECAP DIRCOM'!$G$6:$CU$12,52,FALSE) -> 6,554 | I11: =VLOOKUP($A11,'RECAP DIRCOM'!$G$6:$CU$12,53,FALSE) -> 29.83 | J11: =VLOOKUP($A11,'RECAP DIRCOM'!$G$6:$CU$12,54,FALSE) -> 28% | K11: =VLOOKUP($A11,'RECAP DIRCOM'!$G$6:$CU$12,55,FALSE) -> 6 | L11: =VLOOKUP($A11,'RECAP DIRCOM'!$G$6:$CU$12,56,FALSE) -> 2,752 | M11: =VLOOKUP($A11,'RECAP DIRCOM'!$G$6:$CU$12,57,FALSE) -> 12.53 | N11: =VLOOKUP($A11,'RECAP DIRCOM'!$G$6:$CU$12,58,FALSE) -> 39% | O11: =VLOOKUP($A11,'RECAP DIRCOM'!$G$6:$CU$12,59,FALSE) -> 6 | P11: =VLOOKUP($A11,'RECAP DIRCOM'!$G$6:$CU$12,60,FALSE) -> 38% | Q11: =VLOOKUP($A11,'RECAP DIRCOM'!$G$6:$CU$12,61,FALSE) -> 32% | R11: =VLOOKUP($A11,'RECAP DIRCOM'!$G$6:$CU$12,62,FALSE) -> 6
A12: 264 | B12: Haut-Rhin | C12: =VLOOKUP($A12,'RECAP DIRCOM'!$G$6:$CU$12,3,FALSE) -> 121 | D12: =VLOOKUP($A12,'RECAP DIRCOM'!$G$6:$CU$12,48,FALSE) -> 11,515 | E12: =VLOOKUP($A12,'RECAP DIRCOM'!$G$6:$CU$12,49,FALSE) -> 94.82 | F12: =VLOOKUP($A12,'RECAP DIRCOM'!$G$6:$CU$12,50,FALSE) -> 60% | G12: =VLOOKUP($A12,'RECAP DIRCOM'!$G$6:$CU$12,51,FALSE) -> 7 | H12: =VLOOKUP($A12,'RECAP DIRCOM'!$G$6:$CU$12,52,FALSE) -> 3,295 | I12: =VLOOKUP($A12,'RECAP DIRCOM'!$G$6:$CU$12,53,FALSE) -> 27.13 | J12: =VLOOKUP($A12,'RECAP DIRCOM'!$G$6:$CU$12,54,FALSE) -> 35% | K12: =VLOOKUP($A12,'RECAP DIRCOM'!$G$6:$CU$12,55,FALSE) -> 7 | L12: =VLOOKUP($A12,'RECAP DIRCOM'!$G$6:$CU$12,56,FALSE) -> 1,252 | M12: =VLOOKUP($A12,'RECAP DIRCOM'!$G$6:$CU$12,57,FALSE) -> 10.31 | N12: =VLOOKUP($A12,'RECAP DIRCOM'!$G$6:$CU$12,58,FALSE) -> 50% | O12: =VLOOKUP($A12,'RECAP DIRCOM'!$G$6:$CU$12,59,FALSE) -> 7 | P12: =VLOOKUP($A12,'RECAP DIRCOM'!$G$6:$CU$12,60,FALSE) -> 48% | Q12: =VLOOKUP($A12,'RECAP DIRCOM'!$G$6:$CU$12,61,FALSE) -> 42% | R12: =VLOOKUP($A12,'RECAP DIRCOM'!$G$6:$CU$12,62,FALSE) -> 7
A13: 30 | B13: Marne-Ardennes | C13: =VLOOKUP($A13,'RECAP DIRCOM'!$G$6:$CU$12,3,FALSE) -> 193 | D13: =VLOOKUP($A13,'RECAP DIRCOM'!$G$6:$CU$12,48,FALSE) -> 46,104 | E13: =VLOOKUP($A13,'RECAP DIRCOM'!$G$6:$CU$12,49,FALSE) -> 239.29 | F13: =VLOOKUP($A13,'RECAP DIRCOM'!$G$6:$CU$12,50,FALSE) -> 0% | G13: =VLOOKUP($A13,'RECAP DIRCOM'!$G$6:$CU$12,51,FALSE) -> 1 | H13: =VLOOKUP($A13,'RECAP DIRCOM'!$G$6:$CU$12,52,FALSE) -> 6,188 | I13: =VLOOKUP($A13,'RECAP DIRCOM'!$G$6:$CU$12,53,FALSE) -> 32.12 | J13: =VLOOKUP($A13,'RECAP DIRCOM'!$G$6:$CU$12,54,FALSE) -> 23% | K13: =VLOOKUP($A13,'RECAP DIRCOM'!$G$6:$CU$12,55,FALSE) -> 4 | L13: =VLOOKUP($A13,'RECAP DIRCOM'!$G$6:$CU$12,56,FALSE) -> 3,973 | M13: =VLOOKUP($A13,'RECAP DIRCOM'!$G$6:$CU$12,57,FALSE) -> 20.62 | N13: =VLOOKUP($A13,'RECAP DIRCOM'!$G$6:$CU$12,58,FALSE) -> 0% | O13: =VLOOKUP($A13,'RECAP DIRCOM'!$G$6:$CU$12,59,FALSE) -> 1 | P13: =VLOOKUP($A13,'RECAP DIRCOM'!$G$6:$CU$12,60,FALSE) -> 7% | Q13: =VLOOKUP($A13,'RECAP DIRCOM'!$G$6:$CU$12,61,FALSE) -> 0% | R13: =VLOOKUP($A13,'RECAP DIRCOM'!$G$6:$CU$12,62,FALSE) -> 2
A14: 110 | B14: Meurthe et Moselle Meuse | C14: =VLOOKUP($A14,'RECAP DIRCOM'!$G$6:$CU$12,3,FALSE) -> 202 | D14: =VLOOKUP($A14,'RECAP DIRCOM'!$G$6:$CU$12,48,FALSE) -> 43,776 | E14: =VLOOKUP($A14,'RECAP DIRCOM'!$G$6:$CU$12,49,FALSE) -> 217.07 | F14: =VLOOKUP($A14,'RECAP DIRCOM'!$G$6:$CU$12,50,FALSE) -> 9% | G14: =VLOOKUP($A14,'RECAP DIRCOM'!$G$6:$CU$12,51,FALSE) -> 3 | H14: =VLOOKUP($A14,'RECAP DIRCOM'!$G$6:$CU$12,52,FALSE) -> 7,364 | I14: =VLOOKUP($A14,'RECAP DIRCOM'!$G$6:$CU$12,53,FALSE) -> 36.51 | J14: =VLOOKUP($A14,'RECAP DIRCOM'!$G$6:$CU$12,54,FALSE) -> 12% | K14: =VLOOKUP($A14,'RECAP DIRCOM'!$G$6:$CU$12,55,FALSE) -> 2 | L14: =VLOOKUP($A14,'RECAP DIRCOM'!$G$6:$CU$12,56,FALSE) -> 3,565 | M14: =VLOOKUP($A14,'RECAP DIRCOM'!$G$6:$CU$12,57,FALSE) -> 17.68 | N14: =VLOOKUP($A14,'RECAP DIRCOM'!$G$6:$CU$12,58,FALSE) -> 14% | O14: =VLOOKUP($A14,'RECAP DIRCOM'!$G$6:$CU$12,59,FALSE) -> 3 | P14: =VLOOKUP($A14,'RECAP DIRCOM'!$G$6:$CU$12,60,FALSE) -> 12% | Q14: =VLOOKUP($A14,'RECAP DIRCOM'!$G$6:$CU$12,61,FALSE) -> 6% | R14: =VLOOKUP($A14,'RECAP DIRCOM'!$G$6:$CU$12,62,FALSE) -> 3
A15: 160 | B15: Moselle | C15: =VLOOKUP($A15,'RECAP DIRCOM'!$G$6:$CU$12,3,FALSE) -> 225 | D15: =VLOOKUP($A15,'RECAP DIRCOM'!$G$6:$CU$12,48,FALSE) -> 51,132 | E15: =VLOOKUP($A15,'RECAP DIRCOM'!$G$6:$CU$12,49,FALSE) -> 226.82 | F15: =VLOOKUP($A15,'RECAP DIRCOM'!$G$6:$CU$12,50,FALSE) -> 5% | G15: =VLOOKUP($A15,'RECAP DIRCOM'!$G$6:$CU$12,51,FALSE) -> 2 | H15: =VLOOKUP($A15,'RECAP DIRCOM'!$G$6:$CU$12,52,FALSE) -> 9,346 | I15: =VLOOKUP($A15,'RECAP DIRCOM'!$G$6:$CU$12,53,FALSE) -> 41.46 | J15: =VLOOKUP($A15,'RECAP DIRCOM'!$G$6:$CU$12,54,FALSE) -> 0% | K15: =VLOOKUP($A15,'RECAP DIRCOM'!$G$6:$CU$12,55,FALSE) -> 1 | L15: =VLOOKUP($A15,'RECAP DIRCOM'!$G$6:$CU$12,56,FALSE) -> 4,102 | M15: =VLOOKUP($A15,'RECAP DIRCOM'!$G$6:$CU$12,57,FALSE) -> 18.20 | N15: =VLOOKUP($A15,'RECAP DIRCOM'!$G$6:$CU$12,58,FALSE) -> 12% | O15: =VLOOKUP($A15,'RECAP DIRCOM'!$G$6:$CU$12,59,FALSE) -> 2 | P15: =VLOOKUP($A15,'RECAP DIRCOM'!$G$6:$CU$12,60,FALSE) -> 6% | Q15: =VLOOKUP($A15,'RECAP DIRCOM'!$G$6:$CU$12,61,FALSE) -> 0% | R15: =VLOOKUP($A15,'RECAP DIRCOM'!$G$6:$CU$12,62,FALSE) -> 1
A16: 80 | B16: Vosges | C16: =VLOOKUP($A16,'RECAP DIRCOM'!$G$6:$CU$12,3,FALSE) -> 116 | D16: =VLOOKUP($A16,'RECAP DIRCOM'!$G$6:$CU$12,48,FALSE) -> 13,144 | E16: =VLOOKUP($A16,'RECAP DIRCOM'!$G$6:$CU$12,49,FALSE) -> 113.49 | F16: =VLOOKUP($A16,'RECAP DIRCOM'!$G$6:$CU$12,50,FALSE) -> 53% | G16: =VLOOKUP($A16,'RECAP DIRCOM'!$G$6:$CU$12,51,FALSE) -> 5 | H16: =VLOOKUP($A16,'RECAP DIRCOM'!$G$6:$CU$12,52,FALSE) -> 3,537 | I16: =VLOOKUP($A16,'RECAP DIRCOM'!$G$6:$CU$12,53,FALSE) -> 30.54 | J16: =VLOOKUP($A16,'RECAP DIRCOM'!$G$6:$CU$12,54,FALSE) -> 26% | K16: =VLOOKUP($A16,'RECAP DIRCOM'!$G$6:$CU$12,55,FALSE) -> 5 | L16: =VLOOKUP($A16,'RECAP DIRCOM'!$G$6:$CU$12,56,FALSE) -> 1,632 | M16: =VLOOKUP($A16,'RECAP DIRCOM'!$G$6:$CU$12,57,FALSE) -> 14.09 | N16: =VLOOKUP($A16,'RECAP DIRCOM'!$G$6:$CU$12,58,FALSE) -> 32% | O16: =VLOOKUP($A16,'RECAP DIRCOM'!$G$6:$CU$12,59,FALSE) -> 4 | P16: =VLOOKUP($A16,'RECAP DIRCOM'!$G$6:$CU$12,60,FALSE) -> 36% | Q16: =VLOOKUP($A16,'RECAP DIRCOM'!$G$6:$CU$12,61,FALSE) -> 30% | R16: =VLOOKUP($A16,'RECAP DIRCOM'!$G$6:$CU$12,62,FALSE) -> 5
B17: Total CEGEE Directions Régionales | C17: =SUM(C10:C16) -> 1189

Sheet DC_IARD
B1: Accueil | D1: BAROMETRE BDD - DIRECTIONS REGIONALES
D2: IARD ET PREVOYANCE
D3: =ACCUEIL!F7 -> 2022-07-17
D7: Ventes Nettes produits pondérés | H7: Ventes sur client non détenteur de l’univers | L7: Total IARD Prévoyance
D8: =DATEMAJ!C23 -> au 17/07 | F8: coef | G8: ='RECAP DIRCOM'!BX4 -> 12% | H8: =DATEMAJ!C24 -> au 17/07 | J8: coef | K8: ='RECAP DIRCOM'!CB4 -> 8% | M8: coef | N8: ='RECAP DIRCOM'!CE4 -> 20%
B9: Direction | C9: ="ETP perf "&DATEMAJ!$C$28 -> ETP perf 17-juil | D9: VN | E9: VN / ETP | F9: % Ecart au 1er | G9: Rang | H9: VB | I9: VB / ETP | J9: % Ecart au 1er | K9: Rang | L9: Moyenne ecart au 1er | M9: % Ecart au 1er | N9: Rang CEGEE
A10: 50 | B10: Aube Haute Marne | C10: =VLOOKUP($A10,'RECAP DIRCOM'!$G$6:$CU$12,3,FALSE) -> 112 | D10: =VLOOKUP($A10,'RECAP DIRCOM'!$G$6:$CU$12,67,FALSE) -> 8,904 | E10: =VLOOKUP($A10,'RECAP DIRCOM'!$G$6:$CU$12,68,FALSE) -> 79.28 | F10: =VLOOKUP($A10,'RECAP DIRCOM'!$G$6:$CU$12,69,FALSE) -> 29% | G10: =VLOOKUP($A10,'RECAP DIRCOM'!$G$6:$CU$12,70,FALSE) -> 4 | H10: =VLOOKUP($A10,'RECAP DIRCOM'!$G$6:$CU$12,71,FALSE) -> 2,653 | I10: =VLOOKUP($A10,'RECAP DIRCOM'!$G$6:$CU$12,72,FALSE) -> 23.62 | J10: =VLOOKUP($A10,'RECAP DIRCOM'!$G$6:$CU$12,73,FALSE) -> 24% | K10: =VLOOKUP($A10,'RECAP DIRCOM'!$G$6:$CU$12,74,FALSE) -> 5 | L10: =VLOOKUP($A10,'RECAP DIRCOM'!$G$6:$CU$12,75,FALSE) -> 27% | M10: =VLOOKUP($A10,'RECAP DIRCOM'!$G$6:$CU$12,76,FALSE) -> 27% | N10: =VLOOKUP($A10,'RECAP DIRCOM'!$G$6:$CU$12,77,FALSE) -> 5
A11: 262 | B11: Bas-Rhin | C11: =VLOOKUP($A11,'RECAP DIRCOM'!$G$6:$CU$12,3,FALSE) -> 220 | D11: =VLOOKUP($A11,'RECAP DIRCOM'!$G$6:$CU$12,67,FALSE) -> 16,716 | E11: =VLOOKUP($A11,'RECAP DIRCOM'!$G$6:$CU$12,68,FALSE) -> 76.09 | F11: =VLOOKUP($A11,'RECAP DIRCOM'!$G$6:$CU$12,69,FALSE) -> 32% | G11: =VLOOKUP($A11,'RECAP DIRCOM'!$G$6:$CU$12,70,FALSE) -> 5 | H11: =VLOOKUP($A11,'RECAP DIRCOM'!$G$6:$CU$12,71,FALSE) -> 5,656 | I11: =VLOOKUP($A11,'RECAP DIRCOM'!$G$6:$CU$12,72,FALSE) -> 25.75 | J11: =VLOOKUP($A11,'RECAP DIRCOM'!$G$6:$CU$12,73,FALSE) -> 18% | K11: =VLOOKUP($A11,'RECAP DIRCOM'!$G$6:$CU$12,74,FALSE) -> 4 | L11: =VLOOKUP($A11,'RECAP DIRCOM'!$G$6:$CU$12,75,FALSE) -> 26% | M11: =VLOOKUP($A11,'RECAP DIRCOM'!$G$6:$CU$12,76,FALSE) -> 26% | N11: =VLOOKUP($A11,'RECAP DIRCOM'!$G$6:$CU$12,77,FALSE) -> 4
A12: 264 | B12: Haut-Rhin | C12: =VLOOKUP($A12,'RECAP DIRCOM'!$G$6:$CU$12,3,FALSE) -> 121 | D12: =VLOOKUP($A12,'RECAP DIRCOM'!$G$6:$CU$12,67,FALSE) -> 4,082 | E12: =VLOOKUP($A12,'RECAP DIRCOM'!$G$6:$CU$12,68,FALSE) -> 33.61 | F12: =VLOOKUP($A12,'RECAP DIRCOM'!$G$6:$CU$12,69,FALSE) -> 70% | G12: =VLOOKUP($A12,'RECAP DIRCOM'!$G$6:$CU$12,70,FALSE) -> 7 | H12: =VLOOKUP($A12,'RECAP DIRCOM'!$G$6:$CU$12,71,FALSE) -> 2,457 | I12: =VLOOKUP($A12,'RECAP DIRCOM'!$G$6:$CU$12,72,FALSE) -> 20.23 | J12: =VLOOKUP($A12,'RECAP DIRCOM'!$G$6:$CU$12,73,FALSE) -> 35% | K12: =VLOOKUP($A12,'RECAP DIRCOM'!$G$6:$CU$12,74,FALSE) -> 7 | L12: =VLOOKUP($A12,'RECAP DIRCOM'!$G$6:$CU$12,75,FALSE) -> 56% | M12: =VLOOKUP($A12,'RECAP DIRCOM'!$G$6:$CU$12,76,FALSE) -> 56% | N12: =VLOOKUP($A12,'RECAP DIRCOM'!$G$6:$CU$12,77,FALSE) -> 7
A13: 30 | B13: Marne-Ardennes | C13: =VLOOKUP($A13,'RECAP DIRCOM'!$G$6:$CU$12,3,FALSE) -> 193 | D13: =VLOOKUP($A13,'RECAP DIRCOM'!$G$6:$CU$12,67,FALSE) -> 21,580 | E13: =VLOOKUP($A13,'RECAP DIRCOM'!$G$6:$CU$12,68,FALSE) -> 112.00 | F13: =VLOOKUP($A13,'RECAP DIRCOM'!$G$6:$CU$12,69,FALSE) -> 0% | G13: =VLOOKUP($A13,'RECAP DIRCOM'!$G$6:$CU$12,70,FALSE) -> 1 | H13: =VLOOKUP($A13,'RECAP DIRCOM'!$G$6:$CU$12,71,FALSE) -> 6,027 | I13: =VLOOKUP($A13,'RECAP DIRCOM'!$G$6:$CU$12,72,FALSE) -> 31.28 | J13: =VLOOKUP($A13,'RECAP DIRCOM'!$G$6:$CU$12,73,FALSE) -> 0% | K13: =VLOOKUP($A13,'RECAP DIRCOM'!$G$6:$CU$12,74,FALSE) -> 1 | L13: =VLOOKUP($A13,'RECAP DIRCOM'!$G$6:$CU$12,75,FALSE) -> 0% | M13: =VLOOKUP($A13,'RECAP DIRCOM'!$G$6:$CU$12,76,FALSE) -> 0% | N13: =VLOOKUP($A13,'RECAP DIRCOM'!$G$6:$CU$12,77,FALSE) -> 1
A14: 110 | B14: Meurthe et Moselle Meuse | C14: =VLOOKUP($A14,'RECAP DIRCOM'!$G$6:$CU$12,3,FALSE) -> 202 | D14: =VLOOKUP($A14,'RECAP DIRCOM'!$G$6:$CU$12,67,FALSE) -> 17,535 | E14: =VLOOKUP($A14,'RECAP DIRCOM'!$G$6:$CU$12,68,FALSE) -> 86.95 | F14: =VLOOKUP($A14,'RECAP DIRCOM'!$G$6:$CU$12,69,FALSE) -> 22% | G14: =VLOOKUP($A14,'RECAP DIRCOM'!$G$6:$CU$12,70,FALSE) -> 3 | H14: =VLOOKUP($A14,'RECAP DIRCOM'!$G$6:$CU$12,71,FALSE) -> 5,661 | I14: =VLOOKUP($A14,'RECAP DIRCOM'!$G$6:$CU$12,72,FALSE) -> 28.07 | J14: =VLOOKUP($A14,'RECAP DIRCOM'!$G$6:$CU$12,73,FALSE) -> 10% | K14: =VLOOKUP($A14,'RECAP DIRCOM'!$G$6:$CU$12,74,FALSE) -> 3 | L14: =VLOOKUP($A14,'RECAP DIRCOM'!$G$6:$CU$12,75,FALSE) -> 18% | M14: =VLOOKUP($A14,'RECAP DIRCOM'!$G$6:$CU$12,76,FALSE) -> 18% | N14: =VLOOKUP($A14,'RECAP DIRCOM'!$G$6:$CU$12,77,FALSE) -> 3
A15: 160 | B15: Moselle | C15: =VLOOKUP($A15,'RECAP DIRCOM'!$G$6:$CU$12,3,FALSE) -> 225 | D15: =VLOOKUP($A15,'RECAP DIRCOM'!$G$6:$CU$12,67,FALSE) -> 25,146 | E15: =VLOOKUP($A15,'RECAP DIRCOM'!$G$6:$CU$12,68,FALSE) -> 111.55 | F15: =VLOOKUP($A15,'RECAP DIRCOM'!$G$6:$CU$12,69,FALSE) -> 0% | G15: =VLOOKUP($A15,'RECAP DIRCOM'!$G$6:$CU$12,70,FALSE) -> 2 | H15: =VLOOKUP($A15,'RECAP DIRCOM'!$G$6:$CU$12,71,FALSE) -> 6,851 | I15: =VLOOKUP($A15,'RECAP DIRCOM'!$G$6:$CU$12,72,FALSE) -> 30.39 | J15: =VLOOKUP($A15,'RECAP DIRCOM'!$G$6:$CU$12,73,FALSE) -> 3% | K15: =VLOOKUP($A15,'RECAP DIRCOM'!$G$6:$CU$12,74,FALSE) -> 2 | L15: =VLOOKUP($A15,'RECAP DIRCOM'!$G$6:$CU$12,75,FALSE) -> 1% | M15: =VLOOKUP($A15,'RECAP DIRCOM'!$G$6:$CU$12,76,FALSE) -> 1% | N15: =VLOOKUP($A15,'RECAP DIRCOM'!$G$6:$CU$12,77,FALSE) -> 2
A16: 80 | B16: Vosges | C16: =VLOOKUP($A16,'RECAP DIRCOM'!$G$6:$CU$12,3,FALSE) -> 116 | D16: =VLOOKUP($A16,'RECAP DIRCOM'!$G$6:$CU$12,67,FALSE) -> 6,725 | E16: =VLOOKUP($A16,'RECAP DIRCOM'!$G$6:$CU$12,68,FALSE) -> 58.06 | F16: =VLOOKUP($A16,'RECAP DIRCOM'!$G$6:$CU$12,69,FALSE) -> 48% | G16: =VLOOKUP($A16,'RECAP DIRCOM'!$G$6:$CU$12,70,FALSE) -> 6 | H16: =VLOOKUP($A16,'RECAP DIRCOM'!$G$6:$CU$12,71,FALSE) -> 2,549 | I16: =VLOOKUP($A16,'RECAP DIRCOM'!$G$6:$CU$12,72,FALSE) -> 22.01 | J16: =VLOOKUP($A16,'RECAP DIRCOM'!$G$6:$CU$12,73,FALSE) -> 30% | K16: =VLOOKUP($A16,'RECAP DIRCOM'!$G$6:$CU$12,74,FALSE) -> 6 | L16: =VLOOKUP($A16,'RECAP DIRCOM'!$G$6:$CU$12,75,FALSE) -> 41% | M16: =VLOOKUP($A16,'RECAP DIRCOM'!$G$6:$CU$12,76,FALSE) -> 41% | N16: =VLOOKUP($A16,'RECAP DIRCOM'!$G$6:$CU$12,77,FALSE) -> 6
B17: Total CEGEE Directions Régionales | C17: =SUM(C10:C16) -> 1189

Sheet DC_SATISFACTION
B1: Accueil | D1: BAROMETRE BDD - DIRECTIONS REGIONALES
D2: SATISFACTION
D3: =ACCUEIL!F7 -> 2022-07-17
D7: NPS à froid (SAE) | G7: NPS à chaud (QHD) | J7: Total Satisfaction Clients
D8: =DATEMAJ!E4 -> au 31/05 | E8: coef | F8: ='RECAP DIRCOM'!M4 -> 10% | G8: =DATEMAJ!C5 -> au 31/05 | H8: coef | I8: ='RECAP DIRCOM'!P4 -> 10% | K8: coef | L8: ='RECAP DIRCOM'!S4 -> 20%
B9: Direction | C9: ="ETP perf "&DATEMAJ!$C$28 -> ETP perf 17-juil | E9: % Ecart au 1er | F9: Rang | H9: % Ecart au 1er | I9: Rang | J9: Moyenne ecart au 1er | K9: % Ecart au 1er | L9: Rang CEGEE
A10: 50 | B10: Aube Haute Marne | C10: =VLOOKUP($A10,'RECAP DIRCOM'!$G$6:$CU$12,3,FALSE) -> 112 | D10: =VLOOKUP($A10,'RECAP DIRCOM'!$G$6:$CU$12,5,FALSE) -> 4.25 | E10: =VLOOKUP($A10,'RECAP DIRCOM'!$G$6:$CU$12,6,FALSE) -> 83% | F10: =VLOOKUP($A10,'RECAP DIRCOM'!$G$6:$CU$12,7,FALSE) -> 6 | G10: =VLOOKUP($A10,'RECAP DIRCOM'!$G$6:$CU$12,8,FALSE) -> 55% | H10: =VLOOKUP($A10,'RECAP DIRCOM'!$G$6:$CU$12,9,FALSE) -> 21% | I10: =VLOOKUP($A10,'RECAP DIRCOM'!$G$6:$CU$12,10,FALSE) -> 6 | J10: =VLOOKUP($A10,'RECAP DIRCOM'!$G$6:$CU$12,11,FALSE) -> 52% | K10: =VLOOKUP($A10,'RECAP DIRCOM'!$G$6:$CU$12,12,FALSE) -> 52% | L10: =VLOOKUP($A10,'RECAP DIRCOM'!$G$6:$CU$12,13,FALSE) -> 6
A11: 262 | B11: Bas-Rhin | C11: =VLOOKUP($A11,'RECAP DIRCOM'!$G$6:$CU$12,3,FALSE) -> 220 | D11: =VLOOKUP($A11,'RECAP DIRCOM'!$G$6:$CU$12,5,FALSE) -> 4.5 | E11: =VLOOKUP($A11,'RECAP DIRCOM'!$G$6:$CU$12,6,FALSE) -> 82% | F11: =VLOOKUP($A11,'RECAP DIRCOM'!$G$6:$CU$12,7,FALSE) -> 5 | G11: =VLOOKUP($A11,'RECAP DIRCOM'!$G$6:$CU$12,8,FALSE) -> 61% | H11: =VLOOKUP($A11,'RECAP DIRCOM'!$G$6:$CU$12,9,FALSE) -> 11% | I11: =VLOOKUP($A11,'RECAP DIRCOM'!$G$6:$CU$12,10,FALSE) -> 4 | J11: =VLOOKUP($A11,'RECAP DIRCOM'!$G$6:$CU$12,11,FALSE) -> 46% | K11: =VLOOKUP($A11,'RECAP DIRCOM'!$G$6:$CU$12,12,FALSE) -> 46% | L11: =VLOOKUP($A11,'RECAP DIRCOM'!$G$6:$CU$12,13,FALSE) -> 5
A12: 264 | B12: Haut-Rhin | C12: =VLOOKUP($A12,'RECAP DIRCOM'!$G$6:$CU$12,3,FALSE) -> 121 | D12: =VLOOKUP($A12,'RECAP DIRCOM'!$G$6:$CU$12,5,FALSE) -> 3.25 | E12: =VLOOKUP($A12,'RECAP DIRCOM'!$G$6:$CU$12,6,FALSE) -> 87% | F12: =VLOOKUP($A12,'RECAP DIRCOM'!$G$6:$CU$12,7,FALSE) -> 7 | G12: =VLOOKUP($A12,'RECAP DIRCOM'!$G$6:$CU$12,8,FALSE) -> 50% | H12: =VLOOKUP($A12,'RECAP DIRCOM'!$G$6:$CU$12,9,FALSE) -> 27% | I12: =VLOOKUP($A12,'RECAP DIRCOM'!$G$6:$CU$12,10,FALSE) -> 7 | J12: =VLOOKUP($A12,'RECAP DIRCOM'!$G$6:$CU$12,11,FALSE) -> 57% | K12: =VLOOKUP($A12,'RECAP DIRCOM'!$G$6:$CU$12,12,FALSE) -> 57% | L12: =VLOOKUP($A12,'RECAP DIRCOM'!$G$6:$CU$12,13,FALSE) -> 7
A13: 30 | B13: Marne-Ardennes | C13: =VLOOKUP($A13,'RECAP DIRCOM'!$G$6:$CU$12,3,FALSE) -> 193 | D13: =VLOOKUP($A13,'RECAP DIRCOM'!$G$6:$CU$12,5,FALSE) -> 17.25 | E13: =VLOOKUP($A13,'RECAP DIRCOM'!$G$6:$CU$12,6,FALSE) -> 30% | F13: =VLOOKUP($A13,'RECAP DIRCOM'!$G$6:$CU$12,7,FALSE) -> 2 | G13: =VLOOKUP($A13,'RECAP DIRCOM'!$G$6:$CU$12,8,FALSE) -> 67% | H13: =VLOOKUP($A13,'RECAP DIRCOM'!$G$6:$CU$12,9,FALSE) -> 3% | I13: =VLOOKUP($A13,'RECAP DIRCOM'!$G$6:$CU$12,10,FALSE) -> 2 | J13: =VLOOKUP($A13,'RECAP DIRCOM'!$G$6:$CU$12,11,FALSE) -> 16% | K13: =VLOOKUP($A13,'RECAP DIRCOM'!$G$6:$CU$12,12,FALSE) -> 16% | L13: =VLOOKUP($A13,'RECAP DIRCOM'!$G$6:$CU$12,13,FALSE) -> 2
A14: 110 | B14: Meurthe et Moselle Meuse | C14: =VLOOKUP($A14,'RECAP DIRCOM'!$G$6:$CU$12,3,FALSE) -> 202 | D14: =VLOOKUP($A14,'RECAP DIRCOM'!$G$6:$CU$12,5,FALSE) -> 10.75 | E14: =VLOOKUP($A14,'RECAP DIRCOM'!$G$6:$CU$12,6,FALSE) -> 56% | F14: =VLOOKUP($A14,'RECAP DIRCOM'!$G$6:$CU$12,7,FALSE) -> 4 | G14: =VLOOKUP($A14,'RECAP DIRCOM'!$G$6:$CU$12,8,FALSE) -> 60% | H14: =VLOOKUP($A14,'RECAP DIRCOM'!$G$6:$CU$12,9,FALSE) -> 13% | I14: =VLOOKUP($A14,'RECAP DIRCOM'!$G$6:$CU$12,10,FALSE) -> 5 | J14: =VLOOKUP($A14,'RECAP DIRCOM'!$G$6:$CU$12,11,FALSE) -> 34% | K14: =VLOOKUP($A14,'RECAP DIRCOM'!$G$6:$CU$12,12,FALSE) -> 34% | L14: =VLOOKUP($A14,'RECAP DIRCOM'!$G$6:$CU$12,13,FALSE) -> 4
A15: 160 | B15: Moselle | C15: =VLOOKUP($A15,'RECAP DIRCOM'!$G$6:$CU$12,3,FALSE) -> 225 | D15: =VLOOKUP($A15,'RECAP DIRCOM'!$G$6:$CU$12,5,FALSE) -> 15.25 | E15: =VLOOKUP($A15,'RECAP DIRCOM'!$G$6:$CU$12,6,FALSE) -> 38% | F15: =VLOOKUP($A15,'RECAP DIRCOM'!$G$6:$CU$12,7,FALSE) -> 3 | G15: =VLOOKUP($A15,'RECAP DIRCOM'!$G$6:$CU$12,8,FALSE) -> 63% | H15: =VLOOKUP($A15,'RECAP DIRCOM'!$G$6:$CU$12,9,FALSE) -> 8% | I15: =VLOOKUP($A15,'RECAP DIRCOM'!$G$6:$CU$12,10,FALSE) -> 3 | J15: =VLOOKUP($A15,'RECAP DIRCOM'!$G$6:$CU$12,11,FALSE) -> 23% | K15: =VLOOKUP($A15,'RECAP DIRCOM'!$G$6:$CU$12,12,FALSE) -> 23% | L15: =VLOOKUP($A15,'RECAP DIRCOM'!$G$6:$CU$12,13,FALSE) -> 3
A16: 80 | B16: Vosges | C16: =VLOOKUP($A16,'RECAP DIRCOM'!$G$6:$CU$12,3,FALSE) -> 116 | D16: =VLOOKUP($A16,'RECAP DIRCOM'!$G$6:$CU$12,5,FALSE) -> 24.5 | E16: =VLOOKUP($A16,'RECAP DIRCOM'!$G$6:$CU$12,6,FALSE) -> 0% | F16: =VLOOKUP($A16,'RECAP DIRCOM'!$G$6:$CU$12,7,FALSE) -> 1 | G16: =VLOOKUP($A16,'RECAP DIRCOM'!$G$6:$CU$12,8,FALSE) -> 69% | H16: =VLOOKUP($A16,'RECAP DIRCOM'!$G$6:$CU$12,9,FALSE) -> 0% | I16: =VLOOKUP($A16,'RECAP DIRCOM'!$G$6:$CU$12,10,FALSE) -> 1 | J16: =VLOOKUP($A16,'RECAP DIRCOM'!$G$6:$CU$12,11,FALSE) -> 0% | K16: =VLOOKUP($A16,'RECAP DIRCOM'!$G$6:$CU$12,12,FALSE) -> 0% | L16: =VLOOKUP($A16,'RECAP DIRCOM'!$G$6:$CU$12,13,FALSE) -> 1
B17: Total CEGEE Directions Régionales | C17: =SUM(C10:C16) -> 1189

Sheet SE_FICHE
A1: Accueil
A2: BAROMETRE BDD
A4: UNITE: | B4: TERRITOIRE | E4: ETP perf : | F4: =VLOOKUP(A5,'RECAP SECT'!$G$6:$I$23,3,FALSE) -> 47.51
A5: =VLOOKUP(B5,LISTES!$H$6:$I$23,2,FALSE) -> 5130 | B5: COLMAR
C6: Coefficient du critére | E6: Résultats | I6: Ecart au 1ier | M6: Evolution | O6: Rang
E7: du 1ier | G7: du territoire | I7: Du mois | K7: Au 31/12/2019
A9: RANG au CLASSEMENT GENERAL | K9: =VLOOKUP($A$5,#REF!,168,FALSE) ->  | M9: =+K9-O9 ->  | O9: =VLOOKUP($A$5,'RECAP SECT'!$G$6:$CY$312,168,FALSE) ->  | S9: =VLOOKUP($A$5,#REF!,154,FALSE) ->  | U9: =+S9-O9 -> 
A11: CRITERE CONQUETE | C11: 15% | O11: =VLOOKUP($A$5,'RECAP SECT'!$G$6:$CY$312,23,FALSE) -> 33.61397601
B12: PNB Evolution nette Clients BP | C12: 4% | E12: ='RECAP SECT'!#REF! ->  | G12: =VLOOKUP($A$5,'RECAP SECT'!$G$6:$CY$312,6,FALSE) -> 0.9 | I12: =VLOOKUP($A$5,'RECAP SECT'!$G$6:$CY$312,7,FALSE) -> 1600% | K12: =VLOOKUP($A$5,#REF!,7,FALSE) ->  | M12: =+K12-I12 ->  | O12: =VLOOKUP($A$5,'RECAP SECT'!$G$6:$CY$312,8,FALSE) -> 0.540317545 | S12: =VLOOKUP($A$5,#REF!,6,FALSE) ->  | U12: =+S12-I12 -> 
B13: PNB Evolution nette Clients PREMIUM | C13: 5% | E13: ='RECAP SECT'!#REF! ->  | G13: =VLOOKUP($A$5,'RECAP SECT'!$G$6:$CY$312,10,FALSE) -> 15.0 | I13: =VLOOKUP($A$5,'RECAP SECT'!$G$6:$CY$312,11,FALSE) -> 58% | K13: =VLOOKUP($A$5,#REF!,11,FALSE) ->  | M13: =+K13-I13 ->  | O13: =VLOOKUP($A$5,'RECAP SECT'!$G$6:$CY$312,12,FALSE) -> 0.5407399208 | S13: =VLOOKUP($A$5,#REF!,9,FALSE) ->  | U13: =+S13-I13 -> 
B14: PNB Evolution nette Clients Jeunes Equipés | C14: 3% | E14: ='RECAP SECT'!#REF! ->  | G14: =VLOOKUP($A$5,'RECAP SECT'!$G$6:$CY$312,14,FALSE) -> 0.0 | I14: =VLOOKUP($A$5,'RECAP SECT'!$G$6:$CY$312,15,FALSE) -> 0% | K14: =VLOOKUP($A$5,#REF!,15,FALSE) ->  | M14: =+K14-I14 ->  | O14: =VLOOKUP($A$5,'RECAP SECT'!$G$6:$CY$312,16,FALSE) -> 0 | S14: =VLOOKUP($A$5,#REF!,12,FALSE) ->  | U14: =+S14-I14 -> 
B15: PNB Evolution nette Clients Pro Actifs Equipés | C15: 3% | E15: ='RECAP SECT'!W4 -> 0.0 | G15: =VLOOKUP($A$5,'RECAP SECT'!$G$6:$CY$312,18,FALSE) -> 455.4 | I15: =VLOOKUP($A$5,'RECAP SECT'!$G$6:$CY$312,19,FALSE) -> 959% | K15: =VLOOKUP($A$5,#REF!,19,FALSE) ->  | M15: =+K15-I15 ->  | O15: =VLOOKUP($A$5,'RECAP SECT'!$G$6:$CY$312,20,FALSE) -> 0.6843564984 | S15: =VLOOKUP($A$5,#REF!,15,FALSE) ->  | U15: =+S15-I15 -> 
A17: CRITERE BANCARISATION | C17: 15% | O17: =VLOOKUP($A$5,'RECAP SECT'!$G$6:$CY$312,48,FALSE) -> 4834.571052
B18: PNB Ventes nettes forfaits | C18: 4% | E18: ='RECAP SECT'!X4 -> 30.4 | G18: =VLOOKUP($A$5,'RECAP SECT'!$G$6:$CY$312,31,FALSE) -> 0.0 | I18: =VLOOKUP($A$5,'RECAP SECT'!$G$6:$CY$312,32,FALSE) -> 0% | K18: =VLOOKUP($A$5,#REF!,32,FALSE) ->  | M18: =+K18-I18 ->  | O18: =VLOOKUP($A$5,'RECAP SECT'!$G$6:$CY$312,33,FALSE) -> 3306.778384 | S18: =VLOOKUP($A$5,#REF!,27,FALSE) ->  | U18: =+S18-I18 -> 
B19: PNB Ventes nettes IZICARTES Débit Différé | C19: 4% | E19: ='RECAP SECT'!AB4 -> 60.9 | G19: =VLOOKUP($A$5,'RECAP SECT'!$G$6:$CY$312,35,FALSE) -> 0.8 | I19: =VLOOKUP($A$5,'RECAP SECT'!$G$6:$CY$312,36,FALSE) -> 1500% | K19: =VLOOKUP($A$5,#REF!,36,FALSE) ->  | M19: =+K19-I19 ->  | O19: =VLOOKUP($A$5,'RECAP SECT'!$G$6:$CY$312,37,FALSE) -> 1448 | S19: =VLOOKUP($A$5,#REF!,30,FALSE) ->  | U19: =+S19-I19 -> 
B20: PNB Ventes nettes cartes HDG Débit Différé | C20: 4% | E20: ='RECAP SECT'!#REF! ->  | G20: =VLOOKUP($A$5,'RECAP SECT'!$G$6:$CY$312,39,FALSE) -> 0.5 | I20: =VLOOKUP($A$5,'RECAP SECT'!$G$6:$CY$312,40,FALSE) -> 1800% | K20: =VLOOKUP($A$5,#REF!,40,FALSE) ->  | M20: =+K20-I20 ->  | O20: =VLOOKUP($A$5,'RECAP SECT'!$G$6:$CY$312,41,FALSE) -> 0.6668596478 | S20: =VLOOKUP($A$5,#REF!,33,FALSE) ->  | U20: =+S20-I20 -> 
B21: PNB Ventes nettes Forfaits Pro, Carte pro | C21: 3% | E21: ='RECAP SECT'!#REF! ->  | G21: =VLOOKUP($A$5,'RECAP SECT'!$G$6:$CY$312,43,FALSE) -> 16.0 | I21: =VLOOKUP($A$5,'RECAP SECT'!$G$6:$CY$312,44,FALSE) -> 0% | K21: =VLOOKUP($A$5,#REF!,44,FALSE) ->  | M21: =+K21-I21 ->  | O21: =VLOOKUP($A$5,'RECAP SECT'!$G$6:$CY$312,45,FALSE) -> 0 | S21: =VLOOKUP($A$5,#REF!,39,FALSE) ->  | U21: =+S21-I21 -> 
A23: CRITERE EPARGNE | C23: 10% | O23: =VLOOKUP($A$5,'RECAP SECT'!$G$6:$CY$312,69,FALSE) -> 0.6056130644
B24: PNB Epargne Liquide | C24: 3% | E24: ='RECAP SECT'!AM4 -> 308.9 | G24: =VLOOKUP($A$5,'RECAP SECT'!$G$6:$CY$312,56,FALSE) -> 628.0 | I24: =VLOOKUP($A$5,'RECAP SECT'!$G$6:$CY$312,57,FALSE) -> 1322% | K24: =VLOOKUP($A$5,#REF!,57,FALSE) ->  | M24: =+K24-I24 ->  | O24: =VLOOKUP($A$5,'RECAP SECT'!$G$6:$CY$312,58,FALSE) -> 0.5559650103 | S24: =VLOOKUP($A$5,#REF!,51,FALSE) ->  | U24: =+S24-I24 -> 
B25: PNB CA UC + arbitrage | C25: 4% | E25: ='RECAP SECT'!AQ4 -> 61.6 | G25: =VLOOKUP($A$5,'RECAP SECT'!$G$6:$CY$312,60,FALSE) -> 0.5 | I25: =VLOOKUP($A$5,'RECAP SECT'!$G$6:$CY$312,61,FALSE) -> 49% | K25: =VLOOKUP($A$5,#REF!,61,FALSE) ->  | M25: =+K25-I25 ->  | O25: =VLOOKUP($A$5,'RECAP SECT'!$G$6:$CY$312,62,FALSE) -> 18 | S25: =VLOOKUP($A$5,#REF!,57,FALSE) ->  | U25: =+S25-I25 -> 
B26: PNB Excédent assurance vie | C26: 3% | E26: ='RECAP SECT'!#REF! ->  | G26: =VLOOKUP($A$5,'RECAP SECT'!$G$6:$CY$312,64,FALSE) -> 0.0 | I26: =VLOOKUP($A$5,'RECAP SECT'!$G$6:$CY$312,65,FALSE) -> 0% | K26: =VLOOKUP($A$5,#REF!,65,FALSE) ->  | M26: =+K26-I26 ->  | O26: =VLOOKUP($A$5,'RECAP SECT'!$G$6:$CY$312,66,FALSE) -> 0 | S26: =VLOOKUP($A$5,#REF!,60,FALSE) ->  | U26: =+S26-I26 -> 
A28: CRITERE CREDITS | C28: 15% | O28: =VLOOKUP($A$5,'RECAP SECT'!$G$6:$CY$312,102,FALSE) -> 
B29: PNB crédit conso | C29: 4% | E29: ='RECAP SECT'!BB4 -> 372.3 | G29: =VLOOKUP($A$5,'RECAP SECT'!$G$6:$CY$312,77,FALSE) -> 17.0 | I29: =VLOOKUP($A$5,'RECAP SECT'!$G$6:$CY$312,78,FALSE) -> 0% | K29: =VLOOKUP($A$5,#REF!,78,FALSE) ->  | M29: =+K29-I29 ->  | O29: =VLOOKUP($A$5,'RECAP SECT'!$G$6:$CY$312,79,FALSE) -> 0 | S29: =VLOOKUP($A$5,#REF!,75,FALSE) ->  | U29: =+S29-I29 -> 
B30: PNB ADE crédit conso | C30: 1% | E30: ='RECAP SECT'!#REF! ->  | G30: =VLOOKUP($A$5,'RECAP SECT'!$G$6:$CY$312,81,FALSE) -> 0.0 | I30: =VLOOKUP($A$5,'RECAP SECT'!$G$6:$CY$312,82,FALSE) -> 0% | K30: =VLOOKUP($A$5,#REF!,82,FALSE) ->  | O30: =VLOOKUP($A$5,'RECAP SECT'!$G$6:$CY$312,83,FALSE) -> 0 | S30: =VLOOKUP($A$5,#REF!,78,FALSE) -> 
B31: PNB crédit immo | C31: 4% | E31: ='RECAP SECT'!BF4 -> 52.0 | G31: =VLOOKUP($A$5,'RECAP SECT'!$G$6:$CY$312,85,FALSE) -> 0.0 | I31: =VLOOKUP($A$5,'RECAP SECT'!$G$6:$CY$312,86,FALSE) -> 0% | K31: =VLOOKUP($A$5,#REF!,86,FALSE) ->  | O31: =VLOOKUP($A$5,'RECAP SECT'!$G$6:$CY$312,87,FALSE) -> 0 | S31: =VLOOKUP($A$5,#REF!,81,FALSE) -> 
B32: PNB ADE crédit immo | C32: 2% | E32: ='RECAP SECT'!#REF! ->  | G32: =VLOOKUP($A$5,'RECAP SECT'!$G$6:$CY$312,89,FALSE) -> 0.0 | I32: =VLOOKUP($A$5,'RECAP SECT'!$G$6:$CY$312,90,FALSE) -> 0% | K32: =VLOOKUP($A$5,#REF!,90,FALSE) ->  | O32: =VLOOKUP($A$5,'RECAP SECT'!$G$6:$CY$312,91,FALSE) -> 0 | S32: =VLOOKUP($A$5,#REF!,84,FALSE) -> 
B33: PNB SACCEF | C33: 2% | E33: ='RECAP SECT'!#REF! ->  | G33: =VLOOKUP($A$5,'RECAP SECT'!$G$6:$CY$312,93,FALSE) -> 0.0 | I33: =VLOOKUP($A$5,'RECAP SECT'!$G$6:$CY$312,94,FALSE) -> 54% | K33: =VLOOKUP($A$5,#REF!,94,FALSE) ->  | O33: =VLOOKUP($A$5,'RECAP SECT'!$G$6:$CY$312,95,FALSE) -> 0.399895629 | S33: =VLOOKUP($A$5,#REF!,87,FALSE) -> 
B34: PNB Crédit MLT + Crédit Bail | C34: 2% | E34: ='RECAP SECT'!BJ4 -> 29.8 | G34: =VLOOKUP($A$5,'RECAP SECT'!$G$6:$CY$312,97,FALSE) -> 0.0 | I34: =VLOOKUP($A$5,'RECAP SECT'!$G$6:$CY$312,98,FALSE) ->  | K34: =VLOOKUP($A$5,#REF!,98,FALSE) ->  | O34: =VLOOKUP($A$5,'RECAP SECT'!$G$6:$CY$312,99,FALSE) ->  | S34: =VLOOKUP($A$5,#REF!,90,FALSE) -> 
A36: CRITERE IARD PREVOYANCE | C36: 15% | O36: =VLOOKUP($A$5,'RECAP SECT'!$G$6:$CY$312,119,FALSE) -> 
B37: PNB Ventes nettes IARD | C37: 9% | E37: ='RECAP SECT'!BU4 -> 163.0 | G37: =VLOOKUP($A$5,'RECAP SECT'!$G$6:$CY$312,110,FALSE) ->  | I37: =VLOOKUP($A$5,'RECAP SECT'!$G$6:$CY$312,111,FALSE) ->  | K37: =VLOOKUP($A$5,#REF!,111,FALSE) ->  | M37: =+K37-I37 ->  | O37: =VLOOKUP($A$5,'RECAP SECT'!$G$6:$CY$312,112,FALSE) ->  | S37: =VLOOKUP($A$5,#REF!,102,FALSE) ->  | U37: =+S37-I37 -> 
B38: PNB Ventes nettes Prévoyance | C38: 6% | E38: ='RECAP SECT'!BY4 -> 42.4 | G38: =VLOOKUP($A$5,'RECAP SECT'!$G$6:$CY$312,114,FALSE) ->  | I38: =VLOOKUP($A$5,'RECAP SECT'!$G$6:$CY$312,115,FALSE) ->  | K38: =VLOOKUP($A$5,#REF!,115,FALSE) ->  | M38: =+K38-I38 ->  | O38: =VLOOKUP($A$5,'RECAP SECT'!$G$6:$CY$312,116,FALSE) ->  | S38: =VLOOKUP($A$5,#REF!,105,FALSE) ->  | U38: =+S38-I38 -> 
A40: CRITERE ACCELERATEURS PNB | C40: 15% | O40: =VLOOKUP($A$5,'RECAP SECT'!$G$6:$CY$312,144,FALSE) -> 
B41: PNB Ventes brutes SED Finalisées | C41: 6% | E41: ='RECAP SECT'!#REF! ->  | G41: =VLOOKUP($A$5,'RECAP SECT'!$G$6:$CY$312,127,FALSE) ->  | I41: =VLOOKUP($A$5,'RECAP SECT'!$G$6:$CY$312,128,FALSE) ->  | K41: =VLOOKUP($A$5,#REF!,128,FALSE) ->  | M41: =+K41-I41 ->  | O41: =VLOOKUP($A$5,'RECAP SECT'!$G$6:$CY$312,129,FALSE) ->  | S41: =VLOOKUP($A$5,#REF!,120,FALSE) ->  | U41: =+S41-I41 -> 
B42: PNB clients équipés E documents | C42: 3% | E42: ='RECAP SECT'!#REF! ->  | G42: =VLOOKUP($A$5,'RECAP SECT'!$G$6:$CY$312,131,FALSE) ->  | I42: =VLOOKUP($A$5,'RECAP SECT'!$G$6:$CY$312,132,FALSE) ->  | K42: =VLOOKUP($A$5,#REF!,132,FALSE) ->  | M42: =+K42-I42 ->  | O42: =VLOOKUP($A$5,'RECAP SECT'!$G$6:$CY$312,133,FALSE) ->  | S42: =VLOOKUP($A$5,#REF!,123,FALSE) ->  | U42: =+S42-I42 -> 
B43: Economie opt'in | C43: 3% | E43: ='RECAP SECT'!#REF! ->  | G43: =VLOOKUP($A$5,'RECAP SECT'!$G$6:$CY$312,135,FALSE) ->  | I43: =VLOOKUP($A$5,'RECAP SECT'!$G$6:$CY$312,136,FALSE) ->  | K43: =VLOOKUP($A$5,#REF!,136,FALSE) ->  | M43: =+K43-I43 ->  | O43: =VLOOKUP($A$5,'RECAP SECT'!$G$6:$CY$312,137,FALSE) -> 
B44: Remises commerciales | C44: 3% | E44: ='RECAP SECT'!#REF! ->  | G44: =VLOOKUP($A$5,'RECAP SECT'!$G$6:$CY$312,139,FALSE) ->  | I44: =VLOOKUP($A$5,'RECAP SECT'!$G$6:$CY$312,140,FALSE) ->  | K44: =VLOOKUP($A$5,#REF!,140,FALSE) ->  | M44: =+K44-I44 ->  | O44: =VLOOKUP($A$5,'RECAP SECT'!$G$6:$CY$312,141,FALSE) ->  | S44: =VLOOKUP($A$5,#REF!,126,FALSE) ->  | U44: =+S44-I44 -> 
A46: CRITERE Satisfaction Clients | C46: 15% | O46: =VLOOKUP($A$5,'RECAP SECT'!$G$6:$CY$312,159,FALSE) -> 
B47: Objectifs NPS* | C47: 8% | E47: ='RECAP SECT'!K4 -> 28 | G47: =VLOOKUP($A$5,'RECAP SECT'!$G$6:$CY$312,151,FALSE) ->  | I47: =VLOOKUP($A$5,'RECAP SECT'!$G$6:$CY$312,152,FALSE) ->  | K47: =VLOOKUP($A$5,#REF!,152,FALSE) ->  | M47: =+K47-I47 ->  | O47: =VLOOKUP($A$5,'RECAP SECT'!$G$6:$CY$312,153,FALSE) ->  | S47: =VLOOKUP($A$5,#REF!,138,FALSE) ->  | U47: =+S47-I47 -> 
B48: Enquête Qualité Haute Définition | C48: 7% | E48: ='RECAP SECT'!N4 -> 75% | G48: =VLOOKUP($A$5,'RECAP SECT'!$G$6:$CY$312,154,FALSE) ->  | I48: =VLOOKUP($A$5,'RECAP SECT'!$G$6:$CY$312,155,FALSE) ->  | K48: =VLOOKUP($A$5,#REF!,155,FALSE) ->  | M48: =+K48-I48 ->  | O48: =VLOOKUP($A$5,'RECAP SECT'!$G$6:$CY$312,156,FALSE) ->  | S48: =VLOOKUP($A$5,#REF!,141,FALSE) ->  | U48: =+S48-I48 -> 

Sheet SE_TOTAL
B1: Accueil | F1: BAROMETRE BDD - TERRITOIRES
F2: TOTAL GENERAL
F3: =ACCUEIL!F7 -> 2022-07-17
F7: TOTAL GENERAL | I7: Total Satisfaction Clients | L7: Total Bancarisation | O7: Total Epargne | R7: Total IARD Prévoyance | U7: Total Crédits
G8: coef | H8: =K8+N8+Q8+T8+W8 -> 100% | J8: coef | K8: =SE_SATISFACTION!N8 -> 20% | M8: coef | N8: =SE_BANCA!P8 -> 20% | P8: coef | Q8: =SE_EPARGNE!P8 -> 20% | S8: coef | T8: =SE_IARD!P8 -> 20% | V8: coef | W8: =SE_CREDIT!T8 -> 20%
B9: Direction | C9: eds | D9: Territoire | E9: ="ETP perf "&DATEMAJ!$C$28 -> ETP perf 17-juil | F9: Moyenne ecart au 1er | G9: % Ecart au 1er | H9: Rang CEGEE | I9: Moyenne ecart au 1er | J9: % Ecart au 1er | K9: Rang CEGEE | L9: Moyenne ecart au 1er | M9: % Ecart au 1er | N9: Rang CEGEE | O9: Moyenne ecart au 1er | P9: % Ecart au 1er | Q9: Rang CEGEE | R9: Moyenne ecart au 1er | S9: % Ecart au 1er | T9: Rang CEGEE | U9: Moyenne ecart au 1er | V9: % Ecart au 1er | W9: Rang CEGEE
A10: 50 | B10: MOSELLE | C10: 44 | D10: MOSELLE NORD | E10: 57.1 | F10: 14% | G10: 0% | H10: 1 | I10: 44% | J10: 40% | K10: 13 | L10: 2% | M10: 0% | N10: 1 | O10: 37% | P10: 28% | Q10: 9 | R10: 1% | S10: 0% | T10: 1 | U10: 5% | V10: 0% | W10: 1
A11: 50 | B11: MARNE-ARDENNES | C11: 11 | D11: REIMS | E11: 68.3 | F11: 16% | G11: 2% | H11: 2 | I11: 28% | J11: 24% | K11: 7 | L11: 8% | M11: 6% | N11: 2 | O11: 46% | P11: 37% | Q11: 12 | R11: 9% | S11: 8% | T11: 2 | U11: 9% | V11: 3% | W11: 2
A12: 262 | B12: MOSELLE | C12: 42 | D12: MOSELLE EST | E12: 59.7 | F12: 19% | G12: 5% | H12: 3 | I12: 16% | J12: 12% | K12: 4 | L12: 23% | M12: 20% | N12: 3 | O12: 36% | P12: 27% | Q12: 8 | R12: 16% | S12: 15% | T12: 5 | U12: 26% | V12: 21% | W12: 6
A13: 262 | B13: MARNE-ARDENNES | C13: 2 | D13: CHARLEVILLE MEZIERES | E13: 48.6 | F13: 21% | G13: 7% | H13: 4 | I13: 32% | J13: 27% | K13: 9 | L13: 39% | M13: 37% | N13: 10 | O13: 19% | P13: 9% | Q13: 4 | R13: 13% | S13: 12% | T13: 3 | U13: 23% | V13: 18% | W13: 5
A14: 262 | B14: MEURTHE ET MOSELLE MEUSE | C14: 26 | D14: NANCY | E14: 55.0 | F14: 23% | G14: 9% | H14: 5 | I14: 39% | J14: 35% | K14: 12 | L14: 35% | M14: 33% | N14: 8 | O14: 10% | P14: 1% | Q14: 2 | R14: 33% | S14: 32% | T14: 10 | U14: 18% | V14: 13% | W14: 3
A15: 264 | B15: MOSELLE | C15: 45 | D15: METZ | E15: 72.5 | F15: 23% | G15: 10% | H15: 6 | I15: 32% | J15: 27% | K15: 8 | L15: 38% | M15: 36% | N15: 9 | O15: 9% | P15: 0% | Q15: 1 | R15: 30% | S15: 29% | T15: 9 | U15: 28% | V15: 23% | W15: 7
A16: 264 | B16: AUBE HAUTE MARNE | C16: 21 | D16: CHAUMONT | E16: 33.9 | F16: 24% | G16: 11% | H16: 7 | I16: 27% | J16: 22% | K16: 6 | L16: 43% | M16: 41% | N16: 13 | O16: 16% | P16: 7% | Q16: 3 | R16: 21% | S16: 20% | T16: 8 | U16: 37% | V16: 31% | W16: 10
A17: 30 | B17: MARNE-ARDENNES | C17: 6 | D17: CHALONS EN CHAMPAGNE | E17: 38.0 | F17: 25% | G17: 11% | H17: 8 | I17: 5% | J17: 1% | K17: 2 | L17: 29% | M17: 27% | N17: 5 | O17: 65% | P17: 56% | Q17: 15 | R17: 16% | S17: 15% | T17: 6 | U17: 31% | V17: 26% | W17: 9
A18: 30 | B18: BAS-RHIN | C18: 5006 | D18: STRASBOURG | E18: 64.8 | F18: 26% | G18: 13% | H18: 9 | I18: 39% | J18: 34% | K18: 11 | L18: 28% | M18: 26% | N18: 4 | O18: 33% | P18: 24% | Q18: 6 | R18: 16% | S18: 15% | T18: 7 | U18: 37% | V18: 32% | W18: 11
A19: 30 | B19: MEURTHE ET MOSELLE MEUSE | C19: 27 | D19: PONT A MOUSSON | E19: 59.3 | F19: 28% | G19: 15% | H19: 10 | I19: 58% | J19: 54% | K19: 14 | L19: 34% | M19: 31% | N19: 6 | O19: 35% | P19: 26% | Q19: 7 | R19: 15% | S19: 14% | T19: 4 | U19: 20% | V19: 15% | W19: 4
A20: 110 | B20: MEURTHE ET MOSELLE MEUSE | C20: 31 | D20: VERDUN | E20: 47.4 | F20: 29% | G20: 16% | H20: 11 | I20: 18% | J20: 14% | K20: 5 | L20: 34% | M20: 32% | N20: 7 | O20: 53% | P20: 44% | Q20: 14 | R20: 35% | S20: 33% | T20: 11 | U20: 29% | V20: 24% | W20: 8
A21: 110 | B21: VOSGES | C21: 57 | D21: EPINAL | E21: 52.6 | F21: 30% | G21: 17% | H21: 12 | I21: 14% | J21: 9% | K21: 3 | L21: 44% | M21: 42% | N21: 14 | O21: 28% | P21: 19% | Q21: 5 | R21: 46% | S21: 44% | T21: 14 | U21: 42% | V21: 37% | W21: 12
A22: 110 | B22: VOSGES | C22: 55 | D22: SAINT DIE | E22: 39.7 | F22: 34% | G22: 20% | H22: 13 | I22: 4% | J22: 0% | K22: 1 | L22: 57% | M22: 55% | N22: 16 | O22: 38% | P22: 28% | Q22: 10 | R22: 49% | S22: 48% | T22: 16 | U22: 43% | V22: 38% | W22: 14
A23: 160 | B23: BAS-RHIN | C23: 5060 | D23: HAGUENAU | E23: 56.3 | F23: 41% | G23: 28% | H23: 14 | I23: 38% | J23: 34% | K23: 10 | L23: 42% | M23: 40% | N23: 12 | O23: 52% | P23: 43% | Q23: 13 | R23: 46% | S23: 45% | T23: 15 | U23: 50% | V23: 44% | W23: 17
A24: 160 | B24: BAS-RHIN | C24: 5101 | D24: SELESTAT | E24: 50.7 | F24: 41% | G24: 28% | H24: 15 | I24: 59% | J24: 55% | K24: 16 | L24: 41% | M24: 39% | N24: 11 | O24: 43% | P24: 34% | Q24: 11 | R24: 41% | S24: 40% | T24: 12 | U24: 45% | V24: 40% | W24: 15
A25: 160 | B25: HAUT-RHIN | C25: 5130 | D25: COLMAR | E25: 47.5 | F25: 54% | G25: 40% | H25: 16 | I25: 58% | J25: 54% | K25: 15 | L25: 59% | M25: 57% | N25: 17 | O25: 67% | P25: 57% | Q25: 16 | R25: 52% | S25: 51% | T25: 17 | U25: 54% | V25: 49% | W25: 18
A26: 80 | B26: AUBE HAUTE MARNE | C26: 14 | D26: TROYES | E26: 53.7 | F26: 54% | G26: 40% | H26: 17 | I26: 68% | J26: 63% | K26: 18 | L26: 56% | M26: 53% | N26: 15 | O26: 82% | P26: 73% | Q26: 17 | R26: 42% | S26: 41% | T26: 13 | U26: 43% | V26: 38% | W26: 13
A27: 80 | B27: HAUT-RHIN | C27: 5169 | D27: MULHOUSE | E27: 44.8 | F27: 65% | G27: 51% | H27: 18 | I27: 63% | J27: 58% | K27: 17 | L27: 70% | M27: 68% | N27: 18 | O27: 101% | P27: 92% | Q27: 18 | R27: 66% | S27: 64% | T27: 18 | U27: 48% | V27: 43% | W27: 16
A28: Total CEGEE Directions Régionales | E28: =SUM(E10:E27) -> 950

Sheet SE_BANCA
B1: Accueil | F1: BAROMETRE BDD - TERRITOIRES
F2: BANCARISATION
F3: =ACCUEIL!F7 -> 2022-07-17
F7: Ventes Nettes produits pondérés | J7: Ventes sur client non détenteur de l’univers | N7: Total Bancarisation
F8: =DATEMAJ!C8 -> au 17/07 | H8: coef | I8: ='RECAP DIRCOM'!AA4 -> 12% | J8: =DATEMAJ!C9 -> au 17/07 | L8: coef | M8: ='RECAP DIRCOM'!AE4 -> 8% | O8: coef | P8: ='RECAP DIRCOM'!AH4 -> 20%
B9: Direction | C9: eds | D9: Territoire | E9: ="ETP perf "&DATEMAJ!$C$28 -> ETP perf 17-juil | F9: VN | G9: VN / ETP | H9: % Ecart au 1er | I9: Rang | J9: VB | K9: VB / ETP | L9: % Ecart au 1er | M9: Rang | N9: Moyenne ecart au 1er | O9: % Ecart au 1er | P9: Rang CEGEE
A10: 50 | B10: AUBE HAUTE MARNE | C10: 21 | D10: CHAUMONT | E10: =VLOOKUP($C10,'RECAP SECT'!$G$6:$CU$253,3,FALSE) -> 33.9 | F10: =VLOOKUP($C10,'RECAP SECT'!$G$6:$CU$253,18,FALSE) -> 490 | G10: =VLOOKUP($C10,'RECAP SECT'!$G$6:$CU$253,19,FALSE) -> 14.46 | H10: =VLOOKUP($C10,'RECAP SECT'!$G$6:$CU$253,20,FALSE) -> 52% | I10: =VLOOKUP($C10,'RECAP SECT'!$G$6:$CU$253,21,FALSE) -> 13 | J10: =VLOOKUP($C10,'RECAP SECT'!$G$6:$CU$253,22,FALSE) -> 1,455 | K10: =VLOOKUP($C10,'RECAP SECT'!$G$6:$CU$253,23,FALSE) -> 42.93 | L10: =VLOOKUP($C10,'RECAP SECT'!$G$6:$CU$253,24,FALSE) -> 29% | M10: =VLOOKUP($C10,'RECAP SECT'!$G$6:$CU$253,25,FALSE) -> 11 | N10: =VLOOKUP($C10,'RECAP SECT'!$G$6:$CU$253,26,FALSE) -> 43% | O10: =VLOOKUP($C10,'RECAP SECT'!$G$6:$CU$253,27,FALSE) -> 41% | P10: =VLOOKUP($C10,'RECAP SECT'!$G$6:$CU$253,28,FALSE) -> 13
A11: 50 | B11: AUBE HAUTE MARNE | C11: 14 | D11: TROYES | E11: =VLOOKUP($C11,'RECAP SECT'!$G$6:$CU$253,3,FALSE) -> 53.7 | F11: =VLOOKUP($C11,'RECAP SECT'!$G$6:$CU$253,18,FALSE) -> 453 | G11: =VLOOKUP($C11,'RECAP SECT'!$G$6:$CU$253,19,FALSE) -> 8.43 | H11: =VLOOKUP($C11,'RECAP SECT'!$G$6:$CU$253,20,FALSE) -> 72% | I11: =VLOOKUP($C11,'RECAP SECT'!$G$6:$CU$253,21,FALSE) -> 17 | J11: =VLOOKUP($C11,'RECAP SECT'!$G$6:$CU$253,22,FALSE) -> 2,271 | K11: =VLOOKUP($C11,'RECAP SECT'!$G$6:$CU$253,23,FALSE) -> 42.27 | L11: =VLOOKUP($C11,'RECAP SECT'!$G$6:$CU$253,24,FALSE) -> 31% | M11: =VLOOKUP($C11,'RECAP SECT'!$G$6:$CU$253,25,FALSE) -> 12 | N11: =VLOOKUP($C11,'RECAP SECT'!$G$6:$CU$253,26,FALSE) -> 56% | O11: =VLOOKUP($C11,'RECAP SECT'!$G$6:$CU$253,27,FALSE) -> 53% | P11: =VLOOKUP($C11,'RECAP SECT'!$G$6:$CU$253,28,FALSE) -> 15
A12: 262 | B12: BAS-RHIN | C12: 5060 | D12: HAGUENAU | E12: =VLOOKUP($C12,'RECAP SECT'!$G$6:$CU$253,3,FALSE) -> 56.3 | F12: =VLOOKUP($C12,'RECAP SECT'!$G$6:$CU$253,18,FALSE) -> 956 | G12: =VLOOKUP($C12,'RECAP SECT'!$G$6:$CU$253,19,FALSE) -> 16.98 | H12: =VLOOKUP($C12,'RECAP SECT'!$G$6:$CU$253,20,FALSE) -> 44% | I12: =VLOOKUP($C12,'RECAP SECT'!$G$6:$CU$253,21,FALSE) -> 8 | J12: =VLOOKUP($C12,'RECAP SECT'!$G$6:$CU$253,22,FALSE) -> 2,089 | K12: =VLOOKUP($C12,'RECAP SECT'!$G$6:$CU$253,23,FALSE) -> 37.10 | L12: =VLOOKUP($C12,'RECAP SECT'!$G$6:$CU$253,24,FALSE) -> 39% | M12: =VLOOKUP($C12,'RECAP SECT'!$G$6:$CU$253,25,FALSE) -> 16 | N12: =VLOOKUP($C12,'RECAP SECT'!$G$6:$CU$253,26,FALSE) -> 42% | O12: =VLOOKUP($C12,'RECAP SECT'!$G$6:$CU$253,27,FALSE) -> 40% | P12: =VLOOKUP($C12,'RECAP SECT'!$G$6:$CU$253,28,FALSE) -> 12
A13: 262 | B13: BAS-RHIN | C13: 5101 | D13: SELESTAT | E13: =VLOOKUP($C13,'RECAP SECT'!$G$6:$CU$253,3,FALSE) -> 50.7 | F13: =VLOOKUP($C13,'RECAP SECT'!$G$6:$CU$253,18,FALSE) -> 888 | G13: =VLOOKUP($C13,'RECAP SECT'!$G$6:$CU$253,19,FALSE) -> 17.51 | H13: =VLOOKUP($C13,'RECAP SECT'!$G$6:$CU$253,20,FALSE) -> 42% | I13: =VLOOKUP($C13,'RECAP SECT'!$G$6:$CU$253,21,FALSE) -> 7 | J13: =VLOOKUP($C13,'RECAP SECT'!$G$6:$CU$253,22,FALSE) -> 1,891 | K13: =VLOOKUP($C13,'RECAP SECT'!$G$6:$CU$253,23,FALSE) -> 37.31 | L13: =VLOOKUP($C13,'RECAP SECT'!$G$6:$CU$253,24,FALSE) -> 39% | M13: =VLOOKUP($C13,'RECAP SECT'!$G$6:$CU$253,25,FALSE) -> 15 | N13: =VLOOKUP($C13,'RECAP SECT'!$G$6:$CU$253,26,FALSE) -> 41% | O13: =VLOOKUP($C13,'RECAP SECT'!$G$6:$CU$253,27,FALSE) -> 39% | P13: =VLOOKUP($C13,'RECAP SECT'!$G$6:$CU$253,28,FALSE) -> 11
A14: 262 | B14: BAS-RHIN | C14: 5006 | D14: STRASBOURG | E14: =VLOOKUP($C14,'RECAP SECT'!$G$6:$CU$253,3,FALSE) -> 64.8 | F14: =VLOOKUP($C14,'RECAP SECT'!$G$6:$CU$253,18,FALSE) -> 1,207 | G14: =VLOOKUP($C14,'RECAP SECT'!$G$6:$CU$253,19,FALSE) -> 18.62 | H14: =VLOOKUP($C14,'RECAP SECT'!$G$6:$CU$253,20,FALSE) -> 39% | I14: =VLOOKUP($C14,'RECAP SECT'!$G$6:$CU$253,21,FALSE) -> 5 | J14: =VLOOKUP($C14,'RECAP SECT'!$G$6:$CU$253,22,FALSE) -> 3,426 | K14: =VLOOKUP($C14,'RECAP SECT'!$G$6:$CU$253,23,FALSE) -> 52.85 | L14: =VLOOKUP($C14,'RECAP SECT'!$G$6:$CU$253,24,FALSE) -> 13% | M14: =VLOOKUP($C14,'RECAP SECT'!$G$6:$CU$253,25,FALSE) -> 3 | N14: =VLOOKUP($C14,'RECAP SECT'!$G$6:$CU$253,26,FALSE) -> 28% | O14: =VLOOKUP($C14,'RECAP SECT'!$G$6:$CU$253,27,FALSE) -> 26% | P14: =VLOOKUP($C14,'RECAP SECT'!$G$6:$CU$253,28,FALSE) -> 4
A15: 264 | B15: HAUT-RHIN | C15: 5130 | D15: COLMAR | E15: =VLOOKUP($C15,'RECAP SECT'!$G$6:$CU$253,3,FALSE) -> 47.5 | F15: =VLOOKUP($C15,'RECAP SECT'!$G$6:$CU$253,18,FALSE) -> 455 | G15: =VLOOKUP($C15,'RECAP SECT'!$G$6:$CU$253,19,FALSE) -> 9.59 | H15: =VLOOKUP($C15,'RECAP SECT'!$G$6:$CU$253,20,FALSE) -> 68% | I15: =VLOOKUP($C15,'RECAP SECT'!$G$6:$CU$253,21,FALSE) -> 16 | J15: =VLOOKUP($C15,'RECAP SECT'!$G$6:$CU$253,22,FALSE) -> 1,597 | K15: =VLOOKUP($C15,'RECAP SECT'!$G$6:$CU$253,23,FALSE) -> 33.61 | L15: =VLOOKUP($C15,'RECAP SECT'!$G$6:$CU$253,24,FALSE) -> 45% | M15: =VLOOKUP($C15,'RECAP SECT'!$G$6:$CU$253,25,FALSE) -> 18 | N15: =VLOOKUP($C15,'RECAP SECT'!$G$6:$CU$253,26,FALSE) -> 59% | O15: =VLOOKUP($C15,'RECAP SECT'!$G$6:$CU$253,27,FALSE) -> 57% | P15: =VLOOKUP($C15,'RECAP SECT'!$G$6:$CU$253,28,FALSE) -> 17
A16: 264 | B16: HAUT-RHIN | C16: 5169 | D16: MULHOUSE | E16: =VLOOKUP($C16,'RECAP SECT'!$G$6:$CU$253,3,FALSE) -> 44.8 | F16: =VLOOKUP($C16,'RECAP SECT'!$G$6:$CU$253,18,FALSE) -> 104 | G16: =VLOOKUP($C16,'RECAP SECT'!$G$6:$CU$253,19,FALSE) -> 2.32 | H16: =VLOOKUP($C16,'RECAP SECT'!$G$6:$CU$253,20,FALSE) -> 92% | I16: =VLOOKUP($C16,'RECAP SECT'!$G$6:$CU$253,21,FALSE) -> 18 | J16: =VLOOKUP($C16,'RECAP SECT'!$G$6:$CU$253,22,FALSE) -> 1,731 | K16: =VLOOKUP($C16,'RECAP SECT'!$G$6:$CU$253,23,FALSE) -> 38.64 | L16: =VLOOKUP($C16,'RECAP SECT'!$G$6:$CU$253,24,FALSE) -> 37% | M16: =VLOOKUP($C16,'RECAP SECT'!$G$6:$CU$253,25,FALSE) -> 14 | N16: =VLOOKUP($C16,'RECAP SECT'!$G$6:$CU$253,26,FALSE) -> 70% | O16: =VLOOKUP($C16,'RECAP SECT'!$G$6:$CU$253,27,FALSE) -> 68% | P16: =VLOOKUP($C16,'RECAP SECT'!$G$6:$CU$253,28,FALSE) -> 18
A17: 30 | B17: MARNE-ARDENNES | C17: 6 | D17: CHALONS EN CHAMPAGNE | E17: =VLOOKUP($C17,'RECAP SECT'!$G$6:$CU$253,3,FALSE) -> 38.0 | F17: =VLOOKUP($C17,'RECAP SECT'!$G$6:$CU$253,18,FALSE) -> 815 | G17: =VLOOKUP($C17,'RECAP SECT'!$G$6:$CU$253,19,FALSE) -> 21.46 | H17: =VLOOKUP($C17,'RECAP SECT'!$G$6:$CU$253,20,FALSE) -> 29% | I17: =VLOOKUP($C17,'RECAP SECT'!$G$6:$CU$253,21,FALSE) -> 4 | J17: =VLOOKUP($C17,'RECAP SECT'!$G$6:$CU$253,22,FALSE) -> 1,669 | K17: =VLOOKUP($C17,'RECAP SECT'!$G$6:$CU$253,23,FALSE) -> 43.93 | L17: =VLOOKUP($C17,'RECAP SECT'!$G$6:$CU$253,24,FALSE) -> 28% | M17: =VLOOKUP($C17,'RECAP SECT'!$G$6:$CU$253,25,FALSE) -> 10 | N17: =VLOOKUP($C17,'RECAP SECT'!$G$6:$CU$253,26,FALSE) -> 29% | O17: =VLOOKUP($C17,'RECAP SECT'!$G$6:$CU$253,27,FALSE) -> 27% | P17: =VLOOKUP($C17,'RECAP SECT'!$G$6:$CU$253,28,FALSE) -> 5
A18: 30 | B18: MARNE-ARDENNES | C18: 2 | D18: CHARLEVILLE MEZIERES | E18: =VLOOKUP($C18,'RECAP SECT'!$G$6:$CU$253,3,FALSE) -> 48.6 | F18: =VLOOKUP($C18,'RECAP SECT'!$G$6:$CU$253,18,FALSE) -> 686 | G18: =VLOOKUP($C18,'RECAP SECT'!$G$6:$CU$253,19,FALSE) -> 14.10 | H18: =VLOOKUP($C18,'RECAP SECT'!$G$6:$CU$253,20,FALSE) -> 54% | I18: =VLOOKUP($C18,'RECAP SECT'!$G$6:$CU$253,21,FALSE) -> 14 | J18: =VLOOKUP($C18,'RECAP SECT'!$G$6:$CU$253,22,FALSE) -> 2,424 | K18: =VLOOKUP($C18,'RECAP SECT'!$G$6:$CU$253,23,FALSE) -> 49.85 | L18: =VLOOKUP($C18,'RECAP SECT'!$G$6:$CU$253,24,FALSE) -> 18% | M18: =VLOOKUP($C18,'RECAP SECT'!$G$6:$CU$253,25,FALSE) -> 7 | N18: =VLOOKUP($C18,'RECAP SECT'!$G$6:$CU$253,26,FALSE) -> 39% | O18: =VLOOKUP($C18,'RECAP SECT'!$G$6:$CU$253,27,FALSE) -> 37% | P18: =VLOOKUP($C18,'RECAP SECT'!$G$6:$CU$253,28,FALSE) -> 10
A19: 30 | B19: MARNE-ARDENNES | C19: 11 | D19: REIMS | E19: =VLOOKUP($C19,'RECAP SECT'!$G$6:$CU$253,3,FALSE) -> 68.3 | F19: =VLOOKUP($C19,'RECAP SECT'!$G$6:$CU$253,18,FALSE) -> 1,791 | G19: =VLOOKUP($C19,'RECAP SECT'!$G$6:$CU$253,19,FALSE) -> 26.24 | H19: =VLOOKUP($C19,'RECAP SECT'!$G$6:$CU$253,20,FALSE) -> 14% | I19: =VLOOKUP($C19,'RECAP SECT'!$G$6:$CU$253,21,FALSE) -> 2 | J19: =VLOOKUP($C19,'RECAP SECT'!$G$6:$CU$253,22,FALSE) -> 4,154 | K19: =VLOOKUP($C19,'RECAP SECT'!$G$6:$CU$253,23,FALSE) -> 60.86 | L19: =VLOOKUP($C19,'RECAP SECT'!$G$6:$CU$253,24,FALSE) -> 0% | M19: =VLOOKUP($C19,'RECAP SECT'!$G$6:$CU$253,25,FALSE) -> 1 | N19: =VLOOKUP($C19,'RECAP SECT'!$G$6:$CU$253,26,FALSE) -> 8% | O19: =VLOOKUP($C19,'RECAP SECT'!$G$6:$CU$253,27,FALSE) -> 6% | P19: =VLOOKUP($C19,'RECAP SECT'!$G$6:$CU$253,28,FALSE) -> 2
A20: 110 | B20: MEURTHE ET MOSELLE MEUSE | C20: 26 | D20: NANCY | E20: =VLOOKUP($C20,'RECAP SECT'!$G$6:$CU$253,3,FALSE) -> 55.0 | F20: =VLOOKUP($C20,'RECAP SECT'!$G$6:$CU$253,18,FALSE) -> 889 | G20: =VLOOKUP($C20,'RECAP SECT'!$G$6:$CU$253,19,FALSE) -> 16.18 | H20: =VLOOKUP($C20,'RECAP SECT'!$G$6:$CU$253,20,FALSE) -> 47% | I20: =VLOOKUP($C20,'RECAP SECT'!$G$6:$CU$253,21,FALSE) -> 10 | J20: =VLOOKUP($C20,'RECAP SECT'!$G$6:$CU$253,22,FALSE) -> 2,744 | K20: =VLOOKUP($C20,'RECAP SECT'!$G$6:$CU$253,23,FALSE) -> 49.93 | L20: =VLOOKUP($C20,'RECAP SECT'!$G$6:$CU$253,24,FALSE) -> 18% | M20: =VLOOKUP($C20,'RECAP SECT'!$G$6:$CU$253,25,FALSE) -> 5 | N20: =VLOOKUP($C20,'RECAP SECT'!$G$6:$CU$253,26,FALSE) -> 35% | O20: =VLOOKUP($C20,'RECAP SECT'!$G$6:$CU$253,27,FALSE) -> 33% | P20: =VLOOKUP($C20,'RECAP SECT'!$G$6:$CU$253,28,FALSE) -> 8
A21: 110 | B21: MEURTHE ET MOSELLE MEUSE | C21: 27 | D21: PONT A MOUSSON | E21: =VLOOKUP($C21,'RECAP SECT'!$G$6:$CU$253,3,FALSE) -> 59.3 | F21: =VLOOKUP($C21,'RECAP SECT'!$G$6:$CU$253,18,FALSE) -> 987 | G21: =VLOOKUP($C21,'RECAP SECT'!$G$6:$CU$253,19,FALSE) -> 16.64 | H21: =VLOOKUP($C21,'RECAP SECT'!$G$6:$CU$253,20,FALSE) -> 45% | I21: =VLOOKUP($C21,'RECAP SECT'!$G$6:$CU$253,21,FALSE) -> 9 | J21: =VLOOKUP($C21,'RECAP SECT'!$G$6:$CU$253,22,FALSE) -> 3,031 | K21: =VLOOKUP($C21,'RECAP SECT'!$G$6:$CU$253,23,FALSE) -> 51.10 | L21: =VLOOKUP($C21,'RECAP SECT'!$G$6:$CU$253,24,FALSE) -> 16% | M21: =VLOOKUP($C21,'RECAP SECT'!$G$6:$CU$253,25,FALSE) -> 4 | N21: =VLOOKUP($C21,'RECAP SECT'!$G$6:$CU$253,26,FALSE) -> 34% | O21: =VLOOKUP($C21,'RECAP SECT'!$G$6:$CU$253,27,FALSE) -> 31% | P21: =VLOOKUP($C21,'RECAP SECT'!$G$6:$CU$253,28,FALSE) -> 6
A22: 110 | B22: MEURTHE ET MOSELLE MEUSE | C22: 31 | D22: VERDUN | E22: =VLOOKUP($C22,'RECAP SECT'!$G$6:$CU$253,3,FALSE) -> 47.4 | F22: =VLOOKUP($C22,'RECAP SECT'!$G$6:$CU$253,18,FALSE) -> 845 | G22: =VLOOKUP($C22,'RECAP SECT'!$G$6:$CU$253,19,FALSE) -> 17.83 | H22: =VLOOKUP($C22,'RECAP SECT'!$G$6:$CU$253,20,FALSE) -> 41% | I22: =VLOOKUP($C22,'RECAP SECT'!$G$6:$CU$253,21,FALSE) -> 6 | J22: =VLOOKUP($C22,'RECAP SECT'!$G$6:$CU$253,22,FALSE) -> 2,204 | K22: =VLOOKUP($C22,'RECAP SECT'!$G$6:$CU$253,23,FALSE) -> 46.53 | L22: =VLOOKUP($C22,'RECAP SECT'!$G$6:$CU$253,24,FALSE) -> 24% | M22: =VLOOKUP($C22,'RECAP SECT'!$G$6:$CU$253,25,FALSE) -> 8 | N22: =VLOOKUP($C22,'RECAP SECT'!$G$6:$CU$253,26,FALSE) -> 34% | O22: =VLOOKUP($C22,'RECAP SECT'!$G$6:$CU$253,27,FALSE) -> 32% | P22: =VLOOKUP($C22,'RECAP SECT'!$G$6:$CU$253,28,FALSE) -> 7
A23: 160 | B23: MOSELLE | C23: 45 | D23: METZ | E23: =VLOOKUP($C23,'RECAP SECT'!$G$6:$CU$253,3,FALSE) -> 72.5 | F23: =VLOOKUP($C23,'RECAP SECT'!$G$6:$CU$253,18,FALSE) -> 1,167 | G23: =VLOOKUP($C23,'RECAP SECT'!$G$6:$CU$253,19,FALSE) -> 16.11 | H23: =VLOOKUP($C23,'RECAP SECT'!$G$6:$CU$253,20,FALSE) -> 47% | I23: =VLOOKUP($C23,'RECAP SECT'!$G$6:$CU$253,21,FALSE) -> 11 | J23: =VLOOKUP($C23,'RECAP SECT'!$G$6:$CU$253,22,FALSE) -> 3,319 | K23: =VLOOKUP($C23,'RECAP SECT'!$G$6:$CU$253,23,FALSE) -> 45.80 | L23: =VLOOKUP($C23,'RECAP SECT'!$G$6:$CU$253,24,FALSE) -> 25% | M23: =VLOOKUP($C23,'RECAP SECT'!$G$6:$CU$253,25,FALSE) -> 9 | N23: =VLOOKUP($C23,'RECAP SECT'!$G$6:$CU$253,26,FALSE) -> 38% | O23: =VLOOKUP($C23,'RECAP SECT'!$G$6:$CU$253,27,FALSE) -> 36% | P23: =VLOOKUP($C23,'RECAP SECT'!$G$6:$CU$253,28,FALSE) -> 9
A24: 160 | B24: MOSELLE | C24: 42 | D24: MOSELLE EST | E24: =VLOOKUP($C24,'RECAP SECT'!$G$6:$CU$253,3,FALSE) -> 59.7 | F24: =VLOOKUP($C24,'RECAP SECT'!$G$6:$CU$253,18,FALSE) -> 1,350 | G24: =VLOOKUP($C24,'RECAP SECT'!$G$6:$CU$253,19,FALSE) -> 22.60 | H24: =VLOOKUP($C24,'RECAP SECT'!$G$6:$CU$253,20,FALSE) -> 26% | I24: =VLOOKUP($C24,'RECAP SECT'!$G$6:$CU$253,21,FALSE) -> 3 | J24: =VLOOKUP($C24,'RECAP SECT'!$G$6:$CU$253,22,FALSE) -> 2,979 | K24: =VLOOKUP($C24,'RECAP SECT'!$G$6:$CU$253,23,FALSE) -> 49.87 | L24: =VLOOKUP($C24,'RECAP SECT'!$G$6:$CU$253,24,FALSE) -> 18% | M24: =VLOOKUP($C24,'RECAP SECT'!$G$6:$CU$253,25,FALSE) -> 6 | N24: =VLOOKUP($C24,'RECAP SECT'!$G$6:$CU$253,26,FALSE) -> 23% | O24: =VLOOKUP($C24,'RECAP SECT'!$G$6:$CU$253,27,FALSE) -> 20% | P24: =VLOOKUP($C24,'RECAP SECT'!$G$6:$CU$253,28,FALSE) -> 3
A25: 160 | B25: MOSELLE | C25: 44 | D25: MOSELLE NORD | E25: =VLOOKUP($C25,'RECAP SECT'!$G$6:$CU$253,3,FALSE) -> 57.1 | F25: =VLOOKUP($C25,'RECAP SECT'!$G$6:$CU$253,18,FALSE) -> 1,735 | G25: =VLOOKUP($C25,'RECAP SECT'!$G$6:$CU$253,19,FALSE) -> 30.37 | H25: =VLOOKUP($C25,'RECAP SECT'!$G$6:$CU$253,20,FALSE) -> 0% | I25: =VLOOKUP($C25,'RECAP SECT'!$G$6:$CU$253,21,FALSE) -> 1 | J25: =VLOOKUP($C25,'RECAP SECT'!$G$6:$CU$253,22,FALSE) -> 3,287 | K25: =VLOOKUP($C25,'RECAP SECT'!$G$6:$CU$253,23,FALSE) -> 57.55 | L25: =VLOOKUP($C25,'RECAP SECT'!$G$6:$CU$253,24,FALSE) -> 5% | M25: =VLOOKUP($C25,'RECAP SECT'!$G$6:$CU$253,25,FALSE) -> 2 | N25: =VLOOKUP($C25,'RECAP SECT'!$G$6:$CU$253,26,FALSE) -> 2% | O25: =VLOOKUP($C25,'RECAP SECT'!$G$6:$CU$253,27,FALSE) -> 0% | P25: =VLOOKUP($C25,'RECAP SECT'!$G$6:$CU$253,28,FALSE) -> 1
A26: 80 | B26: VOSGES | C26: 57 | D26: EPINAL | E26: =VLOOKUP($C26,'RECAP SECT'!$G$6:$CU$253,3,FALSE) -> 52.6 | F26: =VLOOKUP($C26,'RECAP SECT'!$G$6:$CU$253,18,FALSE) -> 777 | G26: =VLOOKUP($C26,'RECAP SECT'!$G$6:$CU$253,19,FALSE) -> 14.79 | H26: =VLOOKUP($C26,'RECAP SECT'!$G$6:$CU$253,20,FALSE) -> 51% | I26: =VLOOKUP($C26,'RECAP SECT'!$G$6:$CU$253,21,FALSE) -> 12 | J26: =VLOOKUP($C26,'RECAP SECT'!$G$6:$CU$253,22,FALSE) -> 2,159 | K26: =VLOOKUP($C26,'RECAP SECT'!$G$6:$CU$253,23,FALSE) -> 41.08 | L26: =VLOOKUP($C26,'RECAP SECT'!$G$6:$CU$253,24,FALSE) -> 33% | M26: =VLOOKUP($C26,'RECAP SECT'!$G$6:$CU$253,25,FALSE) -> 13 | N26: =VLOOKUP($C26,'RECAP SECT'!$G$6:$CU$253,26,FALSE) -> 44% | O26: =VLOOKUP($C26,'RECAP SECT'!$G$6:$CU$253,27,FALSE) -> 42% | P26: =VLOOKUP($C26,'RECAP SECT'!$G$6:$CU$253,28,FALSE) -> 14
A27: 80 | B27: VOSGES | C27: 55 | D27: SAINT DIE | E27: =VLOOKUP($C27,'RECAP SECT'!$G$6:$CU$253,3,FALSE) -> 39.7 | F27: =VLOOKUP($C27,'RECAP SECT'!$G$6:$CU$253,18,FALSE) -> 413 | G27: =VLOOKUP($C27,'RECAP SECT'!$G$6:$CU$253,19,FALSE) -> 10.40 | H27: =VLOOKUP($C27,'RECAP SECT'!$G$6:$CU$253,20,FALSE) -> 66% | I27: =VLOOKUP($C27,'RECAP SECT'!$G$6:$CU$253,21,FALSE) -> 15 | J27: =VLOOKUP($C27,'RECAP SECT'!$G$6:$CU$253,22,FALSE) -> 1,354 | K27: =VLOOKUP($C27,'RECAP SECT'!$G$6:$CU$253,23,FALSE) -> 34.11 | L27: =VLOOKUP($C27,'RECAP SECT'!$G$6:$CU$253,24,FALSE) -> 44% | M27: =VLOOKUP($C27,'RECAP SECT'!$G$6:$CU$253,25,FALSE) -> 17 | N27: =VLOOKUP($C27,'RECAP SECT'!$G$6:$CU$253,26,FALSE) -> 57% | O27: =VLOOKUP($C27,'RECAP SECT'!$G$6:$CU$253,27,FALSE) -> 55% | P27: =VLOOKUP($C27,'RECAP SECT'!$G$6:$CU$253,28,FALSE) -> 16
A28: Total CEGEE Directions Régionales | E28: =SUM(E10:E27) -> 950

Sheet SE_EPARGNE
B1: Accueil | F1: BAROMETRE BDD - TERRITOIRES
F2: EPARGNE
F3: =ACCUEIL!F7 -> 2022-07-17
F7: Excédent Epargne hors DAV pondéré | J7: Ventes sur client non détenteur de l’univers | N7: Total Epargne
F8: =DATEMAJ!C14 -> au 17/07 | H8: coef | I8: ='RECAP DIRCOM'!AP4 -> 12% | J8: =DATEMAJ!C15 -> au 17/07 | L8: coef | M8: ='RECAP DIRCOM'!AT4 -> 8% | O8: coef | P8: ='RECAP DIRCOM'!AW4 -> 20%
A9: eds | B9: Direction | C9: eds | D9: Territoire | E9: ="ETP perf "&DATEMAJ!$C$28 -> ETP perf 17-juil | F9: Excédent | G9: Excédent / ETP | H9: % Ecart au 1er | I9: Rang | J9: VB | K9: VB / ETP | L9: % Ecart au 1er | M9: Rang | N9: Moyenne ecart au 1er | O9: % Ecart au 1er | P9: Rang CEGEE
A10: 50 | B10: AUBE HAUTE MARNE | C10: 21 | D10: CHAUMONT | E10: =VLOOKUP($C10,'RECAP SECT'!$G$6:$CU$253,3,FALSE) -> 33.9 | F10: =VLOOKUP($C10,'RECAP SECT'!$G$6:$CU$253,33,FALSE) -> 9,987 | G10: =VLOOKUP($C10,'RECAP SECT'!$G$6:$CU$253,34,FALSE) -> 294.68 | H10: =VLOOKUP($C10,'RECAP SECT'!$G$6:$CU$253,35,FALSE) -> 5% | I10: =VLOOKUP($C10,'RECAP SECT'!$G$6:$CU$253,36,FALSE) -> 3 | J10: =VLOOKUP($C10,'RECAP SECT'!$G$6:$CU$253,37,FALSE) -> 1,379 | K10: =VLOOKUP($C10,'RECAP SECT'!$G$6:$CU$253,38,FALSE) -> 40.69 | L10: =VLOOKUP($C10,'RECAP SECT'!$G$6:$CU$253,39,FALSE) -> 34% | M10: =VLOOKUP($C10,'RECAP SECT'!$G$6:$CU$253,40,FALSE) -> 9 | N10: =VLOOKUP($C10,'RECAP SECT'!$G$6:$CU$253,41,FALSE) -> 16% | O10: =VLOOKUP($C10,'RECAP SECT'!$G$6:$CU$253,42,FALSE) -> 7% | P10: =VLOOKUP($C10,'RECAP SECT'!$G$6:$CU$253,43,FALSE) -> 3
A11: 50 | B11: AUBE HAUTE MARNE | C11: 14 | D11: TROYES | E11: =VLOOKUP($C11,'RECAP SECT'!$G$6:$CU$253,3,FALSE) -> 53.7 | F11: =VLOOKUP($C11,'RECAP SECT'!$G$6:$CU$253,33,FALSE) -> -1,980 | G11: =VLOOKUP($C11,'RECAP SECT'!$G$6:$CU$253,34,FALSE) -> -36.85 | H11: =VLOOKUP($C11,'RECAP SECT'!$G$6:$CU$253,35,FALSE) -> 112% | I11: =VLOOKUP($C11,'RECAP SECT'!$G$6:$CU$253,36,FALSE) -> 17 | J11: =VLOOKUP($C11,'RECAP SECT'!$G$6:$CU$253,37,FALSE) -> 2,095 | K11: =VLOOKUP($C11,'RECAP SECT'!$G$6:$CU$253,38,FALSE) -> 38.99 | L11: =VLOOKUP($C11,'RECAP SECT'!$G$6:$CU$253,39,FALSE) -> 37% | M11: =VLOOKUP($C11,'RECAP SECT'!$G$6:$CU$253,40,FALSE) -> 12 | N11: =VLOOKUP($C11,'RECAP SECT'!$G$6:$CU$253,41,FALSE) -> 82% | O11: =VLOOKUP($C11,'RECAP SECT'!$G$6:$CU$253,42,FALSE) -> 73% | P11: =VLOOKUP($C11,'RECAP SECT'!$G$6:$CU$253,43,FALSE) -> 17
A12: 262 | B12: BAS-RHIN | C12: 5060 | D12: HAGUENAU | E12: =VLOOKUP($C12,'RECAP SECT'!$G$6:$CU$253,3,FALSE) -> 56.3 | F12: =VLOOKUP($C12,'RECAP SECT'!$G$6:$CU$253,33,FALSE) -> 7,022 | G12: =VLOOKUP($C12,'RECAP SECT'!$G$6:$CU$253,34,FALSE) -> 124.72 | H12: =VLOOKUP($C12,'RECAP SECT'!$G$6:$CU$253,35,FALSE) -> 60% | I12: =VLOOKUP($C12,'RECAP SECT'!$G$6:$CU$253,36,FALSE) -> 11 | J12: =VLOOKUP($C12,'RECAP SECT'!$G$6:$CU$253,37,FALSE) -> 2,048 | K12: =VLOOKUP($C12,'RECAP SECT'!$G$6:$CU$253,38,FALSE) -> 36.38 | L12: =VLOOKUP($C12,'RECAP SECT'!$G$6:$CU$253,39,FALSE) -> 41% | M12: =VLOOKUP($C12,'RECAP SECT'!$G$6:$CU$253,40,FALSE) -> 15 | N12: =VLOOKUP($C12,'RECAP SECT'!$G$6:$CU$253,41,FALSE) -> 52% | O12: =VLOOKUP($C12,'RECAP SECT'!$G$6:$CU$253,42,FALSE) -> 43% | P12: =VLOOKUP($C12,'RECAP SECT'!$G$6:$CU$253,43,FALSE) -> 13
A13: 262 | B13: BAS-RHIN | C13: 5101 | D13: SELESTAT | E13: =VLOOKUP($C13,'RECAP SECT'!$G$6:$CU$253,3,FALSE) -> 50.7 | F13: =VLOOKUP($C13,'RECAP SECT'!$G$6:$CU$253,33,FALSE) -> 8,326 | G13: =VLOOKUP($C13,'RECAP SECT'!$G$6:$CU$253,34,FALSE) -> 164.28 | H13: =VLOOKUP($C13,'RECAP SECT'!$G$6:$CU$253,35,FALSE) -> 47% | I13: =VLOOKUP($C13,'RECAP SECT'!$G$6:$CU$253,36,FALSE) -> 9 | J13: =VLOOKUP($C13,'RECAP SECT'!$G$6:$CU$253,37,FALSE) -> 1,940 | K13: =VLOOKUP($C13,'RECAP SECT'!$G$6:$CU$253,38,FALSE) -> 38.28 | L13: =VLOOKUP($C13,'RECAP SECT'!$G$6:$CU$253,39,FALSE) -> 38% | M13: =VLOOKUP($C13,'RECAP SECT'!$G$6:$CU$253,40,FALSE) -> 14 | N13: =VLOOKUP($C13,'RECAP SECT'!$G$6:$CU$253,41,FALSE) -> 43% | O13: =VLOOKUP($C13,'RECAP SECT'!$G$6:$CU$253,42,FALSE) -> 34% | P13: =VLOOKUP($C13,'RECAP SECT'!$G$6:$CU$253,43,FALSE) -> 11
A14: 262 | B14: BAS-RHIN | C14: 5006 | D14: STRASBOURG | E14: =VLOOKUP($C14,'RECAP SECT'!$G$6:$CU$253,3,FALSE) -> 64.8 | F14: =VLOOKUP($C14,'RECAP SECT'!$G$6:$CU$253,33,FALSE) -> 10,815 | G14: =VLOOKUP($C14,'RECAP SECT'!$G$6:$CU$253,34,FALSE) -> 166.83 | H14: =VLOOKUP($C14,'RECAP SECT'!$G$6:$CU$253,35,FALSE) -> 46% | I14: =VLOOKUP($C14,'RECAP SECT'!$G$6:$CU$253,36,FALSE) -> 8 | J14: =VLOOKUP($C14,'RECAP SECT'!$G$6:$CU$253,37,FALSE) -> 3,404 | K14: =VLOOKUP($C14,'RECAP SECT'!$G$6:$CU$253,38,FALSE) -> 52.51 | L14: =VLOOKUP($C14,'RECAP SECT'!$G$6:$CU$253,39,FALSE) -> 15% | M14: =VLOOKUP($C14,'RECAP SECT'!$G$6:$CU$253,40,FALSE) -> 4 | N14: =VLOOKUP($C14,'RECAP SECT'!$G$6:$CU$253,41,FALSE) -> 33% | O14: =VLOOKUP($C14,'RECAP SECT'!$G$6:$CU$253,42,FALSE) -> 24% | P14: =VLOOKUP($C14,'RECAP SECT'!$G$6:$CU$253,43,FALSE) -> 6
A15: 264 | B15: HAUT-RHIN | C15: 5130 | D15: COLMAR | E15: =VLOOKUP($C15,'RECAP SECT'!$G$6:$CU$253,3,FALSE) -> 47.5 | F15: =VLOOKUP($C15,'RECAP SECT'!$G$6:$CU$253,33,FALSE) -> 3,307 | G15: =VLOOKUP($C15,'RECAP SECT'!$G$6:$CU$253,34,FALSE) -> 69.60 | H15: =VLOOKUP($C15,'RECAP SECT'!$G$6:$CU$253,35,FALSE) -> 77% | I15: =VLOOKUP($C15,'RECAP SECT'!$G$6:$CU$253,36,FALSE) -> 15 | J15: =VLOOKUP($C15,'RECAP SECT'!$G$6:$CU$253,37,FALSE) -> 1,448 | K15: =VLOOKUP($C15,'RECAP SECT'!$G$6:$CU$253,38,FALSE) -> 30.48 | L15: =VLOOKUP($C15,'RECAP SECT'!$G$6:$CU$253,39,FALSE) -> 51% | M15: =VLOOKUP($C15,'RECAP SECT'!$G$6:$CU$253,40,FALSE) -> 18 | N15: =VLOOKUP($C15,'RECAP SECT'!$G$6:$CU$253,41,FALSE) -> 67% | O15: =VLOOKUP($C15,'RECAP SECT'!$G$6:$CU$253,42,FALSE) -> 57% | P15: =VLOOKUP($C15,'RECAP SECT'!$G$6:$CU$253,43,FALSE) -> 16
A16: 264 | B16: HAUT-RHIN | C16: 5169 | D16: MULHOUSE | E16: =VLOOKUP($C16,'RECAP SECT'!$G$6:$CU$253,3,FALSE) -> 44.8 | F16: =VLOOKUP($C16,'RECAP SECT'!$G$6:$CU$253,33,FALSE) -> -5,314 | G16: =VLOOKUP($C16,'RECAP SECT'!$G$6:$CU$253,34,FALSE) -> -118.63 | H16: =VLOOKUP($C16,'RECAP SECT'!$G$6:$CU$253,35,FALSE) -> 138% | I16: =VLOOKUP($C16,'RECAP SECT'!$G$6:$CU$253,36,FALSE) -> 18 | J16: =VLOOKUP($C16,'RECAP SECT'!$G$6:$CU$253,37,FALSE) -> 1,525 | K16: =VLOOKUP($C16,'RECAP SECT'!$G$6:$CU$253,38,FALSE) -> 34.04 | L16: =VLOOKUP($C16,'RECAP SECT'!$G$6:$CU$253,39,FALSE) -> 45% | M16: =VLOOKUP($C16,'RECAP SECT'!$G$6:$CU$253,40,FALSE) -> 16 | N16: =VLOOKUP($C16,'RECAP SECT'!$G$6:$CU$253,41,FALSE) -> 101% | O16: =VLOOKUP($C16,'RECAP SECT'!$G$6:$CU$253,42,FALSE) -> 92% | P16: =VLOOKUP($C16,'RECAP SECT'!$G$6:$CU$253,43,FALSE) -> 18
A17: 30 | B17: MARNE-ARDENNES | C17: 6 | D17: CHALONS EN CHAMPAGNE | E17: =VLOOKUP($C17,'RECAP SECT'!$G$6:$CU$253,3,FALSE) -> 38.0 | F17: =VLOOKUP($C17,'RECAP SECT'!$G$6:$CU$253,33,FALSE) -> 753 | G17: =VLOOKUP($C17,'RECAP SECT'!$G$6:$CU$253,34,FALSE) -> 19.82 | H17: =VLOOKUP($C17,'RECAP SECT'!$G$6:$CU$253,35,FALSE) -> 94% | I17: =VLOOKUP($C17,'RECAP SECT'!$G$6:$CU$253,36,FALSE) -> 16 | J17: =VLOOKUP($C17,'RECAP SECT'!$G$6:$CU$253,37,FALSE) -> 1,829 | K17: =VLOOKUP($C17,'RECAP SECT'!$G$6:$CU$253,38,FALSE) -> 48.14 | L17: =VLOOKUP($C17,'RECAP SECT'!$G$6:$CU$253,39,FALSE) -> 22% | M17: =VLOOKUP($C17,'RECAP SECT'!$G$6:$CU$253,40,FALSE) -> 7 | N17: =VLOOKUP($C17,'RECAP SECT'!$G$6:$CU$253,41,FALSE) -> 65% | O17: =VLOOKUP($C17,'RECAP SECT'!$G$6:$CU$253,42,FALSE) -> 56% | P17: =VLOOKUP($C17,'RECAP SECT'!$G$6:$CU$253,43,FALSE) -> 15
A18: 30 | B18: MARNE-ARDENNES | C18: 2 | D18: CHARLEVILLE MEZIERES | E18: =VLOOKUP($C18,'RECAP SECT'!$G$6:$CU$253,3,FALSE) -> 48.6 | F18: =VLOOKUP($C18,'RECAP SECT'!$G$6:$CU$253,33,FALSE) -> 11,629 | G18: =VLOOKUP($C18,'RECAP SECT'!$G$6:$CU$253,34,FALSE) -> 239.13 | H18: =VLOOKUP($C18,'RECAP SECT'!$G$6:$CU$253,35,FALSE) -> 23% | I18: =VLOOKUP($C18,'RECAP SECT'!$G$6:$CU$253,36,FALSE) -> 4 | J18: =VLOOKUP($C18,'RECAP SECT'!$G$6:$CU$253,37,FALSE) -> 2,605 | K18: =VLOOKUP($C18,'RECAP SECT'!$G$6:$CU$253,38,FALSE) -> 53.57 | L18: =VLOOKUP($C18,'RECAP SECT'!$G$6:$CU$253,39,FALSE) -> 13% | M18: =VLOOKUP($C18,'RECAP SECT'!$G$6:$CU$253,40,FALSE) -> 3 | N18: =VLOOKUP($C18,'RECAP SECT'!$G$6:$CU$253,41,FALSE) -> 19% | O18: =VLOOKUP($C18,'RECAP SECT'!$G$6:$CU$253,42,FALSE) -> 9% | P18: =VLOOKUP($C18,'RECAP SECT'!$G$6:$CU$253,43,FALSE) -> 4
A19: 30 | B19: MARNE-ARDENNES | C19: 11 | D19: REIMS | E19: =VLOOKUP($C19,'RECAP SECT'!$G$6:$CU$253,3,FALSE) -> 68.3 | F19: =VLOOKUP($C19,'RECAP SECT'!$G$6:$CU$253,33,FALSE) -> 6,686 | G19: =VLOOKUP($C19,'RECAP SECT'!$G$6:$CU$253,34,FALSE) -> 97.95 | H19: =VLOOKUP($C19,'RECAP SECT'!$G$6:$CU$253,35,FALSE) -> 68% | I19: =VLOOKUP($C19,'RECAP SECT'!$G$6:$CU$253,36,FALSE) -> 14 | J19: =VLOOKUP($C19,'RECAP SECT'!$G$6:$CU$253,37,FALSE) -> 3,680 | K19: =VLOOKUP($C19,'RECAP SECT'!$G$6:$CU$253,38,FALSE) -> 53.91 | L19: =VLOOKUP($C19,'RECAP SECT'!$G$6:$CU$253,39,FALSE) -> 12% | M19: =VLOOKUP($C19,'RECAP SECT'!$G$6:$CU$253,40,FALSE) -> 2 | N19: =VLOOKUP($C19,'RECAP SECT'!$G$6:$CU$253,41,FALSE) -> 46% | O19: =VLOOKUP($C19,'RECAP SECT'!$G$6:$CU$253,42,FALSE) -> 37% | P19: =VLOOKUP($C19,'RECAP SECT'!$G$6:$CU$253,43,FALSE) -> 12
A20: 110 | B20: MEURTHE ET MOSELLE MEUSE | C20: 26 | D20: NANCY | E20: =VLOOKUP($C20,'RECAP SECT'!$G$6:$CU$253,3,FALSE) -> 55.0 | F20: =VLOOKUP($C20,'RECAP SECT'!$G$6:$CU$253,33,FALSE) -> 16,976 | G20: =VLOOKUP($C20,'RECAP SECT'!$G$6:$CU$253,34,FALSE) -> 308.89 | H20: =VLOOKUP($C20,'RECAP SECT'!$G$6:$CU$253,35,FALSE) -> 0% | I20: =VLOOKUP($C20,'RECAP SECT'!$G$6:$CU$253,36,FALSE) -> 1 | J20: =VLOOKUP($C20,'RECAP SECT'!$G$6:$CU$253,37,FALSE) -> 2,501 | K20: =VLOOKUP($C20,'RECAP SECT'!$G$6:$CU$253,38,FALSE) -> 45.51 | L20: =VLOOKUP($C20,'RECAP SECT'!$G$6:$CU$253,39,FALSE) -> 26% | M20: =VLOOKUP($C20,'RECAP SECT'!$G$6:$CU$253,40,FALSE) -> 8 | N20: =VLOOKUP($C20,'RECAP SECT'!$G$6:$CU$253,41,FALSE) -> 10% | O20: =VLOOKUP($C20,'RECAP SECT'!$G$6:$CU$253,42,FALSE) -> 1% | P20: =VLOOKUP($C20,'RECAP SECT'!$G$6:$CU$253,43,FALSE) -> 2
A21: 110 | B21: MEURTHE ET MOSELLE MEUSE | C21: 27 | D21: PONT A MOUSSON | E21: =VLOOKUP($C21,'RECAP SECT'!$G$6:$CU$253,3,FALSE) -> 59.3 | F21: =VLOOKUP($C21,'RECAP SECT'!$G$6:$CU$253,33,FALSE) -> 12,043 | G21: =VLOOKUP($C21,'RECAP SECT'!$G$6:$CU$253,34,FALSE) -> 203.05 | H21: =VLOOKUP($C21,'RECAP SECT'!$G$6:$CU$253,35,FALSE) -> 34% | I21: =VLOOKUP($C21,'RECAP SECT'!$G$6:$CU$253,36,FALSE) -> 7 | J21: =VLOOKUP($C21,'RECAP SECT'!$G$6:$CU$253,37,FALSE) -> 2,294 | K21: =VLOOKUP($C21,'RECAP SECT'!$G$6:$CU$253,38,FALSE) -> 38.68 | L21: =VLOOKUP($C21,'RECAP SECT'!$G$6:$CU$253,39,FALSE) -> 37% | M21: =VLOOKUP($C21,'RECAP SECT'!$G$6:$CU$253,40,FALSE) -> 13 | N21: =VLOOKUP($C21,'RECAP SECT'!$G$6:$CU$253,41,FALSE) -> 35% | O21: =VLOOKUP($C21,'RECAP SECT'!$G$6:$CU$253,42,FALSE) -> 26% | P21: =VLOOKUP($C21,'RECAP SECT'!$G$6:$CU$253,43,FALSE) -> 7
A22: 110 | B22: MEURTHE ET MOSELLE MEUSE | C22: 31 | D22: VERDUN | E22: =VLOOKUP($C22,'RECAP SECT'!$G$6:$CU$253,3,FALSE) -> 47.4 | F22: =VLOOKUP($C22,'RECAP SECT'!$G$6:$CU$253,33,FALSE) -> 4,958 | G22: =VLOOKUP($C22,'RECAP SECT'!$G$6:$CU$253,34,FALSE) -> 104.67 | H22: =VLOOKUP($C22,'RECAP SECT'!$G$6:$CU$253,35,FALSE) -> 66% | I22: =VLOOKUP($C22,'RECAP SECT'!$G$6:$CU$253,36,FALSE) -> 13 | J22: =VLOOKUP($C22,'RECAP SECT'!$G$6:$CU$253,37,FALSE) -> 1,923 | K22: =VLOOKUP($C22,'RECAP SECT'!$G$6:$CU$253,38,FALSE) -> 40.60 | L22: =VLOOKUP($C22,'RECAP SECT'!$G$6:$CU$253,39,FALSE) -> 34% | M22: =VLOOKUP($C22,'RECAP SECT'!$G$6:$CU$253,40,FALSE) -> 10 | N22: =VLOOKUP($C22,'RECAP SECT'!$G$6:$CU$253,41,FALSE) -> 53% | O22: =VLOOKUP($C22,'RECAP SECT'!$G$6:$CU$253,42,FALSE) -> 44% | P22: =VLOOKUP($C22,'RECAP SECT'!$G$6:$CU$253,43,FALSE) -> 14
A23: 160 | B23: MOSELLE | C23: 45 | D23: METZ | E23: =VLOOKUP($C23,'RECAP SECT'!$G$6:$CU$253,3,FALSE) -> 72.5 | F23: =VLOOKUP($C23,'RECAP SECT'!$G$6:$CU$253,33,FALSE) -> 21,945 | G23: =VLOOKUP($C23,'RECAP SECT'!$G$6:$CU$253,34,FALSE) -> 302.81 | H23: =VLOOKUP($C23,'RECAP SECT'!$G$6:$CU$253,35,FALSE) -> 2% | I23: =VLOOKUP($C23,'RECAP SECT'!$G$6:$CU$253,36,FALSE) -> 2 | J23: =VLOOKUP($C23,'RECAP SECT'!$G$6:$CU$253,37,FALSE) -> 3,555 | K23: =VLOOKUP($C23,'RECAP SECT'!$G$6:$CU$253,38,FALSE) -> 49.05 | L23: =VLOOKUP($C23,'RECAP SECT'!$G$6:$CU$253,39,FALSE) -> 20% | M23: =VLOOKUP($C23,'RECAP SECT'!$G$6:$CU$253,40,FALSE) -> 6 | N23: =VLOOKUP($C23,'RECAP SECT'!$G$6:$CU$253,41,FALSE) -> 9% | O23: =VLOOKUP($C23,'RECAP SECT'!$G$6:$CU$253,42,FALSE) -> 0% | P23: =VLOOKUP($C23,'RECAP SECT'!$G$6:$CU$253,43,FALSE) -> 1
A24: 160 | B24: MOSELLE | C24: 42 | D24: MOSELLE EST | E24: =VLOOKUP($C24,'RECAP SECT'!$G$6:$CU$253,3,FALSE) -> 59.7 | F24: =VLOOKUP($C24,'RECAP SECT'!$G$6:$CU$253,33,FALSE) -> 9,609 | G24: =VLOOKUP($C24,'RECAP SECT'!$G$6:$CU$253,34,FALSE) -> 160.85 | H24: =VLOOKUP($C24,'RECAP SECT'!$G$6:$CU$253,35,FALSE) -> 48% | I24: =VLOOKUP($C24,'RECAP SECT'!$G$6:$CU$253,36,FALSE) -> 10 | J24: =VLOOKUP($C24,'RECAP SECT'!$G$6:$CU$253,37,FALSE) -> 2,997 | K24: =VLOOKUP($C24,'RECAP SECT'!$G$6:$CU$253,38,FALSE) -> 50.17 | L24: =VLOOKUP($C24,'RECAP SECT'!$G$6:$CU$253,39,FALSE) -> 19% | M24: =VLOOKUP($C24,'RECAP SECT'!$G$6:$CU$253,40,FALSE) -> 5 | N24: =VLOOKUP($C24,'RECAP SECT'!$G$6:$CU$253,41,FALSE) -> 36% | O24: =VLOOKUP($C24,'RECAP SECT'!$G$6:$CU$253,42,FALSE) -> 27% | P24: =VLOOKUP($C24,'RECAP SECT'!$G$6:$CU$253,43,FALSE) -> 8
A25: 160 | B25: MOSELLE | C25: 44 | D25: MOSELLE NORD | E25: =VLOOKUP($C25,'RECAP SECT'!$G$6:$CU$253,3,FALSE) -> 57.1 | F25: =VLOOKUP($C25,'RECAP SECT'!$G$6:$CU$253,33,FALSE) -> 6,617 | G25: =VLOOKUP($C25,'RECAP SECT'!$G$6:$CU$253,34,FALSE) -> 115.85 | H25: =VLOOKUP($C25,'RECAP SECT'!$G$6:$CU$253,35,FALSE) -> 62% | I25: =VLOOKUP($C25,'RECAP SECT'!$G$6:$CU$253,36,FALSE) -> 12 | J25: =VLOOKUP($C25,'RECAP SECT'!$G$6:$CU$253,37,FALSE) -> 3,518 | K25: =VLOOKUP($C25,'RECAP SECT'!$G$6:$CU$253,38,FALSE) -> 61.59 | L25: =VLOOKUP($C25,'RECAP SECT'!$G$6:$CU$253,39,FALSE) -> 0% | M25: =VLOOKUP($C25,'RECAP SECT'!$G$6:$CU$253,40,FALSE) -> 1 | N25: =VLOOKUP($C25,'RECAP SECT'!$G$6:$CU$253,41,FALSE) -> 37% | O25: =VLOOKUP($C25,'RECAP SECT'!$G$6:$CU$253,42,FALSE) -> 28% | P25: =VLOOKUP($C25,'RECAP SECT'!$G$6:$CU$253,43,FALSE) -> 9
A26: 80 | B26: VOSGES | C26: 57 | D26: EPINAL | E26: =VLOOKUP($C26,'RECAP SECT'!$G$6:$CU$253,3,FALSE) -> 52.6 | F26: =VLOOKUP($C26,'RECAP SECT'!$G$6:$CU$253,33,FALSE) -> 12,531 | G26: =VLOOKUP($C26,'RECAP SECT'!$G$6:$CU$253,34,FALSE) -> 238.41 | H26: =VLOOKUP($C26,'RECAP SECT'!$G$6:$CU$253,35,FALSE) -> 23% | I26: =VLOOKUP($C26,'RECAP SECT'!$G$6:$CU$253,36,FALSE) -> 5 | J26: =VLOOKUP($C26,'RECAP SECT'!$G$6:$CU$253,37,FALSE) -> 2,058 | K26: =VLOOKUP($C26,'RECAP SECT'!$G$6:$CU$253,38,FALSE) -> 39.16 | L26: =VLOOKUP($C26,'RECAP SECT'!$G$6:$CU$253,39,FALSE) -> 36% | M26: =VLOOKUP($C26,'RECAP SECT'!$G$6:$CU$253,40,FALSE) -> 11 | N26: =VLOOKUP($C26,'RECAP SECT'!$G$6:$CU$253,41,FALSE) -> 28% | O26: =VLOOKUP($C26,'RECAP SECT'!$G$6:$CU$253,42,FALSE) -> 19% | P26: =VLOOKUP($C26,'RECAP SECT'!$G$6:$CU$253,43,FALSE) -> 5
A27: 80 | B27: VOSGES | C27: 55 | D27: SAINT DIE | E27: =VLOOKUP($C27,'RECAP SECT'!$G$6:$CU$253,3,FALSE) -> 39.7 | F27: =VLOOKUP($C27,'RECAP SECT'!$G$6:$CU$253,33,FALSE) -> 8,476 | G27: =VLOOKUP($C27,'RECAP SECT'!$G$6:$CU$253,34,FALSE) -> 213.55 | H27: =VLOOKUP($C27,'RECAP SECT'!$G$6:$CU$253,35,FALSE) -> 31% | I27: =VLOOKUP($C27,'RECAP SECT'!$G$6:$CU$253,36,FALSE) -> 6 | J27: =VLOOKUP($C27,'RECAP SECT'!$G$6:$CU$253,37,FALSE) -> 1,276 | K27: =VLOOKUP($C27,'RECAP SECT'!$G$6:$CU$253,38,FALSE) -> 32.15 | L27: =VLOOKUP($C27,'RECAP SECT'!$G$6:$CU$253,39,FALSE) -> 48% | M27: =VLOOKUP($C27,'RECAP SECT'!$G$6:$CU$253,40,FALSE) -> 17 | N27: =VLOOKUP($C27,'RECAP SECT'!$G$6:$CU$253,41,FALSE) -> 38% | O27: =VLOOKUP($C27,'RECAP SECT'!$G$6:$CU$253,42,FALSE) -> 28% | P27: =VLOOKUP($C27,'RECAP SECT'!$G$6:$CU$253,43,FALSE) -> 10
A28: Total CEGEE Directions Régionales | E28: =SUM(E10:E27) -> 950

Sheet SE_CREDIT
B1: Accueil | F1: BAROMETRE BDD - TERRITOIRES
F2: CREDITS
F3: =ACCUEIL!F7 -> 2022-07-17
F7: Engagements et ventes accessoires pondérés Immo | J7: Engagements et ventes accessoires pondérés Conso | N7: Ventes sur client non détenteur de l’univers | R7: Total Crédits
F8: =DATEMAJ!C18 -> au 17/07 | H8: coef | I8: ='RECAP DIRCOM'!BE4 -> 6% | J8: =DATEMAJ!C19 -> au 17/07 | L8: coef | M8: ='RECAP DIRCOM'!BI4 -> 6% | N8: =DATEMAJ!C20 -> au 17/07 | P8: coef | Q8: ='RECAP DIRCOM'!BM4 -> 8% | S8: coef | T8: ='RECAP DIRCOM'!BP4 -> 20%
B9: Direction | C9: eds | D9: Territoire | E9: ="ETP perf "&DATEMAJ!$C$28 -> ETP perf 17-juil | F9: PNB | G9: PNB / ETP | H9: % Ecart au 1er | I9: Rang | J9: PNB | K9: PNB / ETP | L9: % Ecart au 1er | M9: Rang | N9: VB | O9: VB / ETP | P9: % Ecart au 1er | Q9: Rang | R9: Moyenne ecart au 1er | S9: % Ecart au 1er | T9: Rang CEGEE
A10: 50 | B10: AUBE HAUTE MARNE | C10: 21 | D10: CHAUMONT | E10: =VLOOKUP($C10,'RECAP SECT'!$G$6:$CU$253,3,FALSE) -> 33.9 | F10: =VLOOKUP($C10,'RECAP SECT'!$G$6:$CU$253,48,FALSE) -> 4,697 | G10: =VLOOKUP($C10,'RECAP SECT'!$G$6:$CU$253,49,FALSE) -> 138.58 | H10: =VLOOKUP($C10,'RECAP SECT'!$G$6:$CU$253,50,FALSE) -> 63% | I10: =VLOOKUP($C10,'RECAP SECT'!$G$6:$CU$253,51,FALSE) -> 15 | J10: =VLOOKUP($C10,'RECAP SECT'!$G$6:$CU$253,52,FALSE) -> 1,649 | K10: =VLOOKUP($C10,'RECAP SECT'!$G$6:$CU$253,53,FALSE) -> 48.66 | L10: =VLOOKUP($C10,'RECAP SECT'!$G$6:$CU$253,54,FALSE) -> 6% | M10: =VLOOKUP($C10,'RECAP SECT'!$G$6:$CU$253,55,FALSE) -> 4 | N10: =VLOOKUP($C10,'RECAP SECT'!$G$6:$CU$253,56,FALSE) -> 612 | O10: =VLOOKUP($C10,'RECAP SECT'!$G$6:$CU$253,57,FALSE) -> 18.06 | P10: =VLOOKUP($C10,'RECAP SECT'!$G$6:$CU$253,58,FALSE) -> 39% | Q10: =VLOOKUP($C10,'RECAP SECT'!$G$6:$CU$253,59,FALSE) -> 12 | R10: =VLOOKUP($C10,'RECAP SECT'!$G$6:$CU$253,60,FALSE) -> 37% | S10: =VLOOKUP($C10,'RECAP SECT'!$G$6:$CU$253,61,FALSE) -> 31% | T10: =VLOOKUP($C10,'RECAP SECT'!$G$6:$CU$253,62,FALSE) -> 10
A11: 50 | B11: AUBE HAUTE MARNE | C11: 14 | D11: TROYES | E11: =VLOOKUP($C11,'RECAP SECT'!$G$6:$CU$253,3,FALSE) -> 53.7 | F11: =VLOOKUP($C11,'RECAP SECT'!$G$6:$CU$253,48,FALSE) -> 7,905 | G11: =VLOOKUP($C11,'RECAP SECT'!$G$6:$CU$253,49,FALSE) -> 147.13 | H11: =VLOOKUP($C11,'RECAP SECT'!$G$6:$CU$253,50,FALSE) -> 60% | I11: =VLOOKUP($C11,'RECAP SECT'!$G$6:$CU$253,51,FALSE) -> 14 | J11: =VLOOKUP($C11,'RECAP SECT'!$G$6:$CU$253,52,FALSE) -> 2,269 | K11: =VLOOKUP($C11,'RECAP SECT'!$G$6:$CU$253,53,FALSE) -> 42.22 | L11: =VLOOKUP($C11,'RECAP SECT'!$G$6:$CU$253,54,FALSE) -> 19% | M11: =VLOOKUP($C11,'RECAP SECT'!$G$6:$CU$253,55,FALSE) -> 8 | N11: =VLOOKUP($C11,'RECAP SECT'!$G$6:$CU$253,56,FALSE) -> 827 | O11: =VLOOKUP($C11,'RECAP SECT'!$G$6:$CU$253,57,FALSE) -> 15.39 | P11: =VLOOKUP($C11,'RECAP SECT'!$G$6:$CU$253,58,FALSE) -> 48% | Q11: =VLOOKUP($C11,'RECAP SECT'!$G$6:$CU$253,59,FALSE) -> 14 | R11: =VLOOKUP($C11,'RECAP SECT'!$G$6:$CU$253,60,FALSE) -> 43% | S11: =VLOOKUP($C11,'RECAP SECT'!$G$6:$CU$253,61,FALSE) -> 38% | T11: =VLOOKUP($C11,'RECAP SECT'!$G$6:$CU$253,62,FALSE) -> 13
A12: 262 | B12: BAS-RHIN | C12: 5060 | D12: HAGUENAU | E12: =VLOOKUP($C12,'RECAP SECT'!$G$6:$CU$253,3,FALSE) -> 56.3 | F12: =VLOOKUP($C12,'RECAP SECT'!$G$6:$CU$253,48,FALSE) -> 6,334 | G12: =VLOOKUP($C12,'RECAP SECT'!$G$6:$CU$253,49,FALSE) -> 112.51 | H12: =VLOOKUP($C12,'RECAP SECT'!$G$6:$CU$253,50,FALSE) -> 70% | I12: =VLOOKUP($C12,'RECAP SECT'!$G$6:$CU$253,51,FALSE) -> 17 | J12: =VLOOKUP($C12,'RECAP SECT'!$G$6:$CU$253,52,FALSE) -> 2,313 | K12: =VLOOKUP($C12,'RECAP SECT'!$G$6:$CU$253,53,FALSE) -> 41.08 | L12: =VLOOKUP($C12,'RECAP SECT'!$G$6:$CU$253,54,FALSE) -> 21% | M12: =VLOOKUP($C12,'RECAP SECT'!$G$6:$CU$253,55,FALSE) -> 10 | N12: =VLOOKUP($C12,'RECAP SECT'!$G$6:$CU$253,56,FALSE) -> 739 | O12: =VLOOKUP($C12,'RECAP SECT'!$G$6:$CU$253,57,FALSE) -> 13.13 | P12: =VLOOKUP($C12,'RECAP SECT'!$G$6:$CU$253,58,FALSE) -> 56% | Q12: =VLOOKUP($C12,'RECAP SECT'!$G$6:$CU$253,59,FALSE) -> 18 | R12: =VLOOKUP($C12,'RECAP SECT'!$G$6:$CU$253,60,FALSE) -> 50% | S12: =VLOOKUP($C12,'RECAP SECT'!$G$6:$CU$253,61,FALSE) -> 44% | T12: =VLOOKUP($C12,'RECAP SECT'!$G$6:$CU$253,62,FALSE) -> 17
A13: 262 | B13: BAS-RHIN | C13: 5101 | D13: SELESTAT | E13: =VLOOKUP($C13,'RECAP SECT'!$G$6:$CU$253,3,FALSE) -> 50.7 | F13: =VLOOKUP($C13,'RECAP SECT'!$G$6:$CU$253,48,FALSE) -> 7,850 | G13: =VLOOKUP($C13,'RECAP SECT'!$G$6:$CU$253,49,FALSE) -> 154.89 | H13: =VLOOKUP($C13,'RECAP SECT'!$G$6:$CU$253,50,FALSE) -> 58% | I13: =VLOOKUP($C13,'RECAP SECT'!$G$6:$CU$253,51,FALSE) -> 11 | J13: =VLOOKUP($C13,'RECAP SECT'!$G$6:$CU$253,52,FALSE) -> 1,913 | K13: =VLOOKUP($C13,'RECAP SECT'!$G$6:$CU$253,53,FALSE) -> 37.75 | L13: =VLOOKUP($C13,'RECAP SECT'!$G$6:$CU$253,54,FALSE) -> 27% | M13: =VLOOKUP($C13,'RECAP SECT'!$G$6:$CU$253,55,FALSE) -> 14 | N13: =VLOOKUP($C13,'RECAP SECT'!$G$6:$CU$253,56,FALSE) -> 773 | O13: =VLOOKUP($C13,'RECAP SECT'!$G$6:$CU$253,57,FALSE) -> 15.25 | P13: =VLOOKUP($C13,'RECAP SECT'!$G$6:$CU$253,58,FALSE) -> 49% | Q13: =VLOOKUP($C13,'RECAP SECT'!$G$6:$CU$253,59,FALSE) -> 15 | R13: =VLOOKUP($C13,'RECAP SECT'!$G$6:$CU$253,60,FALSE) -> 45% | S13: =VLOOKUP($C13,'RECAP SECT'!$G$6:$CU$253,61,FALSE) -> 40% | T13: =VLOOKUP($C13,'RECAP SECT'!$G$6:$CU$253,62,FALSE) -> 15
A14: 262 | B14: BAS-RHIN | C14: 5006 | D14: STRASBOURG | E14: =VLOOKUP($C14,'RECAP SECT'!$G$6:$CU$253,3,FALSE) -> 64.8 | F14: =VLOOKUP($C14,'RECAP SECT'!$G$6:$CU$253,48,FALSE) -> 13,355 | G14: =VLOOKUP($C14,'RECAP SECT'!$G$6:$CU$253,49,FALSE) -> 206.00 | H14: =VLOOKUP($C14,'RECAP SECT'!$G$6:$CU$253,50,FALSE) -> 45% | I14: =VLOOKUP($C14,'RECAP SECT'!$G$6:$CU$253,51,FALSE) -> 9 | J14: =VLOOKUP($C14,'RECAP SECT'!$G$6:$CU$253,52,FALSE) -> 2,328 | K14: =VLOOKUP($C14,'RECAP SECT'!$G$6:$CU$253,53,FALSE) -> 35.91 | L14: =VLOOKUP($C14,'RECAP SECT'!$G$6:$CU$253,54,FALSE) -> 31% | M14: =VLOOKUP($C14,'RECAP SECT'!$G$6:$CU$253,55,FALSE) -> 17 | N14: =VLOOKUP($C14,'RECAP SECT'!$G$6:$CU$253,56,FALSE) -> 1,240 | O14: =VLOOKUP($C14,'RECAP SECT'!$G$6:$CU$253,57,FALSE) -> 19.13 | P14: =VLOOKUP($C14,'RECAP SECT'!$G$6:$CU$253,58,FALSE) -> 36% | Q14: =VLOOKUP($C14,'RECAP SECT'!$G$6:$CU$253,59,FALSE) -> 9 | R14: =VLOOKUP($C14,'RECAP SECT'!$G$6:$CU$253,60,FALSE) -> 37% | S14: =VLOOKUP($C14,'RECAP SECT'!$G$6:$CU$253,61,FALSE) -> 32% | T14: =VLOOKUP($C14,'RECAP SECT'!$G$6:$CU$253,62,FALSE) -> 11
A15: 264 | B15: HAUT-RHIN | C15: 5130 | D15: COLMAR | E15: =VLOOKUP($C15,'RECAP SECT'!$G$6:$CU$253,3,FALSE) -> 47.5 | F15: =VLOOKUP($C15,'RECAP SECT'!$G$6:$CU$253,48,FALSE) -> 4,835 | G15: =VLOOKUP($C15,'RECAP SECT'!$G$6:$CU$253,49,FALSE) -> 101.76 | H15: =VLOOKUP($C15,'RECAP SECT'!$G$6:$CU$253,50,FALSE) -> 73% | I15: =VLOOKUP($C15,'RECAP SECT'!$G$6:$CU$253,51,FALSE) -> 18 | J15: =VLOOKUP($C15,'RECAP SECT'!$G$6:$CU$253,52,FALSE) -> 1,648 | K15: =VLOOKUP($C15,'RECAP SECT'!$G$6:$CU$253,53,FALSE) -> 34.68 | L15: =VLOOKUP($C15,'RECAP SECT'!$G$6:$CU$253,54,FALSE) -> 33% | M15: =VLOOKUP($C15,'RECAP SECT'!$G$6:$CU$253,55,FALSE) -> 18 | N15: =VLOOKUP($C15,'RECAP SECT'!$G$6:$CU$253,56,FALSE) -> 628 | O15: =VLOOKUP($C15,'RECAP SECT'!$G$6:$CU$253,57,FALSE) -> 13.22 | P15: =VLOOKUP($C15,'RECAP SECT'!$G$6:$CU$253,58,FALSE) -> 56% | Q15: =VLOOKUP($C15,'RECAP SECT'!$G$6:$CU$253,59,FALSE) -> 17 | R15: =VLOOKUP($C15,'RECAP SECT'!$G$6:$CU$253,60,FALSE) -> 54% | S15: =VLOOKUP($C15,'RECAP SECT'!$G$6:$CU$253,61,FALSE) -> 49% | T15: =VLOOKUP($C15,'RECAP SECT'!$G$6:$CU$253,62,FALSE) -> 18
A16: 264 | B16: HAUT-RHIN | C16: 5169 | D16: MULHOUSE | E16: =VLOOKUP($C16,'RECAP SECT'!$G$6:$CU$253,3,FALSE) -> 44.8 | F16: =VLOOKUP($C16,'RECAP SECT'!$G$6:$CU$253,48,FALSE) -> 6,681 | G16: =VLOOKUP($C16,'RECAP SECT'!$G$6:$CU$253,49,FALSE) -> 149.12 | H16: =VLOOKUP($C16,'RECAP SECT'!$G$6:$CU$253,50,FALSE) -> 60% | I16: =VLOOKUP($C16,'RECAP SECT'!$G$6:$CU$253,51,FALSE) -> 13 | J16: =VLOOKUP($C16,'RECAP SECT'!$G$6:$CU$253,52,FALSE) -> 1,647 | K16: =VLOOKUP($C16,'RECAP SECT'!$G$6:$CU$253,53,FALSE) -> 36.76 | L16: =VLOOKUP($C16,'RECAP SECT'!$G$6:$CU$253,54,FALSE) -> 29% | M16: =VLOOKUP($C16,'RECAP SECT'!$G$6:$CU$253,55,FALSE) -> 15 | N16: =VLOOKUP($C16,'RECAP SECT'!$G$6:$CU$253,56,FALSE) -> 624 | O16: =VLOOKUP($C16,'RECAP SECT'!$G$6:$CU$253,57,FALSE) -> 13.93 | P16: =VLOOKUP($C16,'RECAP SECT'!$G$6:$CU$253,58,FALSE) -> 53% | Q16: =VLOOKUP($C16,'RECAP SECT'!$G$6:$CU$253,59,FALSE) -> 16 | R16: =VLOOKUP($C16,'RECAP SECT'!$G$6:$CU$253,60,FALSE) -> 48% | S16: =VLOOKUP($C16,'RECAP SECT'!$G$6:$CU$253,61,FALSE) -> 43% | T16: =VLOOKUP($C16,'RECAP SECT'!$G$6:$CU$253,62,FALSE) -> 16
A17: 30 | B17: MARNE-ARDENNES | C17: 6 | D17: CHALONS EN CHAMPAGNE | E17: =VLOOKUP($C17,'RECAP SECT'!$G$6:$CU$253,3,FALSE) -> 38.0 | F17: =VLOOKUP($C17,'RECAP SECT'!$G$6:$CU$253,48,FALSE) -> 8,422 | G17: =VLOOKUP($C17,'RECAP SECT'!$G$6:$CU$253,49,FALSE) -> 221.69 | H17: =VLOOKUP($C17,'RECAP SECT'!$G$6:$CU$253,50,FALSE) -> 40% | I17: =VLOOKUP($C17,'RECAP SECT'!$G$6:$CU$253,51,FALSE) -> 7 | J17: =VLOOKUP($C17,'RECAP SECT'!$G$6:$CU$253,52,FALSE) -> 1,590 | K17: =VLOOKUP($C17,'RECAP SECT'!$G$6:$CU$253,53,FALSE) -> 41.86 | L17: =VLOOKUP($C17,'RECAP SECT'!$G$6:$CU$253,54,FALSE) -> 20% | M17: =VLOOKUP($C17,'RECAP SECT'!$G$6:$CU$253,55,FALSE) -> 9 | N17: =VLOOKUP($C17,'RECAP SECT'!$G$6:$CU$253,56,FALSE) -> 770 | O17: =VLOOKUP($C17,'RECAP SECT'!$G$6:$CU$253,57,FALSE) -> 20.27 | P17: =VLOOKUP($C17,'RECAP SECT'!$G$6:$CU$253,58,FALSE) -> 32% | Q17: =VLOOKUP($C17,'RECAP SECT'!$G$6:$CU$253,59,FALSE) -> 6 | R17: =VLOOKUP($C17,'RECAP SECT'!$G$6:$CU$253,60,FALSE) -> 31% | S17: =VLOOKUP($C17,'RECAP SECT'!$G$6:$CU$253,61,FALSE) -> 26% | T17: =VLOOKUP($C17,'RECAP SECT'!$G$6:$CU$253,62,FALSE) -> 9
A18: 30 | B18: MARNE-ARDENNES | C18: 2 | D18: CHARLEVILLE MEZIERES | E18: =VLOOKUP($C18,'RECAP SECT'!$G$6:$CU$253,3,FALSE) -> 48.6 | F18: =VLOOKUP($C18,'RECAP SECT'!$G$6:$CU$253,48,FALSE) -> 12,778 | G18: =VLOOKUP($C18,'RECAP SECT'!$G$6:$CU$253,49,FALSE) -> 262.75 | H18: =VLOOKUP($C18,'RECAP SECT'!$G$6:$CU$253,50,FALSE) -> 29% | I18: =VLOOKUP($C18,'RECAP SECT'!$G$6:$CU$253,51,FALSE) -> 5 | J18: =VLOOKUP($C18,'RECAP SECT'!$G$6:$CU$253,52,FALSE) -> 1,988 | K18: =VLOOKUP($C18,'RECAP SECT'!$G$6:$CU$253,53,FALSE) -> 40.88 | L18: =VLOOKUP($C18,'RECAP SECT'!$G$6:$CU$253,54,FALSE) -> 21% | M18: =VLOOKUP($C18,'RECAP SECT'!$G$6:$CU$253,55,FALSE) -> 11 | N18: =VLOOKUP($C18,'RECAP SECT'!$G$6:$CU$253,56,FALSE) -> 1,171 | O18: =VLOOKUP($C18,'RECAP SECT'!$G$6:$CU$253,57,FALSE) -> 24.08 | P18: =VLOOKUP($C18,'RECAP SECT'!$G$6:$CU$253,58,FALSE) -> 19% | Q18: =VLOOKUP($C18,'RECAP SECT'!$G$6:$CU$253,59,FALSE) -> 3 | R18: =VLOOKUP($C18,'RECAP SECT'!$G$6:$CU$253,60,FALSE) -> 23% | S18: =VLOOKUP($C18,'RECAP SECT'!$G$6:$CU$253,61,FALSE) -> 18% | T18: =VLOOKUP($C18,'RECAP SECT'!$G$6:$CU$253,62,FALSE) -> 5
A19: 30 | B19: MARNE-ARDENNES | C19: 11 | D19: REIMS | E19: =VLOOKUP($C19,'RECAP SECT'!$G$6:$CU$253,3,FALSE) -> 68.3 | F19: =VLOOKUP($C19,'RECAP SECT'!$G$6:$CU$253,48,FALSE) -> 24,904 | G19: =VLOOKUP($C19,'RECAP SECT'!$G$6:$CU$253,49,FALSE) -> 364.84 | H19: =VLOOKUP($C19,'RECAP SECT'!$G$6:$CU$253,50,FALSE) -> 2% | I19: =VLOOKUP($C19,'RECAP SECT'!$G$6:$CU$253,51,FALSE) -> 2 | J19: =VLOOKUP($C19,'RECAP SECT'!$G$6:$CU$253,52,FALSE) -> 2,610 | K19: =VLOOKUP($C19,'RECAP SECT'!$G$6:$CU$253,53,FALSE) -> 38.24 | L19: =VLOOKUP($C19,'RECAP SECT'!$G$6:$CU$253,54,FALSE) -> 26% | M19: =VLOOKUP($C19,'RECAP SECT'!$G$6:$CU$253,55,FALSE) -> 13 | N19: =VLOOKUP($C19,'RECAP SECT'!$G$6:$CU$253,56,FALSE) -> 2,032 | O19: =VLOOKUP($C19,'RECAP SECT'!$G$6:$CU$253,57,FALSE) -> 29.77 | P19: =VLOOKUP($C19,'RECAP SECT'!$G$6:$CU$253,58,FALSE) -> 0% | Q19: =VLOOKUP($C19,'RECAP SECT'!$G$6:$CU$253,59,FALSE) -> 1 | R19: =VLOOKUP($C19,'RECAP SECT'!$G$6:$CU$253,60,FALSE) -> 9% | S19: =VLOOKUP($C19,'RECAP SECT'!$G$6:$CU$253,61,FALSE) -> 3% | T19: =VLOOKUP($C19,'RECAP SECT'!$G$6:$CU$253,62,FALSE) -> 2
A20: 110 | B20: MEURTHE ET MOSELLE MEUSE | C20: 26 | D20: NANCY | E20: =VLOOKUP($C20,'RECAP SECT'!$G$6:$CU$253,3,FALSE) -> 55.0 | F20: =VLOOKUP($C20,'RECAP SECT'!$G$6:$CU$253,48,FALSE) -> 16,782 | G20: =VLOOKUP($C20,'RECAP SECT'!$G$6:$CU$253,49,FALSE) -> 305.35 | H20: =VLOOKUP($C20,'RECAP SECT'!$G$6:$CU$253,50,FALSE) -> 18% | I20: =VLOOKUP($C20,'RECAP SECT'!$G$6:$CU$253,51,FALSE) -> 3 | J20: =VLOOKUP($C20,'RECAP SECT'!$G$6:$CU$253,52,FALSE) -> 2,371 | K20: =VLOOKUP($C20,'RECAP SECT'!$G$6:$CU$253,53,FALSE) -> 43.14 | L20: =VLOOKUP($C20,'RECAP SECT'!$G$6:$CU$253,54,FALSE) -> 17% | M20: =VLOOKUP($C20,'RECAP SECT'!$G$6:$CU$253,55,FALSE) -> 6 | N20: =VLOOKUP($C20,'RECAP SECT'!$G$6:$CU$253,56,FALSE) -> 1,313 | O20: =VLOOKUP($C20,'RECAP SECT'!$G$6:$CU$253,57,FALSE) -> 23.89 | P20: =VLOOKUP($C20,'RECAP SECT'!$G$6:$CU$253,58,FALSE) -> 20% | Q20: =VLOOKUP($C20,'RECAP SECT'!$G$6:$CU$253,59,FALSE) -> 4 | R20: =VLOOKUP($C20,'RECAP SECT'!$G$6:$CU$253,60,FALSE) -> 18% | S20: =VLOOKUP($C20,'RECAP SECT'!$G$6:$CU$253,61,FALSE) -> 13% | T20: =VLOOKUP($C20,'RECAP SECT'!$G$6:$CU$253,62,FALSE) -> 3
A21: 110 | B21: MEURTHE ET MOSELLE MEUSE | C21: 27 | D21: PONT A MOUSSON | E21: =VLOOKUP($C21,'RECAP SECT'!$G$6:$CU$253,3,FALSE) -> 59.3 | F21: =VLOOKUP($C21,'RECAP SECT'!$G$6:$CU$253,48,FALSE) -> 17,544 | G21: =VLOOKUP($C21,'RECAP SECT'!$G$6:$CU$253,49,FALSE) -> 295.80 | H21: =VLOOKUP($C21,'RECAP SECT'!$G$6:$CU$253,50,FALSE) -> 21% | I21: =VLOOKUP($C21,'RECAP SECT'!$G$6:$CU$253,51,FALSE) -> 4 | J21: =VLOOKUP($C21,'RECAP SECT'!$G$6:$CU$253,52,FALSE) -> 2,544 | K21: =VLOOKUP($C21,'RECAP SECT'!$G$6:$CU$253,53,FALSE) -> 42.90 | L21: =VLOOKUP($C21,'RECAP SECT'!$G$6:$CU$253,54,FALSE) -> 18% | M21: =VLOOKUP($C21,'RECAP SECT'!$G$6:$CU$253,55,FALSE) -> 7 | N21: =VLOOKUP($C21,'RECAP SECT'!$G$6:$CU$253,56,FALSE) -> 1,366 | O21: =VLOOKUP($C21,'RECAP SECT'!$G$6:$CU$253,57,FALSE) -> 23.03 | P21: =VLOOKUP($C21,'RECAP SECT'!$G$6:$CU$253,58,FALSE) -> 23% | Q21: =VLOOKUP($C21,'RECAP SECT'!$G$6:$CU$253,59,FALSE) -> 5 | R21: =VLOOKUP($C21,'RECAP SECT'!$G$6:$CU$253,60,FALSE) -> 20% | S21: =VLOOKUP($C21,'RECAP SECT'!$G$6:$CU$253,61,FALSE) -> 15% | T21: =VLOOKUP($C21,'RECAP SECT'!$G$6:$CU$253,62,FALSE) -> 4
A22: 110 | B22: MEURTHE ET MOSELLE MEUSE | C22: 31 | D22: VERDUN | E22: =VLOOKUP($C22,'RECAP SECT'!$G$6:$CU$253,3,FALSE) -> 47.4 | F22: =VLOOKUP($C22,'RECAP SECT'!$G$6:$CU$253,48,FALSE) -> 9,450 | G22: =VLOOKUP($C22,'RECAP SECT'!$G$6:$CU$253,49,FALSE) -> 199.49 | H22: =VLOOKUP($C22,'RECAP SECT'!$G$6:$CU$253,50,FALSE) -> 46% | I22: =VLOOKUP($C22,'RECAP SECT'!$G$6:$CU$253,51,FALSE) -> 10 | J22: =VLOOKUP($C22,'RECAP SECT'!$G$6:$CU$253,52,FALSE) -> 2,449 | K22: =VLOOKUP($C22,'RECAP SECT'!$G$6:$CU$253,53,FALSE) -> 51.69 | L22: =VLOOKUP($C22,'RECAP SECT'!$G$6:$CU$253,54,FALSE) -> 1% | M22: =VLOOKUP($C22,'RECAP SECT'!$G$6:$CU$253,55,FALSE) -> 2 | N22: =VLOOKUP($C22,'RECAP SECT'!$G$6:$CU$253,56,FALSE) -> 886 | O22: =VLOOKUP($C22,'RECAP SECT'!$G$6:$CU$253,57,FALSE) -> 18.70 | P22: =VLOOKUP($C22,'RECAP SECT'!$G$6:$CU$253,58,FALSE) -> 37% | Q22: =VLOOKUP($C22,'RECAP SECT'!$G$6:$CU$253,59,FALSE) -> 10 | R22: =VLOOKUP($C22,'RECAP SECT'!$G$6:$CU$253,60,FALSE) -> 29% | S22: =VLOOKUP($C22,'RECAP SECT'!$G$6:$CU$253,61,FALSE) -> 24% | T22: =VLOOKUP($C22,'RECAP SECT'!$G$6:$CU$253,62,FALSE) -> 8
A23: 160 | B23: MOSELLE | C23: 45 | D23: METZ | E23: =VLOOKUP($C23,'RECAP SECT'!$G$6:$CU$253,3,FALSE) -> 72.5 | F23: =VLOOKUP($C23,'RECAP SECT'!$G$6:$CU$253,48,FALSE) -> 16,686 | G23: =VLOOKUP($C23,'RECAP SECT'!$G$6:$CU$253,49,FALSE) -> 230.24 | H23: =VLOOKUP($C23,'RECAP SECT'!$G$6:$CU$253,50,FALSE) -> 38% | I23: =VLOOKUP($C23,'RECAP SECT'!$G$6:$CU$253,51,FALSE) -> 6 | J23: =VLOOKUP($C23,'RECAP SECT'!$G$6:$CU$253,52,FALSE) -> 3,366 | K23: =VLOOKUP($C23,'RECAP SECT'!$G$6:$CU$253,53,FALSE) -> 46.44 | L23: =VLOOKUP($C23,'RECAP SECT'!$G$6:$CU$253,54,FALSE) -> 11% | M23: =VLOOKUP($C23,'RECAP SECT'!$G$6:$CU$253,55,FALSE) -> 5 | N23: =VLOOKUP($C23,'RECAP SECT'!$G$6:$CU$253,56,FALSE) -> 1,411 | O23: =VLOOKUP($C23,'RECAP SECT'!$G$6:$CU$253,57,FALSE) -> 19.47 | P23: =VLOOKUP($C23,'RECAP SECT'!$G$6:$CU$253,58,FALSE) -> 35% | Q23: =VLOOKUP($C23,'RECAP SECT'!$G$6:$CU$253,59,FALSE) -> 8 | R23: =VLOOKUP($C23,'RECAP SECT'!$G$6:$CU$253,60,FALSE) -> 28% | S23: =VLOOKUP($C23,'RECAP SECT'!$G$6:$CU$253,61,FALSE) -> 23% | T23: =VLOOKUP($C23,'RECAP SECT'!$G$6:$CU$253,62,FALSE) -> 7
A24: 160 | B24: MOSELLE | C24: 42 | D24: MOSELLE EST | E24: =VLOOKUP($C24,'RECAP SECT'!$G$6:$CU$253,3,FALSE) -> 59.7 | F24: =VLOOKUP($C24,'RECAP SECT'!$G$6:$CU$253,48,FALSE) -> 13,183 | G24: =VLOOKUP($C24,'RECAP SECT'!$G$6:$CU$253,49,FALSE) -> 220.67 | H24: =VLOOKUP($C24,'RECAP SECT'!$G$6:$CU$253,50,FALSE) -> 41% | I24: =VLOOKUP($C24,'RECAP SECT'!$G$6:$CU$253,51,FALSE) -> 8 | J24: =VLOOKUP($C24,'RECAP SECT'!$G$6:$CU$253,52,FALSE) -> 3,107 | K24: =VLOOKUP($C24,'RECAP SECT'!$G$6:$CU$253,53,FALSE) -> 52.02 | L24: =VLOOKUP($C24,'RECAP SECT'!$G$6:$CU$253,54,FALSE) -> 0% | M24: =VLOOKUP($C24,'RECAP SECT'!$G$6:$CU$253,55,FALSE) -> 1 | N24: =VLOOKUP($C24,'RECAP SECT'!$G$6:$CU$253,56,FALSE) -> 1,166 | O24: =VLOOKUP($C24,'RECAP SECT'!$G$6:$CU$253,57,FALSE) -> 19.52 | P24: =VLOOKUP($C24,'RECAP SECT'!$G$6:$CU$253,58,FALSE) -> 34% | Q24: =VLOOKUP($C24,'RECAP SECT'!$G$6:$CU$253,59,FALSE) -> 7 | R24: =VLOOKUP($C24,'RECAP SECT'!$G$6:$CU$253,60,FALSE) -> 26% | S24: =VLOOKUP($C24,'RECAP SECT'!$G$6:$CU$253,61,FALSE) -> 21% | T24: =VLOOKUP($C24,'RECAP SECT'!$G$6:$CU$253,62,FALSE) -> 6
A25: 160 | B25: MOSELLE | C25: 44 | D25: MOSELLE NORD | E25: =VLOOKUP($C25,'RECAP SECT'!$G$6:$CU$253,3,FALSE) -> 57.1 | F25: =VLOOKUP($C25,'RECAP SECT'!$G$6:$CU$253,48,FALSE) -> 21,263 | G25: =VLOOKUP($C25,'RECAP SECT'!$G$6:$CU$253,49,FALSE) -> 372.26 | H25: =VLOOKUP($C25,'RECAP SECT'!$G$6:$CU$253,50,FALSE) -> 0% | I25: =VLOOKUP($C25,'RECAP SECT'!$G$6:$CU$253,51,FALSE) -> 1 | J25: =VLOOKUP($C25,'RECAP SECT'!$G$6:$CU$253,52,FALSE) -> 2,873 | K25: =VLOOKUP($C25,'RECAP SECT'!$G$6:$CU$253,53,FALSE) -> 50.30 | L25: =VLOOKUP($C25,'RECAP SECT'!$G$6:$CU$253,54,FALSE) -> 3% | M25: =VLOOKUP($C25,'RECAP SECT'!$G$6:$CU$253,55,FALSE) -> 3 | N25: =VLOOKUP($C25,'RECAP SECT'!$G$6:$CU$253,56,FALSE) -> 1,525 | O25: =VLOOKUP($C25,'RECAP SECT'!$G$6:$CU$253,57,FALSE) -> 26.70 | P25: =VLOOKUP($C25,'RECAP SECT'!$G$6:$CU$253,58,FALSE) -> 10% | Q25: =VLOOKUP($C25,'RECAP SECT'!$G$6:$CU$253,59,FALSE) -> 2 | R25: =VLOOKUP($C25,'RECAP SECT'!$G$6:$CU$253,60,FALSE) -> 5% | S25: =VLOOKUP($C25,'RECAP SECT'!$G$6:$CU$253,61,FALSE) -> 0% | T25: =VLOOKUP($C25,'RECAP SECT'!$G$6:$CU$253,62,FALSE) -> 1
A26: 80 | B26: VOSGES | C26: 57 | D26: EPINAL | E26: =VLOOKUP($C26,'RECAP SECT'!$G$6:$CU$253,3,FALSE) -> 52.6 | F26: =VLOOKUP($C26,'RECAP SECT'!$G$6:$CU$253,48,FALSE) -> 8,060 | G26: =VLOOKUP($C26,'RECAP SECT'!$G$6:$CU$253,49,FALSE) -> 153.34 | H26: =VLOOKUP($C26,'RECAP SECT'!$G$6:$CU$253,50,FALSE) -> 59% | I26: =VLOOKUP($C26,'RECAP SECT'!$G$6:$CU$253,51,FALSE) -> 12 | J26: =VLOOKUP($C26,'RECAP SECT'!$G$6:$CU$253,52,FALSE) -> 1,928 | K26: =VLOOKUP($C26,'RECAP SECT'!$G$6:$CU$253,53,FALSE) -> 36.68 | L26: =VLOOKUP($C26,'RECAP SECT'!$G$6:$CU$253,54,FALSE) -> 29% | M26: =VLOOKUP($C26,'RECAP SECT'!$G$6:$CU$253,55,FALSE) -> 16 | N26: =VLOOKUP($C26,'RECAP SECT'!$G$6:$CU$253,56,FALSE) -> 954 | O26: =VLOOKUP($C26,'RECAP SECT'!$G$6:$CU$253,57,FALSE) -> 18.15 | P26: =VLOOKUP($C26,'RECAP SECT'!$G$6:$CU$253,58,FALSE) -> 39% | Q26: =VLOOKUP($C26,'RECAP SECT'!$G$6:$CU$253,59,FALSE) -> 11 | R26: =VLOOKUP($C26,'RECAP SECT'!$G$6:$CU$253,60,FALSE) -> 42% | S26: =VLOOKUP($C26,'RECAP SECT'!$G$6:$CU$253,61,FALSE) -> 37% | T26: =VLOOKUP($C26,'RECAP SECT'!$G$6:$CU$253,62,FALSE) -> 12
A27: 80 | B27: VOSGES | C27: 55 | D27: SAINT DIE | E27: =VLOOKUP($C27,'RECAP SECT'!$G$6:$CU$253,3,FALSE) -> 39.7 | F27: =VLOOKUP($C27,'RECAP SECT'!$G$6:$CU$253,48,FALSE) -> 5,084 | G27: =VLOOKUP($C27,'RECAP SECT'!$G$6:$CU$253,49,FALSE) -> 128.10 | H27: =VLOOKUP($C27,'RECAP SECT'!$G$6:$CU$253,50,FALSE) -> 66% | I27: =VLOOKUP($C27,'RECAP SECT'!$G$6:$CU$253,51,FALSE) -> 16 | J27: =VLOOKUP($C27,'RECAP SECT'!$G$6:$CU$253,52,FALSE) -> 1,609 | K27: =VLOOKUP($C27,'RECAP SECT'!$G$6:$CU$253,53,FALSE) -> 40.53 | L27: =VLOOKUP($C27,'RECAP SECT'!$G$6:$CU$253,54,FALSE) -> 22% | M27: =VLOOKUP($C27,'RECAP SECT'!$G$6:$CU$253,55,FALSE) -> 12 | N27: =VLOOKUP($C27,'RECAP SECT'!$G$6:$CU$253,56,FALSE) -> 678 | O27: =VLOOKUP($C27,'RECAP SECT'!$G$6:$CU$253,57,FALSE) -> 17.08 | P27: =VLOOKUP($C27,'RECAP SECT'!$G$6:$CU$253,58,FALSE) -> 43% | Q27: =VLOOKUP($C27,'RECAP SECT'!$G$6:$CU$253,59,FALSE) -> 13 | R27: =VLOOKUP($C27,'RECAP SECT'!$G$6:$CU$253,60,FALSE) -> 43% | S27: =VLOOKUP($C27,'RECAP SECT'!$G$6:$CU$253,61,FALSE) -> 38% | T27: =VLOOKUP($C27,'RECAP SECT'!$G$6:$CU$253,62,FALSE) -> 14
A28: Total CEGEE Directions Régionales | E28: =SUM(E10:E27) -> 950

Sheet SE_IARD
B1: Accueil | F1: BAROMETRE BDD - TERRITOIRES
F2: IARD ET PREVOYANCE
F3: =ACCUEIL!F7 -> 2022-07-17
F7: Ventes Nettes produits pondérés | J7: Ventes sur client non détenteur de l’univers | N7: Total IARD Prévoyance
F8: =DATEMAJ!C23 -> au 17/07 | H8: coef | I8: ='RECAP DIRCOM'!BX4 -> 12% | J8: =DATEMAJ!C24 -> au 17/07 | L8: coef | M8: ='RECAP DIRCOM'!CB4 -> 8% | O8: coef | P8: ='RECAP DIRCOM'!CE4 -> 20%
B9: Direction | C9: eds | D9: Territoire | E9: ="ETP perf "&DATEMAJ!$C$28 -> ETP perf 17-juil | F9: VN | G9: VN / ETP | H9: % Ecart au 1er | I9: Rang | J9: VB | K9: VB / ETP | L9: % Ecart au 1er | M9: Rang | N9: Moyenne ecart au 1er | O9: % Ecart au 1er | P9: Rang CEGEE
A10: 50 | B10: AUBE HAUTE MARNE | C10: 21 | D10: CHAUMONT | E10: =VLOOKUP($C10,'RECAP SECT'!$G$6:$CU$253,3,FALSE) -> 33.9 | F10: =VLOOKUP($C10,'RECAP SECT'!$G$6:$CU$253,67,FALSE) -> 4,544 | G10: =VLOOKUP($C10,'RECAP SECT'!$G$6:$CU$253,68,FALSE) -> 134.08 | H10: =VLOOKUP($C10,'RECAP SECT'!$G$6:$CU$253,69,FALSE) -> 18% | I10: =VLOOKUP($C10,'RECAP SECT'!$G$6:$CU$253,70,FALSE) -> 6 | J10: =VLOOKUP($C10,'RECAP SECT'!$G$6:$CU$253,71,FALSE) -> 1,063 | K10: =VLOOKUP($C10,'RECAP SECT'!$G$6:$CU$253,72,FALSE) -> 31.37 | L10: =VLOOKUP($C10,'RECAP SECT'!$G$6:$CU$253,73,FALSE) -> 26% | M10: =VLOOKUP($C10,'RECAP SECT'!$G$6:$CU$253,74,FALSE) -> 10 | N10: =VLOOKUP($C10,'RECAP SECT'!$G$6:$CU$253,75,FALSE) -> 21% | O10: =VLOOKUP($C10,'RECAP SECT'!$G$6:$CU$253,76,FALSE) -> 20% | P10: =VLOOKUP($C10,'RECAP SECT'!$G$6:$CU$253,77,FALSE) -> 8
A11: 50 | B11: AUBE HAUTE MARNE | C11: 14 | D11: TROYES | E11: =VLOOKUP($C11,'RECAP SECT'!$G$6:$CU$253,3,FALSE) -> 53.7 | F11: =VLOOKUP($C11,'RECAP SECT'!$G$6:$CU$253,67,FALSE) -> 4,360 | G11: =VLOOKUP($C11,'RECAP SECT'!$G$6:$CU$253,68,FALSE) -> 81.15 | H11: =VLOOKUP($C11,'RECAP SECT'!$G$6:$CU$253,69,FALSE) -> 50% | I11: =VLOOKUP($C11,'RECAP SECT'!$G$6:$CU$253,70,FALSE) -> 13 | J11: =VLOOKUP($C11,'RECAP SECT'!$G$6:$CU$253,71,FALSE) -> 1,590 | K11: =VLOOKUP($C11,'RECAP SECT'!$G$6:$CU$253,72,FALSE) -> 29.59 | L11: =VLOOKUP($C11,'RECAP SECT'!$G$6:$CU$253,73,FALSE) -> 30% | M11: =VLOOKUP($C11,'RECAP SECT'!$G$6:$CU$253,74,FALSE) -> 12 | N11: =VLOOKUP($C11,'RECAP SECT'!$G$6:$CU$253,75,FALSE) -> 42% | O11: =VLOOKUP($C11,'RECAP SECT'!$G$6:$CU$253,76,FALSE) -> 41% | P11: =VLOOKUP($C11,'RECAP SECT'!$G$6:$CU$253,77,FALSE) -> 13
A12: 262 | B12: BAS-RHIN | C12: 5060 | D12: HAGUENAU | E12: =VLOOKUP($C12,'RECAP SECT'!$G$6:$CU$253,3,FALSE) -> 56.3 | F12: =VLOOKUP($C12,'RECAP SECT'!$G$6:$CU$253,67,FALSE) -> 4,354 | G12: =VLOOKUP($C12,'RECAP SECT'!$G$6:$CU$253,68,FALSE) -> 77.34 | H12: =VLOOKUP($C12,'RECAP SECT'!$G$6:$CU$253,69,FALSE) -> 53% | I12: =VLOOKUP($C12,'RECAP SECT'!$G$6:$CU$253,70,FALSE) -> 14 | J12: =VLOOKUP($C12,'RECAP SECT'!$G$6:$CU$253,71,FALSE) -> 1,532 | K12: =VLOOKUP($C12,'RECAP SECT'!$G$6:$CU$253,72,FALSE) -> 27.21 | L12: =VLOOKUP($C12,'RECAP SECT'!$G$6:$CU$253,73,FALSE) -> 36% | M12: =VLOOKUP($C12,'RECAP SECT'!$G$6:$CU$253,74,FALSE) -> 16 | N12: =VLOOKUP($C12,'RECAP SECT'!$G$6:$CU$253,75,FALSE) -> 46% | O12: =VLOOKUP($C12,'RECAP SECT'!$G$6:$CU$253,76,FALSE) -> 45% | P12: =VLOOKUP($C12,'RECAP SECT'!$G$6:$CU$253,77,FALSE) -> 15
A13: 262 | B13: BAS-RHIN | C13: 5101 | D13: SELESTAT | E13: =VLOOKUP($C13,'RECAP SECT'!$G$6:$CU$253,3,FALSE) -> 50.7 | F13: =VLOOKUP($C13,'RECAP SECT'!$G$6:$CU$253,67,FALSE) -> 4,435 | G13: =VLOOKUP($C13,'RECAP SECT'!$G$6:$CU$253,68,FALSE) -> 87.51 | H13: =VLOOKUP($C13,'RECAP SECT'!$G$6:$CU$253,69,FALSE) -> 46% | I13: =VLOOKUP($C13,'RECAP SECT'!$G$6:$CU$253,70,FALSE) -> 12 | J13: =VLOOKUP($C13,'RECAP SECT'!$G$6:$CU$253,71,FALSE) -> 1,445 | K13: =VLOOKUP($C13,'RECAP SECT'!$G$6:$CU$253,72,FALSE) -> 28.51 | L13: =VLOOKUP($C13,'RECAP SECT'!$G$6:$CU$253,73,FALSE) -> 33% | M13: =VLOOKUP($C13,'RECAP SECT'!$G$6:$CU$253,74,FALSE) -> 13 | N13: =VLOOKUP($C13,'RECAP SECT'!$G$6:$CU$253,75,FALSE) -> 41% | O13: =VLOOKUP($C13,'RECAP SECT'!$G$6:$CU$253,76,FALSE) -> 40% | P13: =VLOOKUP($C13,'RECAP SECT'!$G$6:$CU$253,77,FALSE) -> 12
A14: 262 | B14: BAS-RHIN | C14: 5006 | D14: STRASBOURG | E14: =VLOOKUP($C14,'RECAP SECT'!$G$6:$CU$253,3,FALSE) -> 64.8 | F14: =VLOOKUP($C14,'RECAP SECT'!$G$6:$CU$253,67,FALSE) -> 7,927 | G14: =VLOOKUP($C14,'RECAP SECT'!$G$6:$CU$253,68,FALSE) -> 122.27 | H14: =VLOOKUP($C14,'RECAP SECT'!$G$6:$CU$253,69,FALSE) -> 25% | I14: =VLOOKUP($C14,'RECAP SECT'!$G$6:$CU$253,70,FALSE) -> 8 | J14: =VLOOKUP($C14,'RECAP SECT'!$G$6:$CU$253,71,FALSE) -> 2,679 | K14: =VLOOKUP($C14,'RECAP SECT'!$G$6:$CU$253,72,FALSE) -> 41.32 | L14: =VLOOKUP($C14,'RECAP SECT'!$G$6:$CU$253,73,FALSE) -> 3% | M14: =VLOOKUP($C14,'RECAP SECT'!$G$6:$CU$253,74,FALSE) -> 2 | N14: =VLOOKUP($C14,'RECAP SECT'!$G$6:$CU$253,75,FALSE) -> 16% | O14: =VLOOKUP($C14,'RECAP SECT'!$G$6:$CU$253,76,FALSE) -> 15% | P14: =VLOOKUP($C14,'RECAP SECT'!$G$6:$CU$253,77,FALSE) -> 7
A15: 264 | B15: HAUT-RHIN | C15: 5130 | D15: COLMAR | E15: =VLOOKUP($C15,'RECAP SECT'!$G$6:$CU$253,3,FALSE) -> 47.5 | F15: =VLOOKUP($C15,'RECAP SECT'!$G$6:$CU$253,67,FALSE) -> 3,054 | G15: =VLOOKUP($C15,'RECAP SECT'!$G$6:$CU$253,68,FALSE) -> 64.28 | H15: =VLOOKUP($C15,'RECAP SECT'!$G$6:$CU$253,69,FALSE) -> 61% | I15: =VLOOKUP($C15,'RECAP SECT'!$G$6:$CU$253,70,FALSE) -> 17 | J15: =VLOOKUP($C15,'RECAP SECT'!$G$6:$CU$253,71,FALSE) -> 1,229 | K15: =VLOOKUP($C15,'RECAP SECT'!$G$6:$CU$253,72,FALSE) -> 25.87 | L15: =VLOOKUP($C15,'RECAP SECT'!$G$6:$CU$253,73,FALSE) -> 39% | M15: =VLOOKUP($C15,'RECAP SECT'!$G$6:$CU$253,74,FALSE) -> 18 | N15: =VLOOKUP($C15,'RECAP SECT'!$G$6:$CU$253,75,FALSE) -> 52% | O15: =VLOOKUP($C15,'RECAP SECT'!$G$6:$CU$253,76,FALSE) -> 51% | P15: =VLOOKUP($C15,'RECAP SECT'!$G$6:$CU$253,77,FALSE) -> 17
A16: 264 | B16: HAUT-RHIN | C16: 5169 | D16: MULHOUSE | E16: =VLOOKUP($C16,'RECAP SECT'!$G$6:$CU$253,3,FALSE) -> 44.8 | F16: =VLOOKUP($C16,'RECAP SECT'!$G$6:$CU$253,67,FALSE) -> 1,028 | G16: =VLOOKUP($C16,'RECAP SECT'!$G$6:$CU$253,68,FALSE) -> 22.95 | H16: =VLOOKUP($C16,'RECAP SECT'!$G$6:$CU$253,69,FALSE) -> 86% | I16: =VLOOKUP($C16,'RECAP SECT'!$G$6:$CU$253,70,FALSE) -> 18 | J16: =VLOOKUP($C16,'RECAP SECT'!$G$6:$CU$253,71,FALSE) -> 1,228 | K16: =VLOOKUP($C16,'RECAP SECT'!$G$6:$CU$253,72,FALSE) -> 27.41 | L16: =VLOOKUP($C16,'RECAP SECT'!$G$6:$CU$253,73,FALSE) -> 35% | M16: =VLOOKUP($C16,'RECAP SECT'!$G$6:$CU$253,74,FALSE) -> 15 | N16: =VLOOKUP($C16,'RECAP SECT'!$G$6:$CU$253,75,FALSE) -> 66% | O16: =VLOOKUP($C16,'RECAP SECT'!$G$6:$CU$253,76,FALSE) -> 64% | P16: =VLOOKUP($C16,'RECAP SECT'!$G$6:$CU$253,77,FALSE) -> 18
A17: 30 | B17: MARNE-ARDENNES | C17: 6 | D17: CHALONS EN CHAMPAGNE | E17: =VLOOKUP($C17,'RECAP SECT'!$G$6:$CU$253,3,FALSE) -> 38.0 | F17: =VLOOKUP($C17,'RECAP SECT'!$G$6:$CU$253,67,FALSE) -> 5,179 | G17: =VLOOKUP($C17,'RECAP SECT'!$G$6:$CU$253,68,FALSE) -> 136.33 | H17: =VLOOKUP($C17,'RECAP SECT'!$G$6:$CU$253,69,FALSE) -> 16% | I17: =VLOOKUP($C17,'RECAP SECT'!$G$6:$CU$253,70,FALSE) -> 5 | J17: =VLOOKUP($C17,'RECAP SECT'!$G$6:$CU$253,71,FALSE) -> 1,365 | K17: =VLOOKUP($C17,'RECAP SECT'!$G$6:$CU$253,72,FALSE) -> 35.93 | L17: =VLOOKUP($C17,'RECAP SECT'!$G$6:$CU$253,73,FALSE) -> 15% | M17: =VLOOKUP($C17,'RECAP SECT'!$G$6:$CU$253,74,FALSE) -> 6 | N17: =VLOOKUP($C17,'RECAP SECT'!$G$6:$CU$253,75,FALSE) -> 16% | O17: =VLOOKUP($C17,'RECAP SECT'!$G$6:$CU$253,76,FALSE) -> 15% | P17: =VLOOKUP($C17,'RECAP SECT'!$G$6:$CU$253,77,FALSE) -> 6
A18: 30 | B18: MARNE-ARDENNES | C18: 2 | D18: CHARLEVILLE MEZIERES | E18: =VLOOKUP($C18,'RECAP SECT'!$G$6:$CU$253,3,FALSE) -> 48.6 | F18: =VLOOKUP($C18,'RECAP SECT'!$G$6:$CU$253,67,FALSE) -> 6,979 | G18: =VLOOKUP($C18,'RECAP SECT'!$G$6:$CU$253,68,FALSE) -> 143.51 | H18: =VLOOKUP($C18,'RECAP SECT'!$G$6:$CU$253,69,FALSE) -> 12% | I18: =VLOOKUP($C18,'RECAP SECT'!$G$6:$CU$253,70,FALSE) -> 2 | J18: =VLOOKUP($C18,'RECAP SECT'!$G$6:$CU$253,71,FALSE) -> 1,767 | K18: =VLOOKUP($C18,'RECAP SECT'!$G$6:$CU$253,72,FALSE) -> 36.34 | L18: =VLOOKUP($C18,'RECAP SECT'!$G$6:$CU$253,73,FALSE) -> 14% | M18: =VLOOKUP($C18,'RECAP SECT'!$G$6:$CU$253,74,FALSE) -> 5 | N18: =VLOOKUP($C18,'RECAP SECT'!$G$6:$CU$253,75,FALSE) -> 13% | O18: =VLOOKUP($C18,'RECAP SECT'!$G$6:$CU$253,76,FALSE) -> 12% | P18: =VLOOKUP($C18,'RECAP SECT'!$G$6:$CU$253,77,FALSE) -> 3
A19: 30 | B19: MARNE-ARDENNES | C19: 11 | D19: REIMS | E19: =VLOOKUP($C19,'RECAP SECT'!$G$6:$CU$253,3,FALSE) -> 68.3 | F19: =VLOOKUP($C19,'RECAP SECT'!$G$6:$CU$253,67,FALSE) -> 9,422 | G19: =VLOOKUP($C19,'RECAP SECT'!$G$6:$CU$253,68,FALSE) -> 138.03 | H19: =VLOOKUP($C19,'RECAP SECT'!$G$6:$CU$253,69,FALSE) -> 15% | I19: =VLOOKUP($C19,'RECAP SECT'!$G$6:$CU$253,70,FALSE) -> 3 | J19: =VLOOKUP($C19,'RECAP SECT'!$G$6:$CU$253,71,FALSE) -> 2,895 | K19: =VLOOKUP($C19,'RECAP SECT'!$G$6:$CU$253,72,FALSE) -> 42.41 | L19: =VLOOKUP($C19,'RECAP SECT'!$G$6:$CU$253,73,FALSE) -> 0% | M19: =VLOOKUP($C19,'RECAP SECT'!$G$6:$CU$253,74,FALSE) -> 1 | N19: =VLOOKUP($C19,'RECAP SECT'!$G$6:$CU$253,75,FALSE) -> 9% | O19: =VLOOKUP($C19,'RECAP SECT'!$G$6:$CU$253,76,FALSE) -> 8% | P19: =VLOOKUP($C19,'RECAP SECT'!$G$6:$CU$253,77,FALSE) -> 2
A20: 110 | B20: MEURTHE ET MOSELLE MEUSE | C20: 26 | D20: NANCY | E20: =VLOOKUP($C20,'RECAP SECT'!$G$6:$CU$253,3,FALSE) -> 55.0 | F20: =VLOOKUP($C20,'RECAP SECT'!$G$6:$CU$253,67,FALSE) -> 5,145 | G20: =VLOOKUP($C20,'RECAP SECT'!$G$6:$CU$253,68,FALSE) -> 93.61 | H20: =VLOOKUP($C20,'RECAP SECT'!$G$6:$CU$253,69,FALSE) -> 43% | I20: =VLOOKUP($C20,'RECAP SECT'!$G$6:$CU$253,70,FALSE) -> 11 | J20: =VLOOKUP($C20,'RECAP SECT'!$G$6:$CU$253,71,FALSE) -> 1,890 | K20: =VLOOKUP($C20,'RECAP SECT'!$G$6:$CU$253,72,FALSE) -> 34.39 | L20: =VLOOKUP($C20,'RECAP SECT'!$G$6:$CU$253,73,FALSE) -> 19% | M20: =VLOOKUP($C20,'RECAP SECT'!$G$6:$CU$253,74,FALSE) -> 8 | N20: =VLOOKUP($C20,'RECAP SECT'!$G$6:$CU$253,75,FALSE) -> 33% | O20: =VLOOKUP($C20,'RECAP SECT'!$G$6:$CU$253,76,FALSE) -> 32% | P20: =VLOOKUP($C20,'RECAP SECT'!$G$6:$CU$253,77,FALSE) -> 10
A21: 110 | B21: MEURTHE ET MOSELLE MEUSE | C21: 27 | D21: PONT A MOUSSON | E21: =VLOOKUP($C21,'RECAP SECT'!$G$6:$CU$253,3,FALSE) -> 59.3 | F21: =VLOOKUP($C21,'RECAP SECT'!$G$6:$CU$253,67,FALSE) -> 7,728 | G21: =VLOOKUP($C21,'RECAP SECT'!$G$6:$CU$253,68,FALSE) -> 130.30 | H21: =VLOOKUP($C21,'RECAP SECT'!$G$6:$CU$253,69,FALSE) -> 20% | I21: =VLOOKUP($C21,'RECAP SECT'!$G$6:$CU$253,70,FALSE) -> 7 | J21: =VLOOKUP($C21,'RECAP SECT'!$G$6:$CU$253,71,FALSE) -> 2,309 | K21: =VLOOKUP($C21,'RECAP SECT'!$G$6:$CU$253,72,FALSE) -> 38.93 | L21: =VLOOKUP($C21,'RECAP SECT'!$G$6:$CU$253,73,FALSE) -> 8% | M21: =VLOOKUP($C21,'RECAP SECT'!$G$6:$CU$253,74,FALSE) -> 4 | N21: =VLOOKUP($C21,'RECAP SECT'!$G$6:$CU$253,75,FALSE) -> 15% | O21: =VLOOKUP($C21,'RECAP SECT'!$G$6:$CU$253,76,FALSE) -> 14% | P21: =VLOOKUP($C21,'RECAP SECT'!$G$6:$CU$253,77,FALSE) -> 4
A22: 110 | B22: MEURTHE ET MOSELLE MEUSE | C22: 31 | D22: VERDUN | E22: =VLOOKUP($C22,'RECAP SECT'!$G$6:$CU$253,3,FALSE) -> 47.4 | F22: =VLOOKUP($C22,'RECAP SECT'!$G$6:$CU$253,67,FALSE) -> 4,662 | G22: =VLOOKUP($C22,'RECAP SECT'!$G$6:$CU$253,68,FALSE) -> 98.42 | H22: =VLOOKUP($C22,'RECAP SECT'!$G$6:$CU$253,69,FALSE) -> 40% | I22: =VLOOKUP($C22,'RECAP SECT'!$G$6:$CU$253,70,FALSE) -> 10 | J22: =VLOOKUP($C22,'RECAP SECT'!$G$6:$CU$253,71,FALSE) -> 1,462 | K22: =VLOOKUP($C22,'RECAP SECT'!$G$6:$CU$253,72,FALSE) -> 30.86 | L22: =VLOOKUP($C22,'RECAP SECT'!$G$6:$CU$253,73,FALSE) -> 27% | M22: =VLOOKUP($C22,'RECAP SECT'!$G$6:$CU$253,74,FALSE) -> 11 | N22: =VLOOKUP($C22,'RECAP SECT'!$G$6:$CU$253,75,FALSE) -> 35% | O22: =VLOOKUP($C22,'RECAP SECT'!$G$6:$CU$253,76,FALSE) -> 33% | P22: =VLOOKUP($C22,'RECAP SECT'!$G$6:$CU$253,77,FALSE) -> 11
A23: 160 | B23: MOSELLE | C23: 45 | D23: METZ | E23: =VLOOKUP($C23,'RECAP SECT'!$G$6:$CU$253,3,FALSE) -> 72.5 | F23: =VLOOKUP($C23,'RECAP SECT'!$G$6:$CU$253,67,FALSE) -> 7,646 | G23: =VLOOKUP($C23,'RECAP SECT'!$G$6:$CU$253,68,FALSE) -> 105.51 | H23: =VLOOKUP($C23,'RECAP SECT'!$G$6:$CU$253,69,FALSE) -> 35% | I23: =VLOOKUP($C23,'RECAP SECT'!$G$6:$CU$253,70,FALSE) -> 9 | J23: =VLOOKUP($C23,'RECAP SECT'!$G$6:$CU$253,71,FALSE) -> 2,372 | K23: =VLOOKUP($C23,'RECAP SECT'!$G$6:$CU$253,72,FALSE) -> 32.73 | L23: =VLOOKUP($C23,'RECAP SECT'!$G$6:$CU$253,73,FALSE) -> 23% | M23: =VLOOKUP($C23,'RECAP SECT'!$G$6:$CU$253,74,FALSE) -> 9 | N23: =VLOOKUP($C23,'RECAP SECT'!$G$6:$CU$253,75,FALSE) -> 30% | O23: =VLOOKUP($C23,'RECAP SECT'!$G$6:$CU$253,76,FALSE) -> 29% | P23: =VLOOKUP($C23,'RECAP SECT'!$G$6:$CU$253,77,FALSE) -> 9
A24: 160 | B24: MOSELLE | C24: 42 | D24: MOSELLE EST | E24: =VLOOKUP($C24,'RECAP SECT'!$G$6:$CU$253,3,FALSE) -> 59.7 | F24: =VLOOKUP($C24,'RECAP SECT'!$G$6:$CU$253,67,FALSE) -> 8,190 | G24: =VLOOKUP($C24,'RECAP SECT'!$G$6:$CU$253,68,FALSE) -> 137.09 | H24: =VLOOKUP($C24,'RECAP SECT'!$G$6:$CU$253,69,FALSE) -> 16% | I24: =VLOOKUP($C24,'RECAP SECT'!$G$6:$CU$253,70,FALSE) -> 4 | J24: =VLOOKUP($C24,'RECAP SECT'!$G$6:$CU$253,71,FALSE) -> 2,130 | K24: =VLOOKUP($C24,'RECAP SECT'!$G$6:$CU$253,72,FALSE) -> 35.65 | L24: =VLOOKUP($C24,'RECAP SECT'!$G$6:$CU$253,73,FALSE) -> 16% | M24: =VLOOKUP($C24,'RECAP SECT'!$G$6:$CU$253,74,FALSE) -> 7 | N24: =VLOOKUP($C24,'RECAP SECT'!$G$6:$CU$253,75,FALSE) -> 16% | O24: =VLOOKUP($C24,'RECAP SECT'!$G$6:$CU$253,76,FALSE) -> 15% | P24: =VLOOKUP($C24,'RECAP SECT'!$G$6:$CU$253,77,FALSE) -> 5
A25: 160 | B25: MOSELLE | C25: 44 | D25: MOSELLE NORD | E25: =VLOOKUP($C25,'RECAP SECT'!$G$6:$CU$253,3,FALSE) -> 57.1 | F25: =VLOOKUP($C25,'RECAP SECT'!$G$6:$CU$253,67,FALSE) -> 9,310 | G25: =VLOOKUP($C25,'RECAP SECT'!$G$6:$CU$253,68,FALSE) -> 162.99 | H25: =VLOOKUP($C25,'RECAP SECT'!$G$6:$CU$253,69,FALSE) -> 0% | I25: =VLOOKUP($C25,'RECAP SECT'!$G$6:$CU$253,70,FALSE) -> 1 | J25: =VLOOKUP($C25,'RECAP SECT'!$G$6:$CU$253,71,FALSE) -> 2,349 | K25: =VLOOKUP($C25,'RECAP SECT'!$G$6:$CU$253,72,FALSE) -> 41.12 | L25: =VLOOKUP($C25,'RECAP SECT'!$G$6:$CU$253,73,FALSE) -> 3% | M25: =VLOOKUP($C25,'RECAP SECT'!$G$6:$CU$253,74,FALSE) -> 3 | N25: =VLOOKUP($C25,'RECAP SECT'!$G$6:$CU$253,75,FALSE) -> 1% | O25: =VLOOKUP($C25,'RECAP SECT'!$G$6:$CU$253,76,FALSE) -> 0% | P25: =VLOOKUP($C25,'RECAP SECT'!$G$6:$CU$253,77,FALSE) -> 1
A26: 80 | B26: VOSGES | C26: 57 | D26: EPINAL | E26: =VLOOKUP($C26,'RECAP SECT'!$G$6:$CU$253,3,FALSE) -> 52.6 | F26: =VLOOKUP($C26,'RECAP SECT'!$G$6:$CU$253,67,FALSE) -> 3,958 | G26: =VLOOKUP($C26,'RECAP SECT'!$G$6:$CU$253,68,FALSE) -> 75.30 | H26: =VLOOKUP($C26,'RECAP SECT'!$G$6:$CU$253,69,FALSE) -> 54% | I26: =VLOOKUP($C26,'RECAP SECT'!$G$6:$CU$253,70,FALSE) -> 15 | J26: =VLOOKUP($C26,'RECAP SECT'!$G$6:$CU$253,71,FALSE) -> 1,485 | K26: =VLOOKUP($C26,'RECAP SECT'!$G$6:$CU$253,72,FALSE) -> 28.25 | L26: =VLOOKUP($C26,'RECAP SECT'!$G$6:$CU$253,73,FALSE) -> 33% | M26: =VLOOKUP($C26,'RECAP SECT'!$G$6:$CU$253,74,FALSE) -> 14 | N26: =VLOOKUP($C26,'RECAP SECT'!$G$6:$CU$253,75,FALSE) -> 46% | O26: =VLOOKUP($C26,'RECAP SECT'!$G$6:$CU$253,76,FALSE) -> 44% | P26: =VLOOKUP($C26,'RECAP SECT'!$G$6:$CU$253,77,FALSE) -> 14
A27: 80 | B27: VOSGES | C27: 55 | D27: SAINT DIE | E27: =VLOOKUP($C27,'RECAP SECT'!$G$6:$CU$253,3,FALSE) -> 39.7 | F27: =VLOOKUP($C27,'RECAP SECT'!$G$6:$CU$253,67,FALSE) -> 2,767 | G27: =VLOOKUP($C27,'RECAP SECT'!$G$6:$CU$253,68,FALSE) -> 69.72 | H27: =VLOOKUP($C27,'RECAP SECT'!$G$6:$CU$253,69,FALSE) -> 57% | I27: =VLOOKUP($C27,'RECAP SECT'!$G$6:$CU$253,70,FALSE) -> 16 | J27: =VLOOKUP($C27,'RECAP SECT'!$G$6:$CU$253,71,FALSE) -> 1,064 | K27: =VLOOKUP($C27,'RECAP SECT'!$G$6:$CU$253,72,FALSE) -> 26.81 | L27: =VLOOKUP($C27,'RECAP SECT'!$G$6:$CU$253,73,FALSE) -> 37% | M27: =VLOOKUP($C27,'RECAP SECT'!$G$6:$CU$253,74,FALSE) -> 17 | N27: =VLOOKUP($C27,'RECAP SECT'!$G$6:$CU$253,75,FALSE) -> 49% | O27: =VLOOKUP($C27,'RECAP SECT'!$G$6:$CU$253,76,FALSE) -> 48% | P27: =VLOOKUP($C27,'RECAP SECT'!$G$6:$CU$253,77,FALSE) -> 16
A28: Total CEGEE Directions Régionales | E28: =SUM(E10:E27) -> 950

Sheet SE_SATISFACTION
B1: Accueil | F1: BAROMETRE BDD - TERRITOIRES
F2: SATISFACTION
F3: =ACCUEIL!F7 -> 2022-07-17
F7: NPS à froid (SAE) | I7: NPS à chaud (QHD) | L7: Total Satisfaction Clients
F8: =DATEMAJ!E4 -> au 31/05 | G8: coef | H8: ='RECAP DIRCOM'!M4 -> 10% | I8: =DATEMAJ!C5 -> au 31/05 | J8: coef | K8: ='RECAP DIRCOM'!P4 -> 10% | M8: coef | N8: ='RECAP DIRCOM'!S4 -> 20%
B9: Direction | C9: eds | D9: Territoire | E9: ="ETP perf "&DATEMAJ!$C$28 -> ETP perf 17-juil | G9: % Ecart au 1er | H9: Rang | J9: % Ecart au 1er | K9: Rang | L9: Moyenne ecart au 1er | M9: % Ecart au 1er | N9: Rang CEGEE
A10: 50 | B10: AUBE HAUTE MARNE | C10: 21 | D10: CHAUMONT | E10: =VLOOKUP($C10,'RECAP SECT'!$G$6:$CU$253,3,FALSE) -> 33.9 | F10: =VLOOKUP($C10,'RECAP SECT'!$G$6:$CU$253,5,FALSE) -> 16.5 | G10: =VLOOKUP($C10,'RECAP SECT'!$G$6:$CU$253,6,FALSE) -> 41% | H10: =VLOOKUP($C10,'RECAP SECT'!$G$6:$CU$253,7,FALSE) -> 6 | I10: =VLOOKUP($C10,'RECAP SECT'!$G$6:$CU$253,8,FALSE) -> 65% | J10: =VLOOKUP($C10,'RECAP SECT'!$G$6:$CU$253,9,FALSE) -> 13% | K10: =VLOOKUP($C10,'RECAP SECT'!$G$6:$CU$253,10,FALSE) -> 8 | L10: =VLOOKUP($C10,'RECAP SECT'!$G$6:$CU$253,11,FALSE) -> 27% | M10: =VLOOKUP($C10,'RECAP SECT'!$G$6:$CU$253,12,FALSE) -> 22% | N10: =VLOOKUP($C10,'RECAP SECT'!$G$6:$CU$253,13,FALSE) -> 6
A11: 50 | B11: AUBE HAUTE MARNE | C11: 14 | D11: TROYES | E11: =VLOOKUP($C11,'RECAP SECT'!$G$6:$CU$253,3,FALSE) -> 53.7 | F11: =VLOOKUP($C11,'RECAP SECT'!$G$6:$CU$253,5,FALSE) -> 0 | G11: =VLOOKUP($C11,'RECAP SECT'!$G$6:$CU$253,6,FALSE) -> 100% | H11: =VLOOKUP($C11,'RECAP SECT'!$G$6:$CU$253,7,FALSE) -> 18 | I11: =VLOOKUP($C11,'RECAP SECT'!$G$6:$CU$253,8,FALSE) -> 48% | J11: =VLOOKUP($C11,'RECAP SECT'!$G$6:$CU$253,9,FALSE) -> 35% | K11: =VLOOKUP($C11,'RECAP SECT'!$G$6:$CU$253,10,FALSE) -> 17 | L11: =VLOOKUP($C11,'RECAP SECT'!$G$6:$CU$253,11,FALSE) -> 68% | M11: =VLOOKUP($C11,'RECAP SECT'!$G$6:$CU$253,12,FALSE) -> 63% | N11: =VLOOKUP($C11,'RECAP SECT'!$G$6:$CU$253,13,FALSE) -> 18
A12: 262 | B12: BAS-RHIN | C12: 5060 | D12: HAGUENAU | E12: =VLOOKUP($C12,'RECAP SECT'!$G$6:$CU$253,3,FALSE) -> 56.3 | F12: =VLOOKUP($C12,'RECAP SECT'!$G$6:$CU$253,5,FALSE) -> 11.25 | G12: =VLOOKUP($C12,'RECAP SECT'!$G$6:$CU$253,6,FALSE) -> 59% | H12: =VLOOKUP($C12,'RECAP SECT'!$G$6:$CU$253,7,FALSE) -> 10 | I12: =VLOOKUP($C12,'RECAP SECT'!$G$6:$CU$253,8,FALSE) -> 62% | J12: =VLOOKUP($C12,'RECAP SECT'!$G$6:$CU$253,9,FALSE) -> 17% | K12: =VLOOKUP($C12,'RECAP SECT'!$G$6:$CU$253,10,FALSE) -> 11 | L12: =VLOOKUP($C12,'RECAP SECT'!$G$6:$CU$253,11,FALSE) -> 38% | M12: =VLOOKUP($C12,'RECAP SECT'!$G$6:$CU$253,12,FALSE) -> 34% | N12: =VLOOKUP($C12,'RECAP SECT'!$G$6:$CU$253,13,FALSE) -> 10
A13: 262 | B13: BAS-RHIN | C13: 5101 | D13: SELESTAT | E13: =VLOOKUP($C13,'RECAP SECT'!$G$6:$CU$253,3,FALSE) -> 50.7 | F13: =VLOOKUP($C13,'RECAP SECT'!$G$6:$CU$253,5,FALSE) -> 1 | G13: =VLOOKUP($C13,'RECAP SECT'!$G$6:$CU$253,6,FALSE) -> 96% | H13: =VLOOKUP($C13,'RECAP SECT'!$G$6:$CU$253,7,FALSE) -> 17 | I13: =VLOOKUP($C13,'RECAP SECT'!$G$6:$CU$253,8,FALSE) -> 59% | J13: =VLOOKUP($C13,'RECAP SECT'!$G$6:$CU$253,9,FALSE) -> 22% | K13: =VLOOKUP($C13,'RECAP SECT'!$G$6:$CU$253,10,FALSE) -> 14 | L13: =VLOOKUP($C13,'RECAP SECT'!$G$6:$CU$253,11,FALSE) -> 59% | M13: =VLOOKUP($C13,'RECAP SECT'!$G$6:$CU$253,12,FALSE) -> 55% | N13: =VLOOKUP($C13,'RECAP SECT'!$G$6:$CU$253,13,FALSE) -> 16
A14: 262 | B14: BAS-RHIN | C14: 5006 | D14: STRASBOURG | E14: =VLOOKUP($C14,'RECAP SECT'!$G$6:$CU$253,3,FALSE) -> 64.8 | F14: =VLOOKUP($C14,'RECAP SECT'!$G$6:$CU$253,5,FALSE) -> 9.75 | G14: =VLOOKUP($C14,'RECAP SECT'!$G$6:$CU$253,6,FALSE) -> 65% | H14: =VLOOKUP($C14,'RECAP SECT'!$G$6:$CU$253,7,FALSE) -> 12 | I14: =VLOOKUP($C14,'RECAP SECT'!$G$6:$CU$253,8,FALSE) -> 65% | J14: =VLOOKUP($C14,'RECAP SECT'!$G$6:$CU$253,9,FALSE) -> 12% | K14: =VLOOKUP($C14,'RECAP SECT'!$G$6:$CU$253,10,FALSE) -> 7 | L14: =VLOOKUP($C14,'RECAP SECT'!$G$6:$CU$253,11,FALSE) -> 39% | M14: =VLOOKUP($C14,'RECAP SECT'!$G$6:$CU$253,12,FALSE) -> 34% | N14: =VLOOKUP($C14,'RECAP SECT'!$G$6:$CU$253,13,FALSE) -> 11
A15: 264 | B15: HAUT-RHIN | C15: 5130 | D15: COLMAR | E15: =VLOOKUP($C15,'RECAP SECT'!$G$6:$CU$253,3,FALSE) -> 47.5 | F15: =VLOOKUP($C15,'RECAP SECT'!$G$6:$CU$253,5,FALSE) -> 3 | G15: =VLOOKUP($C15,'RECAP SECT'!$G$6:$CU$253,6,FALSE) -> 89% | H15: =VLOOKUP($C15,'RECAP SECT'!$G$6:$CU$253,7,FALSE) -> 16 | I15: =VLOOKUP($C15,'RECAP SECT'!$G$6:$CU$253,8,FALSE) -> 54% | J15: =VLOOKUP($C15,'RECAP SECT'!$G$6:$CU$253,9,FALSE) -> 28% | K15: =VLOOKUP($C15,'RECAP SECT'!$G$6:$CU$253,10,FALSE) -> 15 | L15: =VLOOKUP($C15,'RECAP SECT'!$G$6:$CU$253,11,FALSE) -> 58% | M15: =VLOOKUP($C15,'RECAP SECT'!$G$6:$CU$253,12,FALSE) -> 54% | N15: =VLOOKUP($C15,'RECAP SECT'!$G$6:$CU$253,13,FALSE) -> 15
A16: 264 | B16: HAUT-RHIN | C16: 5169 | D16: MULHOUSE | E16: =VLOOKUP($C16,'RECAP SECT'!$G$6:$CU$253,3,FALSE) -> 44.8 | F16: =VLOOKUP($C16,'RECAP SECT'!$G$6:$CU$253,5,FALSE) -> 3.25 | G16: =VLOOKUP($C16,'RECAP SECT'!$G$6:$CU$253,6,FALSE) -> 88% | H16: =VLOOKUP($C16,'RECAP SECT'!$G$6:$CU$253,7,FALSE) -> 15 | I16: =VLOOKUP($C16,'RECAP SECT'!$G$6:$CU$253,8,FALSE) -> 47% | J16: =VLOOKUP($C16,'RECAP SECT'!$G$6:$CU$253,9,FALSE) -> 37% | K16: =VLOOKUP($C16,'RECAP SECT'!$G$6:$CU$253,10,FALSE) -> 18 | L16: =VLOOKUP($C16,'RECAP SECT'!$G$6:$CU$253,11,FALSE) -> 63% | M16: =VLOOKUP($C16,'RECAP SECT'!$G$6:$CU$253,12,FALSE) -> 58% | N16: =VLOOKUP($C16,'RECAP SECT'!$G$6:$CU$253,13,FALSE) -> 17
A17: 30 | B17: MARNE-ARDENNES | C17: 6 | D17: CHALONS EN CHAMPAGNE | E17: =VLOOKUP($C17,'RECAP SECT'!$G$6:$CU$253,3,FALSE) -> 38.0 | F17: =VLOOKUP($C17,'RECAP SECT'!$G$6:$CU$253,5,FALSE) -> 25 | G17: =VLOOKUP($C17,'RECAP SECT'!$G$6:$CU$253,6,FALSE) -> 10% | H17: =VLOOKUP($C17,'RECAP SECT'!$G$6:$CU$253,7,FALSE) -> 2 | I17: =VLOOKUP($C17,'RECAP SECT'!$G$6:$CU$253,8,FALSE) -> 75% | J17: =VLOOKUP($C17,'RECAP SECT'!$G$6:$CU$253,9,FALSE) -> 0% | K17: =VLOOKUP($C17,'RECAP SECT'!$G$6:$CU$253,10,FALSE) -> 1 | L17: =VLOOKUP($C17,'RECAP SECT'!$G$6:$CU$253,11,FALSE) -> 5% | M17: =VLOOKUP($C17,'RECAP SECT'!$G$6:$CU$253,12,FALSE) -> 1% | N17: =VLOOKUP($C17,'RECAP SECT'!$G$6:$CU$253,13,FALSE) -> 2
A18: 30 | B18: MARNE-ARDENNES | C18: 2 | D18: CHARLEVILLE MEZIERES | E18: =VLOOKUP($C18,'RECAP SECT'!$G$6:$CU$253,3,FALSE) -> 48.6 | F18: =VLOOKUP($C18,'RECAP SECT'!$G$6:$CU$253,5,FALSE) -> 13.25 | G18: =VLOOKUP($C18,'RECAP SECT'!$G$6:$CU$253,6,FALSE) -> 52% | H18: =VLOOKUP($C18,'RECAP SECT'!$G$6:$CU$253,7,FALSE) -> 9 | I18: =VLOOKUP($C18,'RECAP SECT'!$G$6:$CU$253,8,FALSE) -> 66% | J18: =VLOOKUP($C18,'RECAP SECT'!$G$6:$CU$253,9,FALSE) -> 11% | K18: =VLOOKUP($C18,'RECAP SECT'!$G$6:$CU$253,10,FALSE) -> 5 | L18: =VLOOKUP($C18,'RECAP SECT'!$G$6:$CU$253,11,FALSE) -> 32% | M18: =VLOOKUP($C18,'RECAP SECT'!$G$6:$CU$253,12,FALSE) -> 27% | N18: =VLOOKUP($C18,'RECAP SECT'!$G$6:$CU$253,13,FALSE) -> 9
A19: 30 | B19: MARNE-ARDENNES | C19: 11 | D19: REIMS | E19: =VLOOKUP($C19,'RECAP SECT'!$G$6:$CU$253,3,FALSE) -> 68.3 | F19: =VLOOKUP($C19,'RECAP SECT'!$G$6:$CU$253,5,FALSE) -> 16.25 | G19: =VLOOKUP($C19,'RECAP SECT'!$G$6:$CU$253,6,FALSE) -> 41% | H19: =VLOOKUP($C19,'RECAP SECT'!$G$6:$CU$253,7,FALSE) -> 7 | I19: =VLOOKUP($C19,'RECAP SECT'!$G$6:$CU$253,8,FALSE) -> 63% | J19: =VLOOKUP($C19,'RECAP SECT'!$G$6:$CU$253,9,FALSE) -> 15% | K19: =VLOOKUP($C19,'RECAP SECT'!$G$6:$CU$253,10,FALSE) -> 9 | L19: =VLOOKUP($C19,'RECAP SECT'!$G$6:$CU$253,11,FALSE) -> 28% | M19: =VLOOKUP($C19,'RECAP SECT'!$G$6:$CU$253,12,FALSE) -> 24% | N19: =VLOOKUP($C19,'RECAP SECT'!$G$6:$CU$253,13,FALSE) -> 7
A20: 110 | B20: MEURTHE ET MOSELLE MEUSE | C20: 26 | D20: NANCY | E20: =VLOOKUP($C20,'RECAP SECT'!$G$6:$CU$253,3,FALSE) -> 55.0 | F20: =VLOOKUP($C20,'RECAP SECT'!$G$6:$CU$253,5,FALSE) -> 10.75 | G20: =VLOOKUP($C20,'RECAP SECT'!$G$6:$CU$253,6,FALSE) -> 61% | H20: =VLOOKUP($C20,'RECAP SECT'!$G$6:$CU$253,7,FALSE) -> 11 | I20: =VLOOKUP($C20,'RECAP SECT'!$G$6:$CU$253,8,FALSE) -> 62% | J20: =VLOOKUP($C20,'RECAP SECT'!$G$6:$CU$253,9,FALSE) -> 17% | K20: =VLOOKUP($C20,'RECAP SECT'!$G$6:$CU$253,10,FALSE) -> 10 | L20: =VLOOKUP($C20,'RECAP SECT'!$G$6:$CU$253,11,FALSE) -> 39% | M20: =VLOOKUP($C20,'RECAP SECT'!$G$6:$CU$253,12,FALSE) -> 35% | N20: =VLOOKUP($C20,'RECAP SECT'!$G$6:$CU$253,13,FALSE) -> 12
A21: 110 | B21: MEURTHE ET MOSELLE MEUSE | C21: 27 | D21: PONT A MOUSSON | E21: =VLOOKUP($C21,'RECAP SECT'!$G$6:$CU$253,3,FALSE) -> 59.3 | F21: =VLOOKUP($C21,'RECAP SECT'!$G$6:$CU$253,5,FALSE) -> 3.5 | G21: =VLOOKUP($C21,'RECAP SECT'!$G$6:$CU$253,6,FALSE) -> 87% | H21: =VLOOKUP($C21,'RECAP SECT'!$G$6:$CU$253,7,FALSE) -> 14 | I21: =VLOOKUP($C21,'RECAP SECT'!$G$6:$CU$253,8,FALSE) -> 53% | J21: =VLOOKUP($C21,'RECAP SECT'!$G$6:$CU$253,9,FALSE) -> 29% | K21: =VLOOKUP($C21,'RECAP SECT'!$G$6:$CU$253,10,FALSE) -> 16 | L21: =VLOOKUP($C21,'RECAP SECT'!$G$6:$CU$253,11,FALSE) -> 58% | M21: =VLOOKUP($C21,'RECAP SECT'!$G$6:$CU$253,12,FALSE) -> 54% | N21: =VLOOKUP($C21,'RECAP SECT'!$G$6:$CU$253,13,FALSE) -> 14
A22: 110 | B22: MEURTHE ET MOSELLE MEUSE | C22: 31 | D22: VERDUN | E22: =VLOOKUP($C22,'RECAP SECT'!$G$6:$CU$253,3,FALSE) -> 47.4 | F22: =VLOOKUP($C22,'RECAP SECT'!$G$6:$CU$253,5,FALSE) -> 20.75 | G22: =VLOOKUP($C22,'RECAP SECT'!$G$6:$CU$253,6,FALSE) -> 25% | H22: =VLOOKUP($C22,'RECAP SECT'!$G$6:$CU$253,7,FALSE) -> 5 | I22: =VLOOKUP($C22,'RECAP SECT'!$G$6:$CU$253,8,FALSE) -> 66% | J22: =VLOOKUP($C22,'RECAP SECT'!$G$6:$CU$253,9,FALSE) -> 11% | K22: =VLOOKUP($C22,'RECAP SECT'!$G$6:$CU$253,10,FALSE) -> 6 | L22: =VLOOKUP($C22,'RECAP SECT'!$G$6:$CU$253,11,FALSE) -> 18% | M22: =VLOOKUP($C22,'RECAP SECT'!$G$6:$CU$253,12,FALSE) -> 14% | N22: =VLOOKUP($C22,'RECAP SECT'!$G$6:$CU$253,13,FALSE) -> 5
A23: 160 | B23: MOSELLE | C23: 45 | D23: METZ | E23: =VLOOKUP($C23,'RECAP SECT'!$G$6:$CU$253,3,FALSE) -> 72.5 | F23: =VLOOKUP($C23,'RECAP SECT'!$G$6:$CU$253,5,FALSE) -> 15.25 | G23: =VLOOKUP($C23,'RECAP SECT'!$G$6:$CU$253,6,FALSE) -> 45% | H23: =VLOOKUP($C23,'RECAP SECT'!$G$6:$CU$253,7,FALSE) -> 8 | I23: =VLOOKUP($C23,'RECAP SECT'!$G$6:$CU$253,8,FALSE) -> 61% | J23: =VLOOKUP($C23,'RECAP SECT'!$G$6:$CU$253,9,FALSE) -> 18% | K23: =VLOOKUP($C23,'RECAP SECT'!$G$6:$CU$253,10,FALSE) -> 13 | L23: =VLOOKUP($C23,'RECAP SECT'!$G$6:$CU$253,11,FALSE) -> 32% | M23: =VLOOKUP($C23,'RECAP SECT'!$G$6:$CU$253,12,FALSE) -> 27% | N23: =VLOOKUP($C23,'RECAP SECT'!$G$6:$CU$253,13,FALSE) -> 8
A24: 160 | B24: MOSELLE | C24: 42 | D24: MOSELLE EST | E24: =VLOOKUP($C24,'RECAP SECT'!$G$6:$CU$253,3,FALSE) -> 59.7 | F24: =VLOOKUP($C24,'RECAP SECT'!$G$6:$CU$253,5,FALSE) -> 21.25 | G24: =VLOOKUP($C24,'RECAP SECT'!$G$6:$CU$253,6,FALSE) -> 23% | H24: =VLOOKUP($C24,'RECAP SECT'!$G$6:$CU$253,7,FALSE) -> 4 | I24: =VLOOKUP($C24,'RECAP SECT'!$G$6:$CU$253,8,FALSE) -> 68% | J24: =VLOOKUP($C24,'RECAP SECT'!$G$6:$CU$253,9,FALSE) -> 9% | K24: =VLOOKUP($C24,'RECAP SECT'!$G$6:$CU$253,10,FALSE) -> 4 | L24: =VLOOKUP($C24,'RECAP SECT'!$G$6:$CU$253,11,FALSE) -> 16% | M24: =VLOOKUP($C24,'RECAP SECT'!$G$6:$CU$253,12,FALSE) -> 12% | N24: =VLOOKUP($C24,'RECAP SECT'!$G$6:$CU$253,13,FALSE) -> 4
A25: 160 | B25: MOSELLE | C25: 44 | D25: MOSELLE NORD | E25: =VLOOKUP($C25,'RECAP SECT'!$G$6:$CU$253,3,FALSE) -> 57.1 | F25: =VLOOKUP($C25,'RECAP SECT'!$G$6:$CU$253,5,FALSE) -> 8.25 | G25: =VLOOKUP($C25,'RECAP SECT'!$G$6:$CU$253,6,FALSE) -> 70% | H25: =VLOOKUP($C25,'RECAP SECT'!$G$6:$CU$253,7,FALSE) -> 13 | I25: =VLOOKUP($C25,'RECAP SECT'!$G$6:$CU$253,8,FALSE) -> 61% | J25: =VLOOKUP($C25,'RECAP SECT'!$G$6:$CU$253,9,FALSE) -> 18% | K25: =VLOOKUP($C25,'RECAP SECT'!$G$6:$CU$253,10,FALSE) -> 12 | L25: =VLOOKUP($C25,'RECAP SECT'!$G$6:$CU$253,11,FALSE) -> 44% | M25: =VLOOKUP($C25,'RECAP SECT'!$G$6:$CU$253,12,FALSE) -> 40% | N25: =VLOOKUP($C25,'RECAP SECT'!$G$6:$CU$253,13,FALSE) -> 13
A26: 80 | B26: VOSGES | C26: 57 | D26: EPINAL | E26: =VLOOKUP($C26,'RECAP SECT'!$G$6:$CU$253,3,FALSE) -> 52.6 | F26: =VLOOKUP($C26,'RECAP SECT'!$G$6:$CU$253,5,FALSE) -> 22.25 | G26: =VLOOKUP($C26,'RECAP SECT'!$G$6:$CU$253,6,FALSE) -> 20% | H26: =VLOOKUP($C26,'RECAP SECT'!$G$6:$CU$253,7,FALSE) -> 3 | I26: =VLOOKUP($C26,'RECAP SECT'!$G$6:$CU$253,8,FALSE) -> 69% | J26: =VLOOKUP($C26,'RECAP SECT'!$G$6:$CU$253,9,FALSE) -> 8% | K26: =VLOOKUP($C26,'RECAP SECT'!$G$6:$CU$253,10,FALSE) -> 2 | L26: =VLOOKUP($C26,'RECAP SECT'!$G$6:$CU$253,11,FALSE) -> 14% | M26: =VLOOKUP($C26,'RECAP SECT'!$G$6:$CU$253,12,FALSE) -> 9% | N26: =VLOOKUP($C26,'RECAP SECT'!$G$6:$CU$253,13,FALSE) -> 3
A27: 80 | B27: VOSGES | C27: 55 | D27: SAINT DIE | E27: =VLOOKUP($C27,'RECAP SECT'!$G$6:$CU$253,3,FALSE) -> 39.7 | F27: =VLOOKUP($C27,'RECAP SECT'!$G$6:$CU$253,5,FALSE) -> 27.75 | G27: =VLOOKUP($C27,'RECAP SECT'!$G$6:$CU$253,6,FALSE) -> 0% | H27: =VLOOKUP($C27,'RECAP SECT'!$G$6:$CU$253,7,FALSE) -> 1 | I27: =VLOOKUP($C27,'RECAP SECT'!$G$6:$CU$253,8,FALSE) -> 68% | J27: =VLOOKUP($C27,'RECAP SECT'!$G$6:$CU$253,9,FALSE) -> 9% | K27: =VLOOKUP($C27,'RECAP SECT'!$G$6:$CU$253,10,FALSE) -> 3 | L27: =VLOOKUP($C27,'RECAP SECT'!$G$6:$CU$253,11,FALSE) -> 4% | M27: =VLOOKUP($C27,'RECAP SECT'!$G$6:$CU$253,12,FALSE) -> 0% | N27: =VLOOKUP($C27,'RECAP SECT'!$G$6:$CU$253,13,FALSE) -> 1
A28: Total CEGEE Directions Régionales | E28: =SUM(E10:E27) -> 950

Sheet AG_CLASS
B1: Accueil | H1: BAROMETRE BDD - AGENCES
H2: CLASSEMENTS
H3: =ACCUEIL!F7 -> 2022-07-17
H8: CLASSEMENT GENERAL | I8: CRITERE Satisfaction Clients | J8: NPS à froid (SAE) | K8: NPS à chaud (QHD) | L8: CRITERE BANCARISATION | M8: Ventes Nettes produits pondérés | N8: Ventes sur client non détenteur de l’univers | O8: CRITERE EPARGNE | P8: Excédent Epargne hors DAV pondéré | Q8: Ventes sur client non détenteur de l’univers | R8: CRITERE IARD PREVOYANCE | S8: Ventes Nettes produits pondérés | T8: Ventes sur client non détenteur de l’univers | U8: CRITERE CREDITS | V8: Engagements et ventes accessoires pondérés Immo | W8: Engagements et ventes accessoires pondérés Conso | X8: Ventes sur client non détenteur de l’univers
B9: Direction | C9: eds | D9: Territoire | E9: eds | F9: Agence | G9: ="ETP perf "&DATEMAJ!$C$28 -> ETP perf 17-juil | H9: Rang | I9: Rang | J9: Rang | K9: Rang | L9: Rang | M9: Rang | N9: Rang | O9: Rang | P9: Rang | Q9: Rang | R9: Rang | S9: Rang | T9: Rang | U9: Rang | V9: Rang | W9: Rang | X9: Rang
A10: 50 | B10: MOSELLE | C10: 44 | D10: MOSELLE NORD | E10: 557508 | F10: NILVANGE | G10: 1.7 | H10: 1 | I10: 58 | J10: 71 | K10: 49 | L10: 1 | M10: 1 | N10: 1 | O10: 2 | P10: 97 | Q10: 1 | R10: 1 | S10: 1 | T10: 1 | U10: 1 | V10: 1 | W10: 6 | X10: 1
A11: 50 | B11: MOSELLE | C11: 42 | D11: MOSELLE EST | E11: 457163 | F11: BEHREN LES FORBACH | G11: 1.9 | H11: 2 | I11: 17 | J11: 23 | K11: 12 | L11: 2 | M11: 3 | N11: 4 | O11: 22 | P11: 77 | Q11: 3 | R11: 35 | S11: 84 | T11: 7 | U11: 2 | V11: 2 | W11: 1 | X11: 3
A12: 50 | B12: VOSGES | C12: 57 | D12: EPINAL | E12: 488288 | F12: EPINAL LEOPOLD BOURG | G12: 2.0 | H12: 3 | I12: 1 | J12: 1 | K12: 4 | L12: 28 | M12: 21 | N12: 62 | O12: 4 | P12: 4 | Q12: 30 | R12: 73 | S12: 50 | T12: 143 | U12: 37 | V12: 43 | W12: 54 | X12: 42
A13: 50 | B13: MARNE ARDENNES | C13: 2 | D13: CHARLEVILLE MEZIERES | E13: 508820 | F13: VOUZIERS | G13: 2.9 | H13: 4 | I13: 28 | J13: 13 | K13: 105 | L13: 48 | M13: 52 | N13: 47 | O13: 12 | P13: 5 | Q13: 110 | R13: 2 | S13: 2 | T13: 9 | U13: 33 | V13: 83 | W13: 9 | X13: 63
A14: 50 | B14: MARNE ARDENNES | C14: 11 | D14: REIMS | E14: 551305 | F14: REIMS HIPPODROME | G14: 5.3 | H14: 5 | I14: 82 | J14: 82 | K14: 89 | L14: 20 | M14: 55 | N14: 7 | O14: 18 | P14: 21 | Q14: 26 | R14: 8 | S14: 9 | T14: 13 | U14: 16 | V14: 17 | W14: 91 | X14: 7
A15: 50 | B15: MARNE ARDENNES | C15: 6 | D15: CHALONS EN CHAMPAGNE | E15: 551330 | F15: MONTMIRAIL | G15: 2.8 | H15: 6 | I15: 5 | J15: 4 | K15: 21 | L15: 25 | M15: 12 | N15: 65 | O15: 116 | P15: 114 | Q15: 85 | R15: 12 | S15: 8 | T15: 26 | U15: 85 | V15: 74 | W15: 183 | X15: 44
A16: 50 | B16: MOSELLE | C16: 44 | D16: MOSELLE NORD | E16: 557113 | F16: AUDUN LE TICHE | G16: 2.0 | H16: 7 | I16: 121 | J16: 182 | K16: 23 | L16: 4 | M16: 8 | N16: 2 | O16: 49 | P16: 130 | Q16: 4 | R16: 13 | S16: 18 | T16: 6 | U16: 14 | V16: 15 | W16: 17 | X16: 29
A17: 50 | B17: MOSELLE | C17: 44 | D17: MOSELLE NORD | E17: 557660 | F17: UCKANGE | G17: 1.8 | H17: 8 | I17: 234 | J17: 199 | K17: 228 | L17: 6 | M17: 20 | N17: 5 | O17: 39 | P17: 191 | Q17: 2 | R17: 3 | S17: 6 | T17: 3 | U17: 3 | V17: 4 | W17: 58 | X17: 2
A18: 50 | B18: MARNE ARDENNES | C18: 6 | D18: CHALONS EN CHAMPAGNE | E18: 451115 | F18: MOURMELON LE GRAND | G18: 2.8 | H18: 9 | I18: 76 | J18: 115 | K18: 8 | L18: 11 | M18: 9 | N18: 25 | O18: 56 | P18: 107 | Q18: 9 | R18: 11 | S18: 12 | T18: 10 | U18: 38 | V18: 67 | W18: 26 | X18: 48
A19: 50 | B19: MOSELLE | C19: 45 | D19: METZ | E19: 457443 | F19: METZ REPUBLIQUE | G19: 3.7 | H19: 10 | I19: 35 | J19: 39 | K19: 30 | L19: 116 | M19: 99 | N19: 142 | O19: 1 | P19: 1 | Q19: 87 | R19: 18 | S19: 14 | T19: 53 | U19: 155 | V19: 178 | W19: 81 | X19: 181
A20: 50 | B20: MARNE ARDENNES | C20: 6 | D20: CHALONS EN CHAMPAGNE | E20: 451120 | F20: SARRY | G20: 2.3 | H20: 11 | I20: 3 | J20: 4 | K20: 5 | L20: 24 | M20: 14 | N20: 52 | O20: 128 | P20: 136 | Q20: 63 | R20: 70 | S20: 60 | T20: 95 | U20: 80 | V20: 59 | W20: 152 | X20: 79
A21: 50 | B21: MEURTHE ET MOSELLE MEUSE | C21: 26 | D21: NANCY | E21: 554601 | F21: SAINT MAX | G21: 3.4 | H21: 12 | I21: 36 | J21: 47 | K21: 18 | L21: 66 | M21: 57 | N21: 99 | O21: 11 | P21: 8 | Q21: 89 | R21: 24 | S21: 16 | T21: 77 | U21: 59 | V21: 49 | W21: 95 | X21: 68
A22: 50 | B22: BAS RHIN | C22: 5006 | D22: STRASBOURG | E22: 4037 | F22: MUNDOLSHEIM | G22: 3.7 | H22: 13 | I22: 64 | J22: 58 | K22: 84 | L22: 23 | M22: 35 | N22: 28 | O22: 100 | P22: 138 | Q22: 20 | R22: 9 | S22: 10 | T22: 19 | U22: 23 | V22: 22 | W22: 150 | X22: 13
A23: 50 | B23: MEURTHE ET MOSELLE MEUSE | C23: 26 | D23: NANCY | E23: 554476 | F23: NANCY ARTEM | G23: 2.8 | H23: 14 | I23: 67 | J23: 89 | K23: 32 | L23: 12 | M23: 17 | N23: 19 | O23: 179 | P23: 168 | Q23: 165 | R23: 62 | S23: 54 | T23: 96 | U23: 5 | V23: 3 | W23: 118 | X23: 4
A24: 50 | B24: MARNE ARDENNES | C24: 11 | D24: REIMS | E24: 551340 | F24: BETHENY | G24: 2.4 | H24: 15 | I24: 51 | J24: 47 | K24: 83 | L24: 17 | M24: 24 | N24: 22 | O24: 71 | P24: 124 | Q24: 10 | R24: 96 | S24: 96 | T24: 107 | U24: 12 | V24: 5 | W24: 134 | X24: 18
A25: 50 | B25: MARNE ARDENNES | C25: 11 | D25: REIMS | E25: 551349 | F25: REIMS SAINT REMI | G25: 2.9 | H25: 16 | I25: 123 | J25: 133 | K25: 113 | L25: 3 | M25: 5 | N25: 8 | O25: 161 | P25: 204 | Q25: 17 | R25: 14 | S25: 20 | T25: 14 | U25: 11 | V25: 7 | W25: 129 | X25: 12
A26: 50 | B26: MOSELLE | C26: 42 | D26: MOSELLE EST | E26: 557250 | F26: CREUTZWALD | G26: 2.5 | H26: 17 | I26: 9 | J26: 10 | K26: 27 | L26: 143 | M26: 164 | N26: 102 | O26: 79 | P26: 95 | Q26: 48 | R26: 46 | S26: 30 | T26: 114 | U26: 32 | V26: 58 | W26: 7 | X26: 113
A27: 50 | B27: MEURTHE ET MOSELLE MEUSE | C27: 27 | D27: PONT A MOUSSON | E27: 554506 | F27: CHALIGNY NEUVES MAISONS | G27: 3.4 | H27: 18 | I27: 150 | J27: 137 | K27: 173 | L27: 8 | M27: 10 | N27: 14 | O27: 172 | P27: 197 | Q27: 51 | R27: 5 | S27: 4 | T27: 17 | U27: 9 | V27: 13 | W27: 48 | X27: 10
A28: 262 | B28: MEURTHE ET MOSELLE MEUSE | C28: 27 | D28: PONT A MOUSSON | E28: 554531 | F28: POMPEY | G28: 2.9 | H28: 19 | I28: 199 | J28: 156 | K28: 204 | L28: 5 | M28: 13 | N28: 3 | O28: 94 | P28: 141 | Q28: 16 | R28: 49 | S28: 74 | T28: 21 | U28: 4 | V28: 6 | W28: 12 | X28: 6
A29: 262 | B29: MOSELLE | C29: 42 | D29: MOSELLE EST | E29: 457165 | F29: BITCHE | G29: 2.4 | H29: 20 | I29: 49 | J29: 56 | K29: 40 | L29: 10 | M29: 2 | N29: 59 | O29: 126 | P29: 162 | Q29: 19 | R29: 15 | S29: 11 | T29: 29 | U29: 138 | V29: 154 | W29: 53 | X29: 194
A30: 262 | B30: MARNE ARDENNES | C30: 2 | D30: CHARLEVILLE MEZIERES | E30: 408801 | F30: CHARLEVILLE JEAN JAURES | G30: 8.7 | H30: 21 | I30: 52 | J30: 73 | K30: 22 | L30: 59 | M30: 71 | N30: 60 | O30: 70 | P30: 106 | Q30: 21 | R30: 33 | S30: 28 | T30: 67 | U30: 31 | V30: 18 | W30: 172 | X30: 26
A31: 262 | B31: BAS RHIN | C31: 5006 | D31: STRASBOURG | E31: 4048 | F31: STRASBOURG KOENIGSHOFFEN | G31: 1.9 | H31: 22 | I31: 179 | J31: 204 | K31: 155 | L31: 13 | M31: 16 | N31: 20 | O31: 20 | P31: 39 | Q31: 7 | R31: 17 | S31: 79 | T31: 4 | U31: 28 | V31: 79 | W31: 22 | X31: 24
A32: 262 | B32: MOSELLE | C32: 44 | D32: MOSELLE NORD | E32: 557352 | F32: HETTANGE GRANDE | G32: 2.8 | H32: 23 | I32: 141 | J32: 131 | K32: 164 | L32: 18 | M32: 38 | N32: 11 | O32: 88 | P32: 115 | Q32: 35 | R32: 44 | S32: 58 | T32: 36 | U32: 6 | V32: 23 | W32: 3 | X32: 16
A33: 262 | B33: MOSELLE | C33: 45 | D33: METZ | E33: 457453 | F33: MONTIGNY LES METZ | G33: 6.9 | H33: 24 | I33: 22 | J33: 30 | K33: 10 | L33: 42 | M33: 33 | N33: 79 | O33: 106 | P33: 157 | Q33: 11 | R33: 106 | S33: 90 | T33: 159 | U33: 41 | V33: 34 | W33: 67 | X33: 58
A34: 262 | B34: MARNE ARDENNES | C34: 11 | D34: REIMS | E34: 451350 | F34: REIMS CENTRE VILLE | G34: 6.5 | H34: 25 | I34: 145 | J34: 149 | K34: 151 | L34: 21 | M34: 36 | N34: 21 | O34: 104 | P34: 122 | Q34: 38 | R34: 23 | S34: 34 | T34: 25 | U34: 7 | V34: 11 | W34: 71 | X34: 5
A35: 262 | B35: MEURTHE ET MOSELLE MEUSE | C35: 27 | D35: PONT A MOUSSON | E35: 554381 | F35: LAXOU ARISTIDE BRIAND | G35: 2.4 | H35: 26 | I35: 164 | J35: 156 | K35: 165 | L35: 7 | M35: 11 | N35: 10 | O35: 156 | P35: 194 | Q35: 27 | R35: 22 | S35: 41 | T35: 18 | U35: 8 | V35: 9 | W35: 65 | X35: 8
A36: 262 | B36: MEURTHE ET MOSELLE MEUSE | C36: 26 | D36: NANCY | E36: 554356 | F36: JARVILLE LA MALGRANGE | G36: 4.3 | H36: 27 | I36: 54 | J36: 58 | K36: 48 | L36: 29 | M36: 18 | N36: 87 | O36: 125 | P36: 134 | Q36: 57 | R36: 58 | S36: 59 | T36: 58 | U36: 46 | V36: 33 | W36: 145 | X36: 34
A37: 262 | B37: MARNE ARDENNES | C37: 11 | D37: REIMS | E37: 551365 | F37: DORMANS | G37: 2.5 | H37: 28 | I37: 99 | J37: 106 | K37: 82 | L37: 9 | M37: 7 | N37: 27 | O37: 158 | P37: 182 | Q37: 44 | R37: 56 | S37: 63 | T37: 43 | U37: 34 | V37: 39 | W37: 166 | X37: 15
A38: 262 | B38: MOSELLE | C38: 45 | D38: METZ | E38: 557439 | F38: METZ POMPIDOU | G38: 2.4 | H38: 29 | I38: 47 | J38: 45 | K38: 63 | L38: 85 | M38: 127 | N38: 40 | O38: 10 | P38: 10 | Q38: 69 | R38: 142 | S38: 175 | T38: 70 | U38: 67 | V38: 44 | W38: 112 | X38: 93
A39: 262 | B39: VOSGES | C39: 57 | D39: EPINAL | E39: 588336 | F39: GOLBEY | G39: 2.8 | H39: 30 | I39: 27 | J39: 24 | K39: 50 | L39: 104 | M39: 97 | N39: 119 | O39: 53 | P39: 49 | Q39: 94 | R39: 77 | S39: 73 | T39: 108 | U39: 73 | V39: 94 | W39: 96 | X39: 52
A40: 262 | B40: AUBE HAUTE MARNE | C40: 21 | D40: CHAUMONT | E40: 510590 | F40: CHAUMONT REPUBLIQUE | G40: 2.9 | H40: 31 | I40: 56 | J40: 73 | K40: 41 | L40: 150 | M40: 190 | N40: 75 | O40: 27 | P40: 41 | Q40: 37 | R40: 29 | S40: 25 | T40: 60 | U40: 40 | V40: 90 | W40: 16 | X40: 49
A41: 262 | B41: MARNE ARDENNES | C41: 6 | D41: CHALONS EN CHAMPAGNE | E41: 551354 | F41: VERTUS | G41: 2.0 | H41: 32 | I41: 2 | J41: 2 | K41: 1 | L41: 168 | M41: 129 | N41: 222 | O41: 26 | P41: 22 | Q41: 138 | R41: 188 | S41: 185 | T41: 163 | U41: 123 | V41: 149 | W41: 77 | X41: 139
A42: 262 | B42: MOSELLE | C42: 45 | D42: METZ | E42: 457574 | F42: ROMBAS | G42: 2.7 | H42: 33 | I42: 24 | J42: 21 | K42: 47 | L42: 72 | M42: 70 | N42: 93 | O42: 138 | P42: 161 | Q42: 32 | R42: 20 | S42: 15 | T42: 61 | U42: 139 | V42: 109 | W42: 141 | X42: 138
A43: 262 | B43: MARNE ARDENNES | C43: 2 | D43: CHARLEVILLE MEZIERES | E43: 508839 | F43: GIVET | G43: 3.4 | H43: 34 | I43: 95 | J43: 99 | K43: 92 | L43: 64 | M43: 92 | N43: 45 | O43: 144 | P43: 170 | Q43: 39 | R43: 6 | S43: 3 | T43: 37 | U43: 42 | V43: 56 | W43: 38 | X43: 69
A44: 262 | B44: BAS RHIN | C44: 5006 | D44: STRASBOURG | E44: 4038 | F44: OBERHAUSBERGEN | G44: 3.3 | H44: 35 | I44: 61 | J44: 65 | K44: 73 | L44: 50 | M44: 78 | N44: 33 | O44: 7 | P44: 13 | Q44: 22 | R44: 198 | S44: 224 | T44: 72 | U44: 52 | V44: 29 | W44: 109 | X44: 72
A45: 262 | B45: MEURTHE ET MOSELLE MEUSE | C45: 26 | D45: NANCY | E45: 454481 | F45: NANCY PLACE DOMBASLE | G45: 7.9 | H45: 36 | I45: 178 | J45: 173 | K45: 183 | L45: 45 | M45: 81 | N45: 29 | O45: 6 | P45: 15 | Q45: 8 | R45: 92 | S45: 124 | T45: 44 | U45: 15 | V45: 8 | W45: 87 | X45: 19
A46: 262 | B46: MEURTHE ET MOSELLE MEUSE | C46: 31 | D46: VERDUN | E46: 555679 | F46: VERDUN MAZEL | G46: 3.6 | H46: 37 | I46: 13 | J46: 17 | K46: 17 | L46: 102 | M46: 95 | N46: 125 | O46: 35 | P46: 30 | Q46: 156 | R46: 118 | S46: 99 | T46: 165 | U46: 144 | V46: 129 | W46: 151 | X46: 117
A47: 262 | B47: BAS RHIN | C47: 5060 | D47: HAGUENAU | E47: 4092 | F47: HOCHFELDEN | G47: 1.7 | H47: 38 | I47: 45 | J47: 44 | K47: 52 | L47: 82 | M47: 140 | N47: 35 | O47: 23 | P47: 20 | Q47: 90 | R47: 105 | S47: 145 | T47: 55 | U47: 96 | V47: 65 | W47: 142 | X47: 94
A48: 262 | B48: MARNE ARDENNES | C48: 11 | D48: REIMS | E48: 451361 | F48: PIERRY LECLERC | G48: 1.8 | H48: 39 | I48: 74 | J48: 67 | K48: 94 | L48: 46 | M48: 45 | N48: 56 | O48: 14 | P48: 16 | Q48: 40 | R48: 122 | S48: 107 | T48: 150 | U48: 104 | V48: 51 | W48: 211 | X48: 85
A49: 262 | B49: MARNE ARDENNES | C49: 6 | D49: CHALONS EN CHAMPAGNE | E49: 551110 | F49: CHALONS ROOSEVELT | G49: 4.2 | H49: 40 | I49: 21 | J49: 17 | K49: 55 | L49: 90 | M49: 77 | N49: 118 | O49: 157 | P49: 174 | Q49: 54 | R49: 36 | S49: 23 | T49: 102 | U49: 103 | V49: 69 | W49: 156 | X49: 95
A50: 262 | B50: MARNE ARDENNES | C50: 11 | D50: REIMS | E50: 551314 | F50: FISMES | G50: 2.7 | H50: 41 | I50: 14 | J50: 19 | K50: 13 | L50: 27 | M50: 40 | N50: 31 | O50: 205 | P50: 223 | Q50: 24 | R50: 151 | S50: 182 | T50: 56 | U50: 86 | V50: 64 | W50: 192 | X50: 54
A51: 262 | B51: VOSGES | C51: 55 | D51: SAINT DIE | E51: 488246 | F51: CORNIMONT LA BRESSE | G51: 2.6 | H51: 42 | I51: 6 | J51: 3 | K51: 26 | L51: 75 | M51: 73 | N51: 90 | O51: 130 | P51: 94 | Q51: 232 | R51: 109 | S51: 92 | T51: 169 | U51: 171 | V51: 222 | W51: 62 | X51: 200
A52: 262 | B52: MOSELLE | C52: 42 | D52: MOSELLE EST | E52: 457583 | F52: SAINT AVOLD | G52: 7.0 | H52: 43 | I52: 43 | J52: 39 | K52: 54 | L52: 36 | M52: 28 | N52: 64 | O52: 93 | P52: 108 | Q52: 65 | R52: 75 | S52: 68 | T52: 87 | U52: 141 | V52: 127 | W52: 124 | X52: 133
A53: 262 | B53: MOSELLE | C53: 44 | D53: MOSELLE NORD | E53: 457350 | F53: HAYANGE | G53: 6.4 | H53: 44 | I53: 130 | J53: 120 | K53: 146 | L53: 31 | M53: 31 | N53: 54 | O53: 80 | P53: 123 | Q53: 14 | R53: 19 | S53: 21 | T53: 32 | U53: 45 | V53: 26 | W53: 139 | X53: 45
A54: 262 | B54: MEURTHE ET MOSELLE MEUSE | C54: 27 | D54: PONT A MOUSSON | E54: 554516 | F54: PAGNY SUR MOSELLE | G54: 2.8 | H54: 45 | I54: 94 | J54: 77 | K54: 134 | L54: 76 | M54: 72 | N54: 101 | O54: 50 | P54: 44 | Q54: 125 | R54: 25 | S54: 31 | T54: 31 | U54: 74 | V54: 52 | W54: 153 | X54: 71
A55: 262 | B55: MOSELLE | C55: 42 | D55: MOSELLE EST | E55: 457308 | F55: FORBACH CENTRALE | G55: 9.2 | H55: 46 | I55: 84 | J55: 71 | K55: 117 | L55: 37 | M55: 25 | N55: 70 | O55: 89 | P55: 99 | Q55: 78 | R55: 54 | S55: 45 | T55: 88 | U55: 89 | V55: 114 | W55: 46 | X55: 131
A56: 262 | B56: MARNE ARDENNES | C56: 11 | D56: REIMS | E56: 451301 | F56: REIMS HOTEL DE VILLE | G56: 7.2 | H56: 47 | I56: 85 | J56: 93 | K56: 71 | L56: 71 | M56: 75 | N56: 69 | O56: 152 | P56: 178 | Q56: 36 | R56: 21 | S56: 22 | T56: 30 | U56: 50 | V56: 30 | W56: 147 | X56: 43
A57: 262 | B57: MARNE ARDENNES | C57: 2 | D57: CHARLEVILLE MEZIERES | E57: 508833 | F57: VILLERS SEMEUSE CORA | G57: 3.2 | H57: 48 | I57: 191 | J57: 204 | K57: 171 | L57: 94 | M57: 149 | N57: 42 | O57: 32 | P57: 58 | Q57: 18 | R57: 7 | S57: 7 | T57: 16 | U57: 25 | V57: 45 | W57: 34 | X57: 31
A58: 262 | B58: MEURTHE ET MOSELLE MEUSE | C58: 31 | D58: VERDUN | E58: 455678 | F58: VERDUN CENTRALE | G58: 9.4 | H58: 49 | I58: 18 | J58: 11 | K58: 68 | L58: 67 | M58: 85 | N58: 55 | O58: 224 | P58: 229 | Q58: 80 | R58: 135 | S58: 151 | T58: 110 | U58: 35 | V58: 40 | W58: 74 | X58: 33
A59: 262 | B59: MOSELLE | C59: 45 | D59: METZ | E59: 457446 | F59: METZ SAINT LOUIS | G59: 5.6 | H59: 50 | I59: 101 | J59: 113 | K59: 75 | L59: 32 | M59: 37 | N59: 46 | O59: 173 | P59: 216 | Q59: 12 | R59: 53 | S59: 52 | T59: 71 | U59: 30 | V59: 24 | W59: 102 | X59: 32
A60: 262 | B60: MOSELLE | C60: 44 | D60: MOSELLE NORD | E60: 457348 | F60: HAGONDANGE | G60: 8.1 | H60: 51 | I60: 75 | J60: 55 | K60: 115 | L60: 54 | M60: 49 | N60: 72 | O60: 133 | P60: 125 | Q60: 97 | R60: 61 | S60: 53 | T60: 97 | U60: 58 | V60: 47 | W60: 97 | X60: 65
A61: 262 | B61: MARNE ARDENNES | C61: 11 | D61: REIMS | E61: 551367 | F61: AY CHAMPAGNE | G61: 2.7 | H61: 52 | I61: 60 | J61: 56 | K61: 86 | L61: 99 | M61: 134 | N61: 66 | O61: 87 | P61: 70 | Q61: 216 | R61: 51 | S61: 55 | T61: 52 | U61: 61 | V61: 27 | W61: 218 | X61: 40
A62: 262 | B62: BAS RHIN | C62: 5006 | D62: STRASBOURG | E62: 4010 | F62: STRASBOURG MEINAU | G62: 2.7 | H62: 53 | I62: 109 | J62: 86 | K62: 150 | L62: 81 | M62: 113 | N62: 44 | O62: 60 | P62: 61 | Q62: 83 | R62: 16 | S62: 29 | T62: 11 | U62: 109 | V62: 162 | W62: 41 | X62: 165
A63: 262 | B63: BAS RHIN | C63: 5060 | D63: HAGUENAU | E63: 4079 | F63: SOULTZ SOUS FORETS | G63: 1.9 | H63: 54 | I63: 48 | J63: 73 | K63: 11 | L63: 77 | M63: 66 | N63: 113 | O63: 41 | P63: 36 | Q63: 116 | R63: 76 | S63: 80 | T63: 79 | U63: 173 | V63: 185 | W63: 83 | X63: 218
A64: 262 | B64: VOSGES | C64: 55 | D64: SAINT DIE | E64: 488326 | F64: GERARDMER | G64: 3.8 | H64: 55 | I64: 90 | J64: 73 | K64: 126 | L64: 113 | M64: 116 | N64: 107 | O64: 16 | P64: 11 | Q64: 131 | R64: 104 | S64: 108 | T64: 121 | U64: 69 | V64: 71 | W64: 70 | X64: 88
A65: 262 | B65: MOSELLE | C65: 45 | D65: METZ | E65: 557447 | F65: METZ SAINT MAXIMIN | G65: 2.2 | H65: 56 | I65: 180 | J65: 204 | K65: 156 | L65: 62 | M65: 117 | N65: 32 | O65: 46 | P65: 110 | Q65: 5 | R65: 4 | S65: 5 | T65: 12 | U65: 72 | V65: 72 | W65: 30 | X65: 158
A66: 262 | B66: MEURTHE ET MOSELLE MEUSE | C66: 26 | D66: NANCY | E66: 554636 | F66: TOMBLAINE | G66: 2.7 | H66: 57 | I66: 15 | J66: 25 | K66: 7 | L66: 157 | M66: 156 | N66: 139 | O66: 42 | P66: 47 | Q66: 62 | R66: 154 | S66: 158 | T66: 129 | U66: 168 | V66: 175 | W66: 165 | X66: 116
A67: 262 | B67: MEURTHE ET MOSELLE MEUSE | C67: 31 | D67: VERDUN | E67: 554413 | F67: LONGWY BAS | G67: 3.5 | H67: 58 | I67: 39 | J67: 37 | K67: 57 | L67: 74 | M67: 60 | N67: 113 | O67: 129 | P67: 113 | Q67: 160 | R67: 99 | S67: 76 | T67: 171 | U67: 93 | V67: 66 | W67: 72 | X67: 154
A68: 262 | B68: BAS RHIN | C68: 5101 | D68: SELESTAT | E68: 4113 | F68: BARR | G68: 2.9 | H68: 59 | I68: 33 | J68: 58 | K68: 2 | L68: 38 | M68: 34 | N68: 67 | O68: 148 | P68: 177 | Q68: 31 | R68: 130 | S68: 110 | T68: 174 | U68: 130 | V68: 42 | W68: 243 | X68: 82
A69: 262 | B69: MARNE ARDENNES | C69: 11 | D69: REIMS | E69: 551306 | F69: REIMS SAINT MARCEAUX | G69: 4.1 | H69: 60 | I69: 46 | J69: 46 | K69: 59 | L69: 15 | M69: 6 | N69: 41 | O69: 237 | P69: 238 | Q69: 55 | R69: 74 | S69: 75 | T69: 62 | U69: 60 | V69: 38 | W69: 190 | X69: 37
A70: 262 | B70: BAS RHIN | C70: 5006 | D70: STRASBOURG | E70: 4043 | F70: STRASBOURG HALLES | G70: 7.7 | H70: 61 | I70: 133 | J70: 155 | K70: 80 | L70: 34 | M70: 64 | N70: 26 | O70: 121 | P70: 149 | Q70: 25 | R70: 10 | S70: 13 | T70: 8 | U70: 128 | V70: 80 | W70: 238 | X70: 56
A71: 262 | B71: MOSELLE | C71: 44 | D71: MOSELLE NORD | E71: 457632 | F71: THIONVILLE CENTRALE | G71: 10.7 | H71: 62 | I71: 125 | J71: 137 | K71: 99 | L71: 30 | M71: 26 | N71: 58 | O71: 143 | P71: 163 | Q71: 42 | R71: 27 | S71: 26 | T71: 49 | U71: 54 | V71: 31 | W71: 127 | X71: 57
A72: 262 | B72: MEURTHE ET MOSELLE MEUSE | C72: 27 | D72: PONT A MOUSSON | E72: 554686 | F72: VEZELISE | G72: 1.9 | H72: 63 | I72: 8 | J72: 11 | K72: 19 | L72: 118 | M72: 119 | N72: 111 | O72: 65 | P72: 52 | Q72: 179 | R72: 165 | S72: 153 | T72: 172 | U72: 223 | V72: 213 | W72: 177 | X72: 231
A73: 262 | B73: MEURTHE ET MOSELLE MEUSE | C73: 31 | D73: VERDUN | E73: 454414 | F73: LONGWY HAUT | G73: 3.3 | H73: 64 | I73: 128 | J73: 142 | K73: 98 | L73: 70 | M73: 80 | N73: 63 | O73: 72 | P73: 68 | Q73: 117 | R73: 34 | S73: 42 | T73: 40 | U73: 51 | V73: 84 | W73: 23 | X73: 70
A74: 262 | B74: MOSELLE | C74: 42 | D74: MOSELLE EST | E74: 557668 | F74: VALMONT | G74: 2.6 | H74: 65 | I74: 55 | J74: 39 | K74: 133 | L74: 182 | M74: 184 | N74: 152 | O74: 19 | P74: 14 | Q74: 119 | R74: 81 | S74: 69 | T74: 118 | U74: 126 | V74: 212 | W74: 32 | X74: 190
A75: 264 | B75: BAS RHIN | C75: 5101 | D75: SELESTAT | E75: 4104 | F75: ERSTEIN | G75: 4.4 | H75: 66 | I75: 215 | J75: 204 | K75: 195 | L75: 14 | M75: 4 | N75: 77 | O75: 33 | P75: 33 | Q75: 99 | R75: 42 | S75: 17 | T75: 166 | U75: 71 | V75: 37 | W75: 171 | X75: 73
A76: 264 | B76: MARNE ARDENNES | C76: 11 | D76: REIMS | E76: 451336 | F76: TINQUEUX | G76: 4.8 | H76: 67 | I76: 153 | J76: 135 | K76: 177 | L76: 53 | M76: 48 | N76: 73 | O76: 8 | P76: 9 | Q76: 61 | R76: 98 | S76: 114 | T76: 82 | U76: 76 | V76: 46 | W76: 167 | X76: 74
A77: 264 | B77: VOSGES | C77: 55 | D77: SAINT DIE | E77: 588186 | F77: BRUYERES | G77: 3.5 | H77: 68 | I77: 16 | J77: 9 | K77: 70 | L77: 151 | M77: 144 | N77: 147 | O77: 139 | P77: 127 | Q77: 120 | R77: 156 | S77: 183 | T77: 65 | U77: 91 | V77: 126 | W77: 125 | X77: 47
A78: 264 | B78: AUBE HAUTE MARNE | C78: 21 | D78: CHAUMONT | E78: 410541 | F78: LANGRES | G78: 8.2 | H78: 69 | I78: 72 | J78: 69 | K78: 85 | L78: 97 | M78: 68 | N78: 166 | O78: 62 | P78: 57 | Q78: 111 | R78: 68 | S78: 48 | T78: 136 | U78: 121 | V78: 196 | W78: 55 | X78: 126
A79: 264 | B79: MEURTHE ET MOSELLE MEUSE | C79: 27 | D79: PONT A MOUSSON | E79: 454535 | F79: PONT A MOUSSON CENTRALE | G79: 5.2 | H79: 70 | I79: 229 | J79: 177 | K79: 234 | L79: 19 | M79: 39 | N79: 17 | O79: 107 | P79: 82 | Q79: 209 | R79: 26 | S79: 43 | T79: 23 | U79: 19 | V79: 14 | W79: 149 | X79: 17
A80: 264 | B80: MEURTHE ET MOSELLE MEUSE | C80: 26 | D80: NANCY | E80: 554116 | F80: BACCARAT | G80: 2.8 | H80: 71 | I80: 12 | J80: 14 | K80: 16 | L80: 145 | M80: 105 | N80: 193 | O80: 99 | P80: 75 | Q80: 233 | R80: 120 | S80: 112 | T80: 145 | U80: 201 | V80: 159 | W80: 164 | X80: 217
A81: 264 | B81: MOSELLE | C81: 42 | D81: MOSELLE EST | E81: 457617 | F81: SARREGUEMINES | G81: 6.5 | H81: 72 | I81: 136 | J81: 151 | K81: 127 | L81: 49 | M81: 53 | N81: 51 | O81: 85 | P81: 111 | Q81: 43 | R81: 71 | S81: 66 | T81: 66 | U81: 36 | V81: 41 | W81: 59 | X81: 38
A82: 264 | B82: VOSGES | C82: 55 | D82: SAINT DIE | E82: 588551 | F82: RAMBERVILLERS | G82: 2.6 | H82: 73 | I82: 32 | J82: 26 | K82: 66 | L82: 200 | M82: 221 | N82: 109 | O82: 68 | P82: 46 | Q82: 214 | R82: 212 | S82: 208 | T82: 183 | U82: 26 | V82: 60 | W82: 28 | X82: 28
A83: 264 | B83: MOSELLE | C83: 45 | D83: METZ | E83: 557434 | F83: MARLY | G83: 3.0 | H83: 74 | I83: 42 | J83: 34 | K83: 81 | L83: 107 | M83: 84 | N83: 150 | O83: 63 | P83: 53 | Q83: 173 | R83: 187 | S83: 164 | T83: 211 | U83: 79 | V83: 63 | W83: 161 | X83: 64
A84: 264 | B84: VOSGES | C84: 57 | D84: EPINAL | E84: 488561 | F84: REMIREMONT | G84: 7.2 | H84: 75 | I84: 10 | J84: 8 | K84: 36 | L84: 121 | M84: 87 | N84: 184 | O84: 162 | P84: 139 | Q84: 181 | R84: 112 | S84: 77 | T84: 216 | U84: 189 | V84: 143 | W84: 227 | X84: 121
A85: 264 | B85: MARNE ARDENNES | C85: 2 | D85: CHARLEVILLE MEZIERES | E85: 508802 | F85: CHARLEVILLE NEVERS | G85: 2.8 | H85: 76 | I85: 19 | J85: 21 | K85: 24 | L85: 209 | M85: 198 | N85: 212 | O85: 120 | P85: 102 | Q85: 166 | R85: 64 | S85: 39 | T85: 144 | U85: 153 | V85: 133 | W85: 89 | X85: 196
A86: 264 | B86: MARNE ARDENNES | C86: 11 | D86: REIMS | E86: 451370 | F86: EPERNAY | G86: 8.8 | H86: 77 | I86: 79 | J86: 98 | K86: 45 | L86: 60 | M86: 56 | N86: 85 | O86: 140 | P86: 150 | Q86: 60 | R86: 90 | S86: 93 | T86: 94 | U86: 68 | V86: 78 | W86: 116 | X86: 52
A87: 264 | B87: BAS RHIN | C87: 5006 | D87: STRASBOURG | E87: 4054 | F87: STRASBOURG MONTAGNE VERTE | G87: 2.6 | H87: 78 | I87: 62 | J87: 47 | K87: 128 | L87: 89 | M87: 146 | N87: 39 | O87: 58 | P87: 67 | Q87: 59 | R87: 65 | S87: 78 | T87: 35 | U87: 200 | V87: 237 | W87: 146 | X87: 150
A88: 264 | B88: MOSELLE | C88: 42 | D88: MOSELLE EST | E88: 457543 | F88: PUTTELANGE AUX LACS | G88: 2.4 | H88: 79 | I88: 100 | J88: 93 | K88: 120 | L88: 93 | M88: 102 | N88: 89 | O88: 114 | P88: 126 | Q88: 49 | R88: 40 | S88: 51 | T88: 41 | U88: 75 | V88: 57 | W88: 197 | X88: 41
A89: 264 | B89: MOSELLE | C89: 44 | D89: MOSELLE NORD | E89: 557303 | F89: FAMECK | G89: 2.8 | H89: 80 | I89: 50 | J89: 58 | K89: 39 | L89: 86 | M89: 186 | N89: 18 | O89: 101 | P89: 117 | Q89: 50 | R89: 217 | S89: 213 | T89: 181 | U89: 39 | V89: 77 | W89: 27 | X89: 39
A90: 264 | B90: MOSELLE | C90: 45 | D90: METZ | E90: 557444 | F90: SAINT JULIEN LES METZ | G90: 3.7 | H90: 81 | I90: 216 | J90: 167 | K90: 220 | L90: 68 | M90: 88 | N90: 53 | O90: 15 | P90: 19 | Q90: 28 | R90: 67 | S90: 115 | T90: 20 | U90: 44 | V90: 106 | W90: 8 | X90: 104
A91: 264 | B91: MARNE ARDENNES | C91: 2 | D91: CHARLEVILLE MEZIERES | E91: 408840 | F91: RETHEL | G91: 4.3 | H91: 82 | I91: 138 | J91: 142 | K91: 143 | L91: 56 | M91: 44 | N91: 88 | O91: 75 | P91: 66 | Q91: 139 | R91: 66 | S91: 46 | T91: 138 | U91: 57 | V91: 97 | W91: 43 | X91: 60
A92: 264 | B92: MOSELLE | C92: 45 | D92: METZ | E92: 557612 | F92: SAINTE MARIE AUX CHENES | G92: 3.7 | H92: 83 | I92: 26 | J92: 43 | K92: 3 | L92: 226 | M92: 206 | N92: 235 | O92: 21 | P92: 6 | Q92: 240 | R92: 129 | S92: 94 | T92: 199 | U92: 214 | V92: 233 | W92: 196 | X92: 127
A93: 264 | B93: MOSELLE | C93: 42 | D93: MOSELLE EST | E93: 557305 | F93: FAULQUEMONT | G93: 4.3 | H93: 84 | I93: 201 | J93: 134 | K93: 225 | L93: 22 | M93: 32 | N93: 24 | O93: 209 | P93: 224 | Q93: 41 | R93: 60 | S93: 67 | T93: 39 | U93: 13 | V93: 16 | W93: 78 | X93: 9
A94: 264 | B94: BAS RHIN | C94: 5060 | D94: HAGUENAU | E94: 4041 | F94: HOERDT | G94: 1.7 | H94: 85 | I94: 41 | J94: 31 | K94: 87 | L94: 134 | M94: 112 | N94: 161 | O94: 38 | P94: 28 | Q94: 169 | R94: 176 | S94: 154 | T94: 218 | U94: 140 | V94: 98 | W94: 110 | X94: 185
A95: 264 | B95: BAS RHIN | C95: 5006 | D95: STRASBOURG | E95: 4047 | F95: STRASBOURG CRONENBOURG | G95: 4.5 | H95: 86 | I95: 80 | J95: 95 | K95: 56 | L95: 47 | M95: 29 | N95: 100 | O95: 117 | P95: 129 | Q95: 45 | R95: 89 | S95: 85 | T95: 112 | U95: 157 | V95: 87 | W95: 194 | X95: 151
A96: 264 | B96: MARNE ARDENNES | C96: 6 | D96: CHALONS EN CHAMPAGNE | E96: 451101 | F96: CHALONS VIVIERS | G96: 9.6 | H96: 87 | I96: 31 | J96: 38 | K96: 20 | L96: 131 | M96: 107 | N96: 157 | O96: 187 | P96: 200 | Q96: 77 | R96: 86 | S96: 83 | T96: 104 | U96: 116 | V96: 82 | W96: 175 | X96: 96
A97: 30 | B97: AUBE HAUTE MARNE | C97: 14 | D97: TROYES | E97: 510570 | F97: NOGENT SUR SEINE | G97: 4.3 | H97: 88 | I97: 20 | J97: 16 | K97: 51 | L97: 106 | M97: 110 | N97: 104 | O97: 203 | P97: 202 | Q97: 102 | R97: 138 | S97: 113 | T97: 188 | U97: 120 | V97: 100 | W97: 113 | X97: 135
A98: 30 | B98: MARNE ARDENNES | C98: 11 | D98: REIMS | E98: 551369 | F98: DAMERY | G98: 1.7 | H98: 89 | I98: 92 | J98: 54 | K98: 161 | L98: 39 | M98: 89 | N98: 16 | O98: 228 | P98: 225 | Q98: 212 | R98: 103 | S98: 167 | T98: 24 | U98: 29 | V98: 36 | W98: 130 | X98: 14
A99: 30 | B99: MOSELLE | C99: 44 | D99: MOSELLE NORD | E99: 457306 | F99: FLORANGE | G99: 4.7 | H99: 90 | I99: 231 | J99: 195 | K99: 226 | L99: 26 | M99: 27 | N99: 34 | O99: 109 | P99: 142 | Q99: 23 | R99: 83 | S99: 106 | T99: 51 | U99: 10 | V99: 10 | W99: 51 | X99: 21
A100: 30 | B100: MOSELLE | C100: 44 | D100: MOSELLE NORD | E100: 457158 | F100: YUTZ | G100: 4.4 | H100: 91 | I100: 165 | J100: 195 | K100: 138 | L100: 51 | M100: 30 | N100: 131 | O100: 78 | P100: 74 | Q100: 132 | R100: 55 | S100: 47 | T100: 91 | U100: 53 | V100: 73 | W100: 15 | X100: 109
A101: 30 | B101: MOSELLE | C101: 42 | D101: MOSELLE EST | E101: 557523 | F101: PHALSBOURG | G101: 2.3 | H101: 92 | I101: 119 | J101: 122 | K101: 109 | L101: 152 | M101: 176 | N101: 103 | O101: 36 | P101: 43 | Q101: 68 | R101: 39 | S101: 19 | T101: 141 | U101: 107 | V101: 173 | W101: 20 | X101: 193
A102: 30 | B102: MOSELLE | C102: 44 | D102: MOSELLE NORD | E102: 557347 | F102: GUENANGE | G102: 4.5 | H102: 93 | I102: 214 | J102: 199 | K102: 199 | L102: 35 | M102: 23 | N102: 81 | O102: 160 | P102: 159 | Q102: 84 | R102: 37 | S102: 33 | T102: 80 | U102: 20 | V102: 19 | W102: 50 | X102: 30
A103: 30 | B103: MEURTHE ET MOSELLE MEUSE | C103: 31 | D103: VERDUN | E103: 555406 | F103: LIGNY EN BARROIS | G103: 2.5 | H103: 94 | I103: 25 | J103: 19 | K103: 64 | L103: 120 | M103: 121 | N103: 126 | O103: 40 | P103: 34 | Q103: 124 | R103: 227 | S103: 228 | T103: 215 | U103: 174 | V103: 189 | W103: 148 | X103: 160
A104: 30 | B104: MARNE ARDENNES | C104: 6 | D104: CHALONS EN CHAMPAGNE | E104: 551128 | F104: SAINTE MENEHOULD | G104: 3.1 | H104: 95 | I104: 38 | J104: 31 | K104: 76 | L104: 114 | M104: 58 | N104: 225 | O104: 190 | P104: 181 | Q104: 186 | R104: 59 | S104: 38 | T104: 133 | U104: 176 | V104: 188 | W104: 85 | X104: 220
A105: 30 | B105: MEURTHE ET MOSELLE MEUSE | C105: 27 | D105: PONT A MOUSSON | E105: 554416 | F105: LUDRES | G105: 3.5 | H105: 96 | I105: 65 | J105: 70 | K105: 65 | L105: 148 | M105: 115 | N105: 185 | O105: 45 | P105: 31 | Q105: 177 | R105: 136 | S105: 98 | T105: 209 | U105: 131 | V105: 68 | W105: 198 | X105: 107
A106: 30 | B106: VOSGES | C106: 55 | D106: SAINT DIE | E106: 588666 | F106: VAGNEY | G106: 3.3 | H106: 97 | I106: 30 | J106: 27 | K106: 46 | L106: 183 | M106: 139 | N106: 231 | O106: 59 | P106: 48 | Q106: 153 | R106: 166 | S106: 123 | T106: 231 | U106: 182 | V106: 211 | W106: 100 | X106: 202
A107: 30 | B107: AUBE HAUTE MARNE | C107: 21 | D107: CHAUMONT | E107: 451154 | F107: JOINVILLE | G107: 1.9 | H107: 98 | I107: 71 | J107: 82 | K107: 43 | L107: 63 | M107: 76 | N107: 57 | O107: 230 | P107: 231 | Q107: 152 | R107: 28 | S107: 37 | T107: 34 | U107: 132 | V107: 165 | W107: 126 | X107: 90
A108: 30 | B108: MARNE ARDENNES | C108: 11 | D108: REIMS | E108: 551310 | F108: REIMS CHATILLONS | G108: 4.0 | H108: 99 | I108: 135 | J108: 127 | K108: 154 | L108: 55 | M108: 61 | N108: 61 | O108: 105 | P108: 103 | Q108: 113 | R108: 80 | S108: 87 | T108: 76 | U108: 70 | V108: 70 | W108: 174 | X108: 35
A109: 30 | B109: MEURTHE ET MOSELLE MEUSE | C109: 31 | D109: VERDUN | E109: 555624 | F109: STENAY | G109: 3.3 | H109: 100 | I109: 194 | J109: 204 | K109: 174 | L109: 33 | M109: 65 | N109: 23 | O109: 82 | P109: 85 | Q109: 72 | R109: 173 | S109: 203 | T109: 81 | U109: 18 | V109: 75 | W109: 2 | X109: 55
A110: 30 | B110: MEURTHE ET MOSELLE MEUSE | C110: 27 | D110: PONT A MOUSSON | E110: 554376 | F110: LAXOU BOUFFLERS | G110: 2.9 | H110: 101 | I110: 240 | J110: 204 | K110: 238 | L110: 16 | M110: 43 | N110: 6 | O110: 214 | P110: 213 | Q110: 136 | R110: 45 | S110: 103 | T110: 5 | U110: 17 | V110: 21 | W110: 57 | X110: 11
A111: 30 | B111: BAS RHIN | C111: 5060 | D111: HAGUENAU | E111: 4071 | F111: WISSEMBOURG | G111: 6.9 | H111: 102 | I111: 44 | J111: 51 | K111: 25 | L111: 126 | M111: 125 | N111: 134 | O111: 97 | P111: 88 | Q111: 118 | R111: 108 | S111: 109 | T111: 130 | U111: 228 | V111: 227 | W111: 184 | X111: 215
A112: 30 | B112: BAS RHIN | C112: 5006 | D112: STRASBOURG | E112: 4027 | F112: SCHILTIGHEIM CENTRE | G112: 3.7 | H112: 103 | I112: 184 | J112: 204 | K112: 162 | L112: 44 | M112: 41 | N112: 78 | O112: 67 | P112: 71 | Q112: 79 | R112: 52 | S112: 64 | T112: 33 | U112: 106 | V112: 111 | W112: 80 | X112: 122
A113: 30 | B113: MOSELLE | C113: 45 | D113: METZ | E113: 557441 | F113: METZ PLAPPEVILLE | G113: 2.2 | H113: 104 | I113: 208 | J113: 177 | K113: 202 | L113: 155 | M113: 187 | N113: 94 | O113: 3 | P113: 2 | Q113: 93 | R113: 144 | S113: 133 | T113: 161 | U113: 100 | V113: 155 | W113: 44 | X113: 130
A114: 30 | B114: MEURTHE ET MOSELLE MEUSE | C114: 31 | D114: VERDUN | E114: 554700 | F114: VILLERUPT | G114: 2.7 | H114: 105 | I114: 37 | J114: 31 | K114: 72 | L114: 109 | M114: 101 | N114: 130 | O114: 151 | P114: 152 | Q114: 71 | R114: 162 | S114: 146 | T114: 168 | U114: 190 | V114: 194 | W114: 92 | X114: 234
A115: 30 | B115: MEURTHE ET MOSELLE MEUSE | C115: 26 | D115: NANCY | E115: 454426 | F115: LUNEVILLE CARNOT | G115: 8.0 | H115: 106 | I115: 171 | J115: 142 | K115: 194 | L115: 87 | M115: 118 | N115: 50 | O115: 54 | P115: 50 | Q115: 92 | R115: 169 | S115: 198 | T115: 73 | U115: 24 | V115: 54 | W115: 35 | X115: 27
A116: 30 | B116: MARNE ARDENNES | C116: 2 | D116: CHARLEVILLE MEZIERES | E116: 408822 | F116: CHARLEVILLE MEZIERES | G116: 5.1 | H116: 107 | I116: 195 | J116: 167 | K116: 197 | L116: 153 | M116: 218 | N116: 38 | O116: 13 | P116: 32 | Q116: 6 | R116: 87 | S116: 136 | T116: 28 | U116: 62 | V116: 53 | W116: 235 | X116: 22
A117: 30 | B117: VOSGES | C117: 57 | D117: EPINAL | E117: 588396 | F117: LE VAL D AJOL | G117: 2.7 | H117: 108 | I117: 11 | J117: 14 | K117: 15 | L117: 188 | M117: 165 | N117: 206 | O117: 102 | P117: 81 | Q117: 196 | R117: 193 | S117: 162 | T117: 233 | U117: 236 | V117: 191 | W117: 240 | X117: 206
A118: 30 | B118: MARNE ARDENNES | C118: 11 | D118: REIMS | E118: 551341 | F118: REIMS JEAN JAURES | G118: 2.8 | H118: 109 | I118: 202 | J118: 192 | K118: 191 | L118: 52 | M118: 79 | N118: 37 | O118: 48 | P118: 51 | Q118: 66 | R118: 141 | S118: 178 | T118: 54 | U118: 48 | V118: 35 | W118: 217 | X118: 20
A119: 30 | B119: MOSELLE | C119: 45 | D119: METZ | E119: 557105 | F119: ARS SUR MOSELLE | G119: 3.4 | H119: 110 | I119: 102 | J119: 58 | K119: 180 | L119: 129 | M119: 154 | N119: 95 | O119: 159 | P119: 172 | Q119: 74 | R119: 179 | S119: 196 | T119: 115 | U119: 27 | V119: 28 | W119: 42 | X119: 51
A120: 30 | B120: VOSGES | C120: 57 | D120: EPINAL | E120: 588716 | F120: XERTIGNY | G120: 2.7 | H120: 111 | I120: 63 | J120: 82 | K120: 34 | L120: 171 | M120: 131 | N120: 226 | O120: 73 | P120: 63 | Q120: 140 | R120: 110 | S120: 70 | T120: 221 | U120: 178 | V120: 170 | W120: 117 | X120: 205
A121: 30 | B121: MEURTHE ET MOSELLE MEUSE | C121: 31 | D121: VERDUN | E121: 455566 | F121: REVIGNY SUR ORNAIN | G121: 2.7 | H121: 112 | I121: 118 | J121: 122 | K121: 106 | L121: 141 | M121: 98 | N121: 195 | O121: 43 | P121: 29 | Q121: 194 | R121: 97 | S121: 71 | T121: 173 | U121: 145 | V121: 224 | W121: 36 | X121: 203
A122: 30 | B122: BAS RHIN | C122: 5006 | D122: STRASBOURG | E122: 4006 | F122: STRASBOURG NEUDORF | G122: 7.9 | H122: 113 | I122: 23 | J122: 34 | K122: 9 | L122: 175 | M122: 185 | N122: 145 | O122: 197 | P122: 187 | Q122: 195 | R122: 119 | S122: 118 | T122: 137 | U122: 202 | V122: 172 | W122: 223 | X122: 125
A123: 30 | B123: MOSELLE | C123: 44 | D123: MOSELLE NORD | E123: 557307 | F123: FONTOY | G123: 1.9 | H123: 114 | I123: 40 | J123: 36 | K123: 62 | L123: 202 | M123: 180 | N123: 217 | O123: 90 | P123: 69 | Q123: 227 | R123: 222 | S123: 215 | T123: 229 | U123: 78 | V123: 86 | W123: 25 | X123: 161
A124: 30 | B124: MEURTHE ET MOSELLE MEUSE | C124: 31 | D124: VERDUN | E124: 455151 | F124: BAR LE DUC | G124: 10.0 | H124: 115 | I124: 57 | J124: 79 | K124: 35 | L124: 133 | M124: 103 | N124: 181 | O124: 168 | P124: 154 | Q124: 155 | R124: 111 | S124: 95 | T124: 164 | U124: 136 | V124: 169 | W124: 68 | X124: 168
A125: 30 | B125: MOSELLE | C125: 42 | D125: MOSELLE EST | E125: 557210 | F125: CHATEAU SALINS | G125: 1.4 | H125: 116 | I125: 168 | J125: 204 | K125: 137 | L125: 78 | M125: 89 | N125: 68 | O125: 180 | P125: 173 | Q125: 148 | R125: 30 | S125: 24 | T125: 69 | U125: 64 | V125: 203 | W125: 4 | X125: 169
A126: 30 | B126: MOSELLE | C126: 45 | D126: METZ | E126: 557432 | F126: MAIZIERES LES METZ | G126: 2.6 | H126: 117 | I126: 189 | J126: 204 | K126: 168 | L126: 65 | M126: 132 | N126: 30 | O126: 137 | P126: 137 | Q126: 75 | R126: 127 | S126: 142 | T126: 98 | U126: 21 | V126: 12 | W126: 136 | X126: 23
A127: 30 | B127: AUBE HAUTE MARNE | C127: 21 | D127: CHAUMONT | E127: 451156 | F127: SAINT DIZIER CENTRE | G127: 8.6 | H127: 118 | I127: 117 | J127: 109 | K127: 141 | L127: 122 | M127: 143 | N127: 98 | O127: 145 | P127: 131 | Q127: 127 | R127: 69 | S127: 61 | T127: 85 | U127: 114 | V127: 151 | W127: 108 | X127: 86
A128: 30 | B128: VOSGES | C128: 57 | D128: EPINAL | E128: 588631 | F128: THAON LES VOSGES | G128: 4.2 | H128: 119 | I128: 107 | J128: 95 | K128: 139 | L128: 103 | M128: 94 | N128: 132 | O128: 175 | P128: 153 | Q128: 174 | R128: 101 | S128: 144 | T128: 45 | U128: 97 | V128: 122 | W128: 60 | X128: 99
A129: 30 | B129: MOSELLE | C129: 42 | D129: MOSELLE EST | E129: 457435 | F129: MERLEBACH | G129: 2.8 | H129: 120 | I129: 111 | J129: 106 | K129: 107 | L129: 92 | M129: 160 | N129: 36 | O129: 202 | P129: 215 | Q129: 46 | R129: 125 | S129: 174 | T129: 37 | U129: 63 | V129: 202 | W129: 11 | X129: 81
A130: 30 | B130: BAS RHIN | C130: 5101 | D130: SELESTAT | E130: 4121 | F130: SCHIRMECK | G130: 2.8 | H130: 121 | I130: 68 | J130: 103 | K130: 14 | L130: 79 | M130: 67 | N130: 110 | O130: 204 | P130: 203 | Q130: 100 | R130: 197 | S130: 180 | T130: 212 | U130: 98 | V130: 85 | W130: 111 | X130: 92
A131: 30 | B131: BAS RHIN | C131: 5060 | D131: HAGUENAU | E131: 4031 | F131: TRUCHTERSHEIM | G131: 2.2 | H131: 122 | I131: 34 | J131: 29 | K131: 69 | L131: 69 | M131: 22 | N131: 219 | O131: 118 | P131: 83 | Q131: 211 | R131: 230 | S131: 221 | T131: 237 | U131: 235 | V131: 174 | W131: 233 | X131: 237
A132: 30 | B132: MEURTHE ET MOSELLE MEUSE | C132: 31 | D132: VERDUN | E132: 554412 | F132: LONGUYON | G132: 2.8 | H132: 123 | I132: 59 | J132: 65 | K132: 67 | L132: 95 | M132: 108 | N132: 76 | O132: 186 | P132: 165 | Q132: 217 | R132: 150 | S132: 134 | T132: 167 | U132: 165 | V132: 103 | W132: 189 | X132: 142
A133: 30 | B133: VOSGES | C133: 57 | D133: EPINAL | E133: 588201 | F133: CHANTRAINE | G133: 3.6 | H133: 124 | I133: 115 | J133: 117 | K133: 100 | L133: 80 | M133: 62 | N133: 121 | O133: 77 | P133: 76 | Q133: 107 | R133: 178 | S133: 152 | T133: 224 | U133: 146 | V133: 119 | W133: 158 | X133: 119
A134: 30 | B134: VOSGES | C134: 57 | D134: EPINAL | E134: 488281 | F134: ELOYES | G134: 3.3 | H134: 125 | I134: 53 | J134: 51 | K134: 74 | L134: 186 | M134: 161 | N134: 207 | O134: 51 | P134: 42 | Q134: 149 | R134: 221 | S134: 209 | T134: 236 | U134: 143 | V134: 183 | W134: 66 | X134: 173
A135: 30 | B135: MARNE ARDENNES | C135: 6 | D135: CHALONS EN CHAMPAGNE | E135: 551103 | F135: FAGNIERES LECLERC | G135: 2.9 | H135: 126 | I135: 104 | J135: 135 | K135: 31 | L135: 204 | M135: 200 | N135: 170 | O135: 164 | P135: 183 | Q135: 67 | R135: 47 | S135: 49 | T135: 63 | U135: 99 | V135: 113 | W135: 73 | X135: 105
A136: 110 | B136: VOSGES | C136: 55 | D136: SAINT DIE | E136: 588461 | F136: MOYENMOUTIER | G136: 4.3 | H136: 127 | I136: 83 | J136: 63 | K136: 135 | L136: 117 | M136: 46 | N136: 238 | O136: 122 | P136: 91 | Q136: 198 | R136: 113 | S136: 100 | T136: 152 | U136: 211 | V136: 236 | W136: 103 | X136: 214
A137: 110 | B137: VOSGES | C137: 57 | D137: EPINAL | E137: 488286 | F137: EPINAL ARISTIDE BRIAND | G137: 8.1 | H137: 128 | I137: 151 | J137: 142 | K137: 167 | L137: 61 | M137: 82 | N137: 49 | O137: 30 | P137: 40 | Q137: 53 | R137: 170 | S137: 197 | T137: 83 | U137: 154 | V137: 137 | W137: 203 | X137: 84
A138: 110 | B138: BAS RHIN | C138: 5006 | D138: STRASBOURG | E138: 4023 | F138: STRASBOURG VOSGES | G138: 2.8 | H138: 129 | I138: 140 | J138: 127 | K138: 170 | L138: 128 | M138: 130 | N138: 122 | O138: 9 | P138: 12 | Q138: 47 | R138: 191 | S138: 181 | T138: 196 | U138: 158 | V138: 61 | W138: 230 | X138: 155
A139: 110 | B139: HAUT RHIN | C139: 5130 | D139: COLMAR | E139: 4143 | F139: MUNSTER | G139: 4.2 | H139: 130 | I139: 126 | J139: 162 | K139: 53 | L139: 84 | M139: 42 | N139: 202 | O139: 84 | P139: 64 | Q139: 205 | R139: 128 | S139: 89 | T139: 204 | U139: 167 | V139: 182 | W139: 90 | X139: 188
A140: 110 | B140: BAS RHIN | C140: 5101 | D140: SELESTAT | E140: 4126 | F140: MUTZIG | G140: 2.6 | H140: 131 | I140: 161 | J140: 199 | K140: 124 | L140: 41 | M140: 19 | N140: 127 | O140: 64 | P140: 73 | Q140: 76 | R140: 155 | S140: 148 | T140: 154 | U140: 152 | V140: 95 | W140: 231 | X140: 76
A141: 110 | B141: VOSGES | C141: 55 | D141: SAINT DIE | E141: 588386 | F141: LE THILLOT | G141: 2.3 | H141: 132 | I141: 7 | J141: 6 | K141: 29 | L141: 192 | M141: 135 | N141: 241 | O141: 213 | P141: 201 | Q141: 228 | R141: 211 | S141: 199 | T141: 217 | U141: 220 | V141: 228 | W141: 187 | X141: 170
A142: 110 | B142: MARNE ARDENNES | C142: 6 | D142: CHALONS EN CHAMPAGNE | E142: 451381 | F142: SEZANNE | G142: 4.9 | H142: 133 | I142: 106 | J142: 108 | K142: 95 | L142: 123 | M142: 111 | N142: 141 | O142: 55 | P142: 45 | Q142: 133 | R142: 202 | S142: 201 | T142: 175 | U142: 134 | V142: 76 | W142: 202 | X142: 103
A143: 110 | B143: MEURTHE ET MOSELLE MEUSE | C143: 26 | D143: NANCY | E143: 554296 | F143: ESSEY LES NANCY | G143: 3.6 | H143: 134 | I143: 73 | J143: 87 | K143: 44 | L143: 130 | M143: 133 | N143: 123 | O143: 127 | P143: 100 | Q143: 190 | R143: 203 | S143: 193 | T143: 184 | U143: 129 | V143: 150 | W143: 182 | X143: 59
A144: 110 | B144: BAS RHIN | C144: 5060 | D144: HAGUENAU | E144: 4057 | F144: BISCHWILLER | G144: 7.2 | H144: 135 | I144: 77 | J144: 89 | K144: 58 | L144: 98 | M144: 50 | N144: 200 | O144: 167 | P144: 140 | Q144: 213 | R144: 117 | S144: 104 | T144: 155 | U144: 219 | V144: 243 | W144: 64 | X144: 232
A145: 110 | B145: BAS RHIN | C145: 5006 | D145: STRASBOURG | E145: 4024 | F145: STRASBOURG AUSTERLITZ | G145: 0.9 | H145: 136 | I145: 241 | J145: 204 | K145: 241 | L145: 83 | M145: 203 | N145: 9 | O145: 163 | P145: 210 | Q145: 13 | R145: 32 | S145: 202 | T145: 2 | U145: 22 | V145: 20 | W145: 75 | X145: 25
A146: 110 | B146: MEURTHE ET MOSELLE MEUSE | C146: 27 | D146: PONT A MOUSSON | E146: 454651 | F146: TOUL | G146: 9.8 | H146: 137 | I146: 211 | J146: 152 | K146: 224 | L146: 154 | M146: 169 | N146: 120 | O146: 92 | P146: 90 | Q146: 91 | R146: 57 | S146: 62 | T146: 47 | U146: 43 | V146: 32 | W146: 63 | X146: 67
A147: 110 | B147: AUBE HAUTE MARNE | C147: 14 | D147: TROYES | E147: 510513 | F147: SAINT PARRE AUX TERTRES | G147: 2.2 | H147: 138 | I147: 238 | J147: 204 | K147: 235 | L147: 40 | M147: 93 | N147: 13 | O147: 142 | P147: 195 | Q147: 15 | R147: 31 | S147: 44 | T147: 27 | U147: 90 | V147: 92 | W147: 128 | X147: 62
A148: 110 | B148: BAS RHIN | C148: 5006 | D148: STRASBOURG | E148: 4020 | F148: STRASBOURG ROBERTSAU | G148: 5.3 | H148: 139 | I148: 139 | J148: 162 | K148: 111 | L148: 174 | M148: 168 | N148: 178 | O148: 5 | P148: 3 | Q148: 105 | R148: 196 | S148: 171 | T148: 226 | U148: 199 | V148: 204 | W148: 133 | X148: 211
A149: 110 | B149: VOSGES | C149: 55 | D149: SAINT DIE | E149: 588316 | F149: FRAIZE | G149: 3.7 | H149: 140 | I149: 108 | J149: 122 | K149: 60 | L149: 203 | M149: 189 | N149: 205 | O149: 98 | P149: 84 | Q149: 142 | R149: 82 | S149: 56 | T149: 176 | U149: 142 | V149: 152 | W149: 121 | X149: 111
A150: 110 | B150: VOSGES | C150: 57 | D150: EPINAL | E150: 488706 | F150: VITTEL | G150: 3.0 | H150: 141 | I150: 91 | J150: 104 | K150: 61 | L150: 178 | M150: 148 | N150: 211 | O150: 182 | P150: 156 | Q150: 208 | R150: 100 | S150: 97 | T150: 126 | U150: 102 | V150: 158 | W150: 93 | X150: 66
A151: 110 | B151: MOSELLE | C151: 42 | D151: MOSELLE EST | E151: 557503 | F151: NEUNKIRCH | G151: 3.4 | H151: 142 | I151: 4 | J151: 7 | K151: 6 | L151: 219 | M151: 204 | N151: 232 | O151: 206 | P151: 196 | Q151: 215 | R151: 229 | S151: 219 | T151: 238 | U151: 195 | V151: 197 | W151: 131 | X151: 212
A152: 110 | B152: BAS RHIN | C152: 5060 | D152: HAGUENAU | E152: 4085 | F152: INGWILLER | G152: 3.5 | H152: 143 | I152: 122 | J152: 111 | K152: 152 | L152: 124 | M152: 124 | N152: 136 | O152: 110 | P152: 93 | Q152: 150 | R152: 124 | S152: 131 | T152: 113 | U152: 118 | V152: 181 | W152: 39 | X152: 177
A153: 110 | B153: MEURTHE ET MOSELLE MEUSE | C153: 26 | D153: NANCY | E153: 554166 | F153: BLAINVILLE | G153: 2.6 | H153: 144 | I153: 183 | J153: 204 | K153: 160 | L153: 58 | M153: 54 | N153: 80 | O153: 185 | P153: 175 | Q153: 172 | R153: 48 | S153: 40 | T153: 86 | U153: 112 | V153: 99 | W153: 169 | X153: 78
A154: 110 | B154: MOSELLE | C154: 44 | D154: MOSELLE NORD | E154: 457192 | F154: CATTENOM | G154: 1.6 | H154: 145 | I154: 147 | J154: 184 | K154: 114 | L154: 91 | M154: 69 | N154: 148 | O154: 135 | P154: 160 | Q154: 29 | R154: 140 | S154: 129 | T154: 151 | U154: 82 | V154: 48 | W154: 99 | X154: 140
A155: 110 | B155: MEURTHE ET MOSELLE MEUSE | C155: 26 | D155: NANCY | E155: 554486 | F155: NANCY POINT CENTRAL | G155: 3.0 | H155: 146 | I155: 132 | J155: 89 | K155: 198 | L155: 195 | M155: 220 | N155: 105 | O155: 25 | P155: 27 | Q155: 81 | R155: 172 | S155: 166 | T155: 157 | U155: 125 | V155: 89 | W155: 106 | X155: 171
A156: 110 | B156: AUBE HAUTE MARNE | C156: 21 | D156: CHAUMONT | E156: 410566 | F156: CHAUMONT HOTEL DE VILLE | G156: 10.5 | H156: 147 | I156: 116 | J156: 114 | K156: 112 | L156: 169 | M156: 174 | N156: 153 | O156: 66 | P156: 55 | Q156: 146 | R156: 158 | S156: 126 | T156: 200 | U156: 159 | V156: 171 | W156: 86 | X156: 187
A157: 110 | B157: BAS RHIN | C157: 5006 | D157: STRASBOURG | E157: 4019 | F157: STRASBOURG ANVERS | G157: 4.5 | H157: 148 | I157: 174 | J157: 184 | K157: 159 | L157: 43 | M157: 47 | N157: 48 | O157: 192 | P157: 212 | Q157: 34 | R157: 84 | S157: 88 | T157: 89 | U157: 117 | V157: 50 | W157: 225 | X157: 98
A158: 110 | B158: MEURTHE ET MOSELLE MEUSE | C158: 27 | D158: PONT A MOUSSON | E158: 554496 | F158: NANCY TROIS MAISONS | G158: 2.1 | H158: 149 | I158: 175 | J158: 187 | K158: 157 | L158: 147 | M158: 182 | N158: 83 | O158: 123 | P158: 109 | Q158: 154 | R158: 88 | S158: 117 | T158: 46 | U158: 77 | V158: 104 | W158: 61 | X158: 75
A159: 110 | B159: MARNE ARDENNES | C159: 2 | D159: CHARLEVILLE MEZIERES | E159: 408862 | F159: REVIN | G159: 3.8 | H159: 150 | I159: 89 | J159: 95 | K159: 79 | L159: 187 | M159: 181 | N159: 173 | O159: 176 | P159: 176 | Q159: 108 | R159: 95 | S159: 82 | T159: 139 | U159: 186 | V159: 144 | W159: 209 | X159: 136
A160: 110 | B160: HAUT RHIN | C160: 5130 | D160: COLMAR | E160: 4157 | F160: NEUF BRISACH | G160: 2.8 | H160: 151 | I160: 158 | J160: 115 | K160: 205 | L160: 144 | M160: 158 | N160: 108 | O160: 124 | P160: 128 | Q160: 64 | R160: 79 | S160: 72 | T160: 111 | U160: 119 | V160: 163 | W160: 79 | X160: 108
A161: 110 | B161: BAS RHIN | C161: 5006 | D161: STRASBOURG | E161: 4039 | F161: REICHSTETT | G161: 1.6 | H161: 152 | I161: 170 | J161: 204 | K161: 140 | L161: 162 | M161: 150 | N161: 179 | O161: 57 | P161: 56 | Q161: 86 | R161: 85 | S161: 81 | T161: 103 | U161: 162 | V161: 115 | W161: 173 | X161: 145
A162: 110 | B162: MEURTHE ET MOSELLE MEUSE | C162: 27 | D162: PONT A MOUSSON | E162: 554357 | F162: JOEUF | G162: 3.2 | H162: 153 | I162: 86 | J162: 87 | K162: 88 | L162: 156 | M162: 192 | N162: 84 | O162: 211 | P162: 206 | Q162: 171 | R162: 200 | S162: 216 | T162: 109 | U162: 81 | V162: 128 | W162: 29 | X162: 118
A163: 110 | B163: MARNE ARDENNES | C163: 2 | D163: CHARLEVILLE MEZIERES | E163: 408806 | F163: SEDAN | G163: 7.6 | H163: 154 | I163: 78 | J163: 100 | K163: 38 | L163: 166 | M163: 162 | N163: 168 | O163: 165 | P163: 171 | Q163: 98 | R163: 215 | S163: 194 | T163: 234 | U163: 115 | V163: 96 | W163: 162 | X163: 89
A164: 110 | B164: MOSELLE | C164: 45 | D164: METZ | E164: 557433 | F164: MARANGE SILVANGE | G164: 2.9 | H164: 155 | I164: 173 | J164: 137 | K164: 196 | L164: 159 | M164: 145 | N164: 164 | O164: 119 | P164: 101 | Q164: 160 | R164: 132 | S164: 120 | T164: 153 | U164: 66 | V164: 166 | W164: 10 | X164: 106
A165: 110 | B165: BAS RHIN | C165: 5060 | D165: HAGUENAU | E165: 4082 | F165: BOUXWILLER | G165: 2.2 | H165: 156 | I165: 29 | J165: 28 | K165: 28 | L165: 199 | M165: 196 | N165: 174 | O165: 242 | P165: 242 | Q165: 162 | R165: 91 | S165: 102 | T165: 75 | U165: 92 | V165: 88 | W165: 105 | X165: 80
A166: 110 | B166: AUBE HAUTE MARNE | C166: 14 | D166: TROYES | E166: 510523 | F166: LA CHAPELLE ST LUC | G166: 4.5 | H166: 157 | I166: 235 | J166: 195 | K166: 231 | L166: 101 | M166: 159 | N166: 43 | O166: 91 | P166: 116 | Q166: 33 | R166: 41 | S166: 65 | T166: 22 | U166: 127 | V166: 156 | W166: 115 | X166: 100
A167: 110 | B167: MEURTHE ET MOSELLE MEUSE | C167: 26 | D167: NANCY | E167: 554266 | F167: DOMBASLE SUR MEURTHE | G167: 3.3 | H167: 158 | I167: 190 | J167: 204 | K167: 169 | L167: 230 | M167: 227 | N167: 191 | O167: 29 | P167: 24 | Q167: 145 | R167: 94 | S167: 105 | T167: 78 | U167: 94 | V167: 118 | W167: 31 | X167: 159
A168: 110 | B168: MOSELLE | C168: 45 | D168: METZ | E168: 557436 | F168: METZ CATHEDRALE | G168: 3.8 | H168: 159 | I168: 228 | J168: 204 | K168: 223 | L168: 125 | M168: 104 | N168: 159 | O168: 44 | P168: 37 | Q168: 144 | R168: 72 | S168: 57 | T168: 123 | U168: 166 | V168: 160 | W168: 154 | X168: 136
A169: 110 | B169: VOSGES | C169: 55 | D169: SAINT DIE | E169: 488556 | F169: RAON L ETAPE | G169: 2.2 | H169: 160 | I169: 66 | J169: 50 | K169: 125 | L169: 217 | M169: 231 | N169: 117 | O169: 217 | P169: 208 | Q169: 222 | R169: 159 | S169: 173 | T169: 100 | U169: 108 | V169: 232 | W169: 47 | X169: 87
A170: 110 | B170: MOSELLE | C170: 42 | D170: MOSELLE EST | E170: 457258 | F170: DIEUZE | G170: 3.0 | H170: 161 | I170: 70 | J170: 81 | K170: 42 | L170: 211 | M170: 193 | N170: 224 | O170: 131 | P170: 96 | Q170: 231 | R170: 153 | S170: 143 | T170: 160 | U170: 231 | V170: 229 | W170: 200 | X170: 223
A171: 110 | B171: HAUT RHIN | C171: 5130 | D171: COLMAR | E171: 4132 | F171: COLMAR MARAICHERS | G171: 3.8 | H171: 162 | I171: 103 | J171: 80 | K171: 149 | L171: 136 | M171: 120 | N171: 151 | O171: 146 | P171: 135 | Q171: 115 | R171: 161 | S171: 132 | T171: 190 | U171: 227 | V171: 231 | W171: 168 | X171: 222
A172: 110 | B172: BAS RHIN | C172: 5101 | D172: SELESTAT | E172: 4007 | F172: ILLKIRCH CENTRE | G172: 6.5 | H172: 163 | I172: 209 | J172: 199 | K172: 192 | L172: 142 | M172: 123 | N172: 158 | O172: 147 | P172: 132 | Q172: 129 | R172: 38 | S172: 27 | T172: 92 | U172: 135 | V172: 101 | W172: 140 | X172: 141
A173: 110 | B173: MOSELLE | C173: 45 | D173: METZ | E173: 557712 | F173: WOIPPY | G173: 4.4 | H173: 164 | I173: 197 | J173: 122 | K173: 232 | L173: 108 | M173: 100 | N173: 128 | O173: 113 | P173: 121 | Q173: 52 | R173: 93 | S173: 86 | T173: 117 | U173: 148 | V173: 130 | W173: 122 | X173: 153
A174: 110 | B174: VOSGES | C174: 57 | D174: EPINAL | E174: 588206 | F174: CHARMES | G174: 2.7 | H174: 165 | I174: 129 | J174: 187 | K174: 37 | L174: 172 | M174: 197 | N174: 124 | O174: 52 | P174: 35 | Q174: 199 | R174: 208 | S174: 218 | T174: 128 | U174: 170 | V174: 242 | W174: 84 | X174: 115
A175: 110 | B175: MARNE ARDENNES | C175: 2 | D175: CHARLEVILLE MEZIERES | E175: 508815 | F175: CARIGNAN | G175: 2.6 | H175: 166 | I175: 87 | J175: 77 | K175: 110 | L175: 119 | M175: 153 | N175: 71 | O175: 150 | P175: 145 | Q175: 88 | R175: 224 | S175: 230 | T175: 191 | U175: 198 | V175: 102 | W175: 228 | X175: 176
A176: 110 | B176: MOSELLE | C176: 42 | D176: MOSELLE EST | E176: 457614 | F176: SARREBOURG | G176: 8.0 | H176: 167 | I176: 127 | J176: 150 | K176: 90 | L176: 177 | M176: 151 | N176: 204 | O176: 134 | P176: 120 | Q176: 114 | R176: 131 | S176: 101 | T176: 187 | U176: 169 | V176: 148 | W176: 101 | X176: 206
A177: 110 | B177: BAS RHIN | C177: 5101 | D177: SELESTAT | E177: 4008 | F177: FEGERSHEIM | G177: 2.3 | H177: 168 | I177: 105 | J177: 102 | K177: 122 | L177: 100 | M177: 51 | N177: 214 | O177: 141 | P177: 112 | Q177: 225 | R177: 189 | S177: 169 | T177: 205 | U177: 234 | V177: 220 | W177: 216 | X177: 229
A178: 160 | B178: MEURTHE ET MOSELLE MEUSE | C178: 27 | D178: PONT A MOUSSON | E178: 454355 | F178: JARNY | G178: 4.1 | H178: 169 | I178: 131 | J178: 142 | K178: 102 | L178: 146 | M178: 147 | N178: 137 | O178: 155 | P178: 133 | Q178: 167 | R178: 126 | S178: 125 | T178: 131 | U178: 217 | V178: 199 | W178: 199 | X178: 183
A179: 160 | B179: MEURTHE ET MOSELLE MEUSE | C179: 27 | D179: PONT A MOUSSON | E179: 454696 | F179: VILLERS GENERAL LECLERC | G179: 4.2 | H179: 170 | I179: 157 | J179: 204 | K179: 104 | L179: 214 | M179: 217 | N179: 162 | O179: 17 | P179: 7 | Q179: 187 | R179: 186 | S179: 168 | T179: 193 | U179: 216 | V179: 195 | W179: 181 | X179: 208
A180: 160 | B180: MOSELLE | C180: 45 | D180: METZ | E180: 557559 | F180: REMILLY | G180: 3.5 | H180: 171 | I180: 172 | J180: 161 | K180: 176 | L180: 160 | M180: 122 | N180: 203 | O180: 111 | P180: 89 | Q180: 163 | R180: 185 | S180: 188 | T180: 146 | U180: 84 | V180: 123 | W180: 40 | X180: 112
A181: 160 | B181: BAS RHIN | C181: 5006 | D181: STRASBOURG | E181: 4028 | F181: BISCHHEIM | G181: 3.3 | H181: 172 | I181: 176 | J181: 204 | K181: 153 | L181: 165 | M181: 177 | N181: 146 | O181: 86 | P181: 98 | Q181: 73 | R181: 78 | S181: 91 | T181: 64 | U181: 204 | V181: 192 | W181: 176 | X181: 197
A182: 160 | B182: BAS RHIN | C182: 5101 | D182: SELESTAT | E182: 4107 | F182: VILLE | G182: 2.3 | H182: 173 | I182: 220 | J182: 204 | K182: 209 | L182: 57 | M182: 15 | N182: 216 | O182: 37 | P182: 26 | Q182: 184 | R182: 167 | S182: 127 | T182: 225 | U182: 233 | V182: 235 | W182: 188 | X182: 233
A183: 160 | B183: MOSELLE | C183: 45 | D183: METZ | E183: 557459 | F183: MOULINS LES METZ | G183: 2.5 | H183: 174 | I183: 88 | J183: 63 | K183: 142 | L183: 206 | M183: 175 | N183: 227 | O183: 188 | P183: 180 | Q183: 180 | R183: 157 | S183: 119 | T183: 214 | U183: 209 | V183: 168 | W183: 195 | X183: 198
A184: 160 | B184: MARNE ARDENNES | C184: 11 | D184: REIMS | E184: 551309 | F184: REIMS EUROPE | G184: 2.9 | H184: 175 | I184: 114 | J184: 67 | K184: 190 | L184: 196 | M184: 225 | N184: 91 | O184: 208 | P184: 209 | Q184: 135 | R184: 116 | S184: 155 | T184: 59 | U184: 164 | V184: 108 | W184: 221 | X184: 97
A185: 160 | B185: HAUT RHIN | C185: 5169 | D185: MULHOUSE | E185: 4170 | F185: MULHOUSE REUNION | G185: 7.4 | H185: 176 | I185: 146 | J185: 111 | K185: 201 | L185: 140 | M185: 152 | N185: 112 | O185: 207 | P185: 205 | Q185: 143 | R185: 102 | S185: 149 | T185: 42 | U185: 133 | V185: 117 | W185: 114 | X185: 132
A186: 160 | B186: MEURTHE ET MOSELLE MEUSE | C186: 26 | D186: NANCY | E186: 454671 | F186: VANDOEUVRE LES NANCY | G186: 4.2 | H186: 177 | I186: 206 | J186: 156 | K186: 213 | L186: 161 | M186: 178 | N186: 135 | O186: 83 | P186: 62 | Q186: 207 | R186: 137 | S186: 130 | T186: 147 | U186: 105 | V186: 62 | W186: 107 | X186: 174
A187: 160 | B187: BAS RHIN | C187: 5006 | D187: STRASBOURG | E187: 4026 | F187: STRASBOURG DANUBE | G187: 3.2 | H187: 178 | I187: 204 | J187: 162 | K187: 206 | L187: 191 | M187: 213 | N187: 115 | O187: 74 | P187: 72 | Q187: 104 | R187: 115 | S187: 156 | T187: 50 | U187: 111 | V187: 140 | W187: 49 | X187: 172
A188: 160 | B188: HAUT RHIN | C188: 5130 | D188: COLMAR | E188: 4130 | F188: COLMAR REPUBLIQUE | G188: 6.1 | H188: 179 | I188: 166 | J188: 118 | K188: 216 | L188: 164 | M188: 136 | N188: 213 | O188: 166 | P188: 143 | Q188: 200 | R188: 63 | S188: 36 | T188: 149 | U188: 193 | V188: 179 | W188: 159 | X188: 195
A189: 160 | B189: AUBE HAUTE MARNE | C189: 14 | D189: TROYES | E189: 410550 | F189: BAR SUR AUBE | G189: 5.1 | H189: 180 | I189: 93 | J189: 82 | K189: 116 | L189: 170 | M189: 167 | N189: 172 | O189: 201 | P189: 192 | Q189: 203 | R189: 207 | S189: 192 | T189: 195 | U189: 180 | V189: 201 | W189: 104 | X189: 199
A190: 160 | B190: BAS RHIN | C190: 5101 | D190: SELESTAT | E190: 4127 | F190: ROSHEIM | G190: 1.7 | H190: 181 | I190: 154 | J190: 195 | K190: 108 | L190: 185 | M190: 166 | N190: 201 | O190: 34 | P190: 23 | Q190: 197 | R190: 209 | S190: 190 | T190: 223 | U190: 196 | V190: 190 | W190: 226 | X190: 102
A191: 160 | B191: HAUT RHIN | C191: 5169 | D191: MULHOUSE | E191: 4178 | F191: SAINT LOUIS | G191: 6.4 | H191: 182 | I191: 182 | J191: 172 | K191: 187 | L191: 138 | M191: 137 | N191: 140 | O191: 76 | P191: 65 | Q191: 157 | R191: 145 | S191: 147 | T191: 140 | U191: 210 | V191: 132 | W191: 201 | X191: 213
A192: 160 | B192: BAS RHIN | C192: 5006 | D192: STRASBOURG | E192: 4029 | F192: SCHILTIGHEIM KLEBER | G192: 1.0 | H192: 183 | I192: 149 | J192: 147 | K192: 163 | L192: 235 | M192: 235 | N192: 167 | O192: 47 | P192: 38 | Q192: 137 | R192: 163 | S192: 226 | T192: 15 | U192: 160 | V192: 157 | W192: 155 | X192: 120
A193: 160 | B193: MARNE ARDENNES | C193: 2 | D193: CHARLEVILLE MEZIERES | E193: 508819 | F193: MOUZON | G193: 1.9 | H193: 184 | I193: 98 | J193: 89 | K193: 121 | L193: 237 | M193: 239 | N193: 116 | O193: 61 | P193: 60 | Q193: 95 | R193: 231 | S193: 241 | T193: 74 | U193: 172 | V193: 187 | W193: 242 | X193: 36
A194: 160 | B194: MEURTHE ET MOSELLE MEUSE | C194: 27 | D194: PONT A MOUSSON | E194: 554196 | F194: CHAMPIGNEULLES | G194: 2.5 | H194: 185 | I194: 181 | J194: 204 | K194: 158 | L194: 193 | M194: 173 | N194: 210 | O194: 200 | P194: 193 | Q194: 170 | R194: 43 | S194: 32 | T194: 101 | U194: 163 | V194: 81 | W194: 212 | X194: 134
A195: 160 | B195: MOSELLE | C195: 45 | D195: METZ | E195: 557440 | F195: METZ MOZART | G195: 3.0 | H195: 186 | I195: 167 | J195: 204 | K195: 132 | L195: 181 | M195: 138 | N195: 229 | O195: 81 | P195: 59 | Q195: 204 | R195: 152 | S195: 116 | T195: 210 | U195: 203 | V195: 138 | W195: 210 | X195: 182
A196: 160 | B196: BAS RHIN | C196: 5101 | D196: SELESTAT | E196: 4101 | F196: SELESTAT CENTRE | G196: 7.8 | H196: 187 | I196: 198 | J196: 194 | K196: 185 | L196: 127 | M196: 86 | N196: 197 | O196: 174 | P196: 144 | Q196: 221 | R196: 107 | S196: 111 | T196: 122 | U196: 156 | V196: 209 | W196: 82 | X196: 166
A197: 160 | B197: BAS RHIN | C197: 5101 | D197: SELESTAT | E197: 4109 | F197: MARCKOLSHEIM | G197: 2.7 | H197: 188 | I197: 144 | J197: 204 | K197: 78 | L197: 112 | M197: 83 | N197: 155 | O197: 218 | P197: 222 | Q197: 96 | R197: 139 | S197: 163 | T197: 84 | U197: 177 | V197: 176 | W197: 170 | X197: 143
A198: 160 | B198: HAUT RHIN | C198: 5130 | D198: COLMAR | E198: 4147 | F198: GUEBWILLER | G198: 4.6 | H198: 189 | I198: 152 | J198: 177 | K198: 131 | L198: 139 | M198: 109 | N198: 165 | O198: 149 | P198: 119 | Q198: 188 | R198: 177 | S198: 176 | T198: 158 | U198: 188 | V198: 142 | W198: 220 | X198: 124
A199: 160 | B199: AUBE HAUTE MARNE | C199: 14 | D199: TROYES | E199: 510520 | F199: SAINT ANDRE LES VERGERS | G199: 3.3 | H199: 190 | I199: 239 | J199: 204 | K199: 237 | L199: 137 | M199: 171 | N199: 96 | O199: 115 | P199: 105 | Q199: 130 | R199: 114 | S199: 157 | T199: 48 | U199: 87 | V199: 124 | W199: 37 | X199: 129
A200: 160 | B200: MEURTHE ET MOSELLE MEUSE | C200: 27 | D200: PONT A MOUSSON | E200: 554257 | F200: DIEULOUARD | G200: 2.7 | H200: 191 | I200: 134 | J200: 130 | K200: 144 | L200: 205 | M200: 163 | N200: 236 | O200: 31 | P200: 17 | Q200: 241 | R200: 210 | S200: 186 | T200: 235 | U200: 242 | V200: 221 | W200: 237 | X200: 239
A201: 160 | B201: HAUT RHIN | C201: 5169 | D201: MULHOUSE | E201: 4180 | F201: RIEDISHEIM | G201: 3.4 | H201: 192 | I201: 81 | J201: 53 | K201: 147 | L201: 176 | M201: 141 | N201: 221 | O201: 235 | P201: 235 | Q201: 223 | R201: 147 | S201: 121 | T201: 185 | U201: 215 | V201: 116 | W201: 206 | X201: 216
A202: 160 | B202: MARNE ARDENNES | C202: 2 | D202: CHARLEVILLE MEZIERES | E202: 508860 | F202: ROCROI | G202: 2.3 | H202: 193 | I202: 218 | J202: 204 | K202: 203 | L202: 88 | M202: 96 | N202: 74 | O202: 183 | P202: 189 | Q202: 128 | R202: 168 | S202: 172 | T202: 132 | U202: 110 | V202: 110 | W202: 135 | X202: 91
A203: 160 | B203: MARNE ARDENNES | C203: 11 | D203: REIMS | E203: 451308 | F203: REIMS SAINT THOMAS | G203: 5.2 | H203: 194 | I203: 230 | J203: 182 | K203: 230 | L203: 110 | M203: 126 | N203: 92 | O203: 223 | P203: 230 | Q203: 70 | R203: 123 | S203: 139 | T203: 99 | U203: 47 | V203: 25 | W203: 157 | X203: 46
A204: 160 | B204: BAS RHIN | C204: 5060 | D204: HAGUENAU | E204: 4060 | F204: HAGUENAU HOUBLON | G204: 8.7 | H204: 195 | I204: 187 | J204: 176 | K204: 188 | L204: 167 | M204: 157 | N204: 180 | O204: 95 | P204: 78 | Q204: 182 | R204: 146 | S204: 128 | T204: 170 | U204: 197 | V204: 217 | W204: 138 | X204: 192
... 50 more rows

Sheet AG_FICHE
A1: Accueil
A2: BAROMETRE GRAND PUBLIC
A4: UNITE: | B4: Agence | E4: ETP perf : | F4: =VLOOKUP(A5,'RECAP AG'!$G$6:$CY$251,3,FALSE) -> 5.13
A5: =VLOOKUP(B5,LISTES!$C$6:$D$249,2,FALSE) -> 4189 | B5: ALTKIRCH
C6: Coefficient du critère | E6: Résultats | I6: Ecart au 1ier | K6: =IF(OR(A5=4017,A5=4022),"Rang estimé","Rang") -> Rang
E7: du 1ier | G7: de l'Agence
A9: RANG GRAND PUBLIC | K9: =VLOOKUP($A$5,'RECAP AG'!$G$6:$CY$251,96,FALSE) -> 244
A11: SATISFACTION CLIENTS | C11: 20% | K11: =VLOOKUP($A$5,'RECAP AG'!$G$6:$CY$251,13,FALSE) -> 244
B12: NPS à froid (SAE) | C12: 10% | E12: =+'RECAP AG'!K4 -> 61 | G12: =VLOOKUP($A$5,'RECAP AG'!$G$6:$CY$251,5,FALSE) -> 0.0 | I12: =VLOOKUP($A$5,'RECAP AG'!$G$6:$CY$251,6,FALSE) -> 100% | K12: =VLOOKUP($A$5,'RECAP AG'!$G$6:$CY$251,7,FALSE) -> 204
B13: NPS à chaud (QHD) | C13: 10% | E13: =+'RECAP AG'!N4 -> 89% | G13: =VLOOKUP($A$5,'RECAP AG'!$G$6:$CY$251,8,FALSE) -> 12% | I13: =VLOOKUP($A$5,'RECAP AG'!$G$6:$CY$251,9,FALSE) -> 86% | K13: =VLOOKUP($A$5,'RECAP AG'!$G$6:$CY$251,10,FALSE) -> 244
A15: BANCARISATION | C15: 20% | K15: =VLOOKUP($A$5,'RECAP AG'!$G$6:$CY$251,28,FALSE) -> 240
B16: Ventes Nettes produits pondérés | C16: 12% | E16: ='RECAP AG'!X4 -> 102.5 | G16: =VLOOKUP($A$5,'RECAP AG'!$G$6:$CY$251,19,FALSE) -> -9.6 | I16: =VLOOKUP($A$5,'RECAP AG'!$G$6:$CY$251,20,FALSE) -> 109% | K16: =VLOOKUP($A$5,'RECAP AG'!$G$6:$CY$251,21,FALSE) -> 237
B17: Ventes sur client non détenteur de l’univers | C17: 8% | E17: ='RECAP AG'!AB4 -> 122.8 | G17: =VLOOKUP($A$5,'RECAP AG'!$G$6:$CY$251,23,FALSE) -> 26.5 | I17: =VLOOKUP($A$5,'RECAP AG'!$G$6:$CY$251,24,FALSE) -> 78% | K17: =VLOOKUP($A$5,'RECAP AG'!$G$6:$CY$251,25,FALSE) -> 234
A19: EPARGNE | C19: 20% | K19: =VLOOKUP($A$5,'RECAP AG'!$G$6:$CY$251,43,FALSE) -> 233
B20: Excédent Epargne hors DAV pondéré | C20: 12% | E20: ='RECAP AG'!AM4 -> 1519.3 | G20: =VLOOKUP($A$5,'RECAP AG'!$G$6:$CY$251,34,FALSE) -> -375.8 | I20: =VLOOKUP($A$5,'RECAP AG'!$G$6:$CY$251,35,FALSE) -> 86% | K20: =VLOOKUP($A$5,'RECAP AG'!$G$6:$CY$251,36,FALSE) -> 232
B21: Ventes sur client non détenteur de l’univers | C21: 8% | E21: ='RECAP AG'!AQ4 -> 232.7 | G21: =VLOOKUP($A$5,'RECAP AG'!$G$6:$CY$251,38,FALSE) -> 28.1 | I21: =VLOOKUP($A$5,'RECAP AG'!$G$6:$CY$251,39,FALSE) -> 88% | K21: =VLOOKUP($A$5,'RECAP AG'!$G$6:$CY$251,40,FALSE) -> 226
A23: IARD PREVOYANCE | C23: 20% | K23: =VLOOKUP($A$5,'RECAP AG'!$G$6:$CY$251,77,FALSE) -> 238
B24: Ventes Nettes produits pondérés | C24: 12% | E24: ='RECAP AG'!BU4 -> 566.1 | G24: =VLOOKUP($A$5,'RECAP AG'!$G$6:$CY$251,68,FALSE) -> -39.2 | I24: =VLOOKUP($A$5,'RECAP AG'!$G$6:$CY$251,69,FALSE) -> 107% | K24: =VLOOKUP($A$5,'RECAP AG'!$G$6:$CY$251,70,FALSE) -> 239
B25: Ventes sur client non détenteur de l’univers | C25: 8% | E25: ='RECAP AG'!BY4 -> 129.2 | G25: =VLOOKUP($A$5,'RECAP AG'!$G$6:$CY$251,72,FALSE) -> 21.1 | I25: =VLOOKUP($A$5,'RECAP AG'!$G$6:$CY$251,73,FALSE) -> 84% | K25: =VLOOKUP($A$5,'RECAP AG'!$G$6:$CY$251,74,FALSE) -> 219
A27: CREDITS | C27: 20% | K27: =VLOOKUP($A$5,'RECAP AG'!$G$6:$CY$251,62,FALSE) -> 239
B28: Engagements et ventes accessoires pondérés Immo | C28: 6% | E28: ='RECAP AG'!BB4 -> 917.5 | G28: =VLOOKUP($A$5,'RECAP AG'!$G$6:$CY$251,49,FALSE) -> 45.5 | I28: =VLOOKUP($A$5,'RECAP AG'!$G$6:$CY$251,50,FALSE) -> 95% | K28: =VLOOKUP($A$5,'RECAP AG'!$G$6:$CY$251,51,FALSE) -> 238
B29: Engagements et ventes accessoires pondérés Conso | C29: 6% | E29: ='RECAP AG'!BF4 -> 103.8 | G29: =VLOOKUP($A$5,'RECAP AG'!$G$6:$CY$251,53,FALSE) -> 28.1 | I29: =VLOOKUP($A$5,'RECAP AG'!$G$6:$CY$251,54,FALSE) -> 73% | K29: =VLOOKUP($A$5,'RECAP AG'!$G$6:$CY$251,55,FALSE) -> 213
B30: Ventes sur client non détenteur de l’univers | C30: 8% | E30: ='RECAP AG'!BJ4 -> 72.5 | G30: =VLOOKUP($A$5,'RECAP AG'!$G$6:$CY$251,57,FALSE) -> 9.4 | I30: =VLOOKUP($A$5,'RECAP AG'!$G$6:$CY$251,58,FALSE) -> 87% | K30: =VLOOKUP($A$5,'RECAP AG'!$G$6:$CY$251,59,FALSE) -> 236

Sheet AG_TOTAL
B1: Accueil | H1: BAROMETRE BDD - AGENCES
H2: TOTAL GENERAL
H3: =ACCUEIL!F7 -> 2022-07-17
H7: TOTAL GENERAL | K7: Total Satisfaction Clients | N7: Total Bancarisation | Q7: Total Epargne | T7: Total IARD Prévoyance | W7: Total Crédits
I8: coef | J8: =M8+P8+S8+V8+Y8 -> 100% | L8: coef | M8: =AG_SATISFACTION!P8 -> 20% | O8: coef | P8: =AG_BANCA!R8 -> 20% | R8: coef | S8: =AG_EPARGNE!R8 -> 20% | U8: coef | V8: =AG_IARD!R8 -> 20% | X8: coef | Y8: =AG_CREDIT!V8 -> 20%
B9: Direction | C9: eds | D9: Territoire | E9: eds | F9: Agence | G9: ="ETP perf "&DATEMAJ!$C$28 -> ETP perf 17-juil | H9: Moyenne ecart au 1er | I9: % Ecart au 1er | J9: Rang CEGEE | K9: Moyenne ecart au 1er | L9: % Ecart au 1er | M9: Rang CEGEE | N9: Moyenne ecart au 1er | O9: % Ecart au 1er | P9: Rang CEGEE | Q9: Moyenne ecart au 1er | R9: % Ecart au 1er | S9: Rang CEGEE | T9: Moyenne ecart au 1er | U9: % Ecart au 1er | V9: Rang CEGEE | W9: Moyenne ecart au 1er | X9: % Ecart au 1er | Y9: Rang CEGEE
A10: 50 | B10: MOSELLE | C10: 44 | D10: MOSELLE NORD | E10: 557508 | F10: NILVANGE | G10: 1.7 | H10: 8% | I10: 0% | J10: 1 | K10: 39% | L10: 38% | M10: 58 | N10: 0% | O10: 0% | P10: 1 | Q10: 35% | R10: 3% | S10: 2 | T10: 0% | U10: 0% | V10: 1 | W10: 8% | X10: 0% | Y10: 1
A11: 50 | B11: MOSELLE | C11: 42 | D11: MOSELLE EST | E11: 457163 | F11: BEHREN LES FORBACH | G11: 1.9 | H11: 33% | I11: 25% | J11: 2 | K11: 22% | L11: 20% | M11: 17 | N11: 44% | O11: 44% | P11: 2 | Q11: 54% | R11: 22% | S11: 22 | T11: 68% | U11: 68% | V11: 35 | W11: 19% | X11: 11% | Y11: 2
A12: 50 | B12: VOSGES | C12: 57 | D12: EPINAL | E12: 488288 | F12: EPINAL LEOPOLD BOURG | G12: 2.0 | H12: 39% | I12: 31% | J12: 3 | K12: 2% | L12: 0% | M12: 1 | N12: 62% | O12: 62% | P12: 28 | Q12: 41% | R12: 9% | S12: 4 | T12: 73% | U12: 73% | V12: 73 | W12: 60% | X12: 52% | Y12: 37
A13: 50 | B13: MARNE ARDENNES | C13: 2 | D13: CHARLEVILLE MEZIERES | E13: 508820 | F13: VOUZIERS | G13: 2.9 | H13: 40% | I13: 32% | J13: 4 | K13: 26% | L13: 24% | M13: 28 | N13: 66% | O13: 66% | P13: 48 | Q13: 50% | R13: 18% | S13: 12 | T13: 44% | U13: 44% | V13: 2 | W13: 59% | X13: 51% | Y13: 33
A14: 50 | B14: MARNE ARDENNES | C14: 11 | D14: REIMS | E14: 551305 | F14: REIMS HIPPODROME | G14: 5.3 | H14: 44% | I14: 36% | J14: 5 | K14: 44% | L14: 42% | M14: 82 | N14: 58% | O14: 58% | P14: 20 | Q14: 52% | R14: 20% | S14: 18 | T14: 57% | U14: 57% | V14: 8 | W14: 50% | X14: 42% | Y14: 16
A15: 50 | B15: MARNE ARDENNES | C15: 6 | D15: CHALONS EN CHAMPAGNE | E15: 551330 | F15: MONTMIRAIL | G15: 2.8 | H15: 45% | I15: 37% | J15: 6 | K15: 14% | L15: 12% | M15: 5 | N15: 59% | O15: 59% | P15: 25 | Q15: 69% | R15: 37% | S15: 116 | T15: 60% | U15: 60% | V15: 12 | W15: 68% | X15: 60% | Y15: 85
A16: 50 | B16: MOSELLE | C16: 44 | D16: MOSELLE NORD | E16: 557113 | F16: AUDUN LE TICHE | G16: 2.0 | H16: 46% | I16: 38% | J16: 7 | K16: 54% | L16: 52% | M16: 121 | N16: 46% | O16: 46% | P16: 4 | Q16: 61% | R16: 29% | S16: 49 | T16: 60% | U16: 60% | V16: 13 | W16: 49% | X16: 41% | Y16: 14
A17: 50 | B17: MOSELLE | C17: 44 | D17: MOSELLE NORD | E17: 557660 | F17: UCKANGE | G17: 1.8 | H17: 46% | I17: 38% | J17: 8 | K17: 78% | L17: 77% | M17: 234 | N17: 51% | O17: 51% | P17: 6 | Q17: 60% | R17: 27% | S17: 39 | T17: 49% | U17: 49% | V17: 3 | W17: 32% | X17: 24% | Y17: 3
A18: 50 | B18: MARNE ARDENNES | C18: 6 | D18: CHALONS EN CHAMPAGNE | E18: 451115 | F18: MOURMELON LE GRAND | G18: 2.8 | H18: 47% | I18: 39% | J18: 9 | K18: 42% | L18: 40% | M18: 76 | N18: 53% | O18: 53% | P18: 11 | Q18: 62% | R18: 30% | S18: 56 | T18: 59% | U18: 59% | V18: 11 | W18: 60% | X18: 52% | Y18: 38
A19: 50 | B19: MOSELLE | C19: 45 | D19: METZ | E19: 457443 | F19: METZ REPUBLIQUE | G19: 3.7 | H19: 47% | I19: 39% | J19: 10 | K19: 30% | L19: 29% | M19: 35 | N19: 76% | O19: 76% | P19: 116 | Q19: 32% | R19: 0% | S19: 1 | T19: 64% | U19: 64% | V19: 18 | W19: 74% | X19: 66% | Y19: 155
A20: 50 | B20: MARNE ARDENNES | C20: 6 | D20: CHALONS EN CHAMPAGNE | E20: 451120 | F20: SARRY | G20: 2.3 | H20: 48% | I20: 39% | J20: 11 | K20: 10% | L20: 9% | M20: 3 | N20: 59% | O20: 59% | P20: 24 | Q20: 70% | R20: 38% | S20: 128 | T20: 73% | U20: 73% | V20: 70 | W20: 68% | X20: 60% | Y20: 80
A21: 50 | B21: MEURTHE ET MOSELLE MEUSE | C21: 26 | D21: NANCY | E21: 554601 | F21: SAINT MAX | G21: 3.4 | H21: 48% | I21: 40% | J21: 12 | K21: 30% | L21: 29% | M21: 36 | N21: 69% | O21: 69% | P21: 66 | Q21: 50% | R21: 18% | S21: 11 | T21: 66% | U21: 66% | V21: 24 | W21: 64% | X21: 56% | Y21: 59
A22: 50 | B22: BAS RHIN | C22: 5006 | D22: STRASBOURG | E22: 4037 | F22: MUNDOLSHEIM | G22: 3.7 | H22: 48% | I22: 40% | J22: 13 | K22: 40% | L22: 38% | M22: 64 | N22: 59% | O22: 59% | P22: 23 | Q22: 68% | R22: 35% | S22: 100 | T22: 58% | U22: 58% | V22: 9 | W22: 55% | X22: 47% | Y22: 23
A23: 50 | B23: MEURTHE ET MOSELLE MEUSE | C23: 26 | D23: NANCY | E23: 554476 | F23: NANCY ARTEM | G23: 2.8 | H23: 48% | I23: 40% | J23: 14 | K23: 40% | L23: 39% | M23: 67 | N23: 54% | O23: 54% | P23: 12 | Q23: 75% | R23: 43% | S23: 179 | T23: 72% | U23: 72% | V23: 62 | W23: 39% | X23: 31% | Y23: 5
A24: 50 | B24: MARNE ARDENNES | C24: 11 | D24: REIMS | E24: 551340 | F24: BETHENY | G24: 2.4 | H24: 48% | I24: 40% | J24: 15 | K24: 37% | L24: 35% | M24: 51 | N24: 57% | O24: 57% | P24: 17 | Q24: 64% | R24: 32% | S24: 71 | T24: 77% | U24: 77% | V24: 96 | W24: 49% | X24: 41% | Y24: 12
A25: 50 | B25: MARNE ARDENNES | C25: 11 | D25: REIMS | E25: 551349 | F25: REIMS SAINT REMI | G25: 2.9 | H25: 49% | I25: 40% | J25: 16 | K25: 55% | L25: 53% | M25: 123 | N25: 46% | O25: 46% | P25: 3 | Q25: 73% | R25: 41% | S25: 161 | T25: 61% | U25: 61% | V25: 14 | W25: 49% | X25: 41% | Y25: 11
A26: 50 | B26: MOSELLE | C26: 42 | D26: MOSELLE EST | E26: 557250 | F26: CREUTZWALD | G26: 2.5 | H26: 50% | I26: 41% | J26: 17 | K26: 18% | L26: 16% | M26: 9 | N26: 78% | O26: 78% | P26: 143 | Q26: 65% | R26: 33% | S26: 79 | T26: 70% | U26: 70% | V26: 46 | W26: 58% | X26: 50% | Y26: 32
A27: 50 | B27: MEURTHE ET MOSELLE MEUSE | C27: 27 | D27: PONT A MOUSSON | E27: 554506 | F27: CHALIGNY NEUVES MAISONS | G27: 3.4 | H27: 50% | I27: 42% | J27: 18 | K27: 62% | L27: 60% | M27: 150 | N27: 52% | O27: 52% | P27: 8 | Q27: 75% | R27: 43% | S27: 172 | T27: 55% | U27: 55% | V27: 5 | W27: 47% | X27: 39% | Y27: 9
A28: 262 | B28: MEURTHE ET MOSELLE MEUSE | C28: 27 | D28: PONT A MOUSSON | E28: 554531 | F28: POMPEY | G28: 2.9 | H28: 50% | I28: 42% | J28: 19 | K28: 70% | L28: 68% | M28: 199 | N28: 48% | O28: 48% | P28: 5 | Q28: 67% | R28: 35% | S28: 94 | T28: 70% | U28: 70% | V28: 49 | W28: 37% | X28: 29% | Y28: 4
A29: 262 | B29: MOSELLE | C29: 42 | D29: MOSELLE EST | E29: 457165 | F29: BITCHE | G29: 2.4 | H29: 50% | I29: 42% | J29: 20 | K29: 36% | L29: 35% | M29: 49 | N29: 53% | O29: 53% | P29: 10 | Q29: 70% | R29: 37% | S29: 126 | T29: 62% | U29: 62% | V29: 15 | W29: 73% | X29: 65% | Y29: 138
A30: 262 | B30: MARNE ARDENNES | C30: 2 | D30: CHARLEVILLE MEZIERES | E30: 408801 | F30: CHARLEVILLE JEAN JAURES | G30: 8.7 | H30: 51% | I30: 43% | J30: 21 | K30: 37% | L30: 35% | M30: 52 | N30: 68% | O30: 68% | P30: 59 | Q30: 64% | R30: 32% | S30: 70 | T30: 68% | U30: 68% | V30: 33 | W30: 58% | X30: 50% | Y30: 31
A31: 262 | B31: BAS RHIN | C31: 5006 | D31: STRASBOURG | E31: 4048 | F31: STRASBOURG KOENIGSHOFFEN | G31: 1.9 | H31: 51% | I31: 43% | J31: 22 | K31: 68% | L31: 66% | M31: 179 | N31: 54% | O31: 54% | P31: 13 | Q31: 53% | R31: 21% | S31: 20 | T31: 63% | U31: 63% | V31: 17 | W31: 57% | X31: 49% | Y31: 28
A32: 262 | B32: MOSELLE | C32: 44 | D32: MOSELLE NORD | E32: 557352 | F32: HETTANGE GRANDE | G32: 2.8 | H32: 51% | I32: 43% | J32: 23 | K32: 60% | L32: 58% | M32: 141 | N32: 57% | O32: 57% | P32: 18 | Q32: 67% | R32: 35% | S32: 88 | T32: 70% | U32: 70% | V32: 44 | W32: 43% | X32: 35% | Y32: 6
A33: 262 | B33: MOSELLE | C33: 45 | D33: METZ | E33: 457453 | F33: MONTIGNY LES METZ | G33: 6.9 | H33: 51% | I33: 43% | J33: 24 | K33: 25% | L33: 23% | M33: 22 | N33: 65% | O33: 65% | P33: 42 | Q33: 68% | R33: 36% | S33: 106 | T33: 78% | U33: 78% | V33: 106 | W33: 61% | X33: 53% | Y33: 41
A34: 262 | B34: MARNE ARDENNES | C34: 11 | D34: REIMS | E34: 451350 | F34: REIMS CENTRE VILLE | G34: 6.5 | H34: 51% | I34: 43% | J34: 25 | K34: 61% | L34: 59% | M34: 145 | N34: 58% | O34: 58% | P34: 21 | Q34: 68% | R34: 36% | S34: 104 | T34: 65% | U34: 65% | V34: 23 | W34: 45% | X34: 37% | Y34: 7
A35: 262 | B35: MEURTHE ET MOSELLE MEUSE | C35: 27 | D35: PONT A MOUSSON | E35: 554381 | F35: LAXOU ARISTIDE BRIAND | G35: 2.4 | H35: 52% | I35: 44% | J35: 26 | K35: 65% | L35: 63% | M35: 164 | N35: 52% | O35: 52% | P35: 7 | Q35: 73% | R35: 41% | S35: 156 | T35: 65% | U35: 65% | V35: 22 | W35: 46% | X35: 38% | Y35: 8
A36: 262 | B36: MEURTHE ET MOSELLE MEUSE | C36: 26 | D36: NANCY | E36: 554356 | F36: JARVILLE LA MALGRANGE | G36: 4.3 | H36: 52% | I36: 44% | J36: 27 | K36: 38% | L36: 36% | M36: 54 | N36: 62% | O36: 62% | P36: 29 | Q36: 70% | R36: 37% | S36: 125 | T36: 71% | U36: 71% | V36: 58 | W36: 62% | X36: 54% | Y36: 46
A37: 262 | B37: MARNE ARDENNES | C37: 11 | D37: REIMS | E37: 551365 | F37: DORMANS | G37: 2.5 | H37: 52% | I37: 44% | J37: 28 | K37: 48% | L37: 46% | M37: 99 | N37: 53% | O37: 53% | P37: 9 | Q37: 73% | R37: 41% | S37: 158 | T37: 71% | U37: 71% | V37: 56 | W37: 59% | X37: 51% | Y37: 34
A38: 262 | B38: MOSELLE | C38: 45 | D38: METZ | E38: 557439 | F38: METZ POMPIDOU | G38: 2.4 | H38: 52% | I38: 44% | J38: 29 | K38: 35% | L38: 33% | M38: 47 | N38: 72% | O38: 72% | P38: 85 | Q38: 50% | R38: 17% | S38: 10 | T38: 82% | U38: 82% | V38: 142 | W38: 66% | X38: 58% | Y38: 67
A39: 262 | B39: VOSGES | C39: 57 | D39: EPINAL | E39: 588336 | F39: GOLBEY | G39: 2.8 | H39: 52% | I39: 44% | J39: 30 | K39: 26% | L39: 24% | M39: 27 | N39: 75% | O39: 75% | P39: 104 | Q39: 61% | R39: 29% | S39: 53 | T39: 75% | U39: 75% | V39: 77 | W39: 66% | X39: 58% | Y39: 73
A40: 262 | B40: AUBE HAUTE MARNE | C40: 21 | D40: CHAUMONT | E40: 510590 | F40: CHAUMONT REPUBLIQUE | G40: 2.9 | H40: 52% | I40: 44% | J40: 31 | K40: 39% | L40: 37% | M40: 56 | N40: 79% | O40: 79% | P40: 150 | Q40: 57% | R40: 25% | S40: 27 | T40: 67% | U40: 67% | V40: 29 | W40: 61% | X40: 53% | Y40: 40
A41: 262 | B41: MARNE ARDENNES | C41: 6 | D41: CHALONS EN CHAMPAGNE | E41: 551354 | F41: VERTUS | G41: 2.0 | H41: 52% | I41: 44% | J41: 32 | K41: 6% | L41: 4% | M41: 2 | N41: 82% | O41: 82% | P41: 168 | Q41: 57% | R41: 25% | S41: 26 | T41: 86% | U41: 86% | V41: 188 | W41: 72% | X41: 64% | Y41: 123
A42: 262 | B42: MOSELLE | C42: 45 | D42: METZ | E42: 457574 | F42: ROMBAS | G42: 2.7 | H42: 52% | I42: 44% | J42: 33 | K42: 25% | L42: 24% | M42: 24 | N42: 70% | O42: 70% | P42: 72 | Q42: 71% | R42: 39% | S42: 138 | T42: 65% | U42: 65% | V42: 20 | W42: 73% | X42: 65% | Y42: 139
A43: 262 | B43: MARNE ARDENNES | C43: 2 | D43: CHARLEVILLE MEZIERES | E43: 508839 | F43: GIVET | G43: 3.4 | H43: 52% | I43: 44% | J43: 34 | K43: 47% | L43: 45% | M43: 95 | N43: 69% | O43: 69% | P43: 64 | Q43: 72% | R43: 39% | S43: 144 | T43: 55% | U43: 55% | V43: 6 | W43: 61% | X43: 53% | Y43: 42
A44: 262 | B44: BAS RHIN | C44: 5006 | D44: STRASBOURG | E44: 4038 | F44: OBERHAUSBERGEN | G44: 3.3 | H44: 53% | I44: 45% | J44: 35 | K44: 40% | L44: 38% | M44: 61 | N44: 67% | O44: 67% | P44: 50 | Q44: 48% | R44: 16% | S44: 7 | T44: 88% | U44: 88% | V44: 198 | W44: 63% | X44: 55% | Y44: 52
A45: 262 | B45: MEURTHE ET MOSELLE MEUSE | C45: 26 | D45: NANCY | E45: 454481 | F45: NANCY PLACE DOMBASLE | G45: 7.9 | H45: 53% | I45: 45% | J45: 36 | K45: 68% | L45: 66% | M45: 178 | N45: 65% | O45: 65% | P45: 45 | Q45: 47% | R45: 15% | S45: 6 | T45: 76% | U45: 76% | V45: 92 | W45: 49% | X45: 41% | Y45: 15
A46: 262 | B46: MEURTHE ET MOSELLE MEUSE | C46: 31 | D46: VERDUN | E46: 555679 | F46: VERDUN MAZEL | G46: 3.6 | H46: 53% | I46: 45% | J46: 37 | K46: 20% | L46: 18% | M46: 13 | N46: 75% | O46: 75% | P46: 102 | Q46: 59% | R46: 27% | S46: 35 | T46: 79% | U46: 79% | V46: 118 | W46: 74% | X46: 66% | Y46: 144
A47: 262 | B47: BAS RHIN | C47: 5060 | D47: HAGUENAU | E47: 4092 | F47: HOCHFELDEN | G47: 1.7 | H47: 53% | I47: 45% | J47: 38 | K47: 34% | L47: 32% | M47: 45 | N47: 71% | O47: 71% | P47: 82 | Q47: 55% | R47: 23% | S47: 23 | T47: 78% | U47: 78% | V47: 105 | W47: 69% | X47: 61% | Y47: 96
A48: 262 | B48: MARNE ARDENNES | C48: 11 | D48: REIMS | E48: 451361 | F48: PIERRY LECLERC | G48: 1.8 | H48: 53% | I48: 45% | J48: 39 | K48: 42% | L48: 40% | M48: 74 | N48: 65% | O48: 65% | P48: 46 | Q48: 51% | R48: 19% | S48: 14 | T48: 80% | U48: 80% | V48: 122 | W48: 70% | X48: 62% | Y48: 104
A49: 262 | B49: MARNE ARDENNES | C49: 6 | D49: CHALONS EN CHAMPAGNE | E49: 551110 | F49: CHALONS ROOSEVELT | G49: 4.2 | H49: 53% | I49: 45% | J49: 40 | K49: 24% | L49: 23% | M49: 21 | N49: 73% | O49: 73% | P49: 90 | Q49: 73% | R49: 41% | S49: 157 | T49: 68% | U49: 68% | V49: 36 | W49: 70% | X49: 62% | Y49: 103
A50: 262 | B50: MARNE ARDENNES | C50: 11 | D50: REIMS | E50: 551314 | F50: FISMES | G50: 2.7 | H50: 53% | I50: 45% | J50: 41 | K50: 20% | L50: 19% | M50: 14 | N50: 60% | O50: 60% | P50: 27 | Q50: 78% | R50: 46% | S50: 205 | T50: 82% | U50: 82% | V50: 151 | W50: 68% | X50: 60% | Y50: 86
A51: 262 | B51: VOSGES | C51: 55 | D51: SAINT DIE | E51: 488246 | F51: CORNIMONT LA BRESSE | G51: 2.6 | H51: 54% | I51: 45% | J51: 42 | K51: 14% | L51: 13% | M51: 6 | N51: 71% | O51: 71% | P51: 75 | Q51: 70% | R51: 38% | S51: 130 | T51: 79% | U51: 79% | V51: 109 | W51: 76% | X51: 68% | Y51: 171
A52: 262 | B52: MOSELLE | C52: 42 | D52: MOSELLE EST | E52: 457583 | F52: SAINT AVOLD | G52: 7.0 | H52: 54% | I52: 46% | J52: 43 | K52: 33% | L52: 31% | M52: 43 | N52: 63% | O52: 63% | P52: 36 | Q52: 67% | R52: 35% | S52: 93 | T52: 74% | U52: 74% | V52: 75 | W52: 73% | X52: 65% | Y52: 141
A53: 262 | B53: MOSELLE | C53: 44 | D53: MOSELLE NORD | E53: 457350 | F53: HAYANGE | G53: 6.4 | H53: 54% | I53: 46% | J53: 44 | K53: 56% | L53: 54% | M53: 130 | N53: 63% | O53: 63% | P53: 31 | Q53: 65% | R53: 33% | S53: 80 | T53: 64% | U53: 64% | V53: 19 | W53: 62% | X53: 54% | Y53: 45
A54: 262 | B54: MEURTHE ET MOSELLE MEUSE | C54: 27 | D54: PONT A MOUSSON | E54: 554516 | F54: PAGNY SUR MOSELLE | G54: 2.8 | H54: 54% | I54: 46% | J54: 45 | K54: 47% | L54: 45% | M54: 94 | N54: 71% | O54: 71% | P54: 76 | Q54: 61% | R54: 29% | S54: 50 | T54: 66% | U54: 66% | V54: 25 | W54: 67% | X54: 59% | Y54: 74
A55: 262 | B55: MOSELLE | C55: 42 | D55: MOSELLE EST | E55: 457308 | F55: FORBACH CENTRALE | G55: 9.2 | H55: 54% | I55: 46% | J55: 46 | K55: 44% | L55: 42% | M55: 84 | N55: 63% | O55: 63% | P55: 37 | Q55: 67% | R55: 35% | S55: 89 | T55: 71% | U55: 71% | V55: 54 | W55: 68% | X55: 60% | Y55: 89
A56: 262 | B56: MARNE ARDENNES | C56: 11 | D56: REIMS | E56: 451301 | F56: REIMS HOTEL DE VILLE | G56: 7.2 | H56: 54% | I56: 46% | J56: 47 | K56: 45% | L56: 43% | M56: 85 | N56: 70% | O56: 70% | P56: 71 | Q56: 72% | R56: 40% | S56: 152 | T56: 65% | U56: 65% | V56: 21 | W56: 63% | X56: 55% | Y56: 50
A57: 262 | B57: MARNE ARDENNES | C57: 2 | D57: CHARLEVILLE MEZIERES | E57: 508833 | F57: VILLERS SEMEUSE CORA | G57: 3.2 | H57: 54% | I57: 46% | J57: 48 | K57: 69% | L57: 67% | M57: 191 | N57: 73% | O57: 73% | P57: 94 | Q57: 59% | R57: 27% | S57: 32 | T57: 57% | U57: 57% | V57: 7 | W57: 57% | X57: 49% | Y57: 25
A58: 262 | B58: MEURTHE ET MOSELLE MEUSE | C58: 31 | D58: VERDUN | E58: 455678 | F58: VERDUN CENTRALE | G58: 9.4 | H58: 55% | I58: 46% | J58: 49 | K58: 22% | L58: 20% | M58: 18 | N58: 69% | O58: 69% | P58: 67 | Q58: 83% | R58: 51% | S58: 224 | T58: 81% | U58: 81% | V58: 135 | W58: 59% | X58: 51% | Y58: 35
A59: 262 | B59: MOSELLE | C59: 45 | D59: METZ | E59: 457446 | F59: METZ SAINT LOUIS | G59: 5.6 | H59: 55% | I59: 47% | J59: 50 | K59: 49% | L59: 47% | M59: 101 | N59: 63% | O59: 63% | P59: 32 | Q59: 75% | R59: 43% | S59: 173 | T59: 71% | U59: 71% | V59: 53 | W59: 58% | X59: 50% | Y59: 30
A60: 262 | B60: MOSELLE | C60: 44 | D60: MOSELLE NORD | E60: 457348 | F60: HAGONDANGE | G60: 8.1 | H60: 55% | I60: 47% | J60: 51 | K60: 42% | L60: 40% | M60: 75 | N60: 67% | O60: 67% | P60: 54 | Q60: 70% | R60: 38% | S60: 133 | T60: 72% | U60: 72% | V60: 61 | W60: 64% | X60: 56% | Y60: 58
A61: 262 | B61: MARNE ARDENNES | C61: 11 | D61: REIMS | E61: 551367 | F61: AY CHAMPAGNE | G61: 2.7 | H61: 55% | I61: 47% | J61: 52 | K61: 40% | L61: 38% | M61: 60 | N61: 74% | O61: 74% | P61: 99 | Q61: 67% | R61: 35% | S61: 87 | T61: 70% | U61: 70% | V61: 51 | W61: 65% | X61: 57% | Y61: 61
A62: 262 | B62: BAS RHIN | C62: 5006 | D62: STRASBOURG | E62: 4010 | F62: STRASBOURG MEINAU | G62: 2.7 | H62: 55% | I62: 47% | J62: 53 | K62: 50% | L62: 48% | M62: 109 | N62: 71% | O62: 71% | P62: 81 | Q62: 63% | R62: 31% | S62: 60 | T62: 62% | U62: 62% | V62: 16 | W62: 70% | X62: 62% | Y62: 109
A63: 262 | B63: BAS RHIN | C63: 5060 | D63: HAGUENAU | E63: 4079 | F63: SOULTZ SOUS FORETS | G63: 1.9 | H63: 55% | I63: 47% | J63: 54 | K63: 36% | L63: 34% | M63: 48 | N63: 71% | O63: 71% | P63: 77 | Q63: 60% | R63: 28% | S63: 41 | T63: 74% | U63: 74% | V63: 76 | W63: 76% | X63: 68% | Y63: 173
A64: 262 | B64: VOSGES | C64: 55 | D64: SAINT DIE | E64: 488326 | F64: GERARDMER | G64: 3.8 | H64: 55% | I64: 47% | J64: 55 | K64: 45% | L64: 44% | M64: 90 | N64: 76% | O64: 76% | P64: 113 | Q64: 52% | R64: 19% | S64: 16 | T64: 78% | U64: 78% | V64: 104 | W64: 66% | X64: 58% | Y64: 69
A65: 262 | B65: MOSELLE | C65: 45 | D65: METZ | E65: 557447 | F65: METZ SAINT MAXIMIN | G65: 2.2 | H65: 55% | I65: 47% | J65: 56 | K65: 68% | L65: 66% | M65: 180 | N65: 69% | O65: 69% | P65: 62 | Q65: 60% | R65: 28% | S65: 46 | T65: 54% | U65: 54% | V65: 4 | W65: 66% | X65: 58% | Y65: 72
A66: 262 | B66: MEURTHE ET MOSELLE MEUSE | C66: 26 | D66: NANCY | E66: 554636 | F66: TOMBLAINE | G66: 2.7 | H66: 55% | I66: 47% | J66: 57 | K66: 21% | L66: 19% | M66: 15 | N66: 80% | O66: 80% | P66: 157 | Q66: 60% | R66: 28% | S66: 42 | T66: 82% | U66: 82% | V66: 154 | W66: 75% | X66: 67% | Y66: 168
A67: 262 | B67: MEURTHE ET MOSELLE MEUSE | C67: 31 | D67: VERDUN | E67: 554413 | F67: LONGWY BAS | G67: 3.5 | H67: 55% | I67: 47% | J67: 58 | K67: 32% | L67: 30% | M67: 39 | N67: 71% | O67: 71% | P67: 74 | Q67: 70% | R67: 38% | S67: 129 | T67: 77% | U67: 77% | V67: 99 | W67: 69% | X67: 61% | Y67: 93
A68: 262 | B68: BAS RHIN | C68: 5101 | D68: SELESTAT | E68: 4113 | F68: BARR | G68: 2.9 | H68: 55% | I68: 47% | J68: 59 | K68: 30% | L68: 28% | M68: 33 | N68: 64% | O68: 64% | P68: 38 | Q68: 72% | R68: 40% | S68: 148 | T68: 80% | U68: 80% | V68: 130 | W68: 72% | X68: 64% | Y68: 130
A69: 262 | B69: MARNE ARDENNES | C69: 11 | D69: REIMS | E69: 551306 | F69: REIMS SAINT MARCEAUX | G69: 4.1 | H69: 55% | I69: 47% | J69: 60 | K69: 35% | L69: 33% | M69: 46 | N69: 56% | O69: 56% | P69: 15 | Q69: 91% | R69: 59% | S69: 237 | T69: 73% | U69: 73% | V69: 74 | W69: 64% | X69: 56% | Y69: 60
A70: 262 | B70: BAS RHIN | C70: 5006 | D70: STRASBOURG | E70: 4043 | F70: STRASBOURG HALLES | G70: 7.7 | H70: 55% | I70: 47% | J70: 61 | K70: 56% | L70: 55% | M70: 133 | N70: 63% | O70: 63% | P70: 34 | Q70: 69% | R70: 37% | S70: 121 | T70: 59% | U70: 59% | V70: 10 | W70: 72% | X70: 64% | Y70: 128
A71: 262 | B71: MOSELLE | C71: 44 | D71: MOSELLE NORD | E71: 457632 | F71: THIONVILLE CENTRALE | G71: 10.7 | H71: 55% | I71: 47% | J71: 62 | K71: 55% | L71: 54% | M71: 125 | N71: 62% | O71: 62% | P71: 30 | Q71: 72% | R71: 39% | S71: 143 | T71: 67% | U71: 67% | V71: 27 | W71: 63% | X71: 55% | Y71: 54
A72: 262 | B72: MEURTHE ET MOSELLE MEUSE | C72: 27 | D72: PONT A MOUSSON | E72: 554686 | F72: VEZELISE | G72: 1.9 | H72: 56% | I72: 48% | J72: 63 | K72: 17% | L72: 15% | M72: 8 | N72: 76% | O72: 76% | P72: 118 | Q72: 63% | R72: 31% | S72: 65 | T72: 83% | U72: 83% | V72: 165 | W72: 81% | X72: 73% | Y72: 223
A73: 262 | B73: MEURTHE ET MOSELLE MEUSE | C73: 31 | D73: VERDUN | E73: 454414 | F73: LONGWY HAUT | G73: 3.3 | H73: 56% | I73: 48% | J73: 64 | K73: 56% | L73: 54% | M73: 128 | N73: 70% | O73: 70% | P73: 70 | Q73: 64% | R73: 32% | S73: 72 | T73: 68% | U73: 68% | V73: 34 | W73: 63% | X73: 55% | Y73: 51
A74: 262 | B74: MOSELLE | C74: 42 | D74: MOSELLE EST | E74: 557668 | F74: VALMONT | G74: 2.6 | H74: 56% | I74: 48% | J74: 65 | K74: 39% | L74: 37% | M74: 55 | N74: 83% | O74: 83% | P74: 182 | Q74: 53% | R74: 21% | S74: 19 | T74: 75% | U74: 75% | V74: 81 | W74: 72% | X74: 64% | Y74: 126
A75: 264 | B75: BAS RHIN | C75: 5101 | D75: SELESTAT | E75: 4104 | F75: ERSTEIN | G75: 4.4 | H75: 56% | I75: 48% | J75: 66 | K75: 73% | L75: 71% | M75: 215 | N75: 56% | O75: 56% | P75: 14 | Q75: 59% | R75: 27% | S75: 33 | T75: 69% | U75: 69% | V75: 42 | W75: 66% | X75: 58% | Y75: 71
A76: 264 | B76: MARNE ARDENNES | C76: 11 | D76: REIMS | E76: 451336 | F76: TINQUEUX | G76: 4.8 | H76: 56% | I76: 48% | J76: 67 | K76: 62% | L76: 60% | M76: 153 | N76: 67% | O76: 67% | P76: 53 | Q76: 49% | R76: 17% | S76: 8 | T76: 77% | U76: 77% | V76: 98 | W76: 67% | X76: 59% | Y76: 76
A77: 264 | B77: VOSGES | C77: 55 | D77: SAINT DIE | E77: 588186 | F77: BRUYERES | G77: 3.5 | H77: 56% | I77: 48% | J77: 68 | K77: 21% | L77: 20% | M77: 16 | N77: 79% | O77: 79% | P77: 151 | Q77: 71% | R77: 39% | S77: 139 | T77: 82% | U77: 82% | V77: 156 | W77: 68% | X77: 60% | Y77: 91
A78: 264 | B78: AUBE HAUTE MARNE | C78: 21 | D78: CHAUMONT | E78: 410541 | F78: LANGRES | G78: 8.2 | H78: 56% | I78: 48% | J78: 69 | K78: 41% | L78: 40% | M78: 72 | N78: 74% | O78: 74% | P78: 97 | Q78: 63% | R78: 31% | S78: 62 | T78: 73% | U78: 73% | V78: 68 | W78: 72% | X78: 64% | Y78: 121
A79: 264 | B79: MEURTHE ET MOSELLE MEUSE | C79: 27 | D79: PONT A MOUSSON | E79: 454535 | F79: PONT A MOUSSON CENTRALE | G79: 5.2 | H79: 56% | I79: 48% | J79: 70 | K79: 77% | L79: 75% | M79: 229 | N79: 58% | O79: 58% | P79: 19 | Q79: 68% | R79: 36% | S79: 107 | T79: 67% | U79: 67% | V79: 26 | W79: 54% | X79: 46% | Y79: 19
A80: 264 | B80: MEURTHE ET MOSELLE MEUSE | C80: 26 | D80: NANCY | E80: 554116 | F80: BACCARAT | G80: 2.8 | H80: 56% | I80: 48% | J80: 71 | K80: 19% | L80: 17% | M80: 12 | N80: 79% | O80: 79% | P80: 145 | Q80: 68% | R80: 35% | S80: 99 | T80: 80% | U80: 80% | V80: 120 | W80: 78% | X80: 70% | Y80: 201
A81: 264 | B81: MOSELLE | C81: 42 | D81: MOSELLE EST | E81: 457617 | F81: SARREGUEMINES | G81: 6.5 | H81: 56% | I81: 48% | J81: 72 | K81: 59% | L81: 57% | M81: 136 | N81: 66% | O81: 66% | P81: 49 | Q81: 66% | R81: 34% | S81: 85 | T81: 73% | U81: 73% | V81: 71 | W81: 60% | X81: 52% | Y81: 36
A82: 264 | B82: VOSGES | C82: 55 | D82: SAINT DIE | E82: 588551 | F82: RAMBERVILLERS | G82: 2.6 | H82: 56% | I82: 48% | J82: 73 | K82: 29% | L82: 27% | M82: 32 | N82: 85% | O82: 85% | P82: 200 | Q82: 64% | R82: 31% | S82: 68 | T82: 90% | U82: 90% | V82: 212 | W82: 57% | X82: 49% | Y82: 26
A83: 264 | B83: MOSELLE | C83: 45 | D83: METZ | E83: 557434 | F83: MARLY | G83: 3.0 | H83: 57% | I83: 48% | J83: 74 | K83: 33% | L83: 31% | M83: 42 | N83: 75% | O83: 75% | P83: 107 | Q83: 63% | R83: 31% | S83: 63 | T83: 86% | U83: 86% | V83: 187 | W83: 67% | X83: 59% | Y83: 79
A84: 264 | B84: VOSGES | C84: 57 | D84: EPINAL | E84: 488561 | F84: REMIREMONT | G84: 7.2 | H84: 57% | I84: 48% | J84: 75 | K84: 18% | L84: 16% | M84: 10 | N84: 77% | O84: 77% | P84: 121 | Q84: 73% | R84: 41% | S84: 162 | T84: 79% | U84: 79% | V84: 112 | W84: 78% | X84: 70% | Y84: 189
A85: 264 | B85: MARNE ARDENNES | C85: 2 | D85: CHARLEVILLE MEZIERES | E85: 508802 | F85: CHARLEVILLE NEVERS | G85: 2.8 | H85: 57% | I85: 49% | J85: 76 | K85: 23% | L85: 22% | M85: 19 | N85: 86% | O85: 86% | P85: 209 | Q85: 69% | R85: 37% | S85: 120 | T85: 72% | U85: 72% | V85: 64 | W85: 74% | X85: 66% | Y85: 153
A86: 264 | B86: MARNE ARDENNES | C86: 11 | D86: REIMS | E86: 451370 | F86: EPERNAY | G86: 8.8 | H86: 57% | I86: 49% | J86: 77 | K86: 43% | L86: 41% | M86: 79 | N86: 69% | O86: 69% | P86: 60 | Q86: 71% | R86: 39% | S86: 140 | T86: 76% | U86: 76% | V86: 90 | W86: 66% | X86: 58% | Y86: 68
A87: 264 | B87: BAS RHIN | C87: 5006 | D87: STRASBOURG | E87: 4054 | F87: STRASBOURG MONTAGNE VERTE | G87: 2.6 | H87: 57% | I87: 49% | J87: 78 | K87: 40% | L87: 38% | M87: 62 | N87: 73% | O87: 73% | P87: 89 | Q87: 62% | R87: 30% | S87: 58 | T87: 72% | U87: 72% | V87: 65 | W87: 78% | X87: 70% | Y87: 200
A88: 264 | B88: MOSELLE | C88: 42 | D88: MOSELLE EST | E88: 457543 | F88: PUTTELANGE AUX LACS | G88: 2.4 | H88: 57% | I88: 49% | J88: 79 | K88: 48% | L88: 46% | M88: 100 | N88: 73% | O88: 73% | P88: 93 | Q88: 68% | R88: 36% | S88: 114 | T88: 69% | U88: 69% | V88: 40 | W88: 67% | X88: 59% | Y88: 75
A89: 264 | B89: MOSELLE | C89: 44 | D89: MOSELLE NORD | E89: 557303 | F89: FAMECK | G89: 2.8 | H89: 57% | I89: 49% | J89: 80 | K89: 37% | L89: 35% | M89: 50 | N89: 72% | O89: 72% | P89: 86 | Q89: 68% | R89: 36% | S89: 101 | T89: 90% | U89: 90% | V89: 217 | W89: 60% | X89: 52% | Y89: 39
A90: 264 | B90: MOSELLE | C90: 45 | D90: METZ | E90: 557444 | F90: SAINT JULIEN LES METZ | G90: 3.7 | H90: 57% | I90: 49% | J90: 81 | K90: 73% | L90: 71% | M90: 216 | N90: 69% | O90: 69% | P90: 68 | Q90: 51% | R90: 19% | S90: 15 | T90: 72% | U90: 72% | V90: 67 | W90: 61% | X90: 53% | Y90: 44
A91: 264 | B91: MARNE ARDENNES | C91: 2 | D91: CHARLEVILLE MEZIERES | E91: 408840 | F91: RETHEL | G91: 4.3 | H91: 57% | I91: 49% | J91: 82 | K91: 59% | L91: 58% | M91: 138 | N91: 68% | O91: 68% | P91: 56 | Q91: 65% | R91: 33% | S91: 75 | T91: 72% | U91: 72% | V91: 66 | W91: 64% | X91: 56% | Y91: 57
A92: 264 | B92: MOSELLE | C92: 45 | D92: METZ | E92: 557612 | F92: SAINTE MARIE AUX CHENES | G92: 3.7 | H92: 57% | I92: 49% | J92: 83 | K92: 26% | L92: 24% | M92: 26 | N92: 89% | O92: 89% | P92: 226 | Q92: 53% | R92: 21% | S92: 21 | T92: 80% | U92: 80% | V92: 129 | W92: 79% | X92: 71% | Y92: 214
A93: 264 | B93: MOSELLE | C93: 42 | D93: MOSELLE EST | E93: 557305 | F93: FAULQUEMONT | G93: 4.3 | H93: 57% | I93: 49% | J93: 84 | K93: 70% | L93: 68% | M93: 201 | N93: 58% | O93: 58% | P93: 22 | Q93: 79% | R93: 47% | S93: 209 | T93: 71% | U93: 71% | V93: 60 | W93: 49% | X93: 41% | Y93: 13
A94: 264 | B94: BAS RHIN | C94: 5060 | D94: HAGUENAU | E94: 4041 | F94: HOERDT | G94: 1.7 | H94: 57% | I94: 49% | J94: 85 | K94: 32% | L94: 31% | M94: 41 | N94: 78% | O94: 78% | P94: 134 | Q94: 59% | R94: 27% | S94: 38 | T94: 85% | U94: 85% | V94: 176 | W94: 73% | X94: 65% | Y94: 140
A95: 264 | B95: BAS RHIN | C95: 5006 | D95: STRASBOURG | E95: 4047 | F95: STRASBOURG CRONENBOURG | G95: 4.5 | H95: 57% | I95: 49% | J95: 86 | K95: 44% | L95: 42% | M95: 80 | N95: 66% | O95: 66% | P95: 47 | Q95: 69% | R95: 37% | S95: 117 | T95: 76% | U95: 76% | V95: 89 | W95: 75% | X95: 67% | Y95: 157
A96: 264 | B96: MARNE ARDENNES | C96: 6 | D96: CHALONS EN CHAMPAGNE | E96: 451101 | F96: CHALONS VIVIERS | G96: 9.6 | H96: 57% | I96: 49% | J96: 87 | K96: 28% | L96: 27% | M96: 31 | N96: 77% | O96: 77% | P96: 131 | Q96: 76% | R96: 44% | S96: 187 | T96: 76% | U96: 76% | V96: 86 | W96: 71% | X96: 63% | Y96: 116
A97: 30 | B97: AUBE HAUTE MARNE | C97: 14 | D97: TROYES | E97: 510570 | F97: NOGENT SUR SEINE | G97: 4.3 | H97: 57% | I97: 49% | J97: 88 | K97: 24% | L97: 22% | M97: 20 | N97: 75% | O97: 75% | P97: 106 | Q97: 78% | R97: 46% | S97: 203 | T97: 81% | U97: 81% | V97: 138 | W97: 72% | X97: 64% | Y97: 120
A98: 30 | B98: MARNE ARDENNES | C98: 11 | D98: REIMS | E98: 551369 | F98: DAMERY | G98: 1.7 | H98: 58% | I98: 49% | J98: 89 | K98: 46% | L98: 44% | M98: 92 | N98: 64% | O98: 64% | P98: 39 | Q98: 84% | R98: 52% | S98: 228 | T98: 78% | U98: 78% | V98: 103 | W98: 57% | X98: 49% | Y98: 29
A99: 30 | B99: MOSELLE | C99: 44 | D99: MOSELLE NORD | E99: 457306 | F99: FLORANGE | G99: 4.7 | H99: 58% | I99: 49% | J99: 90 | K99: 78% | L99: 76% | M99: 231 | N99: 60% | O99: 60% | P99: 26 | Q99: 68% | R99: 36% | S99: 109 | T99: 75% | U99: 75% | V99: 83 | W99: 48% | X99: 40% | Y99: 10
A100: 30 | B100: MOSELLE | C100: 44 | D100: MOSELLE NORD | E100: 457158 | F100: YUTZ | G100: 4.4 | H100: 58% | I100: 50% | J100: 91 | K100: 65% | L100: 63% | M100: 165 | N100: 67% | O100: 67% | P100: 51 | Q100: 65% | R100: 33% | S100: 78 | T100: 71% | U100: 71% | V100: 55 | W100: 63% | X100: 55% | Y100: 53
A101: 30 | B101: MOSELLE | C101: 42 | D101: MOSELLE EST | E101: 557523 | F101: PHALSBOURG | G101: 2.3 | H101: 58% | I101: 50% | J101: 92 | K101: 53% | L101: 51% | M101: 119 | N101: 79% | O101: 79% | P101: 152 | Q101: 59% | R101: 27% | S101: 36 | T101: 69% | U101: 69% | V101: 39 | W101: 70% | X101: 62% | Y101: 107
A102: 30 | B102: MOSELLE | C102: 44 | D102: MOSELLE NORD | E102: 557347 | F102: GUENANGE | G102: 4.5 | H102: 58% | I102: 50% | J102: 93 | K102: 73% | L102: 71% | M102: 214 | N102: 63% | O102: 63% | P102: 35 | Q102: 73% | R102: 41% | S102: 160 | T102: 69% | U102: 69% | V102: 37 | W102: 54% | X102: 46% | Y102: 20
A103: 30 | B103: MEURTHE ET MOSELLE MEUSE | C103: 31 | D103: VERDUN | E103: 555406 | F103: LIGNY EN BARROIS | G103: 2.5 | H103: 58% | I103: 50% | J103: 94 | K103: 26% | L103: 24% | M103: 25 | N103: 77% | O103: 77% | P103: 120 | Q103: 60% | R103: 28% | S103: 40 | T103: 94% | U103: 94% | V103: 227 | W103: 76% | X103: 68% | Y103: 174
A104: 30 | B104: MARNE ARDENNES | C104: 6 | D104: CHALONS EN CHAMPAGNE | E104: 551128 | F104: SAINTE MENEHOULD | G104: 3.1 | H104: 58% | I104: 50% | J104: 95 | K104: 32% | L104: 30% | M104: 38 | N104: 76% | O104: 76% | P104: 114 | Q104: 77% | R104: 45% | S104: 190 | T104: 71% | U104: 71% | V104: 59 | W104: 76% | X104: 68% | Y104: 176
A105: 30 | B105: MEURTHE ET MOSELLE MEUSE | C105: 27 | D105: PONT A MOUSSON | E105: 554416 | F105: LUDRES | G105: 3.5 | H105: 58% | I105: 50% | J105: 96 | K105: 40% | L105: 39% | M105: 65 | N105: 79% | O105: 79% | P105: 148 | Q105: 60% | R105: 28% | S105: 45 | T105: 81% | U105: 81% | V105: 136 | W105: 72% | X105: 64% | Y105: 131
A106: 30 | B106: VOSGES | C106: 55 | D106: SAINT DIE | E106: 588666 | F106: VAGNEY | G106: 3.3 | H106: 58% | I106: 50% | J106: 97 | K106: 28% | L106: 26% | M106: 30 | N106: 83% | O106: 83% | P106: 183 | Q106: 63% | R106: 30% | S106: 59 | T106: 84% | U106: 84% | V106: 166 | W106: 77% | X106: 69% | Y106: 182
A107: 30 | B107: AUBE HAUTE MARNE | C107: 21 | D107: CHAUMONT | E107: 451154 | F107: JOINVILLE | G107: 1.9 | H107: 59% | I107: 50% | J107: 98 | K107: 41% | L107: 39% | M107: 71 | N107: 69% | O107: 69% | P107: 63 | Q107: 85% | R107: 53% | S107: 230 | T107: 67% | U107: 67% | V107: 28 | W107: 72% | X107: 64% | Y107: 132
A108: 30 | B108: MARNE ARDENNES | C108: 11 | D108: REIMS | E108: 551310 | F108: REIMS CHATILLONS | G108: 4.0 | H108: 59% | I108: 50% | J108: 99 | K108: 58% | L108: 56% | M108: 135 | N108: 67% | O108: 67% | P108: 55 | Q108: 68% | R108: 36% | S108: 105 | T108: 75% | U108: 75% | V108: 80 | W108: 66% | X108: 58% | Y108: 70
A109: 30 | B109: MEURTHE ET MOSELLE MEUSE | C109: 31 | D109: VERDUN | E109: 555624 | F109: STENAY | G109: 3.3 | H109: 59% | I109: 51% | J109: 100 | K109: 69% | L109: 68% | M109: 194 | N109: 63% | O109: 63% | P109: 33 | Q109: 66% | R109: 34% | S109: 82 | T109: 85% | U109: 85% | V109: 173 | W109: 54% | X109: 46% | Y109: 18
A110: 30 | B110: MEURTHE ET MOSELLE MEUSE | C110: 27 | D110: PONT A MOUSSON | E110: 554376 | F110: LAXOU BOUFFLERS | G110: 2.9 | H110: 59% | I110: 51% | J110: 101 | K110: 81% | L110: 79% | M110: 240 | N110: 56% | O110: 56% | P110: 16 | Q110: 80% | R110: 48% | S110: 214 | T110: 70% | U110: 70% | V110: 45 | W110: 51% | X110: 43% | Y110: 17
A111: 30 | B111: BAS RHIN | C111: 5060 | D111: HAGUENAU | E111: 4071 | F111: WISSEMBOURG | G111: 6.9 | H111: 59% | I111: 51% | J111: 102 | K111: 33% | L111: 31% | M111: 44 | N111: 77% | O111: 77% | P111: 126 | Q111: 67% | R111: 35% | S111: 97 | T111: 79% | U111: 79% | V111: 108 | W111: 81% | X111: 73% | Y111: 228
A112: 30 | B112: BAS RHIN | C112: 5006 | D112: STRASBOURG | E112: 4027 | F112: SCHILTIGHEIM CENTRE | G112: 3.7 | H112: 59% | I112: 51% | J112: 103 | K112: 68% | L112: 67% | M112: 184 | N112: 65% | O112: 65% | P112: 44 | Q112: 64% | R112: 31% | S112: 67 | T112: 70% | U112: 70% | V112: 52 | W112: 70% | X112: 62% | Y112: 106
A113: 30 | B113: MOSELLE | C113: 45 | D113: METZ | E113: 557441 | F113: METZ PLAPPEVILLE | G113: 2.2 | H113: 59% | I113: 51% | J113: 104 | K113: 71% | L113: 69% | M113: 208 | N113: 80% | O113: 80% | P113: 155 | Q113: 37% | R113: 5% | S113: 3 | T113: 82% | U113: 82% | V113: 144 | W113: 69% | X113: 61% | Y113: 100
A114: 30 | B114: MEURTHE ET MOSELLE MEUSE | C114: 31 | D114: VERDUN | E114: 554700 | F114: VILLERUPT | G114: 2.7 | H114: 59% | I114: 51% | J114: 105 | K114: 32% | L114: 30% | M114: 37 | N114: 75% | O114: 75% | P114: 109 | Q114: 72% | R114: 40% | S114: 151 | T114: 83% | U114: 83% | V114: 162 | W114: 78% | X114: 70% | Y114: 190
A115: 30 | B115: MEURTHE ET MOSELLE MEUSE | C115: 26 | D115: NANCY | E115: 454426 | F115: LUNEVILLE CARNOT | G115: 8.0 | H115: 59% | I115: 51% | J115: 106 | K115: 66% | L115: 64% | M115: 171 | N115: 72% | O115: 72% | P115: 87 | Q115: 61% | R115: 29% | S115: 54 | T115: 84% | U115: 84% | V115: 169 | W115: 56% | X115: 48% | Y115: 24
A116: 30 | B116: MARNE ARDENNES | C116: 2 | D116: CHARLEVILLE MEZIERES | E116: 408822 | F116: CHARLEVILLE MEZIERES | G116: 5.1 | H116: 60% | I116: 52% | J116: 107 | K116: 69% | L116: 68% | M116: 195 | N116: 80% | O116: 80% | P116: 153 | Q116: 51% | R116: 19% | S116: 13 | T116: 76% | U116: 76% | V116: 87 | W116: 65% | X116: 57% | Y116: 62
A117: 30 | B117: VOSGES | C117: 57 | D117: EPINAL | E117: 588396 | F117: LE VAL D AJOL | G117: 2.7 | H117: 60% | I117: 52% | J117: 108 | K117: 19% | L117: 17% | M117: 11 | N117: 83% | O117: 83% | P117: 188 | Q117: 68% | R117: 36% | S117: 102 | T117: 87% | U117: 87% | V117: 193 | W117: 84% | X117: 76% | Y117: 236
A118: 30 | B118: MARNE ARDENNES | C118: 11 | D118: REIMS | E118: 551341 | F118: REIMS JEAN JAURES | G118: 2.8 | H118: 60% | I118: 52% | J118: 109 | K118: 70% | L118: 68% | M118: 202 | N118: 67% | O118: 67% | P118: 52 | Q118: 60% | R118: 28% | S118: 48 | T118: 81% | U118: 81% | V118: 141 | W118: 62% | X118: 54% | Y118: 48
A119: 30 | B119: MOSELLE | C119: 45 | D119: METZ | E119: 557105 | F119: ARS SUR MOSELLE | G119: 3.4 | H119: 60% | I119: 52% | J119: 110 | K119: 49% | L119: 47% | M119: 102 | N119: 77% | O119: 77% | P119: 129 | Q119: 73% | R119: 41% | S119: 159 | T119: 85% | U119: 85% | V119: 179 | W119: 57% | X119: 49% | Y119: 27
A120: 30 | B120: VOSGES | C120: 57 | D120: EPINAL | E120: 588716 | F120: XERTIGNY | G120: 2.7 | H120: 60% | I120: 52% | J120: 111 | K120: 40% | L120: 38% | M120: 63 | N120: 82% | O120: 82% | P120: 171 | Q120: 64% | R120: 32% | S120: 73 | T120: 79% | U120: 79% | V120: 110 | W120: 77% | X120: 69% | Y120: 178
A121: 30 | B121: MEURTHE ET MOSELLE MEUSE | C121: 31 | D121: VERDUN | E121: 455566 | F121: REVIGNY SUR ORNAIN | G121: 2.7 | H121: 60% | I121: 52% | J121: 112 | K121: 53% | L121: 51% | M121: 118 | N121: 78% | O121: 78% | P121: 141 | Q121: 60% | R121: 28% | S121: 43 | T121: 77% | U121: 77% | V121: 97 | W121: 74% | X121: 66% | Y121: 145
A122: 30 | B122: BAS RHIN | C122: 5006 | D122: STRASBOURG | E122: 4006 | F122: STRASBOURG NEUDORF | G122: 7.9 | H122: 60% | I122: 52% | J122: 113 | K122: 25% | L122: 24% | M122: 23 | N122: 82% | O122: 82% | P122: 175 | Q122: 77% | R122: 45% | S122: 197 | T122: 79% | U122: 79% | V122: 119 | W122: 79% | X122: 71% | Y122: 202
A123: 30 | B123: MOSELLE | C123: 44 | D123: MOSELLE NORD | E123: 557307 | F123: FONTOY | G123: 1.9 | H123: 60% | I123: 52% | J123: 114 | K123: 32% | L123: 30% | M123: 40 | N123: 85% | O123: 85% | P123: 202 | Q123: 67% | R123: 35% | S123: 90 | T123: 92% | U123: 92% | V123: 222 | W123: 67% | X123: 59% | Y123: 78
A124: 30 | B124: MEURTHE ET MOSELLE MEUSE | C124: 31 | D124: VERDUN | E124: 455151 | F124: BAR LE DUC | G124: 10.0 | H124: 60% | I124: 52% | J124: 115 | K124: 39% | L124: 38% | M124: 57 | N124: 78% | O124: 78% | P124: 133 | Q124: 74% | R124: 42% | S124: 168 | T124: 79% | U124: 79% | V124: 111 | W124: 73% | X124: 65% | Y124: 136
A125: 30 | B125: MOSELLE | C125: 42 | D125: MOSELLE EST | E125: 557210 | F125: CHATEAU SALINS | G125: 1.4 | H125: 60% | I125: 52% | J125: 116 | K125: 65% | L125: 63% | M125: 168 | N125: 71% | O125: 71% | P125: 78 | Q125: 75% | R125: 43% | S125: 180 | T125: 67% | U125: 67% | V125: 30 | W125: 65% | X125: 57% | Y125: 64
A126: 30 | B126: MOSELLE | C126: 45 | D126: METZ | E126: 557432 | F126: MAIZIERES LES METZ | G126: 2.6 | H126: 60% | I126: 52% | J126: 117 | K126: 69% | L126: 67% | M126: 189 | N126: 69% | O126: 69% | P126: 65 | Q126: 71% | R126: 38% | S126: 137 | T126: 80% | U126: 80% | V126: 127 | W126: 55% | X126: 47% | Y126: 21
A127: 30 | B127: AUBE HAUTE MARNE | C127: 21 | D127: CHAUMONT | E127: 451156 | F127: SAINT DIZIER CENTRE | G127: 8.6 | H127: 61% | I127: 53% | J127: 118 | K127: 53% | L127: 51% | M127: 117 | N127: 77% | O127: 77% | P127: 122 | Q127: 72% | R127: 39% | S127: 145 | T127: 73% | U127: 73% | V127: 69 | W127: 71% | X127: 63% | Y127: 114
A128: 30 | B128: VOSGES | C128: 57 | D128: EPINAL | E128: 588631 | F128: THAON LES VOSGES | G128: 4.2 | H128: 61% | I128: 53% | J128: 119 | K128: 50% | L128: 48% | M128: 107 | N128: 75% | O128: 75% | P128: 103 | Q128: 75% | R128: 43% | S128: 175 | T128: 78% | U128: 78% | V128: 101 | W128: 69% | X128: 61% | Y128: 97
A129: 30 | B129: MOSELLE | C129: 42 | D129: MOSELLE EST | E129: 457435 | F129: MERLEBACH | G129: 2.8 | H129: 61% | I129: 53% | J129: 120 | K129: 50% | L129: 48% | M129: 111 | N129: 73% | O129: 73% | P129: 92 | Q129: 78% | R129: 46% | S129: 202 | T129: 80% | U129: 80% | V129: 125 | W129: 65% | X129: 57% | Y129: 63
A130: 30 | B130: BAS RHIN | C130: 5101 | D130: SELESTAT | E130: 4121 | F130: SCHIRMECK | G130: 2.8 | H130: 61% | I130: 53% | J130: 121 | K130: 40% | L130: 39% | M130: 68 | N130: 71% | O130: 71% | P130: 79 | Q130: 78% | R130: 46% | S130: 204 | T130: 87% | U130: 87% | V130: 197 | W130: 69% | X130: 61% | Y130: 98
A131: 30 | B131: BAS RHIN | C131: 5060 | D131: HAGUENAU | E131: 4031 | F131: TRUCHTERSHEIM | G131: 2.2 | H131: 61% | I131: 53% | J131: 122 | K131: 30% | L131: 29% | M131: 34 | N131: 70% | O131: 70% | P131: 69 | Q131: 69% | R131: 37% | S131: 118 | T131: 94% | U131: 94% | V131: 230 | W131: 84% | X131: 76% | Y131: 235
A132: 30 | B132: MEURTHE ET MOSELLE MEUSE | C132: 31 | D132: VERDUN | E132: 554412 | F132: LONGUYON | G132: 2.8 | H132: 61% | I132: 53% | J132: 123 | K132: 40% | L132: 38% | M132: 59 | N132: 74% | O132: 74% | P132: 95 | Q132: 76% | R132: 44% | S132: 186 | T132: 82% | U132: 82% | V132: 150 | W132: 75% | X132: 67% | Y132: 165
A133: 30 | B133: VOSGES | C133: 57 | D133: EPINAL | E133: 588201 | F133: CHANTRAINE | G133: 3.6 | H133: 61% | I133: 53% | J133: 124 | K133: 52% | L133: 50% | M133: 115 | N133: 71% | O133: 71% | P133: 80 | Q133: 65% | R133: 33% | S133: 77 | T133: 85% | U133: 85% | V133: 178 | W133: 74% | X133: 66% | Y133: 146
A134: 30 | B134: VOSGES | C134: 57 | D134: EPINAL | E134: 488281 | F134: ELOYES | G134: 3.3 | H134: 61% | I134: 53% | J134: 125 | K134: 37% | L134: 35% | M134: 53 | N134: 83% | O134: 83% | P134: 186 | Q134: 61% | R134: 29% | S134: 51 | T134: 92% | U134: 92% | V134: 221 | W134: 73% | X134: 65% | Y134: 143
A135: 30 | B135: MARNE ARDENNES | C135: 6 | D135: CHALONS EN CHAMPAGNE | E135: 551103 | F135: FAGNIERES LECLERC | G135: 2.9 | H135: 61% | I135: 53% | J135: 126 | K135: 49% | L135: 47% | M135: 104 | N135: 85% | O135: 85% | P135: 204 | Q135: 74% | R135: 42% | S135: 164 | T135: 70% | U135: 70% | V135: 47 | W135: 69% | X135: 61% | Y135: 99
A136: 110 | B136: VOSGES | C136: 55 | D136: SAINT DIE | E136: 588461 | F136: MOYENMOUTIER | G136: 4.3 | H136: 61% | I136: 53% | J136: 127 | K136: 44% | L136: 42% | M136: 83 | N136: 76% | O136: 76% | P136: 117 | Q136: 69% | R136: 37% | S136: 122 | T136: 79% | U136: 79% | V136: 113 | W136: 79% | X136: 71% | Y136: 211
A137: 110 | B137: VOSGES | C137: 57 | D137: EPINAL | E137: 488286 | F137: EPINAL ARISTIDE BRIAND | G137: 8.1 | H137: 61% | I137: 53% | J137: 128 | K137: 62% | L137: 60% | M137: 151 | N137: 69% | O137: 69% | P137: 61 | Q137: 58% | R137: 26% | S137: 30 | T137: 84% | U137: 84% | V137: 170 | W137: 74% | X137: 66% | Y137: 154
A138: 110 | B138: BAS RHIN | C138: 5006 | D138: STRASBOURG | E138: 4023 | F138: STRASBOURG VOSGES | G138: 2.8 | H138: 61% | I138: 53% | J138: 129 | K138: 60% | L138: 58% | M138: 140 | N138: 77% | O138: 77% | P138: 128 | Q138: 49% | R138: 17% | S138: 9 | T138: 87% | U138: 87% | V138: 191 | W138: 75% | X138: 67% | Y138: 158
A139: 110 | B139: HAUT RHIN | C139: 5130 | D139: COLMAR | E139: 4143 | F139: MUNSTER | G139: 4.2 | H139: 61% | I139: 53% | J139: 130 | K139: 56% | L139: 54% | M139: 126 | N139: 71% | O139: 71% | P139: 84 | Q139: 66% | R139: 34% | S139: 84 | T139: 80% | U139: 80% | V139: 128 | W139: 75% | X139: 67% | Y139: 167
A140: 110 | B140: BAS RHIN | C140: 5101 | D140: SELESTAT | E140: 4126 | F140: MUTZIG | G140: 2.6 | H140: 61% | I140: 53% | J140: 131 | K140: 64% | L140: 62% | M140: 161 | N140: 65% | O140: 65% | P140: 41 | Q140: 63% | R140: 31% | S140: 64 | T140: 82% | U140: 82% | V140: 155 | W140: 74% | X140: 66% | Y140: 152
A141: 110 | B141: VOSGES | C141: 55 | D141: SAINT DIE | E141: 588386 | F141: LE THILLOT | G141: 2.3 | H141: 61% | I141: 53% | J141: 132 | K141: 15% | L141: 13% | M141: 7 | N141: 84% | O141: 84% | P141: 192 | Q141: 80% | R141: 48% | S141: 213 | T141: 89% | U141: 89% | V141: 211 | W141: 80% | X141: 72% | Y141: 220
A142: 110 | B142: MARNE ARDENNES | C142: 6 | D142: CHALONS EN CHAMPAGNE | E142: 451381 | F142: SEZANNE | G142: 4.9 | H142: 61% | I142: 53% | J142: 133 | K142: 50% | L142: 48% | M142: 106 | N142: 77% | O142: 77% | P142: 123 | Q142: 61% | R142: 29% | S142: 55 | T142: 88% | U142: 88% | V142: 202 | W142: 73% | X142: 65% | Y142: 134
A143: 110 | B143: MEURTHE ET MOSELLE MEUSE | C143: 26 | D143: NANCY | E143: 554296 | F143: ESSEY LES NANCY | G143: 3.6 | H143: 61% | I143: 53% | J143: 134 | K143: 41% | L143: 40% | M143: 73 | N143: 77% | O143: 77% | P143: 130 | Q143: 70% | R143: 37% | S143: 127 | T143: 88% | U143: 88% | V143: 203 | W143: 72% | X143: 64% | Y143: 129
A144: 110 | B144: BAS RHIN | C144: 5060 | D144: HAGUENAU | E144: 4057 | F144: BISCHWILLER | G144: 7.2 | H144: 62% | I144: 54% | J144: 135 | K144: 43% | L144: 41% | M144: 77 | N144: 74% | O144: 74% | P144: 98 | Q144: 74% | R144: 42% | S144: 167 | T144: 79% | U144: 79% | V144: 117 | W144: 80% | X144: 72% | Y144: 219
A145: 110 | B145: BAS RHIN | C145: 5006 | D145: STRASBOURG | E145: 4024 | F145: STRASBOURG AUSTERLITZ | G145: 0.9 | H145: 62% | I145: 54% | J145: 136 | K145: 83% | L145: 81% | M145: 241 | N145: 71% | O145: 71% | P145: 83 | Q145: 74% | R145: 42% | S145: 163 | T145: 67% | U145: 67% | V145: 32 | W145: 55% | X145: 47% | Y145: 22
A146: 110 | B146: MEURTHE ET MOSELLE MEUSE | C146: 27 | D146: PONT A MOUSSON | E146: 454651 | F146: TOUL | G146: 9.8 | H146: 62% | I146: 54% | J146: 137 | K146: 72% | L146: 70% | M146: 211 | N146: 80% | O146: 80% | P146: 154 | Q146: 67% | R146: 35% | S146: 92 | T146: 71% | U146: 71% | V146: 57 | W146: 61% | X146: 53% | Y146: 43
A147: 110 | B147: AUBE HAUTE MARNE | C147: 14 | D147: TROYES | E147: 510513 | F147: SAINT PARRE AUX TERTRES | G147: 2.2 | H147: 62% | I147: 54% | J147: 138 | K147: 79% | L147: 78% | M147: 238 | N147: 64% | O147: 64% | P147: 40 | Q147: 71% | R147: 39% | S147: 142 | T147: 67% | U147: 67% | V147: 31 | W147: 68% | X147: 60% | Y147: 90
A148: 110 | B148: BAS RHIN | C148: 5006 | D148: STRASBOURG | E148: 4020 | F148: STRASBOURG ROBERTSAU | G148: 5.3 | H148: 62% | I148: 54% | J148: 139 | K148: 60% | L148: 58% | M148: 139 | N148: 82% | O148: 82% | P148: 174 | Q148: 43% | R148: 11% | S148: 5 | T148: 87% | U148: 87% | V148: 196 | W148: 78% | X148: 70% | Y148: 199
A149: 110 | B149: VOSGES | C149: 55 | D149: SAINT DIE | E149: 588316 | F149: FRAIZE | G149: 3.7 | H149: 62% | I149: 54% | J149: 140 | K149: 50% | L149: 48% | M149: 108 | N149: 85% | O149: 85% | P149: 203 | Q149: 68% | R149: 35% | S149: 98 | T149: 75% | U149: 75% | V149: 82 | W149: 73% | X149: 65% | Y149: 142
A150: 110 | B150: VOSGES | C150: 57 | D150: EPINAL | E150: 488706 | F150: VITTEL | G150: 3.0 | H150: 62% | I150: 54% | J150: 141 | K150: 46% | L150: 44% | M150: 91 | N150: 82% | O150: 82% | P150: 178 | Q150: 76% | R150: 44% | S150: 182 | T150: 77% | U150: 77% | V150: 100 | W150: 70% | X150: 62% | Y150: 102
A151: 110 | B151: MOSELLE | C151: 42 | D151: MOSELLE EST | E151: 557503 | F151: NEUNKIRCH | G151: 3.4 | H151: 62% | I151: 54% | J151: 142 | K151: 13% | L151: 11% | M151: 4 | N151: 88% | O151: 88% | P151: 219 | Q151: 79% | R151: 47% | S151: 206 | T151: 94% | U151: 94% | V151: 229 | W151: 78% | X151: 70% | Y151: 195
A152: 110 | B152: BAS RHIN | C152: 5060 | D152: HAGUENAU | E152: 4085 | F152: INGWILLER | G152: 3.5 | H152: 62% | I152: 54% | J152: 143 | K152: 55% | L152: 53% | M152: 122 | N152: 77% | O152: 77% | P152: 124 | Q152: 68% | R152: 36% | S152: 110 | T152: 80% | U152: 80% | V152: 124 | W152: 71% | X152: 63% | Y152: 118
A153: 110 | B153: MEURTHE ET MOSELLE MEUSE | C153: 26 | D153: NANCY | E153: 554166 | F153: BLAINVILLE | G153: 2.6 | H153: 62% | I153: 54% | J153: 144 | K153: 68% | L153: 66% | M153: 183 | N153: 68% | O153: 68% | P153: 58 | Q153: 76% | R153: 44% | S153: 185 | T153: 70% | U153: 70% | V153: 48 | W153: 71% | X153: 63% | Y153: 112
A154: 110 | B154: MOSELLE | C154: 44 | D154: MOSELLE NORD | E154: 457192 | F154: CATTENOM | G154: 1.6 | H154: 62% | I154: 54% | J154: 145 | K154: 62% | L154: 60% | M154: 147 | N154: 73% | O154: 73% | P154: 91 | Q154: 70% | R154: 38% | S154: 135 | T154: 81% | U154: 81% | V154: 140 | W154: 68% | X154: 60% | Y154: 82
A155: 110 | B155: MEURTHE ET MOSELLE MEUSE | C155: 26 | D155: NANCY | E155: 554486 | F155: NANCY POINT CENTRAL | G155: 3.0 | H155: 62% | I155: 54% | J155: 146 | K155: 56% | L155: 55% | M155: 132 | N155: 84% | O155: 84% | P155: 195 | Q155: 57% | R155: 25% | S155: 25 | T155: 84% | U155: 84% | V155: 172 | W155: 72% | X155: 64% | Y155: 125
A156: 110 | B156: AUBE HAUTE MARNE | C156: 21 | D156: CHAUMONT | E156: 410566 | F156: CHAUMONT HOTEL DE VILLE | G156: 10.5 | H156: 63% | I156: 55% | J156: 147 | K156: 52% | L156: 50% | M156: 116 | N156: 82% | O156: 82% | P156: 169 | Q156: 63% | R156: 31% | S156: 66 | T156: 83% | U156: 83% | V156: 158 | W156: 75% | X156: 67% | Y156: 159
A157: 110 | B157: BAS RHIN | C157: 5006 | D157: STRASBOURG | E157: 4019 | F157: STRASBOURG ANVERS | G157: 4.5 | H157: 63% | I157: 55% | J157: 148 | K157: 66% | L157: 64% | M157: 174 | N157: 65% | O157: 65% | P157: 43 | Q157: 77% | R157: 45% | S157: 192 | T157: 76% | U157: 76% | V157: 84 | W157: 71% | X157: 63% | Y157: 117
A158: 110 | B158: MEURTHE ET MOSELLE MEUSE | C158: 27 | D158: PONT A MOUSSON | E158: 554496 | F158: NANCY TROIS MAISONS | G158: 2.1 | H158: 63% | I158: 55% | J158: 149 | K158: 66% | L158: 64% | M158: 175 | N158: 79% | O158: 79% | P158: 147 | Q158: 69% | R158: 37% | S158: 123 | T158: 76% | U158: 76% | V158: 88 | W158: 67% | X158: 59% | Y158: 77
A159: 110 | B159: MARNE ARDENNES | C159: 2 | D159: CHARLEVILLE MEZIERES | E159: 408862 | F159: REVIN | G159: 3.8 | H159: 63% | I159: 55% | J159: 150 | K159: 45% | L159: 43% | M159: 89 | N159: 83% | O159: 83% | P159: 187 | Q159: 75% | R159: 43% | S159: 176 | T159: 77% | U159: 77% | V159: 95 | W159: 77% | X159: 69% | Y159: 186
A160: 110 | B160: HAUT RHIN | C160: 5130 | D160: COLMAR | E160: 4157 | F160: NEUF BRISACH | G160: 2.8 | H160: 63% | I160: 55% | J160: 151 | K160: 63% | L160: 61% | M160: 158 | N160: 79% | O160: 79% | P160: 144 | Q160: 69% | R160: 37% | S160: 124 | T160: 75% | U160: 75% | V160: 79 | W160: 72% | X160: 64% | Y160: 119
A161: 110 | B161: BAS RHIN | C161: 5006 | D161: STRASBOURG | E161: 4039 | F161: REICHSTETT | G161: 1.6 | H161: 64% | I161: 55% | J161: 152 | K161: 65% | L161: 64% | M161: 170 | N161: 81% | O161: 81% | P161: 162 | Q161: 62% | R161: 30% | S161: 57 | T161: 76% | U161: 76% | V161: 85 | W161: 75% | X161: 67% | Y161: 162
A162: 110 | B162: MEURTHE ET MOSELLE MEUSE | C162: 27 | D162: PONT A MOUSSON | E162: 554357 | F162: JOEUF | G162: 3.2 | H162: 64% | I162: 55% | J162: 153 | K162: 45% | L162: 43% | M162: 86 | N162: 80% | O162: 80% | P162: 156 | Q162: 80% | R162: 48% | S162: 211 | T162: 88% | U162: 88% | V162: 200 | W162: 68% | X162: 60% | Y162: 81
A163: 110 | B163: MARNE ARDENNES | C163: 2 | D163: CHARLEVILLE MEZIERES | E163: 408806 | F163: SEDAN | G163: 7.6 | H163: 64% | I163: 56% | J163: 154 | K163: 43% | L163: 41% | M163: 78 | N163: 82% | O163: 82% | P163: 166 | Q163: 74% | R163: 42% | S163: 165 | T163: 90% | U163: 90% | V163: 215 | W163: 71% | X163: 63% | Y163: 115
A164: 110 | B164: MOSELLE | C164: 45 | D164: METZ | E164: 557433 | F164: MARANGE SILVANGE | G164: 2.9 | H164: 64% | I164: 56% | J164: 155 | K164: 66% | L164: 64% | M164: 173 | N164: 80% | O164: 80% | P164: 159 | Q164: 69% | R164: 37% | S164: 119 | T164: 80% | U164: 80% | V164: 132 | W164: 65% | X164: 57% | Y164: 66
A165: 110 | B165: BAS RHIN | C165: 5060 | D165: HAGUENAU | E165: 4082 | F165: BOUXWILLER | G165: 2.2 | H165: 64% | I165: 56% | J165: 156 | K165: 26% | L165: 25% | M165: 29 | N165: 85% | O165: 85% | P165: 199 | Q165: 106% | R165: 73% | S165: 242 | T165: 76% | U165: 76% | V165: 91 | W165: 68% | X165: 60% | Y165: 92
A166: 110 | B166: AUBE HAUTE MARNE | C166: 14 | D166: TROYES | E166: 510523 | F166: LA CHAPELLE ST LUC | G166: 4.5 | H166: 64% | I166: 56% | J166: 157 | K166: 79% | L166: 77% | M166: 235 | N166: 74% | O166: 74% | P166: 101 | Q166: 67% | R166: 35% | S166: 91 | T166: 69% | U166: 69% | V166: 41 | W166: 72% | X166: 64% | Y166: 127
A167: 110 | B167: MEURTHE ET MOSELLE MEUSE | C167: 26 | D167: NANCY | E167: 554266 | F167: DOMBASLE SUR MEURTHE | G167: 3.3 | H167: 64% | I167: 56% | J167: 158 | K167: 69% | L167: 67% | M167: 190 | N167: 90% | O167: 90% | P167: 230 | Q167: 58% | R167: 26% | S167: 29 | T167: 76% | U167: 76% | V167: 94 | W167: 69% | X167: 61% | Y167: 94
A168: 110 | B168: MOSELLE | C168: 45 | D168: METZ | E168: 557436 | F168: METZ CATHEDRALE | G168: 3.8 | H168: 64% | I168: 56% | J168: 159 | K168: 77% | L168: 75% | M168: 228 | N168: 77% | O168: 77% | P168: 125 | Q168: 60% | R168: 28% | S168: 44 | T168: 73% | U168: 73% | V168: 72 | W168: 75% | X168: 67% | Y168: 166
A169: 110 | B169: VOSGES | C169: 55 | D169: SAINT DIE | E169: 488556 | F169: RAON L ETAPE | G169: 2.2 | H169: 64% | I169: 56% | J169: 160 | K169: 40% | L169: 39% | M169: 66 | N169: 88% | O169: 88% | P169: 217 | Q169: 81% | R169: 49% | S169: 217 | T169: 83% | U169: 83% | V169: 159 | W169: 70% | X169: 62% | Y169: 108
A170: 110 | B170: MOSELLE | C170: 42 | D170: MOSELLE EST | E170: 457258 | F170: DIEUZE | G170: 3.0 | H170: 64% | I170: 56% | J170: 161 | K170: 41% | L170: 39% | M170: 70 | N170: 87% | O170: 87% | P170: 211 | Q170: 70% | R170: 38% | S170: 131 | T170: 82% | U170: 82% | V170: 153 | W170: 83% | X170: 75% | Y170: 231
A171: 110 | B171: HAUT RHIN | C171: 5130 | D171: COLMAR | E171: 4132 | F171: COLMAR MARAICHERS | G171: 3.8 | H171: 64% | I171: 56% | J171: 162 | K171: 49% | L171: 47% | M171: 103 | N171: 78% | O171: 78% | P171: 136 | Q171: 72% | R171: 40% | S171: 146 | T171: 83% | U171: 83% | V171: 161 | W171: 81% | X171: 73% | Y171: 227
A172: 110 | B172: BAS RHIN | C172: 5101 | D172: SELESTAT | E172: 4007 | F172: ILLKIRCH CENTRE | G172: 6.5 | H172: 64% | I172: 56% | J172: 163 | K172: 71% | L172: 70% | M172: 209 | N172: 78% | O172: 78% | P172: 142 | Q172: 72% | R172: 40% | S172: 147 | T172: 69% | U172: 69% | V172: 38 | W172: 73% | X172: 65% | Y172: 135
A173: 110 | B173: MOSELLE | C173: 45 | D173: METZ | E173: 557712 | F173: WOIPPY | G173: 4.4 | H173: 64% | I173: 56% | J173: 164 | K173: 70% | L173: 68% | M173: 197 | N173: 75% | O173: 75% | P173: 108 | Q173: 68% | R173: 36% | S173: 113 | T173: 76% | U173: 76% | V173: 93 | W173: 74% | X173: 66% | Y173: 148
A174: 110 | B174: VOSGES | C174: 57 | D174: EPINAL | E174: 588206 | F174: CHARMES | G174: 2.7 | H174: 64% | I174: 56% | J174: 165 | K174: 56% | L174: 54% | M174: 129 | N174: 82% | O174: 82% | P174: 172 | Q174: 61% | R174: 29% | S174: 52 | T174: 89% | U174: 89% | V174: 208 | W174: 76% | X174: 68% | Y174: 170
A175: 110 | B175: MARNE ARDENNES | C175: 2 | D175: CHARLEVILLE MEZIERES | E175: 508815 | F175: CARIGNAN | G175: 2.6 | H175: 64% | I175: 56% | J175: 166 | K175: 45% | L175: 43% | M175: 87 | N175: 76% | O175: 76% | P175: 119 | Q175: 72% | R175: 40% | S175: 150 | T175: 93% | U175: 93% | V175: 224 | W175: 78% | X175: 70% | Y175: 198
A176: 110 | B176: MOSELLE | C176: 42 | D176: MOSELLE EST | E176: 457614 | F176: SARREBOURG | G176: 8.0 | H176: 65% | I176: 56% | J176: 167 | K176: 56% | L176: 54% | M176: 127 | N176: 82% | O176: 82% | P176: 177 | Q176: 70% | R176: 38% | S176: 134 | T176: 80% | U176: 80% | V176: 131 | W176: 76% | X176: 68% | Y176: 169
A177: 110 | B177: BAS RHIN | C177: 5101 | D177: SELESTAT | E177: 4008 | F177: FEGERSHEIM | G177: 2.3 | H177: 65% | I177: 57% | J177: 168 | K177: 50% | L177: 48% | M177: 105 | N177: 74% | O177: 74% | P177: 100 | Q177: 71% | R177: 39% | S177: 141 | T177: 86% | U177: 86% | V177: 189 | W177: 84% | X177: 76% | Y177: 234
A178: 160 | B178: MEURTHE ET MOSELLE MEUSE | C178: 27 | D178: PONT A MOUSSON | E178: 454355 | F178: JARNY | G178: 4.1 | H178: 65% | I178: 57% | J178: 169 | K178: 56% | L178: 54% | M178: 131 | N178: 79% | O178: 79% | P178: 146 | Q178: 73% | R178: 40% | S178: 155 | T178: 80% | U178: 80% | V178: 126 | W178: 79% | X178: 71% | Y178: 217
A179: 160 | B179: MEURTHE ET MOSELLE MEUSE | C179: 27 | D179: PONT A MOUSSON | E179: 454696 | F179: VILLERS GENERAL LECLERC | G179: 4.2 | H179: 65% | I179: 57% | J179: 170 | K179: 63% | L179: 61% | M179: 157 | N179: 87% | O179: 87% | P179: 214 | Q179: 52% | R179: 20% | S179: 17 | T179: 86% | U179: 86% | V179: 186 | W179: 79% | X179: 71% | Y179: 216
A180: 160 | B180: MOSELLE | C180: 45 | D180: METZ | E180: 557559 | F180: REMILLY | G180: 3.5 | H180: 65% | I180: 57% | J180: 171 | K180: 66% | L180: 64% | M180: 172 | N180: 80% | O180: 80% | P180: 160 | Q180: 68% | R180: 36% | S180: 111 | T180: 86% | U180: 86% | V180: 185 | W180: 68% | X180: 60% | Y180: 84
A181: 160 | B181: BAS RHIN | C181: 5006 | D181: STRASBOURG | E181: 4028 | F181: BISCHHEIM | G181: 3.3 | H181: 65% | I181: 57% | J181: 172 | K181: 67% | L181: 65% | M181: 176 | N181: 82% | O181: 82% | P181: 165 | Q181: 66% | R181: 34% | S181: 86 | T181: 75% | U181: 75% | V181: 78 | W181: 79% | X181: 71% | Y181: 204
A182: 160 | B182: BAS RHIN | C182: 5101 | D182: SELESTAT | E182: 4107 | F182: VILLE | G182: 2.3 | H182: 65% | I182: 57% | J182: 173 | K182: 75% | L182: 73% | M182: 220 | N182: 68% | O182: 68% | P182: 57 | Q182: 59% | R182: 27% | S182: 37 | T182: 84% | U182: 84% | V182: 167 | W182: 83% | X182: 75% | Y182: 233
A183: 160 | B183: MOSELLE | C183: 45 | D183: METZ | E183: 557459 | F183: MOULINS LES METZ | G183: 2.5 | H183: 65% | I183: 57% | J183: 174 | K183: 45% | L183: 43% | M183: 88 | N183: 85% | O183: 85% | P183: 206 | Q183: 77% | R183: 45% | S183: 188 | T183: 83% | U183: 83% | V183: 157 | W183: 79% | X183: 71% | Y183: 209
A184: 160 | B184: MARNE ARDENNES | C184: 11 | D184: REIMS | E184: 551309 | F184: REIMS EUROPE | G184: 2.9 | H184: 65% | I184: 57% | J184: 175 | K184: 51% | L184: 50% | M184: 114 | N184: 84% | O184: 84% | P184: 196 | Q184: 79% | R184: 47% | S184: 208 | T184: 79% | U184: 79% | V184: 116 | W184: 75% | X184: 67% | Y184: 164
A185: 160 | B185: HAUT RHIN | C185: 5169 | D185: MULHOUSE | E185: 4170 | F185: MULHOUSE REUNION | G185: 7.4 | H185: 65% | I185: 57% | J185: 176 | K185: 61% | L185: 59% | M185: 146 | N185: 78% | O185: 78% | P185: 140 | Q185: 79% | R185: 47% | S185: 207 | T185: 78% | U185: 78% | V185: 102 | W185: 73% | X185: 65% | Y185: 133
A186: 160 | B186: MEURTHE ET MOSELLE MEUSE | C186: 26 | D186: NANCY | E186: 454671 | F186: VANDOEUVRE LES NANCY | G186: 4.2 | H186: 65% | I186: 57% | J186: 177 | K186: 71% | L186: 69% | M186: 206 | N186: 81% | O186: 81% | P186: 161 | Q186: 66% | R186: 34% | S186: 83 | T186: 81% | U186: 81% | V186: 137 | W186: 70% | X186: 62% | Y186: 105
A187: 160 | B187: BAS RHIN | C187: 5006 | D187: STRASBOURG | E187: 4026 | F187: STRASBOURG DANUBE | G187: 3.2 | H187: 65% | I187: 57% | J187: 178 | K187: 71% | L187: 69% | M187: 204 | N187: 84% | O187: 84% | P187: 191 | Q187: 65% | R187: 32% | S187: 74 | T187: 79% | U187: 79% | V187: 115 | W187: 71% | X187: 63% | Y187: 111
A188: 160 | B188: HAUT RHIN | C188: 5130 | D188: COLMAR | E188: 4130 | F188: COLMAR REPUBLIQUE | G188: 6.1 | H188: 66% | I188: 58% | J188: 179 | K188: 65% | L188: 63% | M188: 166 | N188: 82% | O188: 82% | P188: 164 | Q188: 74% | R188: 42% | S188: 166 | T188: 72% | U188: 72% | V188: 63 | W188: 78% | X188: 70% | Y188: 193
A189: 160 | B189: AUBE HAUTE MARNE | C189: 14 | D189: TROYES | E189: 410550 | F189: BAR SUR AUBE | G189: 5.1 | H189: 66% | I189: 58% | J189: 180 | K189: 46% | L189: 45% | M189: 93 | N189: 82% | O189: 82% | P189: 170 | Q189: 78% | R189: 46% | S189: 201 | T189: 88% | U189: 88% | V189: 207 | W189: 77% | X189: 69% | Y189: 180
A190: 160 | B190: BAS RHIN | C190: 5101 | D190: SELESTAT | E190: 4127 | F190: ROSHEIM | G190: 1.7 | H190: 66% | I190: 58% | J190: 181 | K190: 62% | L190: 61% | M190: 154 | N190: 83% | O190: 83% | P190: 185 | Q190: 59% | R190: 27% | S190: 34 | T190: 89% | U190: 89% | V190: 209 | W190: 78% | X190: 70% | Y190: 196
A191: 160 | B191: HAUT RHIN | C191: 5169 | D191: MULHOUSE | E191: 4178 | F191: SAINT LOUIS | G191: 6.4 | H191: 66% | I191: 58% | J191: 182 | K191: 68% | L191: 66% | M191: 182 | N191: 78% | O191: 78% | P191: 138 | Q191: 65% | R191: 33% | S191: 76 | T191: 82% | U191: 82% | V191: 145 | W191: 79% | X191: 71% | Y191: 210
A192: 160 | B192: BAS RHIN | C192: 5006 | D192: STRASBOURG | E192: 4029 | F192: SCHILTIGHEIM KLEBER | G192: 1.0 | H192: 66% | I192: 58% | J192: 183 | K192: 62% | L192: 60% | M192: 149 | N192: 92% | O192: 92% | P192: 235 | Q192: 60% | R192: 28% | S192: 47 | T192: 83% | U192: 83% | V192: 163 | W192: 75% | X192: 67% | Y192: 160
A193: 160 | B193: MARNE ARDENNES | C193: 2 | D193: CHARLEVILLE MEZIERES | E193: 508819 | F193: MOUZON | G193: 1.9 | H193: 66% | I193: 58% | J193: 184 | K193: 47% | L193: 46% | M193: 98 | N193: 92% | O193: 92% | P193: 237 | Q193: 63% | R193: 31% | S193: 61 | T193: 94% | U193: 94% | V193: 231 | W193: 76% | X193: 68% | Y193: 172
A194: 160 | B194: MEURTHE ET MOSELLE MEUSE | C194: 27 | D194: PONT A MOUSSON | E194: 554196 | F194: CHAMPIGNEULLES | G194: 2.5 | H194: 66% | I194: 58% | J194: 185 | K194: 68% | L194: 66% | M194: 181 | N194: 84% | O194: 84% | P194: 193 | Q194: 78% | R194: 45% | S194: 200 | T194: 69% | U194: 69% | V194: 43 | W194: 75% | X194: 67% | Y194: 163
A195: 160 | B195: MOSELLE | C195: 45 | D195: METZ | E195: 557440 | F195: METZ MOZART | G195: 3.0 | H195: 66% | I195: 58% | J195: 186 | K195: 65% | L195: 63% | M195: 167 | N195: 83% | O195: 83% | P195: 181 | Q195: 66% | R195: 33% | S195: 81 | T195: 82% | U195: 82% | V195: 152 | W195: 79% | X195: 71% | Y195: 203
A196: 160 | B196: BAS RHIN | C196: 5101 | D196: SELESTAT | E196: 4101 | F196: SELESTAT CENTRE | G196: 7.8 | H196: 66% | I196: 58% | J196: 187 | K196: 70% | L196: 68% | M196: 198 | N196: 77% | O196: 77% | P196: 127 | Q196: 75% | R196: 43% | S196: 174 | T196: 78% | U196: 78% | V196: 107 | W196: 74% | X196: 66% | Y196: 156
A197: 160 | B197: BAS RHIN | C197: 5101 | D197: SELESTAT | E197: 4109 | F197: MARCKOLSHEIM | G197: 2.7 | H197: 67% | I197: 59% | J197: 188 | K197: 61% | L197: 59% | M197: 144 | N197: 75% | O197: 75% | P197: 112 | Q197: 81% | R197: 49% | S197: 218 | T197: 81% | U197: 81% | V197: 139 | W197: 76% | X197: 68% | Y197: 177
A198: 160 | B198: HAUT RHIN | C198: 5130 | D198: COLMAR | E198: 4147 | F198: GUEBWILLER | G198: 4.6 | H198: 67% | I198: 59% | J198: 189 | K198: 62% | L198: 60% | M198: 152 | N198: 78% | O198: 78% | P198: 139 | Q198: 72% | R198: 40% | S198: 149 | T198: 85% | U198: 85% | V198: 177 | W198: 77% | X198: 69% | Y198: 188
A199: 160 | B199: AUBE HAUTE MARNE | C199: 14 | D199: TROYES | E199: 510520 | F199: SAINT ANDRE LES VERGERS | G199: 3.3 | H199: 67% | I199: 59% | J199: 190 | K199: 81% | L199: 79% | M199: 239 | N199: 78% | O199: 78% | P199: 137 | Q199: 69% | R199: 36% | S199: 115 | T199: 79% | U199: 79% | V199: 114 | W199: 68% | X199: 60% | Y199: 87
A200: 160 | B200: MEURTHE ET MOSELLE MEUSE | C200: 27 | D200: PONT A MOUSSON | E200: 554257 | F200: DIEULOUARD | G200: 2.7 | H200: 67% | I200: 59% | J200: 191 | K200: 57% | L200: 55% | M200: 134 | N200: 85% | O200: 85% | P200: 205 | Q200: 58% | R200: 26% | S200: 31 | T200: 89% | U200: 89% | V200: 210 | W200: 86% | X200: 78% | Y200: 242
A201: 160 | B201: HAUT RHIN | C201: 5169 | D201: MULHOUSE | E201: 4180 | F201: RIEDISHEIM | G201: 3.4 | H201: 67% | I201: 59% | J201: 192 | K201: 44% | L201: 42% | M201: 81 | N201: 82% | O201: 82% | P201: 176 | Q201: 89% | R201: 57% | S201: 235 | T201: 82% | U201: 82% | V201: 147 | W201: 79% | X201: 71% | Y201: 215
A202: 160 | B202: MARNE ARDENNES | C202: 2 | D202: CHARLEVILLE MEZIERES | E202: 508860 | F202: ROCROI | G202: 2.3 | H202: 67% | I202: 59% | J202: 193 | K202: 74% | L202: 72% | M202: 218 | N202: 72% | O202: 72% | P202: 88 | Q202: 76% | R202: 44% | S202: 183 | T202: 84% | U202: 84% | V202: 168 | W202: 71% | X202: 63% | Y202: 110
A203: 160 | B203: MARNE ARDENNES | C203: 11 | D203: REIMS | E203: 451308 | F203: REIMS SAINT THOMAS | G203: 5.2 | H203: 67% | I203: 59% | J203: 194 | K203: 77% | L203: 75% | M203: 230 | N203: 75% | O203: 75% | P203: 110 | Q203: 83% | R203: 51% | S203: 223 | T203: 80% | U203: 80% | V203: 123 | W203: 62% | X203: 54% | Y203: 47
... 51 more rows

Sheet AG_BANCA
B1: Accueil | H1: BAROMETRE BDD - AGENCES
H2: BANCARISATION
H3: =ACCUEIL!F7 -> 2022-07-17
H7: Ventes Nettes produits pondérés | L7: Ventes sur client non détenteur de l’univers | P7: Total Bancarisation
H8: =DATEMAJ!C8 -> au 17/07 | J8: coef | K8: ='RECAP DIRCOM'!AA4 -> 12% | L8: =DATEMAJ!C9 -> au 17/07 | N8: coef | O8: ='RECAP DIRCOM'!AE4 -> 8% | Q8: coef | R8: ='RECAP DIRCOM'!$AH$4 -> 20%
B9: Direction | C9: eds | D9: Territoire | E9: eds | F9: Agence | G9: ="ETP perf "&DATEMAJ!$C$28 -> ETP perf 17-juil | H9: VN | I9: VN / ETP | J9: % Ecart au 1er | K9: Rang | L9: VB | M9: VB / ETP | N9: % Ecart au 1er | O9: Rang | P9: Moyenne ecart au 1er | Q9: % Ecart au 1er | R9: Rang CEGEE
A10: 50 | B10: AUBE HAUTE MARNE | C10: 21 | D10: CHAUMONT | E10: 410541 | F10: LANGRES | G10: =VLOOKUP($E10,'RECAP AG'!$G$6:$CU$250,3,FALSE) -> 8.2 | H10: =VLOOKUP($E10,'RECAP AG'!$G$6:$CU$250,18,FALSE) -> 196.3 | I10: =VLOOKUP($E10,'RECAP AG'!$G$6:$CU$250,19,FALSE) -> 23.91 | J10: =VLOOKUP($E10,'RECAP AG'!$G$6:$CU$250,20,FALSE) -> 77% | K10: =VLOOKUP($E10,'RECAP AG'!$G$6:$CU$250,21,FALSE) -> 68 | L10: =VLOOKUP($E10,'RECAP AG'!$G$6:$CU$250,22,FALSE) -> 306 | M10: =VLOOKUP($E10,'RECAP AG'!$G$6:$CU$250,23,FALSE) -> 37.27 | N10: =VLOOKUP($E10,'RECAP AG'!$G$6:$CU$250,24,FALSE) -> 70% | O10: =VLOOKUP($E10,'RECAP AG'!$G$6:$CU$250,25,FALSE) -> 166 | P10: =VLOOKUP($E10,'RECAP AG'!$G$6:$CU$250,26,FALSE) -> 74% | Q10: =VLOOKUP($E10,'RECAP AG'!$G$6:$CU$250,27,FALSE) -> 74% | R10: =VLOOKUP($E10,'RECAP AG'!$G$6:$CU$250,28,FALSE) -> 97
A11: 50 | B11: AUBE HAUTE MARNE | C11: 21 | D11: CHAUMONT | E11: 410566 | F11: CHAUMONT HOTEL DE VILLE | G11: =VLOOKUP($E11,'RECAP AG'!$G$6:$CU$250,3,FALSE) -> 10.5 | H11: =VLOOKUP($E11,'RECAP AG'!$G$6:$CU$250,18,FALSE) -> 95.9 | I11: =VLOOKUP($E11,'RECAP AG'!$G$6:$CU$250,19,FALSE) -> 9.16 | J11: =VLOOKUP($E11,'RECAP AG'!$G$6:$CU$250,20,FALSE) -> 91% | K11: =VLOOKUP($E11,'RECAP AG'!$G$6:$CU$250,21,FALSE) -> 174 | L11: =VLOOKUP($E11,'RECAP AG'!$G$6:$CU$250,22,FALSE) -> 408 | M11: =VLOOKUP($E11,'RECAP AG'!$G$6:$CU$250,23,FALSE) -> 38.97 | N11: =VLOOKUP($E11,'RECAP AG'!$G$6:$CU$250,24,FALSE) -> 68% | O11: =VLOOKUP($E11,'RECAP AG'!$G$6:$CU$250,25,FALSE) -> 153 | P11: =VLOOKUP($E11,'RECAP AG'!$G$6:$CU$250,26,FALSE) -> 82% | Q11: =VLOOKUP($E11,'RECAP AG'!$G$6:$CU$250,27,FALSE) -> 82% | R11: =VLOOKUP($E11,'RECAP AG'!$G$6:$CU$250,28,FALSE) -> 169
A12: 50 | B12: AUBE HAUTE MARNE | C12: 21 | D12: CHAUMONT | E12: 510590 | F12: CHAUMONT REPUBLIQUE | G12: =VLOOKUP($E12,'RECAP AG'!$G$6:$CU$250,3,FALSE) -> 2.9 | H12: =VLOOKUP($E12,'RECAP AG'!$G$6:$CU$250,18,FALSE) -> 19.5 | I12: =VLOOKUP($E12,'RECAP AG'!$G$6:$CU$250,19,FALSE) -> 6.84 | J12: =VLOOKUP($E12,'RECAP AG'!$G$6:$CU$250,20,FALSE) -> 93% | K12: =VLOOKUP($E12,'RECAP AG'!$G$6:$CU$250,21,FALSE) -> 190 | L12: =VLOOKUP($E12,'RECAP AG'!$G$6:$CU$250,22,FALSE) -> 147 | M12: =VLOOKUP($E12,'RECAP AG'!$G$6:$CU$250,23,FALSE) -> 51.58 | N12: =VLOOKUP($E12,'RECAP AG'!$G$6:$CU$250,24,FALSE) -> 58% | O12: =VLOOKUP($E12,'RECAP AG'!$G$6:$CU$250,25,FALSE) -> 75 | P12: =VLOOKUP($E12,'RECAP AG'!$G$6:$CU$250,26,FALSE) -> 79% | Q12: =VLOOKUP($E12,'RECAP AG'!$G$6:$CU$250,27,FALSE) -> 79% | R12: =VLOOKUP($E12,'RECAP AG'!$G$6:$CU$250,28,FALSE) -> 150
A13: 50 | B13: AUBE HAUTE MARNE | C13: 21 | D13: CHAUMONT | E13: 451154 | F13: JOINVILLE | G13: =VLOOKUP($E13,'RECAP AG'!$G$6:$CU$250,3,FALSE) -> 1.9 | H13: =VLOOKUP($E13,'RECAP AG'!$G$6:$CU$250,18,FALSE) -> 39.8 | I13: =VLOOKUP($E13,'RECAP AG'!$G$6:$CU$250,19,FALSE) -> 21.40 | J13: =VLOOKUP($E13,'RECAP AG'!$G$6:$CU$250,20,FALSE) -> 79% | K13: =VLOOKUP($E13,'RECAP AG'!$G$6:$CU$250,21,FALSE) -> 76 | L13: =VLOOKUP($E13,'RECAP AG'!$G$6:$CU$250,22,FALSE) -> 105 | M13: =VLOOKUP($E13,'RECAP AG'!$G$6:$CU$250,23,FALSE) -> 56.45 | N13: =VLOOKUP($E13,'RECAP AG'!$G$6:$CU$250,24,FALSE) -> 54% | O13: =VLOOKUP($E13,'RECAP AG'!$G$6:$CU$250,25,FALSE) -> 57 | P13: =VLOOKUP($E13,'RECAP AG'!$G$6:$CU$250,26,FALSE) -> 69% | Q13: =VLOOKUP($E13,'RECAP AG'!$G$6:$CU$250,27,FALSE) -> 69% | R13: =VLOOKUP($E13,'RECAP AG'!$G$6:$CU$250,28,FALSE) -> 63
A14: 50 | B14: AUBE HAUTE MARNE | C14: 21 | D14: CHAUMONT | E14: 451156 | F14: SAINT DIZIER CENTRE | G14: =VLOOKUP($E14,'RECAP AG'!$G$6:$CU$250,3,FALSE) -> 8.6 | H14: =VLOOKUP($E14,'RECAP AG'!$G$6:$CU$250,18,FALSE) -> 112.9 | I14: =VLOOKUP($E14,'RECAP AG'!$G$6:$CU$250,19,FALSE) -> 13.14 | J14: =VLOOKUP($E14,'RECAP AG'!$G$6:$CU$250,20,FALSE) -> 87% | K14: =VLOOKUP($E14,'RECAP AG'!$G$6:$CU$250,21,FALSE) -> 143 | L14: =VLOOKUP($E14,'RECAP AG'!$G$6:$CU$250,22,FALSE) -> 413 | M14: =VLOOKUP($E14,'RECAP AG'!$G$6:$CU$250,23,FALSE) -> 48.08 | N14: =VLOOKUP($E14,'RECAP AG'!$G$6:$CU$250,24,FALSE) -> 61% | O14: =VLOOKUP($E14,'RECAP AG'!$G$6:$CU$250,25,FALSE) -> 98 | P14: =VLOOKUP($E14,'RECAP AG'!$G$6:$CU$250,26,FALSE) -> 77% | Q14: =VLOOKUP($E14,'RECAP AG'!$G$6:$CU$250,27,FALSE) -> 77% | R14: =VLOOKUP($E14,'RECAP AG'!$G$6:$CU$250,28,FALSE) -> 122
A15: 50 | B15: AUBE HAUTE MARNE | C15: 21 | D15: CHAUMONT | E15: 451151 | F15: WASSY | G15: =VLOOKUP($E15,'RECAP AG'!$G$6:$CU$250,3,FALSE) -> 1.9 | H15: =VLOOKUP($E15,'RECAP AG'!$G$6:$CU$250,18,FALSE) -> 25.7 | I15: =VLOOKUP($E15,'RECAP AG'!$G$6:$CU$250,19,FALSE) -> 13.46 | J15: =VLOOKUP($E15,'RECAP AG'!$G$6:$CU$250,20,FALSE) -> 87% | K15: =VLOOKUP($E15,'RECAP AG'!$G$6:$CU$250,21,FALSE) -> 142 | L15: =VLOOKUP($E15,'RECAP AG'!$G$6:$CU$250,22,FALSE) -> 76 | M15: =VLOOKUP($E15,'RECAP AG'!$G$6:$CU$250,23,FALSE) -> 39.79 | N15: =VLOOKUP($E15,'RECAP AG'!$G$6:$CU$250,24,FALSE) -> 68% | O15: =VLOOKUP($E15,'RECAP AG'!$G$6:$CU$250,25,FALSE) -> 149 | P15: =VLOOKUP($E15,'RECAP AG'!$G$6:$CU$250,26,FALSE) -> 79% | Q15: =VLOOKUP($E15,'RECAP AG'!$G$6:$CU$250,27,FALSE) -> 79% | R15: =VLOOKUP($E15,'RECAP AG'!$G$6:$CU$250,28,FALSE) -> 149
A16: 50 | B16: AUBE HAUTE MARNE | C16: 14 | D16: TROYES | E16: 510523 | F16: LA CHAPELLE ST LUC | G16: =VLOOKUP($E16,'RECAP AG'!$G$6:$CU$250,3,FALSE) -> 4.5 | H16: =VLOOKUP($E16,'RECAP AG'!$G$6:$CU$250,18,FALSE) -> 47.7 | I16: =VLOOKUP($E16,'RECAP AG'!$G$6:$CU$250,19,FALSE) -> 10.70 | J16: =VLOOKUP($E16,'RECAP AG'!$G$6:$CU$250,20,FALSE) -> 90% | K16: =VLOOKUP($E16,'RECAP AG'!$G$6:$CU$250,21,FALSE) -> 159 | L16: =VLOOKUP($E16,'RECAP AG'!$G$6:$CU$250,22,FALSE) -> 264 | M16: =VLOOKUP($E16,'RECAP AG'!$G$6:$CU$250,23,FALSE) -> 59.19 | N16: =VLOOKUP($E16,'RECAP AG'!$G$6:$CU$250,24,FALSE) -> 52% | O16: =VLOOKUP($E16,'RECAP AG'!$G$6:$CU$250,25,FALSE) -> 43 | P16: =VLOOKUP($E16,'RECAP AG'!$G$6:$CU$250,26,FALSE) -> 74% | Q16: =VLOOKUP($E16,'RECAP AG'!$G$6:$CU$250,27,FALSE) -> 74% | R16: =VLOOKUP($E16,'RECAP AG'!$G$6:$CU$250,28,FALSE) -> 101
A17: 50 | B17: AUBE HAUTE MARNE | C17: 14 | D17: TROYES | E17: 510530 | F17: ARCIS SUR AUBE | G17: =VLOOKUP($E17,'RECAP AG'!$G$6:$CU$250,3,FALSE) -> 3.6 | H17: =VLOOKUP($E17,'RECAP AG'!$G$6:$CU$250,18,FALSE) -> 40.2 | I17: =VLOOKUP($E17,'RECAP AG'!$G$6:$CU$250,19,FALSE) -> 11.23 | J17: =VLOOKUP($E17,'RECAP AG'!$G$6:$CU$250,20,FALSE) -> 89% | K17: =VLOOKUP($E17,'RECAP AG'!$G$6:$CU$250,21,FALSE) -> 155 | L17: =VLOOKUP($E17,'RECAP AG'!$G$6:$CU$250,22,FALSE) -> 132 | M17: =VLOOKUP($E17,'RECAP AG'!$G$6:$CU$250,23,FALSE) -> 36.87 | N17: =VLOOKUP($E17,'RECAP AG'!$G$6:$CU$250,24,FALSE) -> 70% | O17: =VLOOKUP($E17,'RECAP AG'!$G$6:$CU$250,25,FALSE) -> 169 | P17: =VLOOKUP($E17,'RECAP AG'!$G$6:$CU$250,26,FALSE) -> 81% | Q17: =VLOOKUP($E17,'RECAP AG'!$G$6:$CU$250,27,FALSE) -> 81% | R17: =VLOOKUP($E17,'RECAP AG'!$G$6:$CU$250,28,FALSE) -> 163
A18: 50 | B18: AUBE HAUTE MARNE | C18: 14 | D18: TROYES | E18: 410550 | F18: BAR SUR AUBE | G18: =VLOOKUP($E18,'RECAP AG'!$G$6:$CU$250,3,FALSE) -> 5.1 | H18: =VLOOKUP($E18,'RECAP AG'!$G$6:$CU$250,18,FALSE) -> 52.6 | I18: =VLOOKUP($E18,'RECAP AG'!$G$6:$CU$250,19,FALSE) -> 10.35 | J18: =VLOOKUP($E18,'RECAP AG'!$G$6:$CU$250,20,FALSE) -> 90% | K18: =VLOOKUP($E18,'RECAP AG'!$G$6:$CU$250,21,FALSE) -> 167 | L18: =VLOOKUP($E18,'RECAP AG'!$G$6:$CU$250,22,FALSE) -> 186 | M18: =VLOOKUP($E18,'RECAP AG'!$G$6:$CU$250,23,FALSE) -> 36.61 | N18: =VLOOKUP($E18,'RECAP AG'!$G$6:$CU$250,24,FALSE) -> 70% | O18: =VLOOKUP($E18,'RECAP AG'!$G$6:$CU$250,25,FALSE) -> 172 | P18: =VLOOKUP($E18,'RECAP AG'!$G$6:$CU$250,26,FALSE) -> 82% | Q18: =VLOOKUP($E18,'RECAP AG'!$G$6:$CU$250,27,FALSE) -> 82% | R18: =VLOOKUP($E18,'RECAP AG'!$G$6:$CU$250,28,FALSE) -> 170
A19: 50 | B19: AUBE HAUTE MARNE | C19: 14 | D19: TROYES | E19: 510556 | F19: BAR SUR SEINE | G19: =VLOOKUP($E19,'RECAP AG'!$G$6:$CU$250,3,FALSE) -> 2.7 | H19: =VLOOKUP($E19,'RECAP AG'!$G$6:$CU$250,18,FALSE) -> 13.4 | I19: =VLOOKUP($E19,'RECAP AG'!$G$6:$CU$250,19,FALSE) -> 5.02 | J19: =VLOOKUP($E19,'RECAP AG'!$G$6:$CU$250,20,FALSE) -> 95% | K19: =VLOOKUP($E19,'RECAP AG'!$G$6:$CU$250,21,FALSE) -> 199 | L19: =VLOOKUP($E19,'RECAP AG'!$G$6:$CU$250,22,FALSE) -> 79 | M19: =VLOOKUP($E19,'RECAP AG'!$G$6:$CU$250,23,FALSE) -> 29.59 | N19: =VLOOKUP($E19,'RECAP AG'!$G$6:$CU$250,24,FALSE) -> 76% | O19: =VLOOKUP($E19,'RECAP AG'!$G$6:$CU$250,25,FALSE) -> 223 | P19: =VLOOKUP($E19,'RECAP AG'!$G$6:$CU$250,26,FALSE) -> 87% | Q19: =VLOOKUP($E19,'RECAP AG'!$G$6:$CU$250,27,FALSE) -> 87% | R19: =VLOOKUP($E19,'RECAP AG'!$G$6:$CU$250,28,FALSE) -> 216
A20: 50 | B20: AUBE HAUTE MARNE | C20: 14 | D20: TROYES | E20: 510570 | F20: NOGENT SUR SEINE | G20: =VLOOKUP($E20,'RECAP AG'!$G$6:$CU$250,3,FALSE) -> 4.3 | H20: =VLOOKUP($E20,'RECAP AG'!$G$6:$CU$250,18,FALSE) -> 71.3 | I20: =VLOOKUP($E20,'RECAP AG'!$G$6:$CU$250,19,FALSE) -> 16.47 | J20: =VLOOKUP($E20,'RECAP AG'!$G$6:$CU$250,20,FALSE) -> 84% | K20: =VLOOKUP($E20,'RECAP AG'!$G$6:$CU$250,21,FALSE) -> 110 | L20: =VLOOKUP($E20,'RECAP AG'!$G$6:$CU$250,22,FALSE) -> 204 | M20: =VLOOKUP($E20,'RECAP AG'!$G$6:$CU$250,23,FALSE) -> 47.11 | N20: =VLOOKUP($E20,'RECAP AG'!$G$6:$CU$250,24,FALSE) -> 62% | O20: =VLOOKUP($E20,'RECAP AG'!$G$6:$CU$250,25,FALSE) -> 104 | P20: =VLOOKUP($E20,'RECAP AG'!$G$6:$CU$250,26,FALSE) -> 75% | Q20: =VLOOKUP($E20,'RECAP AG'!$G$6:$CU$250,27,FALSE) -> 75% | R20: =VLOOKUP($E20,'RECAP AG'!$G$6:$CU$250,28,FALSE) -> 106
A21: 50 | B21: AUBE HAUTE MARNE | C21: 14 | D21: TROYES | E21: 410571 | F21: ROMILLY SUR SEINE | G21: =VLOOKUP($E21,'RECAP AG'!$G$6:$CU$250,3,FALSE) -> 4.7 | H21: =VLOOKUP($E21,'RECAP AG'!$G$6:$CU$250,18,FALSE) -> 22.7 | I21: =VLOOKUP($E21,'RECAP AG'!$G$6:$CU$250,19,FALSE) -> 4.85 | J21: =VLOOKUP($E21,'RECAP AG'!$G$6:$CU$250,20,FALSE) -> 95% | K21: =VLOOKUP($E21,'RECAP AG'!$G$6:$CU$250,21,FALSE) -> 202 | L21: =VLOOKUP($E21,'RECAP AG'!$G$6:$CU$250,22,FALSE) -> 197 | M21: =VLOOKUP($E21,'RECAP AG'!$G$6:$CU$250,23,FALSE) -> 42.09 | N21: =VLOOKUP($E21,'RECAP AG'!$G$6:$CU$250,24,FALSE) -> 66% | O21: =VLOOKUP($E21,'RECAP AG'!$G$6:$CU$250,25,FALSE) -> 138 | P21: =VLOOKUP($E21,'RECAP AG'!$G$6:$CU$250,26,FALSE) -> 83% | Q21: =VLOOKUP($E21,'RECAP AG'!$G$6:$CU$250,27,FALSE) -> 83% | R21: =VLOOKUP($E21,'RECAP AG'!$G$6:$CU$250,28,FALSE) -> 189
A22: 50 | B22: AUBE HAUTE MARNE | C22: 14 | D22: TROYES | E22: 510520 | F22: SAINT ANDRE LES VERGERS | G22: =VLOOKUP($E22,'RECAP AG'!$G$6:$CU$250,3,FALSE) -> 3.3 | H22: =VLOOKUP($E22,'RECAP AG'!$G$6:$CU$250,18,FALSE) -> 33.3 | I22: =VLOOKUP($E22,'RECAP AG'!$G$6:$CU$250,19,FALSE) -> 10.18 | J22: =VLOOKUP($E22,'RECAP AG'!$G$6:$CU$250,20,FALSE) -> 90% | K22: =VLOOKUP($E22,'RECAP AG'!$G$6:$CU$250,21,FALSE) -> 171 | L22: =VLOOKUP($E22,'RECAP AG'!$G$6:$CU$250,22,FALSE) -> 159 | M22: =VLOOKUP($E22,'RECAP AG'!$G$6:$CU$250,23,FALSE) -> 48.62 | N22: =VLOOKUP($E22,'RECAP AG'!$G$6:$CU$250,24,FALSE) -> 60% | O22: =VLOOKUP($E22,'RECAP AG'!$G$6:$CU$250,25,FALSE) -> 96 | P22: =VLOOKUP($E22,'RECAP AG'!$G$6:$CU$250,26,FALSE) -> 78% | Q22: =VLOOKUP($E22,'RECAP AG'!$G$6:$CU$250,27,FALSE) -> 78% | R22: =VLOOKUP($E22,'RECAP AG'!$G$6:$CU$250,28,FALSE) -> 137
A23: 50 | B23: AUBE HAUTE MARNE | C23: 14 | D23: TROYES | E23: 410524 | F23: SAINT JULIEN LES VILLAS | G23: =VLOOKUP($E23,'RECAP AG'!$G$6:$CU$250,3,FALSE) -> 5.1 | H23: =VLOOKUP($E23,'RECAP AG'!$G$6:$CU$250,18,FALSE) -> 38.3 | I23: =VLOOKUP($E23,'RECAP AG'!$G$6:$CU$250,19,FALSE) -> 7.55 | J23: =VLOOKUP($E23,'RECAP AG'!$G$6:$CU$250,20,FALSE) -> 93% | K23: =VLOOKUP($E23,'RECAP AG'!$G$6:$CU$250,21,FALSE) -> 188 | L23: =VLOOKUP($E23,'RECAP AG'!$G$6:$CU$250,22,FALSE) -> 196 | M23: =VLOOKUP($E23,'RECAP AG'!$G$6:$CU$250,23,FALSE) -> 38.66 | N23: =VLOOKUP($E23,'RECAP AG'!$G$6:$CU$250,24,FALSE) -> 69% | O23: =VLOOKUP($E23,'RECAP AG'!$G$6:$CU$250,25,FALSE) -> 156 | P23: =VLOOKUP($E23,'RECAP AG'!$G$6:$CU$250,26,FALSE) -> 83% | Q23: =VLOOKUP($E23,'RECAP AG'!$G$6:$CU$250,27,FALSE) -> 83% | R23: =VLOOKUP($E23,'RECAP AG'!$G$6:$CU$250,28,FALSE) -> 184
A24: 50 | B24: AUBE HAUTE MARNE | C24: 14 | D24: TROYES | E24: 410521 | F24: SAINTE SAVINE | G24: =VLOOKUP($E24,'RECAP AG'!$G$6:$CU$250,3,FALSE) -> 4.2 | H24: =VLOOKUP($E24,'RECAP AG'!$G$6:$CU$250,18,FALSE) -> 15.1 | I24: =VLOOKUP($E24,'RECAP AG'!$G$6:$CU$250,19,FALSE) -> 3.61 | J24: =VLOOKUP($E24,'RECAP AG'!$G$6:$CU$250,20,FALSE) -> 96% | K24: =VLOOKUP($E24,'RECAP AG'!$G$6:$CU$250,21,FALSE) -> 207 | L24: =VLOOKUP($E24,'RECAP AG'!$G$6:$CU$250,22,FALSE) -> 171 | M24: =VLOOKUP($E24,'RECAP AG'!$G$6:$CU$250,23,FALSE) -> 40.91 | N24: =VLOOKUP($E24,'RECAP AG'!$G$6:$CU$250,24,FALSE) -> 67% | O24: =VLOOKUP($E24,'RECAP AG'!$G$6:$CU$250,25,FALSE) -> 143 | P24: =VLOOKUP($E24,'RECAP AG'!$G$6:$CU$250,26,FALSE) -> 85% | Q24: =VLOOKUP($E24,'RECAP AG'!$G$6:$CU$250,27,FALSE) -> 85% | R24: =VLOOKUP($E24,'RECAP AG'!$G$6:$CU$250,28,FALSE) -> 197
A25: 50 | B25: AUBE HAUTE MARNE | C25: 14 | D25: TROYES | E25: 510513 | F25: SAINT PARRE AUX TERTRES | G25: =VLOOKUP($E25,'RECAP AG'!$G$6:$CU$250,3,FALSE) -> 2.2 | H25: =VLOOKUP($E25,'RECAP AG'!$G$6:$CU$250,18,FALSE) -> 41.9 | I25: =VLOOKUP($E25,'RECAP AG'!$G$6:$CU$250,19,FALSE) -> 19.13 | J25: =VLOOKUP($E25,'RECAP AG'!$G$6:$CU$250,20,FALSE) -> 81% | K25: =VLOOKUP($E25,'RECAP AG'!$G$6:$CU$250,21,FALSE) -> 93 | L25: =VLOOKUP($E25,'RECAP AG'!$G$6:$CU$250,22,FALSE) -> 166 | M25: =VLOOKUP($E25,'RECAP AG'!$G$6:$CU$250,23,FALSE) -> 75.80 | N25: =VLOOKUP($E25,'RECAP AG'!$G$6:$CU$250,24,FALSE) -> 38% | O25: =VLOOKUP($E25,'RECAP AG'!$G$6:$CU$250,25,FALSE) -> 13 | P25: =VLOOKUP($E25,'RECAP AG'!$G$6:$CU$250,26,FALSE) -> 64% | Q25: =VLOOKUP($E25,'RECAP AG'!$G$6:$CU$250,27,FALSE) -> 64% | R25: =VLOOKUP($E25,'RECAP AG'!$G$6:$CU$250,28,FALSE) -> 40
A26: 50 | B26: AUBE HAUTE MARNE | C26: 14 | D26: TROYES | E26: 410510 | F26: TROYES GAMBETTA | G26: =VLOOKUP($E26,'RECAP AG'!$G$6:$CU$250,3,FALSE) -> 8.9 | H26: =VLOOKUP($E26,'RECAP AG'!$G$6:$CU$250,18,FALSE) -> 86.2 | I26: =VLOOKUP($E26,'RECAP AG'!$G$6:$CU$250,19,FALSE) -> 9.69 | J26: =VLOOKUP($E26,'RECAP AG'!$G$6:$CU$250,20,FALSE) -> 91% | K26: =VLOOKUP($E26,'RECAP AG'!$G$6:$CU$250,21,FALSE) -> 172 | L26: =VLOOKUP($E26,'RECAP AG'!$G$6:$CU$250,22,FALSE) -> 322 | M26: =VLOOKUP($E26,'RECAP AG'!$G$6:$CU$250,23,FALSE) -> 36.18 | N26: =VLOOKUP($E26,'RECAP AG'!$G$6:$CU$250,24,FALSE) -> 71% | O26: =VLOOKUP($E26,'RECAP AG'!$G$6:$CU$250,25,FALSE) -> 176 | P26: =VLOOKUP($E26,'RECAP AG'!$G$6:$CU$250,26,FALSE) -> 83% | Q26: =VLOOKUP($E26,'RECAP AG'!$G$6:$CU$250,27,FALSE) -> 83% | R26: =VLOOKUP($E26,'RECAP AG'!$G$6:$CU$250,28,FALSE) -> 179
A27: 50 | B27: AUBE HAUTE MARNE | C27: 14 | D27: TROYES | E27: 410512 | F27: TROYES ZOLA | G27: =VLOOKUP($E27,'RECAP AG'!$G$6:$CU$250,3,FALSE) -> 5.3 | H27: =VLOOKUP($E27,'RECAP AG'!$G$6:$CU$250,18,FALSE) -> -10.0 | I27: =VLOOKUP($E27,'RECAP AG'!$G$6:$CU$250,19,FALSE) -> -1.88 | J27: =VLOOKUP($E27,'RECAP AG'!$G$6:$CU$250,20,FALSE) -> 102% | K27: =VLOOKUP($E27,'RECAP AG'!$G$6:$CU$250,21,FALSE) -> 228 | L27: =VLOOKUP($E27,'RECAP AG'!$G$6:$CU$250,22,FALSE) -> 195 | M27: =VLOOKUP($E27,'RECAP AG'!$G$6:$CU$250,23,FALSE) -> 36.65 | N27: =VLOOKUP($E27,'RECAP AG'!$G$6:$CU$250,24,FALSE) -> 70% | O27: =VLOOKUP($E27,'RECAP AG'!$G$6:$CU$250,25,FALSE) -> 171 | P27: =VLOOKUP($E27,'RECAP AG'!$G$6:$CU$250,26,FALSE) -> 89% | Q27: =VLOOKUP($E27,'RECAP AG'!$G$6:$CU$250,27,FALSE) -> 89% | R27: =VLOOKUP($E27,'RECAP AG'!$G$6:$CU$250,28,FALSE) -> 227
A28: 262 | B28: BAS RHIN | C28: 5060 | D28: HAGUENAU | E28: 4057 | F28: BISCHWILLER | G28: =VLOOKUP($E28,'RECAP AG'!$G$6:$CU$250,3,FALSE) -> 7.2 | H28: =VLOOKUP($E28,'RECAP AG'!$G$6:$CU$250,18,FALSE) -> 189.3 | I28: =VLOOKUP($E28,'RECAP AG'!$G$6:$CU$250,19,FALSE) -> 26.40 | J28: =VLOOKUP($E28,'RECAP AG'!$G$6:$CU$250,20,FALSE) -> 74% | K28: =VLOOKUP($E28,'RECAP AG'!$G$6:$CU$250,21,FALSE) -> 50 | L28: =VLOOKUP($E28,'RECAP AG'!$G$6:$CU$250,22,FALSE) -> 235 | M28: =VLOOKUP($E28,'RECAP AG'!$G$6:$CU$250,23,FALSE) -> 32.78 | N28: =VLOOKUP($E28,'RECAP AG'!$G$6:$CU$250,24,FALSE) -> 73% | O28: =VLOOKUP($E28,'RECAP AG'!$G$6:$CU$250,25,FALSE) -> 200 | P28: =VLOOKUP($E28,'RECAP AG'!$G$6:$CU$250,26,FALSE) -> 74% | Q28: =VLOOKUP($E28,'RECAP AG'!$G$6:$CU$250,27,FALSE) -> 74% | R28: =VLOOKUP($E28,'RECAP AG'!$G$6:$CU$250,28,FALSE) -> 98
A29: 262 | B29: BAS RHIN | C29: 5060 | D29: HAGUENAU | E29: 4082 | F29: BOUXWILLER | G29: =VLOOKUP($E29,'RECAP AG'!$G$6:$CU$250,3,FALSE) -> 2.2 | H29: =VLOOKUP($E29,'RECAP AG'!$G$6:$CU$250,18,FALSE) -> 13.1 | I29: =VLOOKUP($E29,'RECAP AG'!$G$6:$CU$250,19,FALSE) -> 5.87 | J29: =VLOOKUP($E29,'RECAP AG'!$G$6:$CU$250,20,FALSE) -> 94% | K29: =VLOOKUP($E29,'RECAP AG'!$G$6:$CU$250,21,FALSE) -> 196 | L29: =VLOOKUP($E29,'RECAP AG'!$G$6:$CU$250,22,FALSE) -> 81 | M29: =VLOOKUP($E29,'RECAP AG'!$G$6:$CU$250,23,FALSE) -> 36.32 | N29: =VLOOKUP($E29,'RECAP AG'!$G$6:$CU$250,24,FALSE) -> 70% | O29: =VLOOKUP($E29,'RECAP AG'!$G$6:$CU$250,25,FALSE) -> 174 | P29: =VLOOKUP($E29,'RECAP AG'!$G$6:$CU$250,26,FALSE) -> 85% | Q29: =VLOOKUP($E29,'RECAP AG'!$G$6:$CU$250,27,FALSE) -> 85% | R29: =VLOOKUP($E29,'RECAP AG'!$G$6:$CU$250,28,FALSE) -> 199
A30: 262 | B30: BAS RHIN | C30: 5060 | D30: HAGUENAU | E30: 4030 | F30: BRUMATH | G30: =VLOOKUP($E30,'RECAP AG'!$G$6:$CU$250,3,FALSE) -> 4.2 | H30: =VLOOKUP($E30,'RECAP AG'!$G$6:$CU$250,18,FALSE) -> 101.8 | I30: =VLOOKUP($E30,'RECAP AG'!$G$6:$CU$250,19,FALSE) -> 24.53 | J30: =VLOOKUP($E30,'RECAP AG'!$G$6:$CU$250,20,FALSE) -> 76% | K30: =VLOOKUP($E30,'RECAP AG'!$G$6:$CU$250,21,FALSE) -> 63 | L30: =VLOOKUP($E30,'RECAP AG'!$G$6:$CU$250,22,FALSE) -> 138 | M30: =VLOOKUP($E30,'RECAP AG'!$G$6:$CU$250,23,FALSE) -> 33.25 | N30: =VLOOKUP($E30,'RECAP AG'!$G$6:$CU$250,24,FALSE) -> 73% | O30: =VLOOKUP($E30,'RECAP AG'!$G$6:$CU$250,25,FALSE) -> 198 | P30: =VLOOKUP($E30,'RECAP AG'!$G$6:$CU$250,26,FALSE) -> 75% | Q30: =VLOOKUP($E30,'RECAP AG'!$G$6:$CU$250,27,FALSE) -> 75% | R30: =VLOOKUP($E30,'RECAP AG'!$G$6:$CU$250,28,FALSE) -> 105
A31: 262 | B31: BAS RHIN | C31: 5060 | D31: HAGUENAU | E31: 4060 | F31: HAGUENAU HOUBLON | G31: =VLOOKUP($E31,'RECAP AG'!$G$6:$CU$250,3,FALSE) -> 8.7 | H31: =VLOOKUP($E31,'RECAP AG'!$G$6:$CU$250,18,FALSE) -> 97.3 | I31: =VLOOKUP($E31,'RECAP AG'!$G$6:$CU$250,19,FALSE) -> 11.15 | J31: =VLOOKUP($E31,'RECAP AG'!$G$6:$CU$250,20,FALSE) -> 89% | K31: =VLOOKUP($E31,'RECAP AG'!$G$6:$CU$250,21,FALSE) -> 157 | L31: =VLOOKUP($E31,'RECAP AG'!$G$6:$CU$250,22,FALSE) -> 311 | M31: =VLOOKUP($E31,'RECAP AG'!$G$6:$CU$250,23,FALSE) -> 35.62 | N31: =VLOOKUP($E31,'RECAP AG'!$G$6:$CU$250,24,FALSE) -> 71% | O31: =VLOOKUP($E31,'RECAP AG'!$G$6:$CU$250,25,FALSE) -> 180 | P31: =VLOOKUP($E31,'RECAP AG'!$G$6:$CU$250,26,FALSE) -> 82% | Q31: =VLOOKUP($E31,'RECAP AG'!$G$6:$CU$250,27,FALSE) -> 82% | R31: =VLOOKUP($E31,'RECAP AG'!$G$6:$CU$250,28,FALSE) -> 167
A32: 262 | B32: BAS RHIN | C32: 5060 | D32: HAGUENAU | E32: 4092 | F32: HOCHFELDEN | G32: =VLOOKUP($E32,'RECAP AG'!$G$6:$CU$250,3,FALSE) -> 1.7 | H32: =VLOOKUP($E32,'RECAP AG'!$G$6:$CU$250,18,FALSE) -> 22.9 | I32: =VLOOKUP($E32,'RECAP AG'!$G$6:$CU$250,19,FALSE) -> 13.55 | J32: =VLOOKUP($E32,'RECAP AG'!$G$6:$CU$250,20,FALSE) -> 87% | K32: =VLOOKUP($E32,'RECAP AG'!$G$6:$CU$250,21,FALSE) -> 140 | L32: =VLOOKUP($E32,'RECAP AG'!$G$6:$CU$250,22,FALSE) -> 108 | M32: =VLOOKUP($E32,'RECAP AG'!$G$6:$CU$250,23,FALSE) -> 63.91 | N32: =VLOOKUP($E32,'RECAP AG'!$G$6:$CU$250,24,FALSE) -> 48% | O32: =VLOOKUP($E32,'RECAP AG'!$G$6:$CU$250,25,FALSE) -> 35 | P32: =VLOOKUP($E32,'RECAP AG'!$G$6:$CU$250,26,FALSE) -> 71% | Q32: =VLOOKUP($E32,'RECAP AG'!$G$6:$CU$250,27,FALSE) -> 71% | R32: =VLOOKUP($E32,'RECAP AG'!$G$6:$CU$250,28,FALSE) -> 82
A33: 262 | B33: BAS RHIN | C33: 5060 | D33: HAGUENAU | E33: 4041 | F33: HOERDT | G33: =VLOOKUP($E33,'RECAP AG'!$G$6:$CU$250,3,FALSE) -> 1.7 | H33: =VLOOKUP($E33,'RECAP AG'!$G$6:$CU$250,18,FALSE) -> 27.0 | I33: =VLOOKUP($E33,'RECAP AG'!$G$6:$CU$250,19,FALSE) -> 16.36 | J33: =VLOOKUP($E33,'RECAP AG'!$G$6:$CU$250,20,FALSE) -> 84% | K33: =VLOOKUP($E33,'RECAP AG'!$G$6:$CU$250,21,FALSE) -> 112 | L33: =VLOOKUP($E33,'RECAP AG'!$G$6:$CU$250,22,FALSE) -> 63 | M33: =VLOOKUP($E33,'RECAP AG'!$G$6:$CU$250,23,FALSE) -> 38.18 | N33: =VLOOKUP($E33,'RECAP AG'!$G$6:$CU$250,24,FALSE) -> 69% | O33: =VLOOKUP($E33,'RECAP AG'!$G$6:$CU$250,25,FALSE) -> 161 | P33: =VLOOKUP($E33,'RECAP AG'!$G$6:$CU$250,26,FALSE) -> 78% | Q33: =VLOOKUP($E33,'RECAP AG'!$G$6:$CU$250,27,FALSE) -> 78% | R33: =VLOOKUP($E33,'RECAP AG'!$G$6:$CU$250,28,FALSE) -> 134
A34: 262 | B34: BAS RHIN | C34: 5060 | D34: HAGUENAU | E34: 4085 | F34: INGWILLER | G34: =VLOOKUP($E34,'RECAP AG'!$G$6:$CU$250,3,FALSE) -> 3.5 | H34: =VLOOKUP($E34,'RECAP AG'!$G$6:$CU$250,18,FALSE) -> 53.5 | I34: =VLOOKUP($E34,'RECAP AG'!$G$6:$CU$250,19,FALSE) -> 15.37 | J34: =VLOOKUP($E34,'RECAP AG'!$G$6:$CU$250,20,FALSE) -> 85% | K34: =VLOOKUP($E34,'RECAP AG'!$G$6:$CU$250,21,FALSE) -> 124 | L34: =VLOOKUP($E34,'RECAP AG'!$G$6:$CU$250,22,FALSE) -> 149 | M34: =VLOOKUP($E34,'RECAP AG'!$G$6:$CU$250,23,FALSE) -> 42.82 | N34: =VLOOKUP($E34,'RECAP AG'!$G$6:$CU$250,24,FALSE) -> 65% | O34: =VLOOKUP($E34,'RECAP AG'!$G$6:$CU$250,25,FALSE) -> 136 | P34: =VLOOKUP($E34,'RECAP AG'!$G$6:$CU$250,26,FALSE) -> 77% | Q34: =VLOOKUP($E34,'RECAP AG'!$G$6:$CU$250,27,FALSE) -> 77% | R34: =VLOOKUP($E34,'RECAP AG'!$G$6:$CU$250,28,FALSE) -> 124
A35: 262 | B35: BAS RHIN | C35: 5060 | D35: HAGUENAU | E35: 4066 | F35: NIEDERBRONN LES BAINS | G35: =VLOOKUP($E35,'RECAP AG'!$G$6:$CU$250,3,FALSE) -> 5.6 | H35: =VLOOKUP($E35,'RECAP AG'!$G$6:$CU$250,18,FALSE) -> -4.3 | I35: =VLOOKUP($E35,'RECAP AG'!$G$6:$CU$250,19,FALSE) -> -0.76 | J35: =VLOOKUP($E35,'RECAP AG'!$G$6:$CU$250,20,FALSE) -> 101% | K35: =VLOOKUP($E35,'RECAP AG'!$G$6:$CU$250,21,FALSE) -> 223 | L35: =VLOOKUP($E35,'RECAP AG'!$G$6:$CU$250,22,FALSE) -> 188 | M35: =VLOOKUP($E35,'RECAP AG'!$G$6:$CU$250,23,FALSE) -> 33.33 | N35: =VLOOKUP($E35,'RECAP AG'!$G$6:$CU$250,24,FALSE) -> 73% | O35: =VLOOKUP($E35,'RECAP AG'!$G$6:$CU$250,25,FALSE) -> 195 | P35: =VLOOKUP($E35,'RECAP AG'!$G$6:$CU$250,26,FALSE) -> 90% | Q35: =VLOOKUP($E35,'RECAP AG'!$G$6:$CU$250,27,FALSE) -> 90% | R35: =VLOOKUP($E35,'RECAP AG'!$G$6:$CU$250,28,FALSE) -> 229
A36: 262 | B36: BAS RHIN | C36: 5060 | D36: HAGUENAU | E36: 4067 | F36: PFAFFENHOFFEN | G36: =VLOOKUP($E36,'RECAP AG'!$G$6:$CU$250,3,FALSE) -> 1.9 | H36: =VLOOKUP($E36,'RECAP AG'!$G$6:$CU$250,18,FALSE) -> 32.6 | I36: =VLOOKUP($E36,'RECAP AG'!$G$6:$CU$250,19,FALSE) -> 17.43 | J36: =VLOOKUP($E36,'RECAP AG'!$G$6:$CU$250,20,FALSE) -> 83% | K36: =VLOOKUP($E36,'RECAP AG'!$G$6:$CU$250,21,FALSE) -> 106 | L36: =VLOOKUP($E36,'RECAP AG'!$G$6:$CU$250,22,FALSE) -> 67 | M36: =VLOOKUP($E36,'RECAP AG'!$G$6:$CU$250,23,FALSE) -> 35.83 | N36: =VLOOKUP($E36,'RECAP AG'!$G$6:$CU$250,24,FALSE) -> 71% | O36: =VLOOKUP($E36,'RECAP AG'!$G$6:$CU$250,25,FALSE) -> 177 | P36: =VLOOKUP($E36,'RECAP AG'!$G$6:$CU$250,26,FALSE) -> 78% | Q36: =VLOOKUP($E36,'RECAP AG'!$G$6:$CU$250,27,FALSE) -> 78% | R36: =VLOOKUP($E36,'RECAP AG'!$G$6:$CU$250,28,FALSE) -> 135
A37: 262 | B37: BAS RHIN | C37: 5060 | D37: HAGUENAU | E37: 4095 | F37: SARRE UNION | G37: =VLOOKUP($E37,'RECAP AG'!$G$6:$CU$250,3,FALSE) -> 2.5 | H37: =VLOOKUP($E37,'RECAP AG'!$G$6:$CU$250,18,FALSE) -> 41.4 | I37: =VLOOKUP($E37,'RECAP AG'!$G$6:$CU$250,19,FALSE) -> 16.30 | J37: =VLOOKUP($E37,'RECAP AG'!$G$6:$CU$250,20,FALSE) -> 84% | K37: =VLOOKUP($E37,'RECAP AG'!$G$6:$CU$250,21,FALSE) -> 114 | L37: =VLOOKUP($E37,'RECAP AG'!$G$6:$CU$250,22,FALSE) -> 82 | M37: =VLOOKUP($E37,'RECAP AG'!$G$6:$CU$250,23,FALSE) -> 32.28 | N37: =VLOOKUP($E37,'RECAP AG'!$G$6:$CU$250,24,FALSE) -> 74% | O37: =VLOOKUP($E37,'RECAP AG'!$G$6:$CU$250,25,FALSE) -> 208 | P37: =VLOOKUP($E37,'RECAP AG'!$G$6:$CU$250,26,FALSE) -> 80% | Q37: =VLOOKUP($E37,'RECAP AG'!$G$6:$CU$250,27,FALSE) -> 80% | R37: =VLOOKUP($E37,'RECAP AG'!$G$6:$CU$250,28,FALSE) -> 158
A38: 262 | B38: BAS RHIN | C38: 5060 | D38: HAGUENAU | E38: 4087 | F38: SAVERNE | G38: =VLOOKUP($E38,'RECAP AG'!$G$6:$CU$250,3,FALSE) -> 6.2 | H38: =VLOOKUP($E38,'RECAP AG'!$G$6:$CU$250,18,FALSE) -> 156.7 | I38: =VLOOKUP($E38,'RECAP AG'!$G$6:$CU$250,19,FALSE) -> 25.19 | J38: =VLOOKUP($E38,'RECAP AG'!$G$6:$CU$250,20,FALSE) -> 75% | K38: =VLOOKUP($E38,'RECAP AG'!$G$6:$CU$250,21,FALSE) -> 59 | L38: =VLOOKUP($E38,'RECAP AG'!$G$6:$CU$250,22,FALSE) -> 219 | M38: =VLOOKUP($E38,'RECAP AG'!$G$6:$CU$250,23,FALSE) -> 35.21 | N38: =VLOOKUP($E38,'RECAP AG'!$G$6:$CU$250,24,FALSE) -> 71% | O38: =VLOOKUP($E38,'RECAP AG'!$G$6:$CU$250,25,FALSE) -> 187 | P38: =VLOOKUP($E38,'RECAP AG'!$G$6:$CU$250,26,FALSE) -> 74% | Q38: =VLOOKUP($E38,'RECAP AG'!$G$6:$CU$250,27,FALSE) -> 74% | R38: =VLOOKUP($E38,'RECAP AG'!$G$6:$CU$250,28,FALSE) -> 96
A39: 262 | B39: BAS RHIN | C39: 5060 | D39: HAGUENAU | E39: 4079 | F39: SOULTZ SOUS FORETS | G39: =VLOOKUP($E39,'RECAP AG'!$G$6:$CU$250,3,FALSE) -> 1.9 | H39: =VLOOKUP($E39,'RECAP AG'!$G$6:$CU$250,18,FALSE) -> 45.2 | I39: =VLOOKUP($E39,'RECAP AG'!$G$6:$CU$250,19,FALSE) -> 24.17 | J39: =VLOOKUP($E39,'RECAP AG'!$G$6:$CU$250,20,FALSE) -> 76% | K39: =VLOOKUP($E39,'RECAP AG'!$G$6:$CU$250,21,FALSE) -> 66 | L39: =VLOOKUP($E39,'RECAP AG'!$G$6:$CU$250,22,FALSE) -> 85 | M39: =VLOOKUP($E39,'RECAP AG'!$G$6:$CU$250,23,FALSE) -> 45.45 | N39: =VLOOKUP($E39,'RECAP AG'!$G$6:$CU$250,24,FALSE) -> 63% | O39: =VLOOKUP($E39,'RECAP AG'!$G$6:$CU$250,25,FALSE) -> 113 | P39: =VLOOKUP($E39,'RECAP AG'!$G$6:$CU$250,26,FALSE) -> 71% | Q39: =VLOOKUP($E39,'RECAP AG'!$G$6:$CU$250,27,FALSE) -> 71% | R39: =VLOOKUP($E39,'RECAP AG'!$G$6:$CU$250,28,FALSE) -> 77
A40: 262 | B40: BAS RHIN | C40: 5060 | D40: HAGUENAU | E40: 4031 | F40: TRUCHTERSHEIM | G40: =VLOOKUP($E40,'RECAP AG'!$G$6:$CU$250,3,FALSE) -> 2.2 | H40: =VLOOKUP($E40,'RECAP AG'!$G$6:$CU$250,18,FALSE) -> 76.2 | I40: =VLOOKUP($E40,'RECAP AG'!$G$6:$CU$250,19,FALSE) -> 35.12 | J40: =VLOOKUP($E40,'RECAP AG'!$G$6:$CU$250,20,FALSE) -> 66% | K40: =VLOOKUP($E40,'RECAP AG'!$G$6:$CU$250,21,FALSE) -> 22 | L40: =VLOOKUP($E40,'RECAP AG'!$G$6:$CU$250,22,FALSE) -> 66 | M40: =VLOOKUP($E40,'RECAP AG'!$G$6:$CU$250,23,FALSE) -> 30.41 | N40: =VLOOKUP($E40,'RECAP AG'!$G$6:$CU$250,24,FALSE) -> 75% | O40: =VLOOKUP($E40,'RECAP AG'!$G$6:$CU$250,25,FALSE) -> 219 | P40: =VLOOKUP($E40,'RECAP AG'!$G$6:$CU$250,26,FALSE) -> 70% | Q40: =VLOOKUP($E40,'RECAP AG'!$G$6:$CU$250,27,FALSE) -> 70% | R40: =VLOOKUP($E40,'RECAP AG'!$G$6:$CU$250,28,FALSE) -> 69
A41: 262 | B41: BAS RHIN | C41: 5060 | D41: HAGUENAU | E41: 4071 | F41: WISSEMBOURG | G41: =VLOOKUP($E41,'RECAP AG'!$G$6:$CU$250,3,FALSE) -> 6.9 | H41: =VLOOKUP($E41,'RECAP AG'!$G$6:$CU$250,18,FALSE) -> 103.3 | I41: =VLOOKUP($E41,'RECAP AG'!$G$6:$CU$250,19,FALSE) -> 14.99 | J41: =VLOOKUP($E41,'RECAP AG'!$G$6:$CU$250,20,FALSE) -> 85% | K41: =VLOOKUP($E41,'RECAP AG'!$G$6:$CU$250,21,FALSE) -> 125 | L41: =VLOOKUP($E41,'RECAP AG'!$G$6:$CU$250,22,FALSE) -> 297 | M41: =VLOOKUP($E41,'RECAP AG'!$G$6:$CU$250,23,FALSE) -> 43.11 | N41: =VLOOKUP($E41,'RECAP AG'!$G$6:$CU$250,24,FALSE) -> 65% | O41: =VLOOKUP($E41,'RECAP AG'!$G$6:$CU$250,25,FALSE) -> 134 | P41: =VLOOKUP($E41,'RECAP AG'!$G$6:$CU$250,26,FALSE) -> 77% | Q41: =VLOOKUP($E41,'RECAP AG'!$G$6:$CU$250,27,FALSE) -> 77% | R41: =VLOOKUP($E41,'RECAP AG'!$G$6:$CU$250,28,FALSE) -> 126
A42: 262 | B42: BAS RHIN | C42: 5101 | D42: SELESTAT | E42: 4113 | F42: BARR | G42: =VLOOKUP($E42,'RECAP AG'!$G$6:$CU$250,3,FALSE) -> 2.9 | H42: =VLOOKUP($E42,'RECAP AG'!$G$6:$CU$250,18,FALSE) -> 91.1 | I42: =VLOOKUP($E42,'RECAP AG'!$G$6:$CU$250,19,FALSE) -> 31.74 | J42: =VLOOKUP($E42,'RECAP AG'!$G$6:$CU$250,20,FALSE) -> 69% | K42: =VLOOKUP($E42,'RECAP AG'!$G$6:$CU$250,21,FALSE) -> 34 | L42: =VLOOKUP($E42,'RECAP AG'!$G$6:$CU$250,22,FALSE) -> 155 | M42: =VLOOKUP($E42,'RECAP AG'!$G$6:$CU$250,23,FALSE) -> 54.01 | N42: =VLOOKUP($E42,'RECAP AG'!$G$6:$CU$250,24,FALSE) -> 56% | O42: =VLOOKUP($E42,'RECAP AG'!$G$6:$CU$250,25,FALSE) -> 67 | P42: =VLOOKUP($E42,'RECAP AG'!$G$6:$CU$250,26,FALSE) -> 64% | Q42: =VLOOKUP($E42,'RECAP AG'!$G$6:$CU$250,27,FALSE) -> 64% | R42: =VLOOKUP($E42,'RECAP AG'!$G$6:$CU$250,28,FALSE) -> 38
A43: 262 | B43: BAS RHIN | C43: 5101 | D43: SELESTAT | E43: 4111 | F43: BENFELD | G43: =VLOOKUP($E43,'RECAP AG'!$G$6:$CU$250,3,FALSE) -> 2.9 | H43: =VLOOKUP($E43,'RECAP AG'!$G$6:$CU$250,18,FALSE) -> 13.9 | I43: =VLOOKUP($E43,'RECAP AG'!$G$6:$CU$250,19,FALSE) -> 4.86 | J43: =VLOOKUP($E43,'RECAP AG'!$G$6:$CU$250,20,FALSE) -> 95% | K43: =VLOOKUP($E43,'RECAP AG'!$G$6:$CU$250,21,FALSE) -> 201 | L43: =VLOOKUP($E43,'RECAP AG'!$G$6:$CU$250,22,FALSE) -> 87 | M43: =VLOOKUP($E43,'RECAP AG'!$G$6:$CU$250,23,FALSE) -> 30.42 | N43: =VLOOKUP($E43,'RECAP AG'!$G$6:$CU$250,24,FALSE) -> 75% | O43: =VLOOKUP($E43,'RECAP AG'!$G$6:$CU$250,25,FALSE) -> 218 | P43: =VLOOKUP($E43,'RECAP AG'!$G$6:$CU$250,26,FALSE) -> 87% | Q43: =VLOOKUP($E43,'RECAP AG'!$G$6:$CU$250,27,FALSE) -> 87% | R43: =VLOOKUP($E43,'RECAP AG'!$G$6:$CU$250,28,FALSE) -> 215
A44: 262 | B44: BAS RHIN | C44: 5101 | D44: SELESTAT | E44: 4104 | F44: ERSTEIN | G44: =VLOOKUP($E44,'RECAP AG'!$G$6:$CU$250,3,FALSE) -> 4.4 | H44: =VLOOKUP($E44,'RECAP AG'!$G$6:$CU$250,18,FALSE) -> 205.9 | I44: =VLOOKUP($E44,'RECAP AG'!$G$6:$CU$250,19,FALSE) -> 47.22 | J44: =VLOOKUP($E44,'RECAP AG'!$G$6:$CU$250,20,FALSE) -> 54% | K44: =VLOOKUP($E44,'RECAP AG'!$G$6:$CU$250,21,FALSE) -> 4 | L44: =VLOOKUP($E44,'RECAP AG'!$G$6:$CU$250,22,FALSE) -> 224 | M44: =VLOOKUP($E44,'RECAP AG'!$G$6:$CU$250,23,FALSE) -> 51.38 | N44: =VLOOKUP($E44,'RECAP AG'!$G$6:$CU$250,24,FALSE) -> 58% | O44: =VLOOKUP($E44,'RECAP AG'!$G$6:$CU$250,25,FALSE) -> 77 | P44: =VLOOKUP($E44,'RECAP AG'!$G$6:$CU$250,26,FALSE) -> 56% | Q44: =VLOOKUP($E44,'RECAP AG'!$G$6:$CU$250,27,FALSE) -> 56% | R44: =VLOOKUP($E44,'RECAP AG'!$G$6:$CU$250,28,FALSE) -> 14
A45: 262 | B45: BAS RHIN | C45: 5101 | D45: SELESTAT | E45: 4008 | F45: FEGERSHEIM | G45: =VLOOKUP($E45,'RECAP AG'!$G$6:$CU$250,3,FALSE) -> 2.3 | H45: =VLOOKUP($E45,'RECAP AG'!$G$6:$CU$250,18,FALSE) -> 59.8 | I45: =VLOOKUP($E45,'RECAP AG'!$G$6:$CU$250,19,FALSE) -> 26.34 | J45: =VLOOKUP($E45,'RECAP AG'!$G$6:$CU$250,20,FALSE) -> 74% | K45: =VLOOKUP($E45,'RECAP AG'!$G$6:$CU$250,21,FALSE) -> 51 | L45: =VLOOKUP($E45,'RECAP AG'!$G$6:$CU$250,22,FALSE) -> 71 | M45: =VLOOKUP($E45,'RECAP AG'!$G$6:$CU$250,23,FALSE) -> 31.28 | N45: =VLOOKUP($E45,'RECAP AG'!$G$6:$CU$250,24,FALSE) -> 75% | O45: =VLOOKUP($E45,'RECAP AG'!$G$6:$CU$250,25,FALSE) -> 214 | P45: =VLOOKUP($E45,'RECAP AG'!$G$6:$CU$250,26,FALSE) -> 74% | Q45: =VLOOKUP($E45,'RECAP AG'!$G$6:$CU$250,27,FALSE) -> 74% | R45: =VLOOKUP($E45,'RECAP AG'!$G$6:$CU$250,28,FALSE) -> 100
A46: 262 | B46: BAS RHIN | C46: 5101 | D46: SELESTAT | E46: 4007 | F46: ILLKIRCH CENTRE | G46: =VLOOKUP($E46,'RECAP AG'!$G$6:$CU$250,3,FALSE) -> 6.5 | H46: =VLOOKUP($E46,'RECAP AG'!$G$6:$CU$250,18,FALSE) -> 100.5 | I46: =VLOOKUP($E46,'RECAP AG'!$G$6:$CU$250,19,FALSE) -> 15.39 | J46: =VLOOKUP($E46,'RECAP AG'!$G$6:$CU$250,20,FALSE) -> 85% | K46: =VLOOKUP($E46,'RECAP AG'!$G$6:$CU$250,21,FALSE) -> 123 | L46: =VLOOKUP($E46,'RECAP AG'!$G$6:$CU$250,22,FALSE) -> 252 | M46: =VLOOKUP($E46,'RECAP AG'!$G$6:$CU$250,23,FALSE) -> 38.59 | N46: =VLOOKUP($E46,'RECAP AG'!$G$6:$CU$250,24,FALSE) -> 69% | O46: =VLOOKUP($E46,'RECAP AG'!$G$6:$CU$250,25,FALSE) -> 158 | P46: =VLOOKUP($E46,'RECAP AG'!$G$6:$CU$250,26,FALSE) -> 78% | Q46: =VLOOKUP($E46,'RECAP AG'!$G$6:$CU$250,27,FALSE) -> 78% | R46: =VLOOKUP($E46,'RECAP AG'!$G$6:$CU$250,28,FALSE) -> 142
A47: 262 | B47: BAS RHIN | C47: 5101 | D47: SELESTAT | E47: 4015 | F47: LINGOLSHEIM | G47: =VLOOKUP($E47,'RECAP AG'!$G$6:$CU$250,3,FALSE) -> 2.1 | H47: =VLOOKUP($E47,'RECAP AG'!$G$6:$CU$250,18,FALSE) -> -27.5 | I47: =VLOOKUP($E47,'RECAP AG'!$G$6:$CU$250,19,FALSE) -> -13.03 | J47: =VLOOKUP($E47,'RECAP AG'!$G$6:$CU$250,20,FALSE) -> 113% | K47: =VLOOKUP($E47,'RECAP AG'!$G$6:$CU$250,21,FALSE) -> 242 | L47: =VLOOKUP($E47,'RECAP AG'!$G$6:$CU$250,22,FALSE) -> 91 | M47: =VLOOKUP($E47,'RECAP AG'!$G$6:$CU$250,23,FALSE) -> 43.13 | N47: =VLOOKUP($E47,'RECAP AG'!$G$6:$CU$250,24,FALSE) -> 65% | O47: =VLOOKUP($E47,'RECAP AG'!$G$6:$CU$250,25,FALSE) -> 133 | P47: =VLOOKUP($E47,'RECAP AG'!$G$6:$CU$250,26,FALSE) -> 94% | Q47: =VLOOKUP($E47,'RECAP AG'!$G$6:$CU$250,27,FALSE) -> 94% | R47: =VLOOKUP($E47,'RECAP AG'!$G$6:$CU$250,28,FALSE) -> 238
A48: 262 | B48: BAS RHIN | C48: 5101 | D48: SELESTAT | E48: 4109 | F48: MARCKOLSHEIM | G48: =VLOOKUP($E48,'RECAP AG'!$G$6:$CU$250,3,FALSE) -> 2.7 | H48: =VLOOKUP($E48,'RECAP AG'!$G$6:$CU$250,18,FALSE) -> 55.3 | I48: =VLOOKUP($E48,'RECAP AG'!$G$6:$CU$250,19,FALSE) -> 20.56 | J48: =VLOOKUP($E48,'RECAP AG'!$G$6:$CU$250,20,FALSE) -> 80% | K48: =VLOOKUP($E48,'RECAP AG'!$G$6:$CU$250,21,FALSE) -> 83 | L48: =VLOOKUP($E48,'RECAP AG'!$G$6:$CU$250,22,FALSE) -> 104 | M48: =VLOOKUP($E48,'RECAP AG'!$G$6:$CU$250,23,FALSE) -> 38.66 | N48: =VLOOKUP($E48,'RECAP AG'!$G$6:$CU$250,24,FALSE) -> 69% | O48: =VLOOKUP($E48,'RECAP AG'!$G$6:$CU$250,25,FALSE) -> 155 | P48: =VLOOKUP($E48,'RECAP AG'!$G$6:$CU$250,26,FALSE) -> 75% | Q48: =VLOOKUP($E48,'RECAP AG'!$G$6:$CU$250,27,FALSE) -> 75% | R48: =VLOOKUP($E48,'RECAP AG'!$G$6:$CU$250,28,FALSE) -> 112
A49: 262 | B49: BAS RHIN | C49: 5101 | D49: SELESTAT | E49: 4120 | F49: WASSELONNE | G49: =VLOOKUP($E49,'RECAP AG'!$G$6:$CU$250,3,FALSE) -> 2.7 | H49: =VLOOKUP($E49,'RECAP AG'!$G$6:$CU$250,18,FALSE) -> -12.1 | I49: =VLOOKUP($E49,'RECAP AG'!$G$6:$CU$250,19,FALSE) -> -4.53 | J49: =VLOOKUP($E49,'RECAP AG'!$G$6:$CU$250,20,FALSE) -> 104% | K49: =VLOOKUP($E49,'RECAP AG'!$G$6:$CU$250,21,FALSE) -> 232 | L49: =VLOOKUP($E49,'RECAP AG'!$G$6:$CU$250,22,FALSE) -> 104 | M49: =VLOOKUP($E49,'RECAP AG'!$G$6:$CU$250,23,FALSE) -> 38.95 | N49: =VLOOKUP($E49,'RECAP AG'!$G$6:$CU$250,24,FALSE) -> 68% | O49: =VLOOKUP($E49,'RECAP AG'!$G$6:$CU$250,25,FALSE) -> 154 | P49: =VLOOKUP($E49,'RECAP AG'!$G$6:$CU$250,26,FALSE) -> 90% | Q49: =VLOOKUP($E49,'RECAP AG'!$G$6:$CU$250,27,FALSE) -> 90% | R49: =VLOOKUP($E49,'RECAP AG'!$G$6:$CU$250,28,FALSE) -> 231
